Workbook

Sheet Data_Tech
A1: мес | B1: год | C1: изд | D1: партия | E1: коэф | F1: Ф. И. О. | G1: р/р | H1: 1 | I1: 2 | J1: 3 | K1: 4 | L1: 5 | M1: 6 | N1: 7 | O1: 8 | P1: 9 | Q1: 10 | R1: 11 | S1: 12 | T1: 13 | U1: 14 | V1: 15 | W1: 16 | X1: 17 | Y1: 18 | Z1: 19 | AA1: 20 | AB1: 21 | AC1: 22 | AD1: 23 | AE1: 24 | AF1: 25 | AG1: 26 | AH1: 27 | AI1: 28 | AJ1: 29 | AK1: 30 | AL1: 31 | AM1: сумма | AN1: Столбец1
A2: месяц | B2: год | C2: изд | D2: партия | E2: коэф | F2: Ф. И. О. | G2: р/р | I2: =IF(($H$2+COLUMN(A:A))>EOMONTH($H$2,0),0,$H$2+COLUMN(A:A)) -> 1900-01-01 | J2: 1900-01-02 | K2: 1900-01-03 | L2: 1900-01-04 | M2: 1900-01-05 | N2: 1900-01-06 | O2: 1900-01-07 | P2: 1900-01-08 | Q2: 1900-01-09 | R2: 1900-01-10 | S2: 1900-01-11 | T2: 1900-01-12 | U2: 1900-01-13 | V2: 1900-01-14 | W2: 1900-01-15 | X2: 1900-01-16 | Y2: 1900-01-17 | Z2: 1900-01-18 | AA2: 1900-01-19 | AB2: 1900-01-20 | AC2: =IF(($H$2+COLUMN(U:U))>EOMONTH($H$2,0),0,$H$2+COLUMN(U:U)) -> 1900-01-21 | AD2: =IF(($H$2+COLUMN(V:V))>EOMONTH($H$2,0),0,$H$2+COLUMN(V:V)) -> 1900-01-22 | AE2: 1900-01-23 | AF2: 1900-01-24 | AG2: 1900-01-25 | AH2: 1900-01-26 | AI2: 1900-01-27 | AJ2: 1900-01-28 | AK2: 1900-01-29 | AL2: 1900-01-30 | AM2: сумма | AN2: сумма2
A3: январь | B3: год | C3: изд | D3: партия | E3: коэф | F3: Ф. И. О. | G3: р/р | I3: 2 | J3: 3 | K3: 4 | L3: 5 | M3: 6 | N3: 7 | O3: 8 | P3: 9 | Q3: 10 | R3: 11 | S3: 12 | T3: 13 | U3: 14 | V3: 15 | W3: 16 | X3: 17 | Y3: 18 | Z3: 19 | AA3: 20 | AB3: 21 | AC3: 22 | AD3: 23 | AE3: 24 | AF3: 25 | AG3: 26 | AH3: 27 | AI3: 28 | AJ3: 29 | AK3: 30 | AL3: 31 | AM3: сумма | AN3: Столбец1
A4: январь | B4: 2026 | C4: 1 | D4: 1-25 | E4: 1 | F4: Шишина Наталья Александровна | G4: 2а | J4: 7 | K4: 6 | M4: 7 | S4: 8 | X4: 7 | Z4: 8 | AA4: 8 | AM4: =SUM(Data_Tech[[#This Row],[1]:[31]])-Data_Tech[[#This Row],[Столбец1]] -> 44 | AN4: =SUM(IFERROR(WEEKDAY($H$2:$AL$2,2)>5,)*H4:AL4)+Data_Tech[[#This Row],[2]]+Data_Tech[[#This Row],[5]]+Data_Tech[[#This Row],[6]]+Data_Tech[[#This Row],[8]]+Data_Tech[[#This Row],[7]]+Data_Tech[[#This Row],[9]] -> 7
A5: январь | B5: 2026 | C5: 8Б | D5: 1-26 | E5: 1,5 | F5: Егорова Татьяна Владимировна | G5: 4/8 | J5: 6 | K5: 6 | M5: 6 | N5: 6 | P5: 7 | S5: 8 | T5: 8 | U5: 8 | V5: 8 | W5: 8 | X5: 6 | Z5: 8 | AA5: 8 | AC5: 8 | AD5: 8 | AE5: 6 | AG5: 8 | AH5: 8 | AI5: 8 | AK5: 8 | AL5: 6 | AM5: =SUM(Data_Tech[[#This Row],[1]:[31]])-Data_Tech[[#This Row],[Столбец1]] -> 87 | AN5: =SUM(IFERROR(WEEKDAY($H$2:$AL$2,2)>5,)*H5:AL5)+Data_Tech[[#This Row],[2]]+Data_Tech[[#This Row],[5]]+Data_Tech[[#This Row],[6]]+Data_Tech[[#This Row],[8]]+Data_Tech[[#This Row],[7]]+Data_Tech[[#This Row],[9]] -> 66
A6: январь | B6: 2026 | C6: 1 | D6: 1-25 | E6: 1,5 | F6: Авдеева Елена Николаевна | G6: 4/8 | J6: 7 | K6: 7 | M6: 2 | N6: 7 | O6: 2 | P6: 7 | Q6: 7 | S6: 8 | AC6: 8 | AD6: 8 | AE6: 7 | AG6: 8 | AH6: 8 | AI6: 8 | AJ6: 8 | AK6: 8 | AL6: 7 | AM6: =SUM(Data_Tech[[#This Row],[1]:[31]])-Data_Tech[[#This Row],[Столбец1]] -> 58 | AN6: =SUM(IFERROR(WEEKDAY($H$2:$AL$2,2)>5,)*H6:AL6)+Data_Tech[[#This Row],[2]]+Data_Tech[[#This Row],[5]]+Data_Tech[[#This Row],[6]]+Data_Tech[[#This Row],[8]]+Data_Tech[[#This Row],[7]]+Data_Tech[[#This Row],[9]] -> 59
A7: январь | B7: 2026 | C7: 75 | D7: 1-26 | E7: 1,5 | F7: Иванова Екатерина Борисовна | G7: 4/8 | J7: 7 | K7: 4 | L7: 6 | M7: 1 | O7: 5 | S7: 8 | U7: 8 | V7: 8 | W7: 8 | AA7: 8 | AB7: 8 | AE7: 6 | AG7: 8 | AI7: 8 | AJ7: 8 | AK7: 8 | AL7: 6 | AM7: =SUM(Data_Tech[[#This Row],[1]:[31]])-Data_Tech[[#This Row],[Столбец1]] -> 66 | AN7: =SUM(IFERROR(WEEKDAY($H$2:$AL$2,2)>5,)*H7:AL7)+Data_Tech[[#This Row],[2]]+Data_Tech[[#This Row],[5]]+Data_Tech[[#This Row],[6]]+Data_Tech[[#This Row],[8]]+Data_Tech[[#This Row],[7]]+Data_Tech[[#This Row],[9]] -> 49
A8: январь | B8: 2026 | C8: 75 | D8: 1-26 | E8: 1 | F8: Иванова Екатерина Борисовна | G8: 2а | K8: 2 | M8: 3 | O8: 5 | AM8: =SUM(Data_Tech[[#This Row],[1]:[31]])-Data_Tech[[#This Row],[Столбец1]] -> -3 | AN8: =SUM(IFERROR(WEEKDAY($H$2:$AL$2,2)>5,)*H8:AL8)+Data_Tech[[#This Row],[2]]+Data_Tech[[#This Row],[5]]+Data_Tech[[#This Row],[6]]+Data_Tech[[#This Row],[8]]+Data_Tech[[#This Row],[7]]+Data_Tech[[#This Row],[9]] -> 13
A9: январь | B9: 2026 | C9: 8Б | D9: 1-26 | E9: 1,5 | F9: Королёва Надежда Игоревна | G9: 4/8 | J9: 6 | K9: 6 | M9: 6 | N9: 6 | P9: 5 | Q9: 7 | S9: 8 | T9: 8 | U9: 8 | V9: 8 | X9: 6 | Z9: 8 | AA9: 8 | AB9: 8 | AC9: 8 | AD9: 8 | AE9: 6 | AH9: 8 | AI9: 8 | AJ9: 8 | AK9: 8 | AL9: 6 | AM9: =SUM(Data_Tech[[#This Row],[1]:[31]])-Data_Tech[[#This Row],[Столбец1]] -> 96 | AN9: =SUM(IFERROR(WEEKDAY($H$2:$AL$2,2)>5,)*H9:AL9)+Data_Tech[[#This Row],[2]]+Data_Tech[[#This Row],[5]]+Data_Tech[[#This Row],[6]]+Data_Tech[[#This Row],[8]]+Data_Tech[[#This Row],[7]]+Data_Tech[[#This Row],[9]] -> 62
A10: январь | B10: 2026 | C10: 8Б | D10: 1-26 | E10: 1 | F10: Королёва Надежда Игоревна | G10: 4/8 | J10: 6 | K10: 6 | M10: 6 | N10: 6 | P10: 5 | Q10: 7 | S10: 8 | T10: 8 | U10: 8 | V10: 8 | X10: 6 | Z10: 8 | AA10: 8 | AB10: 8 | AC10: 8 | AD10: 8 | AE10: 6 | AH10: 8 | AI10: 8 | AJ10: 8 | AK10: 8 | AL10: 6 | AM10: =SUM(Data_Tech[[#This Row],[1]:[31]])-Data_Tech[[#This Row],[Столбец1]] -> 96 | AN10: =SUM(IFERROR(WEEKDAY($H$2:$AL$2,2)>5,)*H10:AL10)+Data_Tech[[#This Row],[2]]+Data_Tech[[#This Row],[5]]+Data_Tech[[#This Row],[6]]+Data_Tech[[#This Row],[8]]+Data_Tech[[#This Row],[7]]+Data_Tech[[#This Row],[9]] -> 62
A11: январь | B11: 2026 | C11: 60 | D11: 1-26 | E11: 1,5 | F11: Зайка Ирина Сергеевна | G11: 4/8 | L11: 7 | T11: 8 | AM11: =SUM(Data_Tech[[#This Row],[1]:[31]])-Data_Tech[[#This Row],[Столбец1]] -> 8 | AN11: =SUM(IFERROR(WEEKDAY($H$2:$AL$2,2)>5,)*H11:AL11)+Data_Tech[[#This Row],[2]]+Data_Tech[[#This Row],[5]]+Data_Tech[[#This Row],[6]]+Data_Tech[[#This Row],[8]]+Data_Tech[[#This Row],[7]]+Data_Tech[[#This Row],[9]] -> 7
A12: январь | B12: 2026 | C12: 1 | D12: 1-25 | E12: 1 | F12: Ложкина Елена Сергеевна | G12: 2а | L12: 2.5 | AM12: =SUM(Data_Tech[[#This Row],[1]:[31]])-Data_Tech[[#This Row],[Столбец1]] -> 0 | AN12: =SUM(IFERROR(WEEKDAY($H$2:$AL$2,2)>5,)*H12:AL12)+Data_Tech[[#This Row],[2]]+Data_Tech[[#This Row],[5]]+Data_Tech[[#This Row],[6]]+Data_Tech[[#This Row],[8]]+Data_Tech[[#This Row],[7]]+Data_Tech[[#This Row],[9]] -> 2.5
A13: январь | B13: 2026 | C13: 60 | D13: 1-26 | E13: 1 | F13: Ложкина Елена Сергеевна | G13: 2а | L13: 7 | AM13: =SUM(Data_Tech[[#This Row],[1]:[31]])-Data_Tech[[#This Row],[Столбец1]] -> 0 | AN13: =SUM(IFERROR(WEEKDAY($H$2:$AL$2,2)>5,)*H13:AL13)+Data_Tech[[#This Row],[2]]+Data_Tech[[#This Row],[5]]+Data_Tech[[#This Row],[6]]+Data_Tech[[#This Row],[8]]+Data_Tech[[#This Row],[7]]+Data_Tech[[#This Row],[9]] -> 7
A14: январь | B14: 2026 | C14: 60 | D14: 1-26 | E14: 1,4 | F14: Ложкина Елена Сергеевна | G14: 2а | M14: 6 | AM14: =SUM(Data_Tech[[#This Row],[1]:[31]])-Data_Tech[[#This Row],[Столбец1]] -> 0 | AN14: =SUM(IFERROR(WEEKDAY($H$2:$AL$2,2)>5,)*H14:AL14)+Data_Tech[[#This Row],[2]]+Data_Tech[[#This Row],[5]]+Data_Tech[[#This Row],[6]]+Data_Tech[[#This Row],[8]]+Data_Tech[[#This Row],[7]]+Data_Tech[[#This Row],[9]] -> 6
A15: январь | B15: 2026 | C15: 8Б | D15: 1-26 | E15: 1,4 | F15: Алешкина Лариса Алексеевна | G15: 3/2 | M15: 7 | N15: 7 | O15: 7 | P15: 7 | T15: 8 | U15: 8 | V15: 5.2 | W15: 8 | X15: 6 | Z15: 8 | AA15: 8 | AB15: 8 | AC15: 8 | AD15: 8 | AE15: 7 | AG15: 8 | AH15: 8 | AI15: 8 | AJ15: 8 | AK15: 8 | AL15: 7 | AM15: =SUM(Data_Tech[[#This Row],[1]:[31]])-Data_Tech[[#This Row],[Столбец1]] -> 70 | AN15: =SUM(IFERROR(WEEKDAY($H$2:$AL$2,2)>5,)*H15:AL15)+Data_Tech[[#This Row],[2]]+Data_Tech[[#This Row],[5]]+Data_Tech[[#This Row],[6]]+Data_Tech[[#This Row],[8]]+Data_Tech[[#This Row],[7]]+Data_Tech[[#This Row],[9]] -> 87.2
A16: январь | B16: 2026 | C16: 75 | D16: 1-26 | E16: 1 | F16: Иванова Инна Игоревна | G16: 2а | L16: 6.5 | O16: 3 | S16: 8 | T16: 8 | V16: 8 | AA16: 8 | AC16: 8 | AD16: 8 | AG16: 8 | AJ16: 8 | AK16: 8 | AL16: 6.5 | AM16: =SUM(Data_Tech[[#This Row],[1]:[31]])-Data_Tech[[#This Row],[Столбец1]] -> 35.5 | AN16: =SUM(IFERROR(WEEKDAY($H$2:$AL$2,2)>5,)*H16:AL16)+Data_Tech[[#This Row],[2]]+Data_Tech[[#This Row],[5]]+Data_Tech[[#This Row],[6]]+Data_Tech[[#This Row],[8]]+Data_Tech[[#This Row],[7]]+Data_Tech[[#This Row],[9]] -> 52.5
A17: январь | B17: 2026 | C17: 60 | D17: 1-26 | E17: 1 | F17: Иванова Инна Игоревна | G17: 2а | M17: 2.5 | N17: 6.5 | O17: 7 | Z17: 8 | AB17: 8 | AM17: =SUM(Data_Tech[[#This Row],[1]:[31]])-Data_Tech[[#This Row],[Столбец1]] -> 9 | AN17: =SUM(IFERROR(WEEKDAY($H$2:$AL$2,2)>5,)*H17:AL17)+Data_Tech[[#This Row],[2]]+Data_Tech[[#This Row],[5]]+Data_Tech[[#This Row],[6]]+Data_Tech[[#This Row],[8]]+Data_Tech[[#This Row],[7]]+Data_Tech[[#This Row],[9]] -> 23
A18: январь | B18: 2026 | C18: 75 | D18: 1-26 | E18: 1 | F18: Гриша Ольга Викторовна | G18: 2а | M18: 7 | T18: 8 | U18: 8 | V18: 8 | AB18: 8 | AC18: 8 | AI18: 8 | AJ18: 8 | AK18: 8 | AL18: 7 | AM18: =SUM(Data_Tech[[#This Row],[1]:[31]])-Data_Tech[[#This Row],[Столбец1]] -> 39 | AN18: =SUM(IFERROR(WEEKDAY($H$2:$AL$2,2)>5,)*H18:AL18)+Data_Tech[[#This Row],[2]]+Data_Tech[[#This Row],[5]]+Data_Tech[[#This Row],[6]]+Data_Tech[[#This Row],[8]]+Data_Tech[[#This Row],[7]]+Data_Tech[[#This Row],[9]] -> 39
A19: январь | B19: 2026 | C19: 60 | D19: 1-26 | E19: 1,5 | F19: Иванова Екатерина Борисовна | G19: 4/8 | L19: 3.5 | P19: 5 | T19: 8 | AC19: 8 | AD19: 8 | AM19: =SUM(Data_Tech[[#This Row],[1]:[31]])-Data_Tech[[#This Row],[Столбец1]] -> 3 | AN19: =SUM(IFERROR(WEEKDAY($H$2:$AL$2,2)>5,)*H19:AL19)+Data_Tech[[#This Row],[2]]+Data_Tech[[#This Row],[5]]+Data_Tech[[#This Row],[6]]+Data_Tech[[#This Row],[8]]+Data_Tech[[#This Row],[7]]+Data_Tech[[#This Row],[9]] -> 29.5
A20: январь | B20: 2026 | C20: 1 | D20: 1-25 | E20: 1 | F20: Попова Виктория | G20: 2а | J20: 8 | L20: 3 | M20: 8 | N20: 8 | O20: 5 | T20: 8 | U20: 8 | V20: 8 | W20: 8 | X20: 7 | Z20: 8 | AM20: =SUM(Data_Tech[[#This Row],[1]:[31]])-Data_Tech[[#This Row],[Столбец1]] -> 34 | AN20: =SUM(IFERROR(WEEKDAY($H$2:$AL$2,2)>5,)*H20:AL20)+Data_Tech[[#This Row],[2]]+Data_Tech[[#This Row],[5]]+Data_Tech[[#This Row],[6]]+Data_Tech[[#This Row],[8]]+Data_Tech[[#This Row],[7]]+Data_Tech[[#This Row],[9]] -> 45
A21: январь | B21: 2026 | C21: 31 | D21: 1-26 | E21: 1 | F21: Груздь Олеся Иванна | G21: 4/8 | O21: 6 | AM21: =SUM(Data_Tech[[#This Row],[1]:[31]])-Data_Tech[[#This Row],[Столбец1]] -> -6 | AN21: =SUM(IFERROR(WEEKDAY($H$2:$AL$2,2)>5,)*H21:AL21)+Data_Tech[[#This Row],[2]]+Data_Tech[[#This Row],[5]]+Data_Tech[[#This Row],[6]]+Data_Tech[[#This Row],[8]]+Data_Tech[[#This Row],[7]]+Data_Tech[[#This Row],[9]] -> 12
A22: январь | B22: 2026 | C22: 8Б | D22: 1-26 | E22: 1 | F22: Гриша Ольга Викторовна | G22: 2а | O22: 8 | P22: 7 | X22: 7 | Z22: 8 | AE22: 7 | AH22: 8 | AM22: =SUM(Data_Tech[[#This Row],[1]:[31]])-Data_Tech[[#This Row],[Столбец1]] -> 15 | AN22: =SUM(IFERROR(WEEKDAY($H$2:$AL$2,2)>5,)*H22:AL22)+Data_Tech[[#This Row],[2]]+Data_Tech[[#This Row],[5]]+Data_Tech[[#This Row],[6]]+Data_Tech[[#This Row],[8]]+Data_Tech[[#This Row],[7]]+Data_Tech[[#This Row],[9]] -> 30
A23: январь | B23: 2026 | C23: 1 | D23: 1-25 | E23: 1,4 | F23: Оленева Анна Викторовна | G23: 3/2 | O23: 5 | P23: 6 | AM23: =SUM(Data_Tech[[#This Row],[1]:[31]])-Data_Tech[[#This Row],[Столбец1]] -> -11 | AN23: =SUM(IFERROR(WEEKDAY($H$2:$AL$2,2)>5,)*H23:AL23)+Data_Tech[[#This Row],[2]]+Data_Tech[[#This Row],[5]]+Data_Tech[[#This Row],[6]]+Data_Tech[[#This Row],[8]]+Data_Tech[[#This Row],[7]]+Data_Tech[[#This Row],[9]] -> 22
A24: январь | B24: 2026 | C24: 31 | D24: 1-26 | E24: 1,5 | F24: Груздь Олеся Иванна | G24: 4/8 | P24: 6 | S24: 8 | T24: 8 | AM24: =SUM(Data_Tech[[#This Row],[1]:[31]])-Data_Tech[[#This Row],[Столбец1]] -> 10 | AN24: =SUM(IFERROR(WEEKDAY($H$2:$AL$2,2)>5,)*H24:AL24)+Data_Tech[[#This Row],[2]]+Data_Tech[[#This Row],[5]]+Data_Tech[[#This Row],[6]]+Data_Tech[[#This Row],[8]]+Data_Tech[[#This Row],[7]]+Data_Tech[[#This Row],[9]] -> 12
A25: январь | B25: 2026 | C25: 8Б | D25: 1-26 | E25: 1 | F25: Иванова Инна Игоревна | G25: 3/2 | P25: 3 | AM25: =SUM(Data_Tech[[#This Row],[1]:[31]])-Data_Tech[[#This Row],[Столбец1]] -> -3 | AN25: =SUM(IFERROR(WEEKDAY($H$2:$AL$2,2)>5,)*H25:AL25)+Data_Tech[[#This Row],[2]]+Data_Tech[[#This Row],[5]]+Data_Tech[[#This Row],[6]]+Data_Tech[[#This Row],[8]]+Data_Tech[[#This Row],[7]]+Data_Tech[[#This Row],[9]] -> 6
A26: январь | B26: 2026 | C26: 1 | D26: 1-25 | E26: 1,4 | F26: Борода Ирина Борисовна | G26: 2а | P26: 6 | AB26: 4 | AH26: 8 | AK26: 8 | AM26: =SUM(Data_Tech[[#This Row],[1]:[31]])-Data_Tech[[#This Row],[Столбец1]] -> 6 | AN26: =SUM(IFERROR(WEEKDAY($H$2:$AL$2,2)>5,)*H26:AL26)+Data_Tech[[#This Row],[2]]+Data_Tech[[#This Row],[5]]+Data_Tech[[#This Row],[6]]+Data_Tech[[#This Row],[8]]+Data_Tech[[#This Row],[7]]+Data_Tech[[#This Row],[9]] -> 20
A27: январь | B27: 2026 | C27: 1 | D27: 1-25 | E27: 1 | F27: Хан Наталия Григорьевна | G27: 3/2 | S27: 8 | AM27: =SUM(Data_Tech[[#This Row],[1]:[31]])-Data_Tech[[#This Row],[Столбец1]] -> 8 | AN27: =SUM(IFERROR(WEEKDAY($H$2:$AL$2,2)>5,)*H27:AL27)+Data_Tech[[#This Row],[2]]+Data_Tech[[#This Row],[5]]+Data_Tech[[#This Row],[6]]+Data_Tech[[#This Row],[8]]+Data_Tech[[#This Row],[7]]+Data_Tech[[#This Row],[9]] -> 0
A28: январь | B28: 2026 | C28: 75 | D28: 1-26 | E28: 1 | F28: Попова Виктория | G28: 2а | P28: 3 | Q28: 7 | S28: 8 | AM28: =SUM(Data_Tech[[#This Row],[1]:[31]])-Data_Tech[[#This Row],[Столбец1]] -> 12 | AN28: =SUM(IFERROR(WEEKDAY($H$2:$AL$2,2)>5,)*H28:AL28)+Data_Tech[[#This Row],[2]]+Data_Tech[[#This Row],[5]]+Data_Tech[[#This Row],[6]]+Data_Tech[[#This Row],[8]]+Data_Tech[[#This Row],[7]]+Data_Tech[[#This Row],[9]] -> 6
A29: январь | B29: 2026 | C29: 60 | D29: 1-26 | E29: 1 | F29: Гриша Ольга Викторовна | G29: 2а | S29: 8 | AM29: =SUM(Data_Tech[[#This Row],[1]:[31]])-Data_Tech[[#This Row],[Столбец1]] -> 8 | AN29: =SUM(IFERROR(WEEKDAY($H$2:$AL$2,2)>5,)*H29:AL29)+Data_Tech[[#This Row],[2]]+Data_Tech[[#This Row],[5]]+Data_Tech[[#This Row],[6]]+Data_Tech[[#This Row],[8]]+Data_Tech[[#This Row],[7]]+Data_Tech[[#This Row],[9]] -> 0
A30: январь | B30: 2026 | C30: 60 | D30: 1-26 | E30: 1 | F30: Иванова Екатерина Борисовна | G30: 2а | Q30: 7 | AM30: =SUM(Data_Tech[[#This Row],[1]:[31]])-Data_Tech[[#This Row],[Столбец1]] -> 7 | AN30: =SUM(IFERROR(WEEKDAY($H$2:$AL$2,2)>5,)*H30:AL30)+Data_Tech[[#This Row],[2]]+Data_Tech[[#This Row],[5]]+Data_Tech[[#This Row],[6]]+Data_Tech[[#This Row],[8]]+Data_Tech[[#This Row],[7]]+Data_Tech[[#This Row],[9]] -> 0
A31: январь | B31: 2026 | C31: 8Б | D31: 1-26 | E31: 1,4 | F31: Жукова Машка Валентинна | G31: 3/2 | S31: 8 | T31: 8 | U31: 8 | V31: 8 | W31: 8 | Z31: 8 | AA31: 8 | AB31: 8 | AC31: 8 | AD31: 8 | AG31: 8 | AH31: 8 | AI31: 8 | AJ31: 8 | AK31: 8 | AM31: =SUM(Data_Tech[[#This Row],[1]:[31]])-Data_Tech[[#This Row],[Столбец1]] -> 72 | AN31: =SUM(IFERROR(WEEKDAY($H$2:$AL$2,2)>5,)*H31:AL31)+Data_Tech[[#This Row],[2]]+Data_Tech[[#This Row],[5]]+Data_Tech[[#This Row],[6]]+Data_Tech[[#This Row],[8]]+Data_Tech[[#This Row],[7]]+Data_Tech[[#This Row],[9]] -> 48
A32: январь | B32: 2026 | C32: 75 | D32: 1-26 | E32: 1,5 | F32: Зайка Ирина Сергеевна | G32: 4/8 | S32: 8 | V32: 8 | W32: 8 | AJ32: 8 | AK32: 8 | AM32: =SUM(Data_Tech[[#This Row],[1]:[31]])-Data_Tech[[#This Row],[Столбец1]] -> 8 | AN32: =SUM(IFERROR(WEEKDAY($H$2:$AL$2,2)>5,)*H32:AL32)+Data_Tech[[#This Row],[2]]+Data_Tech[[#This Row],[5]]+Data_Tech[[#This Row],[6]]+Data_Tech[[#This Row],[8]]+Data_Tech[[#This Row],[7]]+Data_Tech[[#This Row],[9]] -> 32
A33: январь | B33: 2026 | C33: 1 | D33: 1-25 | E33: 1 | F33: Борода Ирина Борисовна | G33: 2а | S33: 8 | AM33: =SUM(Data_Tech[[#This Row],[1]:[31]])-Data_Tech[[#This Row],[Столбец1]] -> 8 | AN33: =SUM(IFERROR(WEEKDAY($H$2:$AL$2,2)>5,)*H33:AL33)+Data_Tech[[#This Row],[2]]+Data_Tech[[#This Row],[5]]+Data_Tech[[#This Row],[6]]+Data_Tech[[#This Row],[8]]+Data_Tech[[#This Row],[7]]+Data_Tech[[#This Row],[9]] -> 0
A34: январь | B34: 2026 | C34: 60 | D34: 1-26 | E34: 1 | F34: Носова Мария Андреевна | G34: 2а | S34: 8 | T34: 8 | AM34: =SUM(Data_Tech[[#This Row],[1]:[31]])-Data_Tech[[#This Row],[Столбец1]] -> 16 | AN34: =SUM(IFERROR(WEEKDAY($H$2:$AL$2,2)>5,)*H34:AL34)+Data_Tech[[#This Row],[2]]+Data_Tech[[#This Row],[5]]+Data_Tech[[#This Row],[6]]+Data_Tech[[#This Row],[8]]+Data_Tech[[#This Row],[7]]+Data_Tech[[#This Row],[9]] -> 0
A35: январь | B35: 2026 | C35: 8Б | D35: 1-26 | E35: 1 | F35: Яблокова Дарья Александровна | G35: 3/2 | O35: 3 | S35: 8 | T35: 8 | U35: 8 | V35: 8 | W35: 8 | X35: 6 | Z35: 8 | AA35: 8 | AB35: 8 | AC35: 8 | AD35: 8 | AE35: 6 | AG35: 8 | AH35: 8 | AI35: 8 | AJ35: 8 | AK35: 8 | AM35: =SUM(Data_Tech[[#This Row],[1]:[31]])-Data_Tech[[#This Row],[Столбец1]] -> 81 | AN35: =SUM(IFERROR(WEEKDAY($H$2:$AL$2,2)>5,)*H35:AL35)+Data_Tech[[#This Row],[2]]+Data_Tech[[#This Row],[5]]+Data_Tech[[#This Row],[6]]+Data_Tech[[#This Row],[8]]+Data_Tech[[#This Row],[7]]+Data_Tech[[#This Row],[9]] -> 54
A36: январь | B36: 2026 | C36: 1 | D36: 1-25 | E36: 1 | F36: Яблокова Дарья Александровна | G36: 2а | O36: 7 | AM36: =SUM(Data_Tech[[#This Row],[1]:[31]])-Data_Tech[[#This Row],[Столбец1]] -> -7 | AN36: =SUM(IFERROR(WEEKDAY($H$2:$AL$2,2)>5,)*H36:AL36)+Data_Tech[[#This Row],[2]]+Data_Tech[[#This Row],[5]]+Data_Tech[[#This Row],[6]]+Data_Tech[[#This Row],[8]]+Data_Tech[[#This Row],[7]]+Data_Tech[[#This Row],[9]] -> 14
A37: февраль | B37: 2026 | C37: 8Б | D37: 1-26 | E37: 1 | F37: Шишина Наталья Александровна | G37: 2а | T37: 8 | AE37: 7 | AG37: 8 | AH37: 8 | AI37: 8 | AJ37: 8 | AK37: 8 | AL37: 7 | AM37: =SUM(Data_Tech[[#This Row],[1]:[31]])-Data_Tech[[#This Row],[Столбец1]] -> 46 | AN37: =SUM(IFERROR(WEEKDAY($H$2:$AL$2,2)>5,)*H37:AL37)+Data_Tech[[#This Row],[2]]+Data_Tech[[#This Row],[5]]+Data_Tech[[#This Row],[6]]+Data_Tech[[#This Row],[8]]+Data_Tech[[#This Row],[7]]+Data_Tech[[#This Row],[9]] -> 16
A38: январь | B38: 2026 | C38: 8Б | D38: 1-26 | E38: 1 | F38: Хан Наталия Григорьевна | G38: 3/1 | T38: 8 | U38: 4.2 | V38: 6 | Z38: 8 | AA38: 8 | AB38: 8 | AC38: 8 | AG38: 8 | AH38: 5 | AM38: =SUM(Data_Tech[[#This Row],[1]:[31]])-Data_Tech[[#This Row],[Столбец1]] -> 49.2 | AN38: =SUM(IFERROR(WEEKDAY($H$2:$AL$2,2)>5,)*H38:AL38)+Data_Tech[[#This Row],[2]]+Data_Tech[[#This Row],[5]]+Data_Tech[[#This Row],[6]]+Data_Tech[[#This Row],[8]]+Data_Tech[[#This Row],[7]]+Data_Tech[[#This Row],[9]] -> 14
A39: январь | B39: 2026 | C39: 8Б | D39: 1-26 | E39: 1,5 | F39: Ефремова Юлия Сергеевна | G39: 4/8 | S39: 8 | T39: 8 | U39: 8 | V39: 8 | W39: 8 | X39: 6 | Z39: 8 | AA39: 8 | AB39: 8 | AC39: 8 | AE39: 6 | AG39: 8 | AH39: 8 | AI39: 8 | AJ39: 8 | AK39: 8 | AL39: 6 | AM39: =SUM(Data_Tech[[#This Row],[1]:[31]])-Data_Tech[[#This Row],[Столбец1]] -> 90 | AN39: =SUM(IFERROR(WEEKDAY($H$2:$AL$2,2)>5,)*H39:AL39)+Data_Tech[[#This Row],[2]]+Data_Tech[[#This Row],[5]]+Data_Tech[[#This Row],[6]]+Data_Tech[[#This Row],[8]]+Data_Tech[[#This Row],[7]]+Data_Tech[[#This Row],[9]] -> 40
A40: январь | B40: 2026 | C40: 75 | D40: 1-26 | E40: 1 | F40: Кузнецова Алина Дмитриевна | G40: 3/1 | T40: 8 | U40: 8 | W40: 8 | AH40: 8 | AI40: 8 | AJ40: 8 | AK40: 8 | AL40: 6 | AM40: =SUM(Data_Tech[[#This Row],[1]:[31]])-Data_Tech[[#This Row],[Столбец1]] -> 38 | AN40: =SUM(IFERROR(WEEKDAY($H$2:$AL$2,2)>5,)*H40:AL40)+Data_Tech[[#This Row],[2]]+Data_Tech[[#This Row],[5]]+Data_Tech[[#This Row],[6]]+Data_Tech[[#This Row],[8]]+Data_Tech[[#This Row],[7]]+Data_Tech[[#This Row],[9]] -> 24
A41: январь | B41: 2026 | C41: 60 | D41: 1-26 | E41: 1 | F41: Кузнецова Алина Дмитриевна | G41: 3/1 | S41: 8 | AM41: =SUM(Data_Tech[[#This Row],[1]:[31]])-Data_Tech[[#This Row],[Столбец1]] -> 8 | AN41: =SUM(IFERROR(WEEKDAY($H$2:$AL$2,2)>5,)*H41:AL41)+Data_Tech[[#This Row],[2]]+Data_Tech[[#This Row],[5]]+Data_Tech[[#This Row],[6]]+Data_Tech[[#This Row],[8]]+Data_Tech[[#This Row],[7]]+Data_Tech[[#This Row],[9]] -> 0
A42: январь | B42: 2026 | C42: 75 | D42: 1-26 | E42: 1,4 | F42: Борода Ирина Борисовна | G42: 3/1 | T42: 8 | W42: 8 | AA42: 3.2 | AJ42: 8 | AM42: =SUM(Data_Tech[[#This Row],[1]:[31]])-Data_Tech[[#This Row],[Столбец1]] -> 11.2 | AN42: =SUM(IFERROR(WEEKDAY($H$2:$AL$2,2)>5,)*H42:AL42)+Data_Tech[[#This Row],[2]]+Data_Tech[[#This Row],[5]]+Data_Tech[[#This Row],[6]]+Data_Tech[[#This Row],[8]]+Data_Tech[[#This Row],[7]]+Data_Tech[[#This Row],[9]] -> 16
A43: январь | B43: 2026 | C43: 8Б | D43: 1-26 | E43: 1 | F43: Носова Мария Андреевна | G43: 3/1 | U43: 8 | W43: 3.8 | AM43: =SUM(Data_Tech[[#This Row],[1]:[31]])-Data_Tech[[#This Row],[Столбец1]] -> 8 | AN43: =SUM(IFERROR(WEEKDAY($H$2:$AL$2,2)>5,)*H43:AL43)+Data_Tech[[#This Row],[2]]+Data_Tech[[#This Row],[5]]+Data_Tech[[#This Row],[6]]+Data_Tech[[#This Row],[8]]+Data_Tech[[#This Row],[7]]+Data_Tech[[#This Row],[9]] -> 3.8
A44: январь | B44: 2026 | C44: 1 | D44: 1-25 | E44: 1,5 | F44: Груздь Олеся Иванна | G44: 4/8 | U44: 8 | V44: 8 | W44: 8 | X44: 6 | Z44: 8 | AA44: 8 | AB44: 8 | AC44: 8 | AD44: 8 | AE44: 6 | AG44: 8 | AH44: 8 | AI44: 8 | AJ44: 8 | AK44: 8 | AL44: 6 | AM44: =SUM(Data_Tech[[#This Row],[1]:[31]])-Data_Tech[[#This Row],[Столбец1]] -> 74 | AN44: =SUM(IFERROR(WEEKDAY($H$2:$AL$2,2)>5,)*H44:AL44)+Data_Tech[[#This Row],[2]]+Data_Tech[[#This Row],[5]]+Data_Tech[[#This Row],[6]]+Data_Tech[[#This Row],[8]]+Data_Tech[[#This Row],[7]]+Data_Tech[[#This Row],[9]] -> 48
A45: январь | B45: 2026 | C45: 8Б | D45: 1-26 | E45: 1 | F45: Хан Наталия Григорьевна | G45: 3/2 | U45: 3 | AD45: 8 | AH45: 2.2 | AM45: =SUM(Data_Tech[[#This Row],[1]:[31]])-Data_Tech[[#This Row],[Столбец1]] -> 5.2 | AN45: =SUM(IFERROR(WEEKDAY($H$2:$AL$2,2)>5,)*H45:AL45)+Data_Tech[[#This Row],[2]]+Data_Tech[[#This Row],[5]]+Data_Tech[[#This Row],[6]]+Data_Tech[[#This Row],[8]]+Data_Tech[[#This Row],[7]]+Data_Tech[[#This Row],[9]] -> 8
A46: январь | B46: 2026 | C46: 8Б | D46: 1-26 | E46: 1 | F46: Шишина Наталья Александровна | G46: 3/1 | U46: 8 | V46: 8 | W46: 8 | AD46: 8 | AM46: =SUM(Data_Tech[[#This Row],[1]:[31]])-Data_Tech[[#This Row],[Столбец1]] -> 8 | AN46: =SUM(IFERROR(WEEKDAY($H$2:$AL$2,2)>5,)*H46:AL46)+Data_Tech[[#This Row],[2]]+Data_Tech[[#This Row],[5]]+Data_Tech[[#This Row],[6]]+Data_Tech[[#This Row],[8]]+Data_Tech[[#This Row],[7]]+Data_Tech[[#This Row],[9]] -> 24
A47: январь | B47: 2026 | C47: 31 | D47: 1-26 | E47: 1,4 | F47: Борода Ирина Борисовна | G47: 3/1 | U47: 8 | V47: 8 | AM47: =SUM(Data_Tech[[#This Row],[1]:[31]])-Data_Tech[[#This Row],[Столбец1]] -> 8 | AN47: =SUM(IFERROR(WEEKDAY($H$2:$AL$2,2)>5,)*H47:AL47)+Data_Tech[[#This Row],[2]]+Data_Tech[[#This Row],[5]]+Data_Tech[[#This Row],[6]]+Data_Tech[[#This Row],[8]]+Data_Tech[[#This Row],[7]]+Data_Tech[[#This Row],[9]] -> 8
A48: январь | B48: 2026 | C48: 60 | D48: 1-26 | E48: 1,5 | F48: Зайка Ирина Сергеевна | G48: 4/8 | U48: 8 | AM48: =SUM(Data_Tech[[#This Row],[1]:[31]])-Data_Tech[[#This Row],[Столбец1]] -> 8 | AN48: =SUM(IFERROR(WEEKDAY($H$2:$AL$2,2)>5,)*H48:AL48)+Data_Tech[[#This Row],[2]]+Data_Tech[[#This Row],[5]]+Data_Tech[[#This Row],[6]]+Data_Tech[[#This Row],[8]]+Data_Tech[[#This Row],[7]]+Data_Tech[[#This Row],[9]] -> 0
A49: январь | B49: 2026 | C49: 8Б | D49: 1-26 | E49: 1 | F49: Марко Ирина Вячеславовна | G49: 3/1 | U49: 8 | V49: 2.2 | AH49: 5.2 | AM49: =SUM(Data_Tech[[#This Row],[1]:[31]])-Data_Tech[[#This Row],[Столбец1]] -> 13.2 | AN49: =SUM(IFERROR(WEEKDAY($H$2:$AL$2,2)>5,)*H49:AL49)+Data_Tech[[#This Row],[2]]+Data_Tech[[#This Row],[5]]+Data_Tech[[#This Row],[6]]+Data_Tech[[#This Row],[8]]+Data_Tech[[#This Row],[7]]+Data_Tech[[#This Row],[9]] -> 2.2
A50: январь | B50: 2026 | C50: 60 | D50: 1-26 | E50: 1 | F50: Марко Ирина Вячеславовна | G50: 3/1 | S50: 8 | T50: 8 | AM50: =SUM(Data_Tech[[#This Row],[1]:[31]])-Data_Tech[[#This Row],[Столбец1]] -> 16 | AN50: =SUM(IFERROR(WEEKDAY($H$2:$AL$2,2)>5,)*H50:AL50)+Data_Tech[[#This Row],[2]]+Data_Tech[[#This Row],[5]]+Data_Tech[[#This Row],[6]]+Data_Tech[[#This Row],[8]]+Data_Tech[[#This Row],[7]]+Data_Tech[[#This Row],[9]] -> 0
A51: январь | B51: 2026 | C51: 75 | D51: 1-26 | E51: 1,4 | F51: Носова Мария Андреевна | G51: 3/1 | V51: 3.2 | W51: 3.4 | Z51: 8 | AA51: 8 | AC51: 8 | AD51: 8 | AG51: 3.3 | AH51: 3.2 | AI51: 8 | AJ51: 3.2 | AK51: 8 | AL51: 7 | AM51: =SUM(Data_Tech[[#This Row],[1]:[31]])-Data_Tech[[#This Row],[Столбец1]] -> 37.5 | AN51: =SUM(IFERROR(WEEKDAY($H$2:$AL$2,2)>5,)*H51:AL51)+Data_Tech[[#This Row],[2]]+Data_Tech[[#This Row],[5]]+Data_Tech[[#This Row],[6]]+Data_Tech[[#This Row],[8]]+Data_Tech[[#This Row],[7]]+Data_Tech[[#This Row],[9]] -> 33.8
A52: январь | B52: 2026 | C52: 75 | D52: 1-26 | E52: 1,5 | F52: Кузнецова Алина Дмитриевна | G52: 4/8 | V52: 8 | X52: 6 | AG52: 8 | AM52: =SUM(Data_Tech[[#This Row],[1]:[31]])-Data_Tech[[#This Row],[Столбец1]] -> 14 | AN52: =SUM(IFERROR(WEEKDAY($H$2:$AL$2,2)>5,)*H52:AL52)+Data_Tech[[#This Row],[2]]+Data_Tech[[#This Row],[5]]+Data_Tech[[#This Row],[6]]+Data_Tech[[#This Row],[8]]+Data_Tech[[#This Row],[7]]+Data_Tech[[#This Row],[9]] -> 8
A53: январь | B53: 2026 | C53: 75 | D53: 1-26 | E53: 1 | F53: Алешкина Лариса Алексеевна | G53: 3/1 | V53: 2 | AM53: =SUM(Data_Tech[[#This Row],[1]:[31]])-Data_Tech[[#This Row],[Столбец1]] -> 0 | AN53: =SUM(IFERROR(WEEKDAY($H$2:$AL$2,2)>5,)*H53:AL53)+Data_Tech[[#This Row],[2]]+Data_Tech[[#This Row],[5]]+Data_Tech[[#This Row],[6]]+Data_Tech[[#This Row],[8]]+Data_Tech[[#This Row],[7]]+Data_Tech[[#This Row],[9]] -> 2
A54: январь | B54: 2026 | C54: 60 | D54: 1-26 | E54: 1 | F54: Гриша Ольга Викторовна | G54: 3/1 | W54: 8 | AD54: 8 | AG54: 8 | AM54: =SUM(Data_Tech[[#This Row],[1]:[31]])-Data_Tech[[#This Row],[Столбец1]] -> 8 | AN54: =SUM(IFERROR(WEEKDAY($H$2:$AL$2,2)>5,)*H54:AL54)+Data_Tech[[#This Row],[2]]+Data_Tech[[#This Row],[5]]+Data_Tech[[#This Row],[6]]+Data_Tech[[#This Row],[8]]+Data_Tech[[#This Row],[7]]+Data_Tech[[#This Row],[9]] -> 16
A55: январь | B55: 2026 | C55: 1 | D55: 1-25 | E55: 1,4 | F55: Хан Наталия Григорьевна | G55: 3/2 | W55: 8 | AM55: =SUM(Data_Tech[[#This Row],[1]:[31]])-Data_Tech[[#This Row],[Столбец1]] -> 0 | AN55: =SUM(IFERROR(WEEKDAY($H$2:$AL$2,2)>5,)*H55:AL55)+Data_Tech[[#This Row],[2]]+Data_Tech[[#This Row],[5]]+Data_Tech[[#This Row],[6]]+Data_Tech[[#This Row],[8]]+Data_Tech[[#This Row],[7]]+Data_Tech[[#This Row],[9]] -> 8
A56: январь | B56: 2026 | C56: 31 | D56: 1-26 | E56: 1 | F56: Марко Ирина Вячеславовна | G56: 3/1 | V56: 5 | W56: 8 | X56: 6 | Z56: 8 | AA56: 8 | AB56: 8 | AC56: 8 | AD56: 8 | AG56: 8 | AH56: 2 | AM56: =SUM(Data_Tech[[#This Row],[1]:[31]])-Data_Tech[[#This Row],[Столбец1]] -> 40 | AN56: =SUM(IFERROR(WEEKDAY($H$2:$AL$2,2)>5,)*H56:AL56)+Data_Tech[[#This Row],[2]]+Data_Tech[[#This Row],[5]]+Data_Tech[[#This Row],[6]]+Data_Tech[[#This Row],[8]]+Data_Tech[[#This Row],[7]]+Data_Tech[[#This Row],[9]] -> 29
A57: январь | B57: 2026 | C57: 1 | D57: 1-25 | E57: 1,5 | F57: Королёва Надежда Игоревна | G57: 4/8 | W57: 8 | AG57: 8 | AM57: =SUM(Data_Tech[[#This Row],[1]:[31]])-Data_Tech[[#This Row],[Столбец1]] -> 8 | AN57: =SUM(IFERROR(WEEKDAY($H$2:$AL$2,2)>5,)*H57:AL57)+Data_Tech[[#This Row],[2]]+Data_Tech[[#This Row],[5]]+Data_Tech[[#This Row],[6]]+Data_Tech[[#This Row],[8]]+Data_Tech[[#This Row],[7]]+Data_Tech[[#This Row],[9]] -> 8
A58: январь | B58: 2026 | C58: 1 | D58: 1-25 | E58: 1 | F58: Иванова Инна Игоревна | G58: 3/2 | W58: 8 | AM58: =SUM(Data_Tech[[#This Row],[1]:[31]])-Data_Tech[[#This Row],[Столбец1]] -> 0 | AN58: =SUM(IFERROR(WEEKDAY($H$2:$AL$2,2)>5,)*H58:AL58)+Data_Tech[[#This Row],[2]]+Data_Tech[[#This Row],[5]]+Data_Tech[[#This Row],[6]]+Data_Tech[[#This Row],[8]]+Data_Tech[[#This Row],[7]]+Data_Tech[[#This Row],[9]] -> 8
A59: январь | B59: 2026 | C59: 1 | D59: 1-25 | E59: 1,4 | F59: Носова Мария Андреевна | G59: 3/1 | X59: 7 | AE59: 8 | AM59: =SUM(Data_Tech[[#This Row],[1]:[31]])-Data_Tech[[#This Row],[Столбец1]] -> 15 | AN59: =SUM(IFERROR(WEEKDAY($H$2:$AL$2,2)>5,)*H59:AL59)+Data_Tech[[#This Row],[2]]+Data_Tech[[#This Row],[5]]+Data_Tech[[#This Row],[6]]+Data_Tech[[#This Row],[8]]+Data_Tech[[#This Row],[7]]+Data_Tech[[#This Row],[9]] -> 0
A60: январь | B60: 2026 | C60: 60 | D60: 1-26 | E60: 1 | F60: Ложкина Елена Сергеевна | G60: 3/1 | S60: 8 | AM60: =SUM(Data_Tech[[#This Row],[1]:[31]])-Data_Tech[[#This Row],[Столбец1]] -> 8 | AN60: =SUM(IFERROR(WEEKDAY($H$2:$AL$2,2)>5,)*H60:AL60)+Data_Tech[[#This Row],[2]]+Data_Tech[[#This Row],[5]]+Data_Tech[[#This Row],[6]]+Data_Tech[[#This Row],[8]]+Data_Tech[[#This Row],[7]]+Data_Tech[[#This Row],[9]] -> 0
A61: январь | B61: 2026 | C61: 60 | D61: 1-26 | E61: 1,5 | F61: Иванова Екатерина Борисовна | G61: 4/8 | Z61: 8 | AM61: =SUM(Data_Tech[[#This Row],[1]:[31]])-Data_Tech[[#This Row],[Столбец1]] -> 8 | AN61: =SUM(IFERROR(WEEKDAY($H$2:$AL$2,2)>5,)*H61:AL61)+Data_Tech[[#This Row],[2]]+Data_Tech[[#This Row],[5]]+Data_Tech[[#This Row],[6]]+Data_Tech[[#This Row],[8]]+Data_Tech[[#This Row],[7]]+Data_Tech[[#This Row],[9]] -> 0
A62: январь | B62: 2026 | C62: 8Б | D62: 1-26 | E62: 1 | F62: Кузнецова Алина Дмитриевна | G62: 3/1 | Z62: 8 | AD62: 8 | AM62: =SUM(Data_Tech[[#This Row],[1]:[31]])-Data_Tech[[#This Row],[Столбец1]] -> 8 | AN62: =SUM(IFERROR(WEEKDAY($H$2:$AL$2,2)>5,)*H62:AL62)+Data_Tech[[#This Row],[2]]+Data_Tech[[#This Row],[5]]+Data_Tech[[#This Row],[6]]+Data_Tech[[#This Row],[8]]+Data_Tech[[#This Row],[7]]+Data_Tech[[#This Row],[9]] -> 8
A63: январь | B63: 2026 | C63: 75 | D63: 1-26 | E63: 1 | F63: Борода Ирина Борисовна | G63: 3/1 | Z63: 8 | AA63: 4 | AC63: 8 | AM63: =SUM(Data_Tech[[#This Row],[1]:[31]])-Data_Tech[[#This Row],[Столбец1]] -> 12 | AN63: =SUM(IFERROR(WEEKDAY($H$2:$AL$2,2)>5,)*H63:AL63)+Data_Tech[[#This Row],[2]]+Data_Tech[[#This Row],[5]]+Data_Tech[[#This Row],[6]]+Data_Tech[[#This Row],[8]]+Data_Tech[[#This Row],[7]]+Data_Tech[[#This Row],[9]] -> 8
A64: январь | B64: 2026 | C64: 60 | D64: 1-26 | E64: 1 | F64: Кузнецова Алина Дмитриевна | G64: 3/1 | AA64: 8 | AM64: =SUM(Data_Tech[[#This Row],[1]:[31]])-Data_Tech[[#This Row],[Столбец1]] -> 8 | AN64: =SUM(IFERROR(WEEKDAY($H$2:$AL$2,2)>5,)*H64:AL64)+Data_Tech[[#This Row],[2]]+Data_Tech[[#This Row],[5]]+Data_Tech[[#This Row],[6]]+Data_Tech[[#This Row],[8]]+Data_Tech[[#This Row],[7]]+Data_Tech[[#This Row],[9]] -> 0
A65: январь | B65: 2026 | C65: 60 | D65: 1-26 | E65: 1 | F65: Попова Виктория | G65: 3/1 | AA65: 8 | AB65: 8 | AD65: 8 | AE65: 7 | AG65: 8 | AH65: 8 | AI65: 8 | AJ65: 8 | AK65: 8 | AM65: =SUM(Data_Tech[[#This Row],[1]:[31]])-Data_Tech[[#This Row],[Столбец1]] -> 47 | AN65: =SUM(IFERROR(WEEKDAY($H$2:$AL$2,2)>5,)*H65:AL65)+Data_Tech[[#This Row],[2]]+Data_Tech[[#This Row],[5]]+Data_Tech[[#This Row],[6]]+Data_Tech[[#This Row],[8]]+Data_Tech[[#This Row],[7]]+Data_Tech[[#This Row],[9]] -> 24
A66: январь | B66: 2026 | C66: 60 | D66: 1-26 | E66: 1,4 | F66: Носова Мария Андреевна | G66: 3/1 | AB66: 8 | AM66: =SUM(Data_Tech[[#This Row],[1]:[31]])-Data_Tech[[#This Row],[Столбец1]] -> 8 | AN66: =SUM(IFERROR(WEEKDAY($H$2:$AL$2,2)>5,)*H66:AL66)+Data_Tech[[#This Row],[2]]+Data_Tech[[#This Row],[5]]+Data_Tech[[#This Row],[6]]+Data_Tech[[#This Row],[8]]+Data_Tech[[#This Row],[7]]+Data_Tech[[#This Row],[9]] -> 0
A67: январь | B67: 2026 | C67: 75 | D67: 1-26 | E67: 1 | F67: Шишина Наталья Александровна | G67: 3/1 | AB67: 8 | AC67: 8 | AM67: =SUM(Data_Tech[[#This Row],[1]:[31]])-Data_Tech[[#This Row],[Столбец1]] -> 8 | AN67: =SUM(IFERROR(WEEKDAY($H$2:$AL$2,2)>5,)*H67:AL67)+Data_Tech[[#This Row],[2]]+Data_Tech[[#This Row],[5]]+Data_Tech[[#This Row],[6]]+Data_Tech[[#This Row],[8]]+Data_Tech[[#This Row],[7]]+Data_Tech[[#This Row],[9]] -> 8
A68: январь | B68: 2026 | C68: 1 | D68: 1-25 | E68: 1 | F68: Гриша Ольга Викторовна | G68: 3/1 | AA68: 8 | AM68: =SUM(Data_Tech[[#This Row],[1]:[31]])-Data_Tech[[#This Row],[Столбец1]] -> 8 | AN68: =SUM(IFERROR(WEEKDAY($H$2:$AL$2,2)>5,)*H68:AL68)+Data_Tech[[#This Row],[2]]+Data_Tech[[#This Row],[5]]+Data_Tech[[#This Row],[6]]+Data_Tech[[#This Row],[8]]+Data_Tech[[#This Row],[7]]+Data_Tech[[#This Row],[9]] -> 0
A69: январь | B69: 2026 | C69: 8Б | D69: 1-26 | E69: 1 | F69: Борода Ирина Борисовна | G69: 3/1 | AB69: 3.2 | AD69: 4 | AM69: =SUM(Data_Tech[[#This Row],[1]:[31]])-Data_Tech[[#This Row],[Столбец1]] -> 3.2 | AN69: =SUM(IFERROR(WEEKDAY($H$2:$AL$2,2)>5,)*H69:AL69)+Data_Tech[[#This Row],[2]]+Data_Tech[[#This Row],[5]]+Data_Tech[[#This Row],[6]]+Data_Tech[[#This Row],[8]]+Data_Tech[[#This Row],[7]]+Data_Tech[[#This Row],[9]] -> 4
A70: январь | B70: 2026 | C70: 75 | D70: 1-26 | E70: 1 | F70: Кузнецова Алина Дмитриевна | G70: 3/1 | AB70: 8 | AC70: 8 | AM70: =SUM(Data_Tech[[#This Row],[1]:[31]])-Data_Tech[[#This Row],[Столбец1]] -> 8 | AN70: =SUM(IFERROR(WEEKDAY($H$2:$AL$2,2)>5,)*H70:AL70)+Data_Tech[[#This Row],[2]]+Data_Tech[[#This Row],[5]]+Data_Tech[[#This Row],[6]]+Data_Tech[[#This Row],[8]]+Data_Tech[[#This Row],[7]]+Data_Tech[[#This Row],[9]] -> 8
A71: январь | B71: 2026 | C71: 1 | D71: 1-25 | E71: 1 | F71: Кузнецова Алина Дмитриевна | G71: 3/1 | AE71: 6 | AM71: =SUM(Data_Tech[[#This Row],[1]:[31]])-Data_Tech[[#This Row],[Столбец1]] -> 6 | AN71: =SUM(IFERROR(WEEKDAY($H$2:$AL$2,2)>5,)*H71:AL71)+Data_Tech[[#This Row],[2]]+Data_Tech[[#This Row],[5]]+Data_Tech[[#This Row],[6]]+Data_Tech[[#This Row],[8]]+Data_Tech[[#This Row],[7]]+Data_Tech[[#This Row],[9]] -> 0
A72: январь | B72: 2026 | C72: 8Б | D72: 1-26 | E72: 1 | F72: Ефремова Юлия Сергеевна | G72: 3/1 | AD72: 8 | AM72: =SUM(Data_Tech[[#This Row],[1]:[31]])-Data_Tech[[#This Row],[Столбец1]] -> 0 | AN72: =SUM(IFERROR(WEEKDAY($H$2:$AL$2,2)>5,)*H72:AL72)+Data_Tech[[#This Row],[2]]+Data_Tech[[#This Row],[5]]+Data_Tech[[#This Row],[6]]+Data_Tech[[#This Row],[8]]+Data_Tech[[#This Row],[7]]+Data_Tech[[#This Row],[9]] -> 8
A73: январь | B73: 2026 | C73: 60 | D73: 1-26 | E73: 1,4 | F73: Борода Ирина Борисовна | G73: 3/1 | AD73: 3.2 | AG73: 8 | AM73: =SUM(Data_Tech[[#This Row],[1]:[31]])-Data_Tech[[#This Row],[Столбец1]] -> 8 | AN73: =SUM(IFERROR(WEEKDAY($H$2:$AL$2,2)>5,)*H73:AL73)+Data_Tech[[#This Row],[2]]+Data_Tech[[#This Row],[5]]+Data_Tech[[#This Row],[6]]+Data_Tech[[#This Row],[8]]+Data_Tech[[#This Row],[7]]+Data_Tech[[#This Row],[9]] -> 3.2
A74: январь | B74: 2026 | C74: 75 | D74: 1-26 | E74: 1 | F74: Ложкина Елена Сергеевна | G74: 3/1 | AG74: 8 | AI74: 8 | AJ74: 4.2 | AK74: 4.2 | AM74: =SUM(Data_Tech[[#This Row],[1]:[31]])-Data_Tech[[#This Row],[Столбец1]] -> 16 | AN74: =SUM(IFERROR(WEEKDAY($H$2:$AL$2,2)>5,)*H74:AL74)+Data_Tech[[#This Row],[2]]+Data_Tech[[#This Row],[5]]+Data_Tech[[#This Row],[6]]+Data_Tech[[#This Row],[8]]+Data_Tech[[#This Row],[7]]+Data_Tech[[#This Row],[9]] -> 8.4
A75: январь | B75: 2026 | C75: 60 | D75: 1-26 | E75: 1 | F75: Иванова Екатерина Борисовна | G75: 4/8 | AH75: 8 | AM75: =SUM(Data_Tech[[#This Row],[1]:[31]])-Data_Tech[[#This Row],[Столбец1]] -> 8 | AN75: =SUM(IFERROR(WEEKDAY($H$2:$AL$2,2)>5,)*H75:AL75)+Data_Tech[[#This Row],[2]]+Data_Tech[[#This Row],[5]]+Data_Tech[[#This Row],[6]]+Data_Tech[[#This Row],[8]]+Data_Tech[[#This Row],[7]]+Data_Tech[[#This Row],[9]] -> 0
A76: январь | B76: 2026 | C76: 60 | D76: 1-26 | E76: 1 | F76: Борода Ирина Борисовна | G76: 3/1 | AI76: 8 | AM76: =SUM(Data_Tech[[#This Row],[1]:[31]])-Data_Tech[[#This Row],[Столбец1]] -> 8 | AN76: =SUM(IFERROR(WEEKDAY($H$2:$AL$2,2)>5,)*H76:AL76)+Data_Tech[[#This Row],[2]]+Data_Tech[[#This Row],[5]]+Data_Tech[[#This Row],[6]]+Data_Tech[[#This Row],[8]]+Data_Tech[[#This Row],[7]]+Data_Tech[[#This Row],[9]] -> 0
A77: январь | B77: 2026 | C77: 75 | D77: 1-26 | E77: 1,4 | F77: Ложкина Елена Сергеевна | G77: 3/1 | AH77: 3 | AJ77: 3 | AK77: 3 | AL77: 7 | AM77: =SUM(Data_Tech[[#This Row],[1]:[31]])-Data_Tech[[#This Row],[Столбец1]] -> 10 | AN77: =SUM(IFERROR(WEEKDAY($H$2:$AL$2,2)>5,)*H77:AL77)+Data_Tech[[#This Row],[2]]+Data_Tech[[#This Row],[5]]+Data_Tech[[#This Row],[6]]+Data_Tech[[#This Row],[8]]+Data_Tech[[#This Row],[7]]+Data_Tech[[#This Row],[9]] -> 6
A78: январь | B78: 2026 | C78: 1 | D78: 1-25 | E78: 1 | F78: Носова Мария Андреевна | G78: 3/1 | AH78: 4 | AM78: =SUM(Data_Tech[[#This Row],[1]:[31]])-Data_Tech[[#This Row],[Столбец1]] -> 4 | AN78: =SUM(IFERROR(WEEKDAY($H$2:$AL$2,2)>5,)*H78:AL78)+Data_Tech[[#This Row],[2]]+Data_Tech[[#This Row],[5]]+Data_Tech[[#This Row],[6]]+Data_Tech[[#This Row],[8]]+Data_Tech[[#This Row],[7]]+Data_Tech[[#This Row],[9]] -> 0
A79: январь | B79: 2026 | C79: 75 | D79: 1-26 | E79: 1 | F79: Ложкина Елена Сергеевна | G79: 3/1 | AH79: 4.2 | AM79: =SUM(Data_Tech[[#This Row],[1]:[31]])-Data_Tech[[#This Row],[Столбец1]] -> 4.2 | AN79: =SUM(IFERROR(WEEKDAY($H$2:$AL$2,2)>5,)*H79:AL79)+Data_Tech[[#This Row],[2]]+Data_Tech[[#This Row],[5]]+Data_Tech[[#This Row],[6]]+Data_Tech[[#This Row],[8]]+Data_Tech[[#This Row],[7]]+Data_Tech[[#This Row],[9]] -> 0
A80: январь | B80: 2026 | C80: 75 | D80: 1-26 | E80: 1 | F80: Носова Мария Андреевна | G80: 3/1 | AJ80: 4 | AM80: =SUM(Data_Tech[[#This Row],[1]:[31]])-Data_Tech[[#This Row],[Столбец1]] -> 0 | AN80: =SUM(IFERROR(WEEKDAY($H$2:$AL$2,2)>5,)*H80:AL80)+Data_Tech[[#This Row],[2]]+Data_Tech[[#This Row],[5]]+Data_Tech[[#This Row],[6]]+Data_Tech[[#This Row],[8]]+Data_Tech[[#This Row],[7]]+Data_Tech[[#This Row],[9]] -> 4
A81: январь | B81: 2026 | C81: 60 | D81: 1-26 | E81: 1 | F81: Зайка Ирина Сергеевна | G81: 4/8 | AH81: 8 | AI81: 8 | AM81: =SUM(Data_Tech[[#This Row],[1]:[31]])-Data_Tech[[#This Row],[Столбец1]] -> 16 | AN81: =SUM(IFERROR(WEEKDAY($H$2:$AL$2,2)>5,)*H81:AL81)+Data_Tech[[#This Row],[2]]+Data_Tech[[#This Row],[5]]+Data_Tech[[#This Row],[6]]+Data_Tech[[#This Row],[8]]+Data_Tech[[#This Row],[7]]+Data_Tech[[#This Row],[9]] -> 0
A82: январь | B82: 2026 | C82: 75 | D82: 1-26 | E82: 1 | F82: Марко Ирина Вячеславовна | G82: 3/1 | AI82: 8 | AJ82: 8 | AK82: 8 | AL82: 6 | AM82: =SUM(Data_Tech[[#This Row],[1]:[31]])-Data_Tech[[#This Row],[Столбец1]] -> 14 | AN82: =SUM(IFERROR(WEEKDAY($H$2:$AL$2,2)>5,)*H82:AL82)+Data_Tech[[#This Row],[2]]+Data_Tech[[#This Row],[5]]+Data_Tech[[#This Row],[6]]+Data_Tech[[#This Row],[8]]+Data_Tech[[#This Row],[7]]+Data_Tech[[#This Row],[9]] -> 16
A83: январь | B83: 2026 | AM83: =SUM(Data_Tech[[#This Row],[1]:[31]])-Data_Tech[[#This Row],[Столбец1]] -> 0 | AN83: =SUM(IFERROR(WEEKDAY($H$2:$AL$2,2)>5,)*H83:AL83)+Data_Tech[[#This Row],[2]]+Data_Tech[[#This Row],[5]]+Data_Tech[[#This Row],[6]]+Data_Tech[[#This Row],[8]]+Data_Tech[[#This Row],[7]]+Data_Tech[[#This Row],[9]] -> 0
A84: январь | B84: 2026 | AM84: =SUM(Data_Tech[[#This Row],[1]:[31]])-Data_Tech[[#This Row],[Столбец1]] -> 0 | AN84: =SUM(IFERROR(WEEKDAY($H$2:$AL$2,2)>5,)*H84:AL84)+Data_Tech[[#This Row],[2]]+Data_Tech[[#This Row],[5]]+Data_Tech[[#This Row],[6]]+Data_Tech[[#This Row],[8]]+Data_Tech[[#This Row],[7]]+Data_Tech[[#This Row],[9]] -> 0
A85: январь | B85: 2026 | AM85: =SUM(Data_Tech[[#This Row],[1]:[31]])-Data_Tech[[#This Row],[Столбец1]] -> 0 | AN85: =SUM(IFERROR(WEEKDAY($H$2:$AL$2,2)>5,)*H85:AL85)+Data_Tech[[#This Row],[2]]+Data_Tech[[#This Row],[5]]+Data_Tech[[#This Row],[6]]+Data_Tech[[#This Row],[8]]+Data_Tech[[#This Row],[7]]+Data_Tech[[#This Row],[9]] -> 0
A86: январь | B86: 2026 | AM86: =SUM(Data_Tech[[#This Row],[1]:[31]])-Data_Tech[[#This Row],[Столбец1]] -> 0 | AN86: =SUM(IFERROR(WEEKDAY($H$2:$AL$2,2)>5,)*H86:AL86)+Data_Tech[[#This Row],[2]]+Data_Tech[[#This Row],[5]]+Data_Tech[[#This Row],[6]]+Data_Tech[[#This Row],[8]]+Data_Tech[[#This Row],[7]]+Data_Tech[[#This Row],[9]] -> 0
A87: январь | B87: 2026 | AM87: =SUM(Data_Tech[[#This Row],[1]:[31]])-Data_Tech[[#This Row],[Столбец1]] -> 0 | AN87: =SUM(IFERROR(WEEKDAY($H$2:$AL$2,2)>5,)*H87:AL87)+Data_Tech[[#This Row],[2]]+Data_Tech[[#This Row],[5]]+Data_Tech[[#This Row],[6]]+Data_Tech[[#This Row],[8]]+Data_Tech[[#This Row],[7]]+Data_Tech[[#This Row],[9]] -> 0
A88: январь | B88: 2026 | AM88: =SUM(Data_Tech[[#This Row],[1]:[31]])-Data_Tech[[#This Row],[Столбец1]] -> 0 | AN88: =SUM(IFERROR(WEEKDAY($H$2:$AL$2,2)>5,)*H88:AL88)+Data_Tech[[#This Row],[2]]+Data_Tech[[#This Row],[5]]+Data_Tech[[#This Row],[6]]+Data_Tech[[#This Row],[8]]+Data_Tech[[#This Row],[7]]+Data_Tech[[#This Row],[9]] -> 0
A89: январь | B89: 2026 | AM89: =SUM(Data_Tech[[#This Row],[1]:[31]])-Data_Tech[[#This Row],[Столбец1]] -> 0 | AN89: =SUM(IFERROR(WEEKDAY($H$2:$AL$2,2)>5,)*H89:AL89)+Data_Tech[[#This Row],[2]]+Data_Tech[[#This Row],[5]]+Data_Tech[[#This Row],[6]]+Data_Tech[[#This Row],[8]]+Data_Tech[[#This Row],[7]]+Data_Tech[[#This Row],[9]] -> 0
A90: январь | B90: 2026 | AM90: =SUM(Data_Tech[[#This Row],[1]:[31]])-Data_Tech[[#This Row],[Столбец1]] -> 0 | AN90: =SUM(IFERROR(WEEKDAY($H$2:$AL$2,2)>5,)*H90:AL90)+Data_Tech[[#This Row],[2]]+Data_Tech[[#This Row],[5]]+Data_Tech[[#This Row],[6]]+Data_Tech[[#This Row],[8]]+Data_Tech[[#This Row],[7]]+Data_Tech[[#This Row],[9]] -> 0
A91: январь | B91: 2026 | AM91: =SUM(Data_Tech[[#This Row],[1]:[31]])-Data_Tech[[#This Row],[Столбец1]] -> 0 | AN91: =SUM(IFERROR(WEEKDAY($H$2:$AL$2,2)>5,)*H91:AL91)+Data_Tech[[#This Row],[2]]+Data_Tech[[#This Row],[5]]+Data_Tech[[#This Row],[6]]+Data_Tech[[#This Row],[8]]+Data_Tech[[#This Row],[7]]+Data_Tech[[#This Row],[9]] -> 0
A92: январь | B92: 2026 | AM92: =SUM(Data_Tech[[#This Row],[1]:[31]])-Data_Tech[[#This Row],[Столбец1]] -> 0 | AN92: =SUM(IFERROR(WEEKDAY($H$2:$AL$2,2)>5,)*H92:AL92)+Data_Tech[[#This Row],[2]]+Data_Tech[[#This Row],[5]]+Data_Tech[[#This Row],[6]]+Data_Tech[[#This Row],[8]]+Data_Tech[[#This Row],[7]]+Data_Tech[[#This Row],[9]] -> 0
A93: январь | B93: 2026 | AM93: =SUM(Data_Tech[[#This Row],[1]:[31]])-Data_Tech[[#This Row],[Столбец1]] -> 0 | AN93: =SUM(IFERROR(WEEKDAY($H$2:$AL$2,2)>5,)*H93:AL93)+Data_Tech[[#This Row],[2]]+Data_Tech[[#This Row],[5]]+Data_Tech[[#This Row],[6]]+Data_Tech[[#This Row],[8]]+Data_Tech[[#This Row],[7]]+Data_Tech[[#This Row],[9]] -> 0
A94: январь | B94: 2026 | AM94: =SUM(Data_Tech[[#This Row],[1]:[31]])-Data_Tech[[#This Row],[Столбец1]] -> 0 | AN94: =SUM(IFERROR(WEEKDAY($H$2:$AL$2,2)>5,)*H94:AL94)+Data_Tech[[#This Row],[2]]+Data_Tech[[#This Row],[5]]+Data_Tech[[#This Row],[6]]+Data_Tech[[#This Row],[8]]+Data_Tech[[#This Row],[7]]+Data_Tech[[#This Row],[9]] -> 0
A95: январь | B95: 2026 | AM95: =SUM(Data_Tech[[#This Row],[1]:[31]])-Data_Tech[[#This Row],[Столбец1]] -> 0 | AN95: =SUM(IFERROR(WEEKDAY($H$2:$AL$2,2)>5,)*H95:AL95)+Data_Tech[[#This Row],[2]]+Data_Tech[[#This Row],[5]]+Data_Tech[[#This Row],[6]]+Data_Tech[[#This Row],[8]]+Data_Tech[[#This Row],[7]]+Data_Tech[[#This Row],[9]] -> 0
A96: январь | B96: 2026 | AM96: =SUM(Data_Tech[[#This Row],[1]:[31]])-Data_Tech[[#This Row],[Столбец1]] -> 0 | AN96: =SUM(IFERROR(WEEKDAY($H$2:$AL$2,2)>5,)*H96:AL96)+Data_Tech[[#This Row],[2]]+Data_Tech[[#This Row],[5]]+Data_Tech[[#This Row],[6]]+Data_Tech[[#This Row],[8]]+Data_Tech[[#This Row],[7]]+Data_Tech[[#This Row],[9]] -> 0
A97: январь | B97: 2026 | AM97: =SUM(Data_Tech[[#This Row],[1]:[31]])-Data_Tech[[#This Row],[Столбец1]] -> 0 | AN97: =SUM(IFERROR(WEEKDAY($H$2:$AL$2,2)>5,)*H97:AL97)+Data_Tech[[#This Row],[2]]+Data_Tech[[#This Row],[5]]+Data_Tech[[#This Row],[6]]+Data_Tech[[#This Row],[8]]+Data_Tech[[#This Row],[7]]+Data_Tech[[#This Row],[9]] -> 0
A98: январь | B98: 2026 | AM98: =SUM(Data_Tech[[#This Row],[1]:[31]])-Data_Tech[[#This Row],[Столбец1]] -> 0 | AN98: =SUM(IFERROR(WEEKDAY($H$2:$AL$2,2)>5,)*H98:AL98)+Data_Tech[[#This Row],[2]]+Data_Tech[[#This Row],[5]]+Data_Tech[[#This Row],[6]]+Data_Tech[[#This Row],[8]]+Data_Tech[[#This Row],[7]]+Data_Tech[[#This Row],[9]] -> 0
A99: январь | B99: 2026 | AM99: =SUM(Data_Tech[[#This Row],[1]:[31]])-Data_Tech[[#This Row],[Столбец1]] -> 0 | AN99: =SUM(IFERROR(WEEKDAY($H$2:$AL$2,2)>5,)*H99:AL99)+Data_Tech[[#This Row],[2]]+Data_Tech[[#This Row],[5]]+Data_Tech[[#This Row],[6]]+Data_Tech[[#This Row],[8]]+Data_Tech[[#This Row],[7]]+Data_Tech[[#This Row],[9]] -> 0
A100: январь | B100: 2026 | AM100: =SUM(Data_Tech[[#This Row],[1]:[31]])-Data_Tech[[#This Row],[Столбец1]] -> 0 | AN100: =SUM(IFERROR(WEEKDAY($H$2:$AL$2,2)>5,)*H100:AL100)+Data_Tech[[#This Row],[2]]+Data_Tech[[#This Row],[5]]+Data_Tech[[#This Row],[6]]+Data_Tech[[#This Row],[8]]+Data_Tech[[#This Row],[7]]+Data_Tech[[#This Row],[9]] -> 0

Sheet сверхур
A1: месяц | B1: год | C1: изд | D1: партия | E1: коэф | F1: Ф. И. О. | G1: р/р | H1: 1 | I1: 2 | J1: 3 | K1: 4 | L1: 5 | M1: 6 | N1: 7 | O1: 8 | P1: 9 | Q1: 10 | R1: 11 | S1: 12 | T1: 13 | U1: 14 | V1: 15 | W1: 16 | X1: 17 | Y1: 18 | Z1: 19 | AA1: 20 | AB1: 21 | AC1: 22 | AD1: 23 | AE1: 24 | AF1: 25 | AG1: 26 | AH1: 27 | AI1: 28 | AJ1: 29 | AK1: 30 | AL1: 31 | AM1: часы | AN1: Столбец2
A2: =Data_Tech!A6 -> январь | B2: 2026 | C2: 8Б | D2: 1-26 | E2: 1,5 | F2: Егорова Татьяна Владимировна | G2: 4/8 | S2: 4 | T2: 1 | U2: 4 | V2: 1 | W2: 4 | Z2: 4 | AA2: 1 | AB2: 4 | AC2: 1 | AD2: 4 | AG2: 1 | AH2: 1 | AI2: 4 | AJ2: 1 | AK2: 4 | AM2: =SUM(H2:AL2) -> 39 | AN2: =#REF! -> 
A3: =Data_Tech!A7 -> январь | B3: 2026 | C3: 31 | D3: 1-26 | E3: 1 | F3: Груздь Олеся Иванна | G3: 4/8 | S3: 2 | AM3: 2 | AN3: =#REF! -> 
A4: =Data_Tech!A8 -> январь | B4: 2026 | C4: 1 | D4: 2026-01-25 | E4: 1 | F4: Хан Наталия Григорьевна | G4: 3/2 | S4: 1 | AM4: 1 | AN4: =#REF! -> 
A5: =Data_Tech!A9 -> январь | B5: 2026 | C5: 75 | D5: 1-26 | E5: 1 | F5: Попова Виктория | G5: 3/1 | S5: 4 | AM5: 4 | AN5: =#REF! -> 
A6: =Data_Tech!A10 -> январь | B6: 2026 | C6: 8Б | D6: 1-26 | E6: 1,5 | F6: Королёва Надежда Игоревна | G6: 4/8 | S6: 4 | U6: 4 | V6: 4 | W6: 4 | Z6: 2 | AA6: 4 | AB6: 4 | AC6: 4 | AD6: 4 | AG6: 4 | AH6: 4 | AM6: 42 | AN6: =#REF! -> 
A7: =Data_Tech!A11 -> январь | B7: 2026 | C7: 1 | D7: 2026-01-25 | E7: 1 | F7: Гриша Ольга Викторовна | G7: 3/1 | S7: 4 | AM7: 4 | AN7: =#REF! -> 
A8: =Data_Tech!A12 -> январь | B8: 2026 | C8: 75 | D8: 1-26 | E8: 1,5 | F8: Иванова Екатерина Борисовна | G8: 4/8 | S8: 4 | T8: 4 | W8: 4 | Z8: 3 | AA8: 3 | AB8: 4 | AC8: 4 | AD8: 4 | AG8: 4 | AJ8: 4 | AK8: 4 | AM8: 42 | AN8: =#REF! -> 
A9: =Data_Tech!A13 -> январь | B9: 2026 | C9: 8Б | D9: 1-26 | E9: 1,4 | F9: Алешкина Лариса Алексеевна | G9: 3/2 | S9: 4 | T9: 4 | U9: 4 | V9: 4 | W9: 4 | AB9: 4 | AC9: 2 | AD9: 3 | AH9: 4 | AI9: 4 | AJ9: 4 | AK9: 4 | AM9: 45 | AN9: =#REF! -> 
A10: =Data_Tech!A14 -> январь | B10: 2026 | C10: 8Б | D10: 1-26 | E10: 1 | F10: Марко Ирина Вячеславовна | G10: 3/1 | U10: 7.2 | V10: 2.2 | AH10: 5.2 | AM10: 14.6 | AN10: =#REF! -> 
A11: =Data_Tech!A15 -> январь | B11: 2026 | C11: 60 | D11: 1-26 | E11: 1,4 | F11: Марко Ирина Вячеславовна | G11: 3/1 | S11: 7.2 | T11: 7.2 | AM11: 14.4 | AN11: =#REF! -> 
A12: =Data_Tech!A16 -> январь | B12: 2026 | C12: 31 | D12: 1-26 | E12: 1 | F12: Марко Ирина Вячеславовна | G12: 3/1 | V12: 1 | W12: 3 | X12: 1.5 | Z12: 3 | AA12: 3 | AG12: 3 | AH12: 2 | AM12: 16.5 | AN12: =#REF! -> 
A13: =Data_Tech!A17 -> январь | B13: 2026 | C13: 75 | D13: 1-26 | E13: 1,4 | F13: Марко Ирина Вячеславовна | G13: 3/1 | AI13: 3.2 | AJ13: 3.1 | AK13: 1 | AL13: 6 | AM13: 13.3 | AN13: =#REF! -> 
A14: =Data_Tech!A18 -> январь | B14: 2026 | C14: 75 | D14: 1-26 | E14: 1,5 | F14: Зайка Ирина Сергеевна | G14: 4/8 | S14: 4 | AM14: 4 | AN14: =#REF! -> 
A15: =Data_Tech!A19 -> январь | B15: 2026 | C15: 60 | D15: 1-26 | E15: 1 | F15: Носова Мария Андреевна | G15: 3/1 | S15: 3.9 | AD15: 2 | AM15: 5.9 | AN15: =#REF! -> 
A16: =Data_Tech!A20 -> январь | B16: 2026 | C16: 1 | D16: 1-25 | E16: 1,4 | F16: Оленева Анна Викторовна | G16: 3/2 | S16: 2 | AD16: 2 | AG16: 3 | AH16: 3 | AJ16: 4 | AK16: 2 | AM16: 16 | AN16: =#REF! -> 
A17: =Data_Tech!A21 -> январь | B17: 2026 | C17: 8Б | D17: 1-26 | E17: 1 | F17: Яблокова Дарья Александровна | G17: 3/1 | S17: 1.5 | T17: 4 | AM17: 5.5 | AN17: =#REF! -> 
A18: =Data_Tech!A22 -> январь | B18: 2026 | C18: 8Б | D18: 1-26 | E18: 1 | F18: Яблокова Дарья Александровна | G18: 3/2 | S18: 2.5 | U18: 4 | V18: 4 | Z18: 4 | AA18: 4 | AB18: 4 | AC18: 4 | AD18: 4 | AG18: 4 | AH18: 4 | AI18: 4 | AJ18: 4 | AM18: 46.5 | AN18: =#REF! -> 
A19: =Data_Tech!A23 -> январь | B19: 2026 | C19: 8Б | D19: 1-26 | E19: 1 | F19: Груздь Олеся Иванна | G19: 3/1 | T19: 2 | AM19: 2 | AN19: =#REF! -> 
A20: =Data_Tech!A24 -> январь | B20: 2026 | C20: 1 | D20: 1-25 | E20: 1 | F20: Носова Мария Андреевна | G20: 3/1 | T20: 4 | AM20: 4 | AN20: =#REF! -> 
A21: =Data_Tech!A25 -> январь | B21: 2026 | C21: 8Б | D21: 1-26 | E21: 1 | F21: Кузнецова Алина Дмитриевна | G21: 3/1 | T21: 4 | U21: 2 | AG21: 1 | AH21: 4 | AM21: 11 | AN21: =#REF! -> 
A22: =Data_Tech!A26 -> январь | B22: 2026 | C22: 8Б | D22: 1-26 | E22: 1,4 | F22: Оленева Анна Викторовна | G22: 3/2 | T22: 4 | Z22: 3 | AA22: 4 | AB22: 3 | AI22: 4 | AM22: 18 | AN22: =#REF! -> 
A23: =Data_Tech!A27 -> январь | B23: 2026 | C23: 8Б | D23: 1-26 | E23: 1,4 | F23: Жукова Машка Валентинна | G23: 3/2 | T23: 4 | U23: 3 | AM23: 7 | AN23: =#REF! -> 
A24: =Data_Tech!A28 -> январь | B24: 2026 | C24: 75 | D24: 1-26 | E24: 1 | F24: Глинка Екатерина Юрьевна | G24: 3/2 | T24: 2.9 | V24: 3.3 | Z24: 4 | AA24: 4 | AC24: 2 | AG24: 1 | AI24: 4 | AJ24: 4 | AM24: 25.2 | AN24: =#REF! -> 
A25: =Data_Tech!A29 -> январь | B25: 2026 | C25: 8Б | D25: 1-26 | E25: 1 | F25: Борода Ирина Борисовна | G25: 3/1 | T25: 3 | W25: 2 | AI25: 2 | AM25: 7 | AN25: =#REF! -> 
A26: =Data_Tech!A30 -> январь | B26: 2026 | C26: 1 | D26: 1-25 | E26: 1 | F26: Попова Виктория | G26: 3/1 | T26: 4 | V26: 4 | W26: 4 | AM26: 12 | AN26: =#REF! -> 
A27: =Data_Tech!A31 -> январь | B27: 2026 | C27: 8Б | D27: 1-26 | E27: 1 | F27: Носова Мария Андреевна | G27: 3/1 | U27: 4 | Z27: 3 | AA27: 4 | AB27: 3.3 | AM27: 14.3 | AN27: =#REF! -> 
A28: =Data_Tech!A32 -> январь | B28: 2026 | C28: 8Б | D28: 1-26 | E28: 1 | F28: Хан Наталия Григорьевна | G28: 3/2 | U28: 1 | AB28: 3.3 | AD28: 2.5 | AM28: 6.8 | AN28: =#REF! -> 
A29: =Data_Tech!A33 -> январь | B29: 2026 | C29: 75 | D29: 1-26 | E29: 1 | F29: Иванова Инна Игоревна | G29: 3/1 | U29: 4 | V29: 3 | Z29: 4 | AA29: 4 | AC29: 4 | AD29: 4 | AJ29: 3 | AK29: 3 | AM29: 29 | AN29: =#REF! -> 
A30: =Data_Tech!A34 -> январь | B30: 2026 | C30: 31 | D30: 1-26 | E30: 1,3 | F30: Борода Ирина Борисовна | G30: 3/1 | U30: 3 | V30: 3 | AM30: 6 | AN30: =#REF! -> 
A31: =Data_Tech!A35 -> январь | B31: 2026 | C31: 60 | D31: 1-26 | E31: 1,4 | F31: Иванова Екатерина Борисовна | G31: 4/8 | U31: 4 | AM31: =SUM(H31:AL31) -> 4 | AN31: =#REF! -> 
A32: =Data_Tech!A36 -> январь | B32: 2026 | C32: 75 | D32: 1-26 | E32: 1,4 | F32: Носова Мария Андреевна | G32: 3/1 | V32: 4 | W32: 3.8 | AG32: 3.9 | AH32: 4 | AM32: 15.7 | AN32: =#REF! -> 
A33: =Data_Tech!A37 -> февраль | B33: 2026 | C33: 75 | D33: 1-26 | E33: 1,5 | F33: Кузнецова Алина Дмитриевна | G33: 4/8 | V33: 2 | AM33: 2 | AN33: =#REF! -> 
A34: =Data_Tech!A38 -> январь | B34: 2026 | C34: 75 | D34: 1-26 | E34: 1 | F34: Гриша Ольга Викторовна | G34: 3/1 | U34: 4 | V34: 4 | W34: 2 | AB34: 4 | AI34: 4 | AJ34: 4 | AM34: 22 | AN34: =#REF! -> 
A35: =Data_Tech!A39 -> январь | B35: 2026 | C35: 75 | D35: 1-26 | E35: 1 | F35: Кузнецова Алина Дмитриевна | G35: 3/1 | W35: 3 | AA35: 4 | AB35: 4 | AM35: 11 | AN35: =#REF! -> 
A36: =Data_Tech!A40 -> январь | B36: 2026 | C36: 1 | D36: 1-25 | E36: 1 | F36: Иванова Инна Игоревна | G36: 3/2 | W36: 3 | AM36: 3 | AN36: =#REF! -> 
A37: =Data_Tech!A41 -> январь | B37: 2026 | C37: 1 | D37: 1-25 | E37: 1 | F37: Шишина Наталья Александровна | G37: 2б | Z37: 4 | AA37: 4 | AM37: 8 | AN37: =#REF! -> 
A38: =Data_Tech!A42 -> январь | B38: 2026 | C38: 8Б | D38: 1-26 | E38: 1 | F38: Гриша Ольга Викторовна | G38: 3/1 | Z38: 4 | AA38: 4 | AH38: 4 | AM38: 12 | AN38: =#REF! -> 
A39: =Data_Tech!A43 -> январь | B39: 2026 | C39: 1 | D39: 1-25 | E39: 1 | F39: Борода Ирина Борисовна | G39: 3/1 | Z39: 4 | AC39: 4 | AK39: 2 | AM39: 10 | AN39: =#REF! -> 
A40: =Data_Tech!A44 -> январь | B40: 2026 | C40: 8Б | D40: 1-26 | E40: 1 | F40: Хан Наталия Григорьевна | G40: 3/1 | Z40: 2.9 | AA40: 3.3 | AM40: 6.2 | AN40: =#REF! -> 
A41: =Data_Tech!A45 -> январь | B41: 2026 | C41: 1 | D41: 1-25 | E41: 1,5 | F41: Груздь Олеся Иванна | G41: 4/8 | AA41: 2 | AH41: 2 | AI41: 2 | AJ41: 2 | AM41: 8 | AN41: =#REF! -> 
A42: =Data_Tech!A46 -> январь | B42: 2026 | C42: 75 | D42: 1-26 | E42: 1,4 | F42: Борода Ирина Борисовна | G42: 3/1 | AA42: 4 | AM42: 4 | AN42: =#REF! -> 
A43: =Data_Tech!A47 -> январь | B43: 2026 | C43: 60 | D43: 1-26 | E43: 1 | F43: Попова Виктория | G43: 3/1 | Z43: 4 | AA43: 4 | AB43: 4 | AC43: 4 | AD43: 4 | AH43: 4 | AI43: 4 | AJ43: 4 | AK43: 4 | AM43: 36 | AN43: =#REF! -> 
A44: =Data_Tech!A48 -> январь | B44: 2026 | C44: 60 | D44: 1-26 | E44: 1 | F44: Глинка Екатерина Юрьевна | G44: 3/1 | AB44: 4 | AM44: 4 | AN44: =#REF! -> 
A45: =Data_Tech!A49 -> январь | B45: 2026 | C45: 75 | D45: 1-26 | E45: 1 | F45: Шишина Наталья Александровна | G45: 3/1 | AB45: 4 | AM45: 4 | AN45: =#REF! -> 
A46: =Data_Tech!A50 -> январь | B46: 2026 | C46: 1 | D46: 1-25 | E46: 1,4 | F46: Борода Ирина Борисовна | G46: 3/2 | AB46: 4 | AH46: 1 | AM46: 5 | AN46: =#REF! -> 
A47: =Data_Tech!A51 -> январь | B47: 2026 | C47: 60 | D47: 1-26 | E47: 1 | F47: Иванова Инна Игоревна | G47: 3/2 | AB47: 4 | AM47: 4 | AN47: =#REF! -> 
A48: =Data_Tech!A52 -> январь | B48: 2026 | C48: 1 | D48: 1-25 | E48: 1 | F48: Шишина Наталья Александровна | G48: 3/2 | AC48: 4 | AM48: 4 | AN48: =#REF! -> 
A49: =Data_Tech!A53 -> январь | B49: 2026 | C49: 60 | D49: 1-26 | E49: 1 | F49: Кузнецова Алина Дмитриевна | G49: 3/2 | AC49: 4 | AM49: 4 | AN49: =#REF! -> 
A50: =Data_Tech!A54 -> январь | B50: 2026 | C50: 1 | D50: 1-25 | E50: 1,5 | F50: Авдеева Елена Николаевна | G50: 4/8 | AC50: 4 | AD50: 4 | AG50: 2 | AH50: 2 | AI50: 3 | AJ50: 4 | AK50: 4 | AM50: 23 | AN50: =#REF! -> 
A51: =Data_Tech!A55 -> январь | B51: 2026 | C51: 1 | D51: 1-25 | E51: 1,4 | F51: Хан Наталия Григорьевна | G51: 3/2 | AC51: 3.2 | AM51: 3.2 | AN51: =#REF! -> 
A52: =Data_Tech!A56 -> январь | B52: 2026 | C52: 8Б | D52: 1-26 | E52: 1 | F52: Шишина Наталья Александровна | G52: 3/1 | AD52: 4 | AM52: =SUM(H52:AL52) -> 4 | AN52: =#REF! -> 
A53: =Data_Tech!A57 -> январь | B53: 2026 | C53: 60 | D53: 1-26 | E53: 1 | F53: Глинка Екатерина Юрьевна | G53: 3/1 | AD53: 4 | AM53: 4 | AN53: =#REF! -> 
A54: =Data_Tech!A58 -> январь | B54: 2026 | C54: 1 | D54: 1-25 | E54: 1 | F54: Кузнецова Алина Дмитриевна | G54: 3/2 | AD54: 4 | AM54: 4 | AN54: =#REF! -> 
A55: =Data_Tech!A59 -> январь | B55: 2026 | C55: 60 | D55: 1-26 | E55: 1,4 | F55: Борода Ирина Борисовна | G55: 3/2 | AD55: 4 | AM55: 4 | AN55: =#REF! -> 
A56: =Data_Tech!A60 -> январь | B56: 2026 | C56: 8Б | D56: 1-26 | E56: 1 | F56: Шишина Наталья Александровна | G56: 2а | AG56: 2.3 | AJ56: 4 | AK56: 4 | AM56: 10.3 | AN56: =#REF! -> 
A57: =Data_Tech!A61 -> январь | B57: 2026 | C57: 75 | D57: 1-26 | E57: 1,4 | F57: Ложкина Елена Сергеевна | G57: 3/2 | AH57: 4 | AJ57: 4 | AK57: 4 | AM57: 12 | AN57: =#REF! -> 
A58: =Data_Tech!A62 -> январь | B58: 2026 | C58: 75 | D58: 1-26 | E58: 1 | F58: Носова Мария Андреевна | G58: 3/2 | AI58: 4 | AK58: 4 | AM58: 8 | AN58: =#REF! -> 
A59: =Data_Tech!A63 -> январь | B59: 2026 | C59: 60 | D59: 1-26 | E59: 1,4 | F59: Носова Мария Андреевна | G59: 3/2 | AJ59: 4 | AM59: 4 | AN59: =#REF! -> 
A60: =Data_Tech!A64 -> январь | B60: 2026 | C60: 8Б | D60: 1-26 | E60: 1 | F60: Глинка Екатерина Юрьевна | G60: 3/1 | AH60: 2.1 | AM60: 2.1 | AN60: =#REF! -> 
A61: =Data_Tech!A65 -> январь | B61: 2026 | C61: 75 | D61: 1-26 | E61: 1 | F61: Ложкина Елена Сергеевна | G61: 3/2 | AI61: 4 | AM61: 4 | AN61: =#REF! -> 
A62: =Data_Tech!A66 -> январь | B62: 2026 | C62: 60 | D62: 1-26 | E62: 1,5 | F62: Иванова Екатерина Борисовна | G62: 4/8 | AI62: 4 | AM62: 4 | AN62: =#REF! -> 
A63: =Data_Tech!A67 -> январь | B63: 2026 | C63: 75 | D63: 1-26 | E63: 1 | F63: Кузнецова Алина Дмитриевна | G63: 3/2 | AJ63: 2 | AK63: 2 | AM63: 4 | AN63: =#REF! -> 
A64: =Data_Tech!A68 -> январь | B64: 2026 | C64: 1 | D64: 1-25 | E64: 1,3 | F64: Гриша Ольга Викторовна | G64: 3/1 | AA64: 4 | AM64: =SUM(H64:AL64) -> 4 | AN64: =#REF! -> 
A65: =Data_Tech!A69 -> январь | B65: 2026 | AM65: 0 | AN65: =#REF! -> 
A66: =Data_Tech!A70 -> январь | B66: 2026 | AM66: 0 | AN66: =#REF! -> 
A67: =Data_Tech!A71 -> январь | B67: 2026 | AM67: 0 | AN67: =#REF! -> 
A68: =Data_Tech!A72 -> январь | B68: 2026 | AM68: 0 | AN68: =#REF! -> 
A69: =Data_Tech!A73 -> январь | B69: 2026 | AM69: 0 | AN69: =#REF! -> 
A70: =Data_Tech!A74 -> январь | B70: 2026 | AM70: 0 | AN70: =#REF! -> 
A71: =Data_Tech!A75 -> январь | B71: 2026 | AM71: 0 | AN71: =#REF! -> 
A72: =Data_Tech!A76 -> январь | B72: 2026 | AM72: 0 | AN72: =#REF! -> 
A73: =Data_Tech!A77 -> январь | B73: 2026 | AM73: 0 | AN73: =#REF! -> 
A74: =Data_Tech!A78 -> январь | B74: 2026 | AM74: 0 | AN74: =#REF! -> 
A75: =Data_Tech!A79 -> январь | B75: 2026 | AM75: 0 | AN75: =#REF! -> 
A76: =Data_Tech!A80 -> январь | B76: 2026 | AM76: 0 | AN76: =#REF! -> 
A77: =Data_Tech!A81 -> январь | B77: 2026 | AM77: 0 | AN77: =#REF! -> 
A78: =Data_Tech!A82 -> январь | B78: 2026 | AM78: 0 | AN78: =#REF! -> 
A79: =Data_Tech!A83 -> январь | B79: 2026 | AM79: 0 | AN79: =#REF! -> 
A80: =Data_Tech!A84 -> январь | B80: 2026 | AM80: =SUM(H80:AL80) -> 0 | AN80: =#REF! -> 
A81: =Data_Tech!A85 -> январь | B81: 2026 | AM81: 0 | AN81: =#REF! -> 
A82: =Data_Tech!A86 -> январь | B82: 2026 | AM82: 0 | AN82: =#REF! -> 
A83: =Data_Tech!A87 -> январь | B83: 2026 | AM83: 0 | AN83: =#REF! -> 
A84: =Data_Tech!A88 -> январь | B84: 2026 | AM84: 0 | AN84: =#REF! -> 
A85: =Data_Tech!A89 -> январь | B85: 2026 | AM85: 0 | AN85: =#REF! -> 
A86: =Data_Tech!A90 -> январь | B86: 2026 | AM86: 0 | AN86: =#REF! -> 
A87: =Data_Tech!A91 -> январь | B87: 2026 | AM87: 0 | AN87: =#REF! -> 
A88: =Data_Tech!A92 -> январь | B88: 2026 | AM88: 0 | AN88: =#REF! -> 
A89: =Data_Tech!A93 -> январь | B89: 2026 | AM89: 0 | AN89: =#REF! -> 
A90: =Data_Tech!A94 -> январь | B90: 2026 | AM90: 0 | AN90: =#REF! -> 
A91: =Data_Tech!A95 -> январь | B91: 2026 | AM91: 0 | AN91: =#REF! -> 
A92: =Data_Tech!A96 -> январь | B92: 2026 | AM92: 0 | AN92: =#REF! -> 
A93: =Data_Tech!A97 -> январь | B93: 2026 | AM93: 0 | AN93: =#REF! -> 
A94: =Data_Tech!A98 -> январь | B94: 2026 | AM94: 0 | AN94: =#REF! -> 
A95: =Data_Tech!A99 -> январь | B95: 2026 | AM95: 0 | AN95: =#REF! -> 
A96: =Data_Tech!A100 -> январь | B96: 2026 | AM96: 0 | AN96: =#REF! -> 
A97: =Data_Tech!A101 -> 0 | B97: 2026 | AM97: 0 | AN97: =#REF! -> 
A98: =Data_Tech!A102 -> 0 | B98: 2026 | AM98: 0 | AN98: =#REF! -> 
A99: =Data_Tech!A103 -> 0 | B99: 2026 | AM99: 0 | AN99: =#REF! -> 
A100: =Data_Tech!A104 -> 0 | B100: 2026 | AM100: 0 | AN100: =#REF! -> 
A101: =Data_Tech!A105 -> 0 | B101: 2026 | AM101: 0 | AN101: =#REF! -> 
A102: =Data_Tech!A106 -> 0 | B102: 2026 | AM102: 0 | AN102: =#REF! -> 
A103: =Data_Tech!A107 -> 0 | B103: 2026 | AM103: 0 | AN103: =#REF! -> 
A104: =Data_Tech!A108 -> 0 | B104: 2026 | AM104: 0 | AN104: =#REF! -> 
A105: =Data_Tech!A109 -> 0 | B105: 2026 | AM105: 0 | AN105: =#REF! -> 
A106: =Data_Tech!A110 -> 0 | B106: 2026 | AM106: 0 | AN106: =#REF! -> 
A107: =Data_Tech!A111 -> 0 | B107: 2026 | AM107: 0 | AN107: =#REF! -> 
A108: =Data_Tech!A112 -> 0 | B108: 2026 | AM108: 0 | AN108: =#REF! -> 
A109: =Data_Tech!A113 -> 0 | B109: 2026 | AM109: 0 | AN109: =#REF! -> 
A110: =Data_Tech!A114 -> 0 | B110: 2026 | AM110: 0 | AN110: =#REF! -> 
A111: =Data_Tech!A115 -> 0 | B111: 2026 | AM111: 0 | AN111: =#REF! -> 
A112: =Data_Tech!A116 -> 0 | B112: 2026 | AM112: =SUM(H112:AL112) -> 0 | AN112: =#REF! -> 
A113: =Data_Tech!A117 -> 0 | B113: 2026 | AM113: 0 | AN113: =#REF! -> 
A114: =Data_Tech!A118 -> 0 | B114: 2026 | AM114: 0 | AN114: =#REF! -> 
A115: =Data_Tech!A119 -> 0 | B115: 2026 | AM115: 0 | AN115: =#REF! -> 
A116: =Data_Tech!A120 -> 0 | B116: 2026 | AM116: 0 | AN116: =#REF! -> 
A117: =Data_Tech!A121 -> 0 | B117: 2026 | AM117: 0 | AN117: =#REF! -> 
A118: =Data_Tech!A122 -> 0 | B118: 2026 | AM118: 0 | AN118: =#REF! -> 
A119: =Data_Tech!A123 -> 0 | B119: 2026 | AM119: 0 | AN119: =#REF! -> 
A120: =Data_Tech!A124 -> 0 | B120: 2026 | AM120: 0 | AN120: =#REF! -> 
A121: =Data_Tech!A125 -> 0 | B121: 2026 | AM121: 0 | AN121: =#REF! -> 
A122: =Data_Tech!A126 -> 0 | B122: 2026 | AM122: 0 | AN122: =#REF! -> 
A123: =Data_Tech!A127 -> 0 | B123: 2026 | AM123: 0 | AN123: =#REF! -> 
A124: =Data_Tech!A128 -> 0 | B124: 2026 | AM124: 0 | AN124: =#REF! -> 

Sheet осн
J1: Изделие № | N1: 1 | U1: партия | W1: 1-25
J5: =Data_Tech!A6 -> январь | L5: 2026
B6: коэф | C6: Ф. И. О. | D6: р/р | E6: 1 | F6: 2 | G6: 3 | H6: 4 | I6: 5 | J6: 6 | K6: 7 | L6: 8 | M6: 9 | N6: 10 | O6: 11 | P6: 12 | Q6: 13 | R6: 14 | S6: 15 | T6: 16 | U6: 17 | V6: 18 | W6: 19 | X6: 20 | Y6: 21 | Z6: 22 | AA6: 23 | AB6: 24 | AC6: 25 | AD6: 26 | AE6: 27 | AF6: 28 | AG6: 29 | AH6: 30 | AI6: 31
A7: 1 | B7: =IFERROR(INDEX(Data_Tech[коэф],_xlfn.AGGREGATE(15,6,(ROW(Data_Tech[коэф])-ROW(Data_Tech[[#Headers],[коэф]]))/(Data_Tech[[мес]:[мес]]=$J$5)/(Data_Tech[[год]:[год]]=$L$5)/(Data_Tech[[изд]:[изд]]=$N$1)/(Data_Tech[[партия]:[партия]]=$W$1),ROW(A1))),"") -> 1 | C7: =IFERROR(INDEX(Data_Tech[Ф. И. О.],_xlfn.AGGREGATE(15,6,(ROW(Data_Tech[Ф. И. О.])-ROW(Data_Tech[[#Headers],[Ф. И. О.]]))/(Data_Tech[[мес]:[мес]]=$J$5)/(Data_Tech[[год]:[год]]=$L$5)/(Data_Tech[[изд]:[изд]]=$N$1)/(Data_Tech[[партия]:[партия]]=$W$1),ROW(B1))),"") -> Шишина Наталья Александровна | D7: =IFERROR(INDEX(Data_Tech[р/р],_xlfn.AGGREGATE(15,6,(ROW(Data_Tech[р/р])-ROW(Data_Tech[[#Headers],[р/р]]))/(Data_Tech[[мес]:[мес]]=$J$5)/(Data_Tech[[год]:[год]]=$L$5)/(Data_Tech[[изд]:[изд]]=$N$1)/(Data_Tech[[партия]:[партия]]=$W$1),ROW(C1))),"") -> 2а | E7: =IFERROR(INDEX(Data_Tech[1],_xlfn.AGGREGATE(15,6,(ROW(Data_Tech[1])-ROW(Data_Tech[[#Headers],[1]]))/(Data_Tech[[мес]:[мес]]=$J$5)/(Data_Tech[[год]:[год]]=$L$5)/(Data_Tech[[изд]:[изд]]=$N$1:$T$1)/(Data_Tech[[партия]:[партия]]=$W$1),ROW(D1))),"") -> 0 | F7: =IFERROR(INDEX(Data_Tech[2],_xlfn.AGGREGATE(15,6,(ROW(Data_Tech[2])-ROW(Data_Tech[[#Headers],[2]]))/(Data_Tech[[мес]:[мес]]=$J$5)/(Data_Tech[[год]:[год]]=$L$5)/(Data_Tech[[изд]:[изд]]=$N$1:$T$1)/(Data_Tech[[партия]:[партия]]=$W$1),ROW(E1))),"") -> 0 | G7: =IFERROR(INDEX(Data_Tech[3],_xlfn.AGGREGATE(15,6,(ROW(Data_Tech[3])-ROW(Data_Tech[[#Headers],[3]]))/(Data_Tech[[мес]:[мес]]=$J$5)/(Data_Tech[[год]:[год]]=$L$5)/(Data_Tech[[изд]:[изд]]=$N$1:$T$1)/(Data_Tech[[партия]:[партия]]=$W$1),ROW(F1))),"") -> 7 | H7: =IFERROR(INDEX(Data_Tech[4],_xlfn.AGGREGATE(15,6,(ROW(Data_Tech[4])-ROW(Data_Tech[[#Headers],[4]]))/(Data_Tech[[мес]:[мес]]=$J$5)/(Data_Tech[[год]:[год]]=$L$5)/(Data_Tech[[изд]:[изд]]=$N$1:$T$1)/(Data_Tech[[партия]:[партия]]=$W$1),ROW(G1))),"") -> 6 | I7: =IFERROR(INDEX(Data_Tech[5],_xlfn.AGGREGATE(15,6,(ROW(Data_Tech[5])-ROW(Data_Tech[[#Headers],[5]]))/(Data_Tech[[мес]:[мес]]=$J$5)/(Data_Tech[[год]:[год]]=$L$5)/(Data_Tech[[изд]:[изд]]=$N$1:$T$1)/(Data_Tech[[партия]:[партия]]=$W$1),ROW(H1))),"") -> 0 | J7: =IFERROR(INDEX(Data_Tech[6],_xlfn.AGGREGATE(15,6,(ROW(Data_Tech[6])-ROW(Data_Tech[[#Headers],[6]]))/(Data_Tech[[мес]:[мес]]=$J$5)/(Data_Tech[[год]:[год]]=$L$5)/(Data_Tech[[изд]:[изд]]=$N$1:$T$1)/(Data_Tech[[партия]:[партия]]=$W$1),ROW(I1))),"") -> 7 | K7: =IFERROR(INDEX(Data_Tech[7],_xlfn.AGGREGATE(15,6,(ROW(Data_Tech[7])-ROW(Data_Tech[[#Headers],[7]]))/(Data_Tech[[мес]:[мес]]=$J$5)/(Data_Tech[[год]:[год]]=$L$5)/(Data_Tech[[изд]:[изд]]=$N$1:$T$1)/(Data_Tech[[партия]:[партия]]=$W$1),ROW(J1))),"") -> 0 | L7: =IFERROR(INDEX(Data_Tech[8],_xlfn.AGGREGATE(15,6,(ROW(Data_Tech[8])-ROW(Data_Tech[[#Headers],[8]]))/(Data_Tech[[мес]:[мес]]=$J$5)/(Data_Tech[[год]:[год]]=$L$5)/(Data_Tech[[изд]:[изд]]=$N$1:$T$1)/(Data_Tech[[партия]:[партия]]=$W$1),ROW(K1))),"") -> 0 | M7: =IFERROR(INDEX(Data_Tech[9],_xlfn.AGGREGATE(15,6,(ROW(Data_Tech[9])-ROW(Data_Tech[[#Headers],[9]]))/(Data_Tech[[мес]:[мес]]=$J$5)/(Data_Tech[[год]:[год]]=$L$5)/(Data_Tech[[изд]:[изд]]=$N$1:$T$1)/(Data_Tech[[партия]:[партия]]=$W$1),ROW(L1))),"") -> 0 | N7: =IFERROR(INDEX(Data_Tech[10],_xlfn.AGGREGATE(15,6,(ROW(Data_Tech[10])-ROW(Data_Tech[[#Headers],[10]]))/(Data_Tech[[мес]:[мес]]=$J$5)/(Data_Tech[[год]:[год]]=$L$5)/(Data_Tech[[изд]:[изд]]=$N$1:$T$1)/(Data_Tech[[партия]:[партия]]=$W$1),ROW(M1))),"") -> 0 | O7: =IFERROR(INDEX(Data_Tech[11],_xlfn.AGGREGATE(15,6,(ROW(Data_Tech[11])-ROW(Data_Tech[[#Headers],[11]]))/(Data_Tech[[мес]:[мес]]=$J$5)/(Data_Tech[[год]:[год]]=$L$5)/(Data_Tech[[изд]:[изд]]=$N$1:$T$1)/(Data_Tech[[партия]:[партия]]=$W$1),ROW(N1))),"") -> 0 | P7: =IFERROR(INDEX(Data_Tech[12],_xlfn.AGGREGATE(15,6,(ROW(Data_Tech[12])-ROW(Data_Tech[[#Headers],[12]]))/(Data_Tech[[мес]:[мес]]=$J$5)/(Data_Tech[[год]:[год]]=$L$5)/(Data_Tech[[изд]:[изд]]=$N$1:$T$1)/(Data_Tech[[партия]:[партия]]=$W$1),ROW(O1))),"") -> 8 | Q7: =IFERROR(INDEX(Data_Tech[13],_xlfn.AGGREGATE(15,6,(ROW(Data_Tech[13])-ROW(Data_Tech[[#Headers],[13]]))/(Data_Tech[[мес]:[мес]]=$J$5)/(Data_Tech[[год]:[год]]=$L$5)/(Data_Tech[[изд]:[изд]]=$N$1:$T$1)/(Data_Tech[[партия]:[партия]]=$W$1),ROW(P1))),"") -> 0 | R7: =IFERROR(INDEX(Data_Tech[14],_xlfn.AGGREGATE(15,6,(ROW(Data_Tech[14])-ROW(Data_Tech[[#Headers],[14]]))/(Data_Tech[[мес]:[мес]]=$J$5)/(Data_Tech[[год]:[год]]=$L$5)/(Data_Tech[[изд]:[изд]]=$N$1:$T$1)/(Data_Tech[[партия]:[партия]]=$W$1),ROW(Q1))),"") -> 0 | S7: =IFERROR(INDEX(Data_Tech[15],_xlfn.AGGREGATE(15,6,(ROW(Data_Tech[15])-ROW(Data_Tech[[#Headers],[15]]))/(Data_Tech[[мес]:[мес]]=$J$5)/(Data_Tech[[год]:[год]]=$L$5)/(Data_Tech[[изд]:[изд]]=$N$1:$T$1)/(Data_Tech[[партия]:[партия]]=$W$1),ROW(R1))),"") -> 0 | T7: =IFERROR(INDEX(Data_Tech[16],_xlfn.AGGREGATE(15,6,(ROW(Data_Tech[16])-ROW(Data_Tech[[#Headers],[16]]))/(Data_Tech[[мес]:[мес]]=$J$5)/(Data_Tech[[год]:[год]]=$L$5)/(Data_Tech[[изд]:[изд]]=$N$1:$T$1)/(Data_Tech[[партия]:[партия]]=$W$1),ROW(S1))),"") -> 0 | U7: =IFERROR(INDEX(Data_Tech[17],_xlfn.AGGREGATE(15,6,(ROW(Data_Tech[17])-ROW(Data_Tech[[#Headers],[17]]))/(Data_Tech[[мес]:[мес]]=$J$5)/(Data_Tech[[год]:[год]]=$L$5)/(Data_Tech[[изд]:[изд]]=$N$1:$T$1)/(Data_Tech[[партия]:[партия]]=$W$1),ROW(T1))),"") -> 7 | V7: =IFERROR(INDEX(Data_Tech[18],_xlfn.AGGREGATE(15,6,(ROW(Data_Tech[18])-ROW(Data_Tech[[#Headers],[18]]))/(Data_Tech[[мес]:[мес]]=$J$5)/(Data_Tech[[год]:[год]]=$L$5)/(Data_Tech[[изд]:[изд]]=$N$1:$T$1)/(Data_Tech[[партия]:[партия]]=$W$1),ROW(U1))),"") -> 0 | W7: =IFERROR(INDEX(Data_Tech[19],_xlfn.AGGREGATE(15,6,(ROW(Data_Tech[19])-ROW(Data_Tech[[#Headers],[19]]))/(Data_Tech[[мес]:[мес]]=$J$5)/(Data_Tech[[год]:[год]]=$L$5)/(Data_Tech[[изд]:[изд]]=$N$1:$T$1)/(Data_Tech[[партия]:[партия]]=$W$1),ROW(V1))),"") -> 8 | X7: =IFERROR(INDEX(Data_Tech[20],_xlfn.AGGREGATE(15,6,(ROW(Data_Tech[20])-ROW(Data_Tech[[#Headers],[20]]))/(Data_Tech[[мес]:[мес]]=$J$5)/(Data_Tech[[год]:[год]]=$L$5)/(Data_Tech[[изд]:[изд]]=$N$1:$T$1)/(Data_Tech[[партия]:[партия]]=$W$1),ROW(W1))),"") -> 8 | Y7: =IFERROR(INDEX(Data_Tech[21],_xlfn.AGGREGATE(15,6,(ROW(Data_Tech[21])-ROW(Data_Tech[[#Headers],[21]]))/(Data_Tech[[мес]:[мес]]=$J$5)/(Data_Tech[[год]:[год]]=$L$5)/(Data_Tech[[изд]:[изд]]=$N$1:$T$1)/(Data_Tech[[партия]:[партия]]=$W$1),ROW(X1))),"") -> 0 | Z7: =IFERROR(INDEX(Data_Tech[22],_xlfn.AGGREGATE(15,6,(ROW(Data_Tech[22])-ROW(Data_Tech[[#Headers],[22]]))/(Data_Tech[[мес]:[мес]]=$J$5)/(Data_Tech[[год]:[год]]=$L$5)/(Data_Tech[[изд]:[изд]]=$N$1:$T$1)/(Data_Tech[[партия]:[партия]]=$W$1),ROW(Y1))),"") -> 0 | AA7: =IFERROR(INDEX(Data_Tech[23],_xlfn.AGGREGATE(15,6,(ROW(Data_Tech[23])-ROW(Data_Tech[[#Headers],[23]]))/(Data_Tech[[мес]:[мес]]=$J$5)/(Data_Tech[[год]:[год]]=$L$5)/(Data_Tech[[изд]:[изд]]=$N$1:$T$1)/(Data_Tech[[партия]:[партия]]=$W$1),ROW(Z1))),"") -> 0 | AB7: =IFERROR(INDEX(Data_Tech[24],_xlfn.AGGREGATE(15,6,(ROW(Data_Tech[24])-ROW(Data_Tech[[#Headers],[24]]))/(Data_Tech[[мес]:[мес]]=$J$5)/(Data_Tech[[год]:[год]]=$L$5)/(Data_Tech[[изд]:[изд]]=$N$1:$T$1)/(Data_Tech[[партия]:[партия]]=$W$1),ROW(AA1))),"") -> 0 | AC7: =IFERROR(INDEX(Data_Tech[25],_xlfn.AGGREGATE(15,6,(ROW(Data_Tech[25])-ROW(Data_Tech[[#Headers],[25]]))/(Data_Tech[[мес]:[мес]]=$J$5)/(Data_Tech[[год]:[год]]=$L$5)/(Data_Tech[[изд]:[изд]]=$N$1:$T$1)/(Data_Tech[[партия]:[партия]]=$W$1),ROW(AB1))),"") -> 0 | AD7: =IFERROR(INDEX(Data_Tech[26],_xlfn.AGGREGATE(15,6,(ROW(Data_Tech[26])-ROW(Data_Tech[[#Headers],[26]]))/(Data_Tech[[мес]:[мес]]=$J$5)/(Data_Tech[[год]:[год]]=$L$5)/(Data_Tech[[изд]:[изд]]=$N$1:$T$1)/(Data_Tech[[партия]:[партия]]=$W$1),ROW(AC1))),"") -> 0 | AE7: =IFERROR(INDEX(Data_Tech[27],_xlfn.AGGREGATE(15,6,(ROW(Data_Tech[27])-ROW(Data_Tech[[#Headers],[27]]))/(Data_Tech[[мес]:[мес]]=$J$5)/(Data_Tech[[год]:[год]]=$L$5)/(Data_Tech[[изд]:[изд]]=$N$1:$T$1)/(Data_Tech[[партия]:[партия]]=$W$1),ROW(AD1))),"") -> 0 | AF7: =IFERROR(INDEX(Data_Tech[28],_xlfn.AGGREGATE(15,6,(ROW(Data_Tech[28])-ROW(Data_Tech[[#Headers],[28]]))/(Data_Tech[[мес]:[мес]]=$J$5)/(Data_Tech[[год]:[год]]=$L$5)/(Data_Tech[[изд]:[изд]]=$N$1:$T$1)/(Data_Tech[[партия]:[партия]]=$W$1),ROW(AE1))),"") -> 0 | AG7: =IFERROR(INDEX(Data_Tech[29],_xlfn.AGGREGATE(15,6,(ROW(Data_Tech[29])-ROW(Data_Tech[[#Headers],[29]]))/(Data_Tech[[мес]:[мес]]=$J$5)/(Data_Tech[[год]:[год]]=$L$5)/(Data_Tech[[изд]:[изд]]=$N$1:$T$1)/(Data_Tech[[партия]:[партия]]=$W$1),ROW(AF1))),"") -> 0 | AH7: =IFERROR(INDEX(Data_Tech[30],_xlfn.AGGREGATE(15,6,(ROW(Data_Tech[30])-ROW(Data_Tech[[#Headers],[30]]))/(Data_Tech[[мес]:[мес]]=$J$5)/(Data_Tech[[год]:[год]]=$L$5)/(Data_Tech[[изд]:[изд]]=$N$1:$T$1)/(Data_Tech[[партия]:[партия]]=$W$1),ROW(AG1))),"") -> 0 | AI7: =IFERROR(INDEX(Data_Tech[31],_xlfn.AGGREGATE(15,6,(ROW(Data_Tech[31])-ROW(Data_Tech[[#Headers],[31]]))/(Data_Tech[[мес]:[мес]]=$J$5)/(Data_Tech[[год]:[год]]=$L$5)/(Data_Tech[[изд]:[изд]]=$N$1:$T$1)/(Data_Tech[[партия]:[партия]]=$W$1),ROW(AH1))),"") -> 0 | AJ7: =SUM(E7:AI7) -> 51
A8: 2 | B8: =IFERROR(INDEX(Data_Tech[коэф],_xlfn.AGGREGATE(15,6,(ROW(Data_Tech[коэф])-ROW(Data_Tech[[#Headers],[коэф]]))/(Data_Tech[[мес]:[мес]]=$J$5)/(Data_Tech[[год]:[год]]=$L$5)/(Data_Tech[[изд]:[изд]]=$N$1)/(Data_Tech[[партия]:[партия]]=$W$1),ROW(A2))),"") -> 1,5 | C8: =IFERROR(INDEX(Data_Tech[Ф. И. О.],_xlfn.AGGREGATE(15,6,(ROW(Data_Tech[Ф. И. О.])-ROW(Data_Tech[[#Headers],[Ф. И. О.]]))/(Data_Tech[[мес]:[мес]]=$J$5)/(Data_Tech[[год]:[год]]=$L$5)/(Data_Tech[[изд]:[изд]]=$N$1)/(Data_Tech[[партия]:[партия]]=$W$1),ROW(B2))),"") -> Авдеева Елена Николаевна | D8: =IFERROR(INDEX(Data_Tech[р/р],_xlfn.AGGREGATE(15,6,(ROW(Data_Tech[р/р])-ROW(Data_Tech[[#Headers],[р/р]]))/(Data_Tech[[мес]:[мес]]=$J$5)/(Data_Tech[[год]:[год]]=$L$5)/(Data_Tech[[изд]:[изд]]=$N$1)/(Data_Tech[[партия]:[партия]]=$W$1),ROW(C2))),"") -> 4/8 | E8: =IFERROR(INDEX(Data_Tech[1],_xlfn.AGGREGATE(15,6,(ROW(Data_Tech[1])-ROW(Data_Tech[[#Headers],[1]]))/(Data_Tech[[мес]:[мес]]=$J$5)/(Data_Tech[[год]:[год]]=$L$5)/(Data_Tech[[изд]:[изд]]=$N$1:$T$1)/(Data_Tech[[партия]:[партия]]=$W$1),ROW(D2))),"") -> 0 | F8: =IFERROR(INDEX(Data_Tech[2],_xlfn.AGGREGATE(15,6,(ROW(Data_Tech[2])-ROW(Data_Tech[[#Headers],[2]]))/(Data_Tech[[мес]:[мес]]=$J$5)/(Data_Tech[[год]:[год]]=$L$5)/(Data_Tech[[изд]:[изд]]=$N$1:$T$1)/(Data_Tech[[партия]:[партия]]=$W$1),ROW(E2))),"") -> 0 | G8: =IFERROR(INDEX(Data_Tech[3],_xlfn.AGGREGATE(15,6,(ROW(Data_Tech[3])-ROW(Data_Tech[[#Headers],[3]]))/(Data_Tech[[мес]:[мес]]=$J$5)/(Data_Tech[[год]:[год]]=$L$5)/(Data_Tech[[изд]:[изд]]=$N$1:$T$1)/(Data_Tech[[партия]:[партия]]=$W$1),ROW(F2))),"") -> 7 | H8: =IFERROR(INDEX(Data_Tech[4],_xlfn.AGGREGATE(15,6,(ROW(Data_Tech[4])-ROW(Data_Tech[[#Headers],[4]]))/(Data_Tech[[мес]:[мес]]=$J$5)/(Data_Tech[[год]:[год]]=$L$5)/(Data_Tech[[изд]:[изд]]=$N$1:$T$1)/(Data_Tech[[партия]:[партия]]=$W$1),ROW(G2))),"") -> 7 | I8: =IFERROR(INDEX(Data_Tech[5],_xlfn.AGGREGATE(15,6,(ROW(Data_Tech[5])-ROW(Data_Tech[[#Headers],[5]]))/(Data_Tech[[мес]:[мес]]=$J$5)/(Data_Tech[[год]:[год]]=$L$5)/(Data_Tech[[изд]:[изд]]=$N$1:$T$1)/(Data_Tech[[партия]:[партия]]=$W$1),ROW(H2))),"") -> 0 | J8: =IFERROR(INDEX(Data_Tech[6],_xlfn.AGGREGATE(15,6,(ROW(Data_Tech[6])-ROW(Data_Tech[[#Headers],[6]]))/(Data_Tech[[мес]:[мес]]=$J$5)/(Data_Tech[[год]:[год]]=$L$5)/(Data_Tech[[изд]:[изд]]=$N$1:$T$1)/(Data_Tech[[партия]:[партия]]=$W$1),ROW(I2))),"") -> 2 | K8: =IFERROR(INDEX(Data_Tech[7],_xlfn.AGGREGATE(15,6,(ROW(Data_Tech[7])-ROW(Data_Tech[[#Headers],[7]]))/(Data_Tech[[мес]:[мес]]=$J$5)/(Data_Tech[[год]:[год]]=$L$5)/(Data_Tech[[изд]:[изд]]=$N$1:$T$1)/(Data_Tech[[партия]:[партия]]=$W$1),ROW(J2))),"") -> 7 | L8: =IFERROR(INDEX(Data_Tech[8],_xlfn.AGGREGATE(15,6,(ROW(Data_Tech[8])-ROW(Data_Tech[[#Headers],[8]]))/(Data_Tech[[мес]:[мес]]=$J$5)/(Data_Tech[[год]:[год]]=$L$5)/(Data_Tech[[изд]:[изд]]=$N$1:$T$1)/(Data_Tech[[партия]:[партия]]=$W$1),ROW(K2))),"") -> 2 | M8: =IFERROR(INDEX(Data_Tech[9],_xlfn.AGGREGATE(15,6,(ROW(Data_Tech[9])-ROW(Data_Tech[[#Headers],[9]]))/(Data_Tech[[мес]:[мес]]=$J$5)/(Data_Tech[[год]:[год]]=$L$5)/(Data_Tech[[изд]:[изд]]=$N$1:$T$1)/(Data_Tech[[партия]:[партия]]=$W$1),ROW(L2))),"") -> 7 | N8: =IFERROR(INDEX(Data_Tech[10],_xlfn.AGGREGATE(15,6,(ROW(Data_Tech[10])-ROW(Data_Tech[[#Headers],[10]]))/(Data_Tech[[мес]:[мес]]=$J$5)/(Data_Tech[[год]:[год]]=$L$5)/(Data_Tech[[изд]:[изд]]=$N$1:$T$1)/(Data_Tech[[партия]:[партия]]=$W$1),ROW(M2))),"") -> 7 | O8: =IFERROR(INDEX(Data_Tech[11],_xlfn.AGGREGATE(15,6,(ROW(Data_Tech[11])-ROW(Data_Tech[[#Headers],[11]]))/(Data_Tech[[мес]:[мес]]=$J$5)/(Data_Tech[[год]:[год]]=$L$5)/(Data_Tech[[изд]:[изд]]=$N$1:$T$1)/(Data_Tech[[партия]:[партия]]=$W$1),ROW(N2))),"") -> 0 | P8: =IFERROR(INDEX(Data_Tech[12],_xlfn.AGGREGATE(15,6,(ROW(Data_Tech[12])-ROW(Data_Tech[[#Headers],[12]]))/(Data_Tech[[мес]:[мес]]=$J$5)/(Data_Tech[[год]:[год]]=$L$5)/(Data_Tech[[изд]:[изд]]=$N$1:$T$1)/(Data_Tech[[партия]:[партия]]=$W$1),ROW(O2))),"") -> 8 | Q8: =IFERROR(INDEX(Data_Tech[13],_xlfn.AGGREGATE(15,6,(ROW(Data_Tech[13])-ROW(Data_Tech[[#Headers],[13]]))/(Data_Tech[[мес]:[мес]]=$J$5)/(Data_Tech[[год]:[год]]=$L$5)/(Data_Tech[[изд]:[изд]]=$N$1:$T$1)/(Data_Tech[[партия]:[партия]]=$W$1),ROW(P2))),"") -> 0 | R8: =IFERROR(INDEX(Data_Tech[14],_xlfn.AGGREGATE(15,6,(ROW(Data_Tech[14])-ROW(Data_Tech[[#Headers],[14]]))/(Data_Tech[[мес]:[мес]]=$J$5)/(Data_Tech[[год]:[год]]=$L$5)/(Data_Tech[[изд]:[изд]]=$N$1:$T$1)/(Data_Tech[[партия]:[партия]]=$W$1),ROW(Q2))),"") -> 0 | S8: =IFERROR(INDEX(Data_Tech[15],_xlfn.AGGREGATE(15,6,(ROW(Data_Tech[15])-ROW(Data_Tech[[#Headers],[15]]))/(Data_Tech[[мес]:[мес]]=$J$5)/(Data_Tech[[год]:[год]]=$L$5)/(Data_Tech[[изд]:[изд]]=$N$1:$T$1)/(Data_Tech[[партия]:[партия]]=$W$1),ROW(R2))),"") -> 0 | T8: =IFERROR(INDEX(Data_Tech[16],_xlfn.AGGREGATE(15,6,(ROW(Data_Tech[16])-ROW(Data_Tech[[#Headers],[16]]))/(Data_Tech[[мес]:[мес]]=$J$5)/(Data_Tech[[год]:[год]]=$L$5)/(Data_Tech[[изд]:[изд]]=$N$1:$T$1)/(Data_Tech[[партия]:[партия]]=$W$1),ROW(S2))),"") -> 0 | U8: =IFERROR(INDEX(Data_Tech[17],_xlfn.AGGREGATE(15,6,(ROW(Data_Tech[17])-ROW(Data_Tech[[#Headers],[17]]))/(Data_Tech[[мес]:[мес]]=$J$5)/(Data_Tech[[год]:[год]]=$L$5)/(Data_Tech[[изд]:[изд]]=$N$1:$T$1)/(Data_Tech[[партия]:[партия]]=$W$1),ROW(T2))),"") -> 0 | V8: =IFERROR(INDEX(Data_Tech[18],_xlfn.AGGREGATE(15,6,(ROW(Data_Tech[18])-ROW(Data_Tech[[#Headers],[18]]))/(Data_Tech[[мес]:[мес]]=$J$5)/(Data_Tech[[год]:[год]]=$L$5)/(Data_Tech[[изд]:[изд]]=$N$1:$T$1)/(Data_Tech[[партия]:[партия]]=$W$1),ROW(U2))),"") -> 0 | W8: =IFERROR(INDEX(Data_Tech[19],_xlfn.AGGREGATE(15,6,(ROW(Data_Tech[19])-ROW(Data_Tech[[#Headers],[19]]))/(Data_Tech[[мес]:[мес]]=$J$5)/(Data_Tech[[год]:[год]]=$L$5)/(Data_Tech[[изд]:[изд]]=$N$1:$T$1)/(Data_Tech[[партия]:[партия]]=$W$1),ROW(V2))),"") -> 0 | X8: =IFERROR(INDEX(Data_Tech[20],_xlfn.AGGREGATE(15,6,(ROW(Data_Tech[20])-ROW(Data_Tech[[#Headers],[20]]))/(Data_Tech[[мес]:[мес]]=$J$5)/(Data_Tech[[год]:[год]]=$L$5)/(Data_Tech[[изд]:[изд]]=$N$1:$T$1)/(Data_Tech[[партия]:[партия]]=$W$1),ROW(W2))),"") -> 0 | Y8: =IFERROR(INDEX(Data_Tech[21],_xlfn.AGGREGATE(15,6,(ROW(Data_Tech[21])-ROW(Data_Tech[[#Headers],[21]]))/(Data_Tech[[мес]:[мес]]=$J$5)/(Data_Tech[[год]:[год]]=$L$5)/(Data_Tech[[изд]:[изд]]=$N$1:$T$1)/(Data_Tech[[партия]:[партия]]=$W$1),ROW(X2))),"") -> 0 | Z8: =IFERROR(INDEX(Data_Tech[22],_xlfn.AGGREGATE(15,6,(ROW(Data_Tech[22])-ROW(Data_Tech[[#Headers],[22]]))/(Data_Tech[[мес]:[мес]]=$J$5)/(Data_Tech[[год]:[год]]=$L$5)/(Data_Tech[[изд]:[изд]]=$N$1:$T$1)/(Data_Tech[[партия]:[партия]]=$W$1),ROW(Y2))),"") -> 8 | AA8: =IFERROR(INDEX(Data_Tech[23],_xlfn.AGGREGATE(15,6,(ROW(Data_Tech[23])-ROW(Data_Tech[[#Headers],[23]]))/(Data_Tech[[мес]:[мес]]=$J$5)/(Data_Tech[[год]:[год]]=$L$5)/(Data_Tech[[изд]:[изд]]=$N$1:$T$1)/(Data_Tech[[партия]:[партия]]=$W$1),ROW(Z2))),"") -> 8 | AB8: =IFERROR(INDEX(Data_Tech[24],_xlfn.AGGREGATE(15,6,(ROW(Data_Tech[24])-ROW(Data_Tech[[#Headers],[24]]))/(Data_Tech[[мес]:[мес]]=$J$5)/(Data_Tech[[год]:[год]]=$L$5)/(Data_Tech[[изд]:[изд]]=$N$1:$T$1)/(Data_Tech[[партия]:[партия]]=$W$1),ROW(AA2))),"") -> 7 | AC8: =IFERROR(INDEX(Data_Tech[25],_xlfn.AGGREGATE(15,6,(ROW(Data_Tech[25])-ROW(Data_Tech[[#Headers],[25]]))/(Data_Tech[[мес]:[мес]]=$J$5)/(Data_Tech[[год]:[год]]=$L$5)/(Data_Tech[[изд]:[изд]]=$N$1:$T$1)/(Data_Tech[[партия]:[партия]]=$W$1),ROW(AB2))),"") -> 0 | AD8: =IFERROR(INDEX(Data_Tech[26],_xlfn.AGGREGATE(15,6,(ROW(Data_Tech[26])-ROW(Data_Tech[[#Headers],[26]]))/(Data_Tech[[мес]:[мес]]=$J$5)/(Data_Tech[[год]:[год]]=$L$5)/(Data_Tech[[изд]:[изд]]=$N$1:$T$1)/(Data_Tech[[партия]:[партия]]=$W$1),ROW(AC2))),"") -> 8 | AE8: =IFERROR(INDEX(Data_Tech[27],_xlfn.AGGREGATE(15,6,(ROW(Data_Tech[27])-ROW(Data_Tech[[#Headers],[27]]))/(Data_Tech[[мес]:[мес]]=$J$5)/(Data_Tech[[год]:[год]]=$L$5)/(Data_Tech[[изд]:[изд]]=$N$1:$T$1)/(Data_Tech[[партия]:[партия]]=$W$1),ROW(AD2))),"") -> 8 | AF8: =IFERROR(INDEX(Data_Tech[28],_xlfn.AGGREGATE(15,6,(ROW(Data_Tech[28])-ROW(Data_Tech[[#Headers],[28]]))/(Data_Tech[[мес]:[мес]]=$J$5)/(Data_Tech[[год]:[год]]=$L$5)/(Data_Tech[[изд]:[изд]]=$N$1:$T$1)/(Data_Tech[[партия]:[партия]]=$W$1),ROW(AE2))),"") -> 8 | AG8: =IFERROR(INDEX(Data_Tech[29],_xlfn.AGGREGATE(15,6,(ROW(Data_Tech[29])-ROW(Data_Tech[[#Headers],[29]]))/(Data_Tech[[мес]:[мес]]=$J$5)/(Data_Tech[[год]:[год]]=$L$5)/(Data_Tech[[изд]:[изд]]=$N$1:$T$1)/(Data_Tech[[партия]:[партия]]=$W$1),ROW(AF2))),"") -> 8 | AH8: =IFERROR(INDEX(Data_Tech[30],_xlfn.AGGREGATE(15,6,(ROW(Data_Tech[30])-ROW(Data_Tech[[#Headers],[30]]))/(Data_Tech[[мес]:[мес]]=$J$5)/(Data_Tech[[год]:[год]]=$L$5)/(Data_Tech[[изд]:[изд]]=$N$1:$T$1)/(Data_Tech[[партия]:[партия]]=$W$1),ROW(AG2))),"") -> 8 | AI8: =IFERROR(INDEX(Data_Tech[31],_xlfn.AGGREGATE(15,6,(ROW(Data_Tech[31])-ROW(Data_Tech[[#Headers],[31]]))/(Data_Tech[[мес]:[мес]]=$J$5)/(Data_Tech[[год]:[год]]=$L$5)/(Data_Tech[[изд]:[изд]]=$N$1:$T$1)/(Data_Tech[[партия]:[партия]]=$W$1),ROW(AH2))),"") -> 7 | AJ8: 117
A9: 3 | B9: =IFERROR(INDEX(Data_Tech[коэф],_xlfn.AGGREGATE(15,6,(ROW(Data_Tech[коэф])-ROW(Data_Tech[[#Headers],[коэф]]))/(Data_Tech[[мес]:[мес]]=$J$5)/(Data_Tech[[год]:[год]]=$L$5)/(Data_Tech[[изд]:[изд]]=$N$1)/(Data_Tech[[партия]:[партия]]=$W$1),ROW(A3))),"") -> 1 | C9: =IFERROR(INDEX(Data_Tech[Ф. И. О.],_xlfn.AGGREGATE(15,6,(ROW(Data_Tech[Ф. И. О.])-ROW(Data_Tech[[#Headers],[Ф. И. О.]]))/(Data_Tech[[мес]:[мес]]=$J$5)/(Data_Tech[[год]:[год]]=$L$5)/(Data_Tech[[изд]:[изд]]=$N$1)/(Data_Tech[[партия]:[партия]]=$W$1),ROW(B3))),"") -> Ложкина Елена Сергеевна | D9: =IFERROR(INDEX(Data_Tech[р/р],_xlfn.AGGREGATE(15,6,(ROW(Data_Tech[р/р])-ROW(Data_Tech[[#Headers],[р/р]]))/(Data_Tech[[мес]:[мес]]=$J$5)/(Data_Tech[[год]:[год]]=$L$5)/(Data_Tech[[изд]:[изд]]=$N$1)/(Data_Tech[[партия]:[партия]]=$W$1),ROW(C3))),"") -> 2а | E9: =IFERROR(INDEX(Data_Tech[1],_xlfn.AGGREGATE(15,6,(ROW(Data_Tech[1])-ROW(Data_Tech[[#Headers],[1]]))/(Data_Tech[[мес]:[мес]]=$J$5)/(Data_Tech[[год]:[год]]=$L$5)/(Data_Tech[[изд]:[изд]]=$N$1:$T$1)/(Data_Tech[[партия]:[партия]]=$W$1),ROW(D3))),"") -> 0 | F9: =IFERROR(INDEX(Data_Tech[2],_xlfn.AGGREGATE(15,6,(ROW(Data_Tech[2])-ROW(Data_Tech[[#Headers],[2]]))/(Data_Tech[[мес]:[мес]]=$J$5)/(Data_Tech[[год]:[год]]=$L$5)/(Data_Tech[[изд]:[изд]]=$N$1:$T$1)/(Data_Tech[[партия]:[партия]]=$W$1),ROW(E3))),"") -> 0 | G9: =IFERROR(INDEX(Data_Tech[3],_xlfn.AGGREGATE(15,6,(ROW(Data_Tech[3])-ROW(Data_Tech[[#Headers],[3]]))/(Data_Tech[[мес]:[мес]]=$J$5)/(Data_Tech[[год]:[год]]=$L$5)/(Data_Tech[[изд]:[изд]]=$N$1:$T$1)/(Data_Tech[[партия]:[партия]]=$W$1),ROW(F3))),"") -> 0 | H9: =IFERROR(INDEX(Data_Tech[4],_xlfn.AGGREGATE(15,6,(ROW(Data_Tech[4])-ROW(Data_Tech[[#Headers],[4]]))/(Data_Tech[[мес]:[мес]]=$J$5)/(Data_Tech[[год]:[год]]=$L$5)/(Data_Tech[[изд]:[изд]]=$N$1:$T$1)/(Data_Tech[[партия]:[партия]]=$W$1),ROW(G3))),"") -> 0 | I9: =IFERROR(INDEX(Data_Tech[5],_xlfn.AGGREGATE(15,6,(ROW(Data_Tech[5])-ROW(Data_Tech[[#Headers],[5]]))/(Data_Tech[[мес]:[мес]]=$J$5)/(Data_Tech[[год]:[год]]=$L$5)/(Data_Tech[[изд]:[изд]]=$N$1:$T$1)/(Data_Tech[[партия]:[партия]]=$W$1),ROW(H3))),"") -> 2.5 | J9: =IFERROR(INDEX(Data_Tech[6],_xlfn.AGGREGATE(15,6,(ROW(Data_Tech[6])-ROW(Data_Tech[[#Headers],[6]]))/(Data_Tech[[мес]:[мес]]=$J$5)/(Data_Tech[[год]:[год]]=$L$5)/(Data_Tech[[изд]:[изд]]=$N$1:$T$1)/(Data_Tech[[партия]:[партия]]=$W$1),ROW(I3))),"") -> 0 | K9: =IFERROR(INDEX(Data_Tech[7],_xlfn.AGGREGATE(15,6,(ROW(Data_Tech[7])-ROW(Data_Tech[[#Headers],[7]]))/(Data_Tech[[мес]:[мес]]=$J$5)/(Data_Tech[[год]:[год]]=$L$5)/(Data_Tech[[изд]:[изд]]=$N$1:$T$1)/(Data_Tech[[партия]:[партия]]=$W$1),ROW(J3))),"") -> 0 | L9: =IFERROR(INDEX(Data_Tech[8],_xlfn.AGGREGATE(15,6,(ROW(Data_Tech[8])-ROW(Data_Tech[[#Headers],[8]]))/(Data_Tech[[мес]:[мес]]=$J$5)/(Data_Tech[[год]:[год]]=$L$5)/(Data_Tech[[изд]:[изд]]=$N$1:$T$1)/(Data_Tech[[партия]:[партия]]=$W$1),ROW(K3))),"") -> 0 | M9: =IFERROR(INDEX(Data_Tech[9],_xlfn.AGGREGATE(15,6,(ROW(Data_Tech[9])-ROW(Data_Tech[[#Headers],[9]]))/(Data_Tech[[мес]:[мес]]=$J$5)/(Data_Tech[[год]:[год]]=$L$5)/(Data_Tech[[изд]:[изд]]=$N$1:$T$1)/(Data_Tech[[партия]:[партия]]=$W$1),ROW(L3))),"") -> 0 | N9: =IFERROR(INDEX(Data_Tech[10],_xlfn.AGGREGATE(15,6,(ROW(Data_Tech[10])-ROW(Data_Tech[[#Headers],[10]]))/(Data_Tech[[мес]:[мес]]=$J$5)/(Data_Tech[[год]:[год]]=$L$5)/(Data_Tech[[изд]:[изд]]=$N$1:$T$1)/(Data_Tech[[партия]:[партия]]=$W$1),ROW(M3))),"") -> 0 | O9: =IFERROR(INDEX(Data_Tech[11],_xlfn.AGGREGATE(15,6,(ROW(Data_Tech[11])-ROW(Data_Tech[[#Headers],[11]]))/(Data_Tech[[мес]:[мес]]=$J$5)/(Data_Tech[[год]:[год]]=$L$5)/(Data_Tech[[изд]:[изд]]=$N$1:$T$1)/(Data_Tech[[партия]:[партия]]=$W$1),ROW(N3))),"") -> 0 | P9: =IFERROR(INDEX(Data_Tech[12],_xlfn.AGGREGATE(15,6,(ROW(Data_Tech[12])-ROW(Data_Tech[[#Headers],[12]]))/(Data_Tech[[мес]:[мес]]=$J$5)/(Data_Tech[[год]:[год]]=$L$5)/(Data_Tech[[изд]:[изд]]=$N$1:$T$1)/(Data_Tech[[партия]:[партия]]=$W$1),ROW(O3))),"") -> 0 | Q9: =IFERROR(INDEX(Data_Tech[13],_xlfn.AGGREGATE(15,6,(ROW(Data_Tech[13])-ROW(Data_Tech[[#Headers],[13]]))/(Data_Tech[[мес]:[мес]]=$J$5)/(Data_Tech[[год]:[год]]=$L$5)/(Data_Tech[[изд]:[изд]]=$N$1:$T$1)/(Data_Tech[[партия]:[партия]]=$W$1),ROW(P3))),"") -> 0 | R9: =IFERROR(INDEX(Data_Tech[14],_xlfn.AGGREGATE(15,6,(ROW(Data_Tech[14])-ROW(Data_Tech[[#Headers],[14]]))/(Data_Tech[[мес]:[мес]]=$J$5)/(Data_Tech[[год]:[год]]=$L$5)/(Data_Tech[[изд]:[изд]]=$N$1:$T$1)/(Data_Tech[[партия]:[партия]]=$W$1),ROW(Q3))),"") -> 0 | S9: =IFERROR(INDEX(Data_Tech[15],_xlfn.AGGREGATE(15,6,(ROW(Data_Tech[15])-ROW(Data_Tech[[#Headers],[15]]))/(Data_Tech[[мес]:[мес]]=$J$5)/(Data_Tech[[год]:[год]]=$L$5)/(Data_Tech[[изд]:[изд]]=$N$1:$T$1)/(Data_Tech[[партия]:[партия]]=$W$1),ROW(R3))),"") -> 0 | T9: =IFERROR(INDEX(Data_Tech[16],_xlfn.AGGREGATE(15,6,(ROW(Data_Tech[16])-ROW(Data_Tech[[#Headers],[16]]))/(Data_Tech[[мес]:[мес]]=$J$5)/(Data_Tech[[год]:[год]]=$L$5)/(Data_Tech[[изд]:[изд]]=$N$1:$T$1)/(Data_Tech[[партия]:[партия]]=$W$1),ROW(S3))),"") -> 0 | U9: =IFERROR(INDEX(Data_Tech[17],_xlfn.AGGREGATE(15,6,(ROW(Data_Tech[17])-ROW(Data_Tech[[#Headers],[17]]))/(Data_Tech[[мес]:[мес]]=$J$5)/(Data_Tech[[год]:[год]]=$L$5)/(Data_Tech[[изд]:[изд]]=$N$1:$T$1)/(Data_Tech[[партия]:[партия]]=$W$1),ROW(T3))),"") -> 0 | V9: =IFERROR(INDEX(Data_Tech[18],_xlfn.AGGREGATE(15,6,(ROW(Data_Tech[18])-ROW(Data_Tech[[#Headers],[18]]))/(Data_Tech[[мес]:[мес]]=$J$5)/(Data_Tech[[год]:[год]]=$L$5)/(Data_Tech[[изд]:[изд]]=$N$1:$T$1)/(Data_Tech[[партия]:[партия]]=$W$1),ROW(U3))),"") -> 0 | W9: =IFERROR(INDEX(Data_Tech[19],_xlfn.AGGREGATE(15,6,(ROW(Data_Tech[19])-ROW(Data_Tech[[#Headers],[19]]))/(Data_Tech[[мес]:[мес]]=$J$5)/(Data_Tech[[год]:[год]]=$L$5)/(Data_Tech[[изд]:[изд]]=$N$1:$T$1)/(Data_Tech[[партия]:[партия]]=$W$1),ROW(V3))),"") -> 0 | X9: =IFERROR(INDEX(Data_Tech[20],_xlfn.AGGREGATE(15,6,(ROW(Data_Tech[20])-ROW(Data_Tech[[#Headers],[20]]))/(Data_Tech[[мес]:[мес]]=$J$5)/(Data_Tech[[год]:[год]]=$L$5)/(Data_Tech[[изд]:[изд]]=$N$1:$T$1)/(Data_Tech[[партия]:[партия]]=$W$1),ROW(W3))),"") -> 0 | Y9: =IFERROR(INDEX(Data_Tech[21],_xlfn.AGGREGATE(15,6,(ROW(Data_Tech[21])-ROW(Data_Tech[[#Headers],[21]]))/(Data_Tech[[мес]:[мес]]=$J$5)/(Data_Tech[[год]:[год]]=$L$5)/(Data_Tech[[изд]:[изд]]=$N$1:$T$1)/(Data_Tech[[партия]:[партия]]=$W$1),ROW(X3))),"") -> 0 | Z9: =IFERROR(INDEX(Data_Tech[22],_xlfn.AGGREGATE(15,6,(ROW(Data_Tech[22])-ROW(Data_Tech[[#Headers],[22]]))/(Data_Tech[[мес]:[мес]]=$J$5)/(Data_Tech[[год]:[год]]=$L$5)/(Data_Tech[[изд]:[изд]]=$N$1:$T$1)/(Data_Tech[[партия]:[партия]]=$W$1),ROW(Y3))),"") -> 0 | AA9: =IFERROR(INDEX(Data_Tech[23],_xlfn.AGGREGATE(15,6,(ROW(Data_Tech[23])-ROW(Data_Tech[[#Headers],[23]]))/(Data_Tech[[мес]:[мес]]=$J$5)/(Data_Tech[[год]:[год]]=$L$5)/(Data_Tech[[изд]:[изд]]=$N$1:$T$1)/(Data_Tech[[партия]:[партия]]=$W$1),ROW(Z3))),"") -> 0 | AB9: =IFERROR(INDEX(Data_Tech[24],_xlfn.AGGREGATE(15,6,(ROW(Data_Tech[24])-ROW(Data_Tech[[#Headers],[24]]))/(Data_Tech[[мес]:[мес]]=$J$5)/(Data_Tech[[год]:[год]]=$L$5)/(Data_Tech[[изд]:[изд]]=$N$1:$T$1)/(Data_Tech[[партия]:[партия]]=$W$1),ROW(AA3))),"") -> 0 | AC9: =IFERROR(INDEX(Data_Tech[25],_xlfn.AGGREGATE(15,6,(ROW(Data_Tech[25])-ROW(Data_Tech[[#Headers],[25]]))/(Data_Tech[[мес]:[мес]]=$J$5)/(Data_Tech[[год]:[год]]=$L$5)/(Data_Tech[[изд]:[изд]]=$N$1:$T$1)/(Data_Tech[[партия]:[партия]]=$W$1),ROW(AB3))),"") -> 0 | AD9: =IFERROR(INDEX(Data_Tech[26],_xlfn.AGGREGATE(15,6,(ROW(Data_Tech[26])-ROW(Data_Tech[[#Headers],[26]]))/(Data_Tech[[мес]:[мес]]=$J$5)/(Data_Tech[[год]:[год]]=$L$5)/(Data_Tech[[изд]:[изд]]=$N$1:$T$1)/(Data_Tech[[партия]:[партия]]=$W$1),ROW(AC3))),"") -> 0 | AE9: =IFERROR(INDEX(Data_Tech[27],_xlfn.AGGREGATE(15,6,(ROW(Data_Tech[27])-ROW(Data_Tech[[#Headers],[27]]))/(Data_Tech[[мес]:[мес]]=$J$5)/(Data_Tech[[год]:[год]]=$L$5)/(Data_Tech[[изд]:[изд]]=$N$1:$T$1)/(Data_Tech[[партия]:[партия]]=$W$1),ROW(AD3))),"") -> 0 | AF9: =IFERROR(INDEX(Data_Tech[28],_xlfn.AGGREGATE(15,6,(ROW(Data_Tech[28])-ROW(Data_Tech[[#Headers],[28]]))/(Data_Tech[[мес]:[мес]]=$J$5)/(Data_Tech[[год]:[год]]=$L$5)/(Data_Tech[[изд]:[изд]]=$N$1:$T$1)/(Data_Tech[[партия]:[партия]]=$W$1),ROW(AE3))),"") -> 0 | AG9: =IFERROR(INDEX(Data_Tech[29],_xlfn.AGGREGATE(15,6,(ROW(Data_Tech[29])-ROW(Data_Tech[[#Headers],[29]]))/(Data_Tech[[мес]:[мес]]=$J$5)/(Data_Tech[[год]:[год]]=$L$5)/(Data_Tech[[изд]:[изд]]=$N$1:$T$1)/(Data_Tech[[партия]:[партия]]=$W$1),ROW(AF3))),"") -> 0 | AH9: =IFERROR(INDEX(Data_Tech[30],_xlfn.AGGREGATE(15,6,(ROW(Data_Tech[30])-ROW(Data_Tech[[#Headers],[30]]))/(Data_Tech[[мес]:[мес]]=$J$5)/(Data_Tech[[год]:[год]]=$L$5)/(Data_Tech[[изд]:[изд]]=$N$1:$T$1)/(Data_Tech[[партия]:[партия]]=$W$1),ROW(AG3))),"") -> 0 | AI9: =IFERROR(INDEX(Data_Tech[31],_xlfn.AGGREGATE(15,6,(ROW(Data_Tech[31])-ROW(Data_Tech[[#Headers],[31]]))/(Data_Tech[[мес]:[мес]]=$J$5)/(Data_Tech[[год]:[год]]=$L$5)/(Data_Tech[[изд]:[изд]]=$N$1:$T$1)/(Data_Tech[[партия]:[партия]]=$W$1),ROW(AH3))),"") -> 0 | AJ9: 2.5
A10: 4 | B10: =IFERROR(INDEX(Data_Tech[коэф],_xlfn.AGGREGATE(15,6,(ROW(Data_Tech[коэф])-ROW(Data_Tech[[#Headers],[коэф]]))/(Data_Tech[[мес]:[мес]]=$J$5)/(Data_Tech[[год]:[год]]=$L$5)/(Data_Tech[[изд]:[изд]]=$N$1)/(Data_Tech[[партия]:[партия]]=$W$1),ROW(A4))),"") -> 1 | C10: =IFERROR(INDEX(Data_Tech[Ф. И. О.],_xlfn.AGGREGATE(15,6,(ROW(Data_Tech[Ф. И. О.])-ROW(Data_Tech[[#Headers],[Ф. И. О.]]))/(Data_Tech[[мес]:[мес]]=$J$5)/(Data_Tech[[год]:[год]]=$L$5)/(Data_Tech[[изд]:[изд]]=$N$1)/(Data_Tech[[партия]:[партия]]=$W$1),ROW(B4))),"") -> Попова Виктория | D10: =IFERROR(INDEX(Data_Tech[р/р],_xlfn.AGGREGATE(15,6,(ROW(Data_Tech[р/р])-ROW(Data_Tech[[#Headers],[р/р]]))/(Data_Tech[[мес]:[мес]]=$J$5)/(Data_Tech[[год]:[год]]=$L$5)/(Data_Tech[[изд]:[изд]]=$N$1)/(Data_Tech[[партия]:[партия]]=$W$1),ROW(C4))),"") -> 2а | E10: =IFERROR(INDEX(Data_Tech[1],_xlfn.AGGREGATE(15,6,(ROW(Data_Tech[1])-ROW(Data_Tech[[#Headers],[1]]))/(Data_Tech[[мес]:[мес]]=$J$5)/(Data_Tech[[год]:[год]]=$L$5)/(Data_Tech[[изд]:[изд]]=$N$1:$T$1)/(Data_Tech[[партия]:[партия]]=$W$1),ROW(D4))),"") -> 0 | F10: =IFERROR(INDEX(Data_Tech[2],_xlfn.AGGREGATE(15,6,(ROW(Data_Tech[2])-ROW(Data_Tech[[#Headers],[2]]))/(Data_Tech[[мес]:[мес]]=$J$5)/(Data_Tech[[год]:[год]]=$L$5)/(Data_Tech[[изд]:[изд]]=$N$1:$T$1)/(Data_Tech[[партия]:[партия]]=$W$1),ROW(E4))),"") -> 0 | G10: =IFERROR(INDEX(Data_Tech[3],_xlfn.AGGREGATE(15,6,(ROW(Data_Tech[3])-ROW(Data_Tech[[#Headers],[3]]))/(Data_Tech[[мес]:[мес]]=$J$5)/(Data_Tech[[год]:[год]]=$L$5)/(Data_Tech[[изд]:[изд]]=$N$1:$T$1)/(Data_Tech[[партия]:[партия]]=$W$1),ROW(F4))),"") -> 8 | H10: =IFERROR(INDEX(Data_Tech[4],_xlfn.AGGREGATE(15,6,(ROW(Data_Tech[4])-ROW(Data_Tech[[#Headers],[4]]))/(Data_Tech[[мес]:[мес]]=$J$5)/(Data_Tech[[год]:[год]]=$L$5)/(Data_Tech[[изд]:[изд]]=$N$1:$T$1)/(Data_Tech[[партия]:[партия]]=$W$1),ROW(G4))),"") -> 0 | I10: =IFERROR(INDEX(Data_Tech[5],_xlfn.AGGREGATE(15,6,(ROW(Data_Tech[5])-ROW(Data_Tech[[#Headers],[5]]))/(Data_Tech[[мес]:[мес]]=$J$5)/(Data_Tech[[год]:[год]]=$L$5)/(Data_Tech[[изд]:[изд]]=$N$1:$T$1)/(Data_Tech[[партия]:[партия]]=$W$1),ROW(H4))),"") -> 3 | J10: =IFERROR(INDEX(Data_Tech[6],_xlfn.AGGREGATE(15,6,(ROW(Data_Tech[6])-ROW(Data_Tech[[#Headers],[6]]))/(Data_Tech[[мес]:[мес]]=$J$5)/(Data_Tech[[год]:[год]]=$L$5)/(Data_Tech[[изд]:[изд]]=$N$1:$T$1)/(Data_Tech[[партия]:[партия]]=$W$1),ROW(I4))),"") -> 8 | K10: =IFERROR(INDEX(Data_Tech[7],_xlfn.AGGREGATE(15,6,(ROW(Data_Tech[7])-ROW(Data_Tech[[#Headers],[7]]))/(Data_Tech[[мес]:[мес]]=$J$5)/(Data_Tech[[год]:[год]]=$L$5)/(Data_Tech[[изд]:[изд]]=$N$1:$T$1)/(Data_Tech[[партия]:[партия]]=$W$1),ROW(J4))),"") -> 8 | L10: =IFERROR(INDEX(Data_Tech[8],_xlfn.AGGREGATE(15,6,(ROW(Data_Tech[8])-ROW(Data_Tech[[#Headers],[8]]))/(Data_Tech[[мес]:[мес]]=$J$5)/(Data_Tech[[год]:[год]]=$L$5)/(Data_Tech[[изд]:[изд]]=$N$1:$T$1)/(Data_Tech[[партия]:[партия]]=$W$1),ROW(K4))),"") -> 5 | M10: =IFERROR(INDEX(Data_Tech[9],_xlfn.AGGREGATE(15,6,(ROW(Data_Tech[9])-ROW(Data_Tech[[#Headers],[9]]))/(Data_Tech[[мес]:[мес]]=$J$5)/(Data_Tech[[год]:[год]]=$L$5)/(Data_Tech[[изд]:[изд]]=$N$1:$T$1)/(Data_Tech[[партия]:[партия]]=$W$1),ROW(L4))),"") -> 0 | N10: =IFERROR(INDEX(Data_Tech[10],_xlfn.AGGREGATE(15,6,(ROW(Data_Tech[10])-ROW(Data_Tech[[#Headers],[10]]))/(Data_Tech[[мес]:[мес]]=$J$5)/(Data_Tech[[год]:[год]]=$L$5)/(Data_Tech[[изд]:[изд]]=$N$1:$T$1)/(Data_Tech[[партия]:[партия]]=$W$1),ROW(M4))),"") -> 0 | O10: =IFERROR(INDEX(Data_Tech[11],_xlfn.AGGREGATE(15,6,(ROW(Data_Tech[11])-ROW(Data_Tech[[#Headers],[11]]))/(Data_Tech[[мес]:[мес]]=$J$5)/(Data_Tech[[год]:[год]]=$L$5)/(Data_Tech[[изд]:[изд]]=$N$1:$T$1)/(Data_Tech[[партия]:[партия]]=$W$1),ROW(N4))),"") -> 0 | P10: =IFERROR(INDEX(Data_Tech[12],_xlfn.AGGREGATE(15,6,(ROW(Data_Tech[12])-ROW(Data_Tech[[#Headers],[12]]))/(Data_Tech[[мес]:[мес]]=$J$5)/(Data_Tech[[год]:[год]]=$L$5)/(Data_Tech[[изд]:[изд]]=$N$1:$T$1)/(Data_Tech[[партия]:[партия]]=$W$1),ROW(O4))),"") -> 0 | Q10: =IFERROR(INDEX(Data_Tech[13],_xlfn.AGGREGATE(15,6,(ROW(Data_Tech[13])-ROW(Data_Tech[[#Headers],[13]]))/(Data_Tech[[мес]:[мес]]=$J$5)/(Data_Tech[[год]:[год]]=$L$5)/(Data_Tech[[изд]:[изд]]=$N$1:$T$1)/(Data_Tech[[партия]:[партия]]=$W$1),ROW(P4))),"") -> 8 | R10: =IFERROR(INDEX(Data_Tech[14],_xlfn.AGGREGATE(15,6,(ROW(Data_Tech[14])-ROW(Data_Tech[[#Headers],[14]]))/(Data_Tech[[мес]:[мес]]=$J$5)/(Data_Tech[[год]:[год]]=$L$5)/(Data_Tech[[изд]:[изд]]=$N$1:$T$1)/(Data_Tech[[партия]:[партия]]=$W$1),ROW(Q4))),"") -> 8 | S10: =IFERROR(INDEX(Data_Tech[15],_xlfn.AGGREGATE(15,6,(ROW(Data_Tech[15])-ROW(Data_Tech[[#Headers],[15]]))/(Data_Tech[[мес]:[мес]]=$J$5)/(Data_Tech[[год]:[год]]=$L$5)/(Data_Tech[[изд]:[изд]]=$N$1:$T$1)/(Data_Tech[[партия]:[партия]]=$W$1),ROW(R4))),"") -> 8 | T10: =IFERROR(INDEX(Data_Tech[16],_xlfn.AGGREGATE(15,6,(ROW(Data_Tech[16])-ROW(Data_Tech[[#Headers],[16]]))/(Data_Tech[[мес]:[мес]]=$J$5)/(Data_Tech[[год]:[год]]=$L$5)/(Data_Tech[[изд]:[изд]]=$N$1:$T$1)/(Data_Tech[[партия]:[партия]]=$W$1),ROW(S4))),"") -> 8 | U10: =IFERROR(INDEX(Data_Tech[17],_xlfn.AGGREGATE(15,6,(ROW(Data_Tech[17])-ROW(Data_Tech[[#Headers],[17]]))/(Data_Tech[[мес]:[мес]]=$J$5)/(Data_Tech[[год]:[год]]=$L$5)/(Data_Tech[[изд]:[изд]]=$N$1:$T$1)/(Data_Tech[[партия]:[партия]]=$W$1),ROW(T4))),"") -> 7 | V10: =IFERROR(INDEX(Data_Tech[18],_xlfn.AGGREGATE(15,6,(ROW(Data_Tech[18])-ROW(Data_Tech[[#Headers],[18]]))/(Data_Tech[[мес]:[мес]]=$J$5)/(Data_Tech[[год]:[год]]=$L$5)/(Data_Tech[[изд]:[изд]]=$N$1:$T$1)/(Data_Tech[[партия]:[партия]]=$W$1),ROW(U4))),"") -> 0 | W10: =IFERROR(INDEX(Data_Tech[19],_xlfn.AGGREGATE(15,6,(ROW(Data_Tech[19])-ROW(Data_Tech[[#Headers],[19]]))/(Data_Tech[[мес]:[мес]]=$J$5)/(Data_Tech[[год]:[год]]=$L$5)/(Data_Tech[[изд]:[изд]]=$N$1:$T$1)/(Data_Tech[[партия]:[партия]]=$W$1),ROW(V4))),"") -> 8 | X10: =IFERROR(INDEX(Data_Tech[20],_xlfn.AGGREGATE(15,6,(ROW(Data_Tech[20])-ROW(Data_Tech[[#Headers],[20]]))/(Data_Tech[[мес]:[мес]]=$J$5)/(Data_Tech[[год]:[год]]=$L$5)/(Data_Tech[[изд]:[изд]]=$N$1:$T$1)/(Data_Tech[[партия]:[партия]]=$W$1),ROW(W4))),"") -> 0 | Y10: =IFERROR(INDEX(Data_Tech[21],_xlfn.AGGREGATE(15,6,(ROW(Data_Tech[21])-ROW(Data_Tech[[#Headers],[21]]))/(Data_Tech[[мес]:[мес]]=$J$5)/(Data_Tech[[год]:[год]]=$L$5)/(Data_Tech[[изд]:[изд]]=$N$1:$T$1)/(Data_Tech[[партия]:[партия]]=$W$1),ROW(X4))),"") -> 0 | Z10: =IFERROR(INDEX(Data_Tech[22],_xlfn.AGGREGATE(15,6,(ROW(Data_Tech[22])-ROW(Data_Tech[[#Headers],[22]]))/(Data_Tech[[мес]:[мес]]=$J$5)/(Data_Tech[[год]:[год]]=$L$5)/(Data_Tech[[изд]:[изд]]=$N$1:$T$1)/(Data_Tech[[партия]:[партия]]=$W$1),ROW(Y4))),"") -> 0 | AA10: =IFERROR(INDEX(Data_Tech[23],_xlfn.AGGREGATE(15,6,(ROW(Data_Tech[23])-ROW(Data_Tech[[#Headers],[23]]))/(Data_Tech[[мес]:[мес]]=$J$5)/(Data_Tech[[год]:[год]]=$L$5)/(Data_Tech[[изд]:[изд]]=$N$1:$T$1)/(Data_Tech[[партия]:[партия]]=$W$1),ROW(Z4))),"") -> 0 | AB10: =IFERROR(INDEX(Data_Tech[24],_xlfn.AGGREGATE(15,6,(ROW(Data_Tech[24])-ROW(Data_Tech[[#Headers],[24]]))/(Data_Tech[[мес]:[мес]]=$J$5)/(Data_Tech[[год]:[год]]=$L$5)/(Data_Tech[[изд]:[изд]]=$N$1:$T$1)/(Data_Tech[[партия]:[партия]]=$W$1),ROW(AA4))),"") -> 0 | AC10: =IFERROR(INDEX(Data_Tech[25],_xlfn.AGGREGATE(15,6,(ROW(Data_Tech[25])-ROW(Data_Tech[[#Headers],[25]]))/(Data_Tech[[мес]:[мес]]=$J$5)/(Data_Tech[[год]:[год]]=$L$5)/(Data_Tech[[изд]:[изд]]=$N$1:$T$1)/(Data_Tech[[партия]:[партия]]=$W$1),ROW(AB4))),"") -> 0 | AD10: =IFERROR(INDEX(Data_Tech[26],_xlfn.AGGREGATE(15,6,(ROW(Data_Tech[26])-ROW(Data_Tech[[#Headers],[26]]))/(Data_Tech[[мес]:[мес]]=$J$5)/(Data_Tech[[год]:[год]]=$L$5)/(Data_Tech[[изд]:[изд]]=$N$1:$T$1)/(Data_Tech[[партия]:[партия]]=$W$1),ROW(AC4))),"") -> 0 | AE10: =IFERROR(INDEX(Data_Tech[27],_xlfn.AGGREGATE(15,6,(ROW(Data_Tech[27])-ROW(Data_Tech[[#Headers],[27]]))/(Data_Tech[[мес]:[мес]]=$J$5)/(Data_Tech[[год]:[год]]=$L$5)/(Data_Tech[[изд]:[изд]]=$N$1:$T$1)/(Data_Tech[[партия]:[партия]]=$W$1),ROW(AD4))),"") -> 0 | AF10: =IFERROR(INDEX(Data_Tech[28],_xlfn.AGGREGATE(15,6,(ROW(Data_Tech[28])-ROW(Data_Tech[[#Headers],[28]]))/(Data_Tech[[мес]:[мес]]=$J$5)/(Data_Tech[[год]:[год]]=$L$5)/(Data_Tech[[изд]:[изд]]=$N$1:$T$1)/(Data_Tech[[партия]:[партия]]=$W$1),ROW(AE4))),"") -> 0 | AG10: =IFERROR(INDEX(Data_Tech[29],_xlfn.AGGREGATE(15,6,(ROW(Data_Tech[29])-ROW(Data_Tech[[#Headers],[29]]))/(Data_Tech[[мес]:[мес]]=$J$5)/(Data_Tech[[год]:[год]]=$L$5)/(Data_Tech[[изд]:[изд]]=$N$1:$T$1)/(Data_Tech[[партия]:[партия]]=$W$1),ROW(AF4))),"") -> 0 | AH10: =IFERROR(INDEX(Data_Tech[30],_xlfn.AGGREGATE(15,6,(ROW(Data_Tech[30])-ROW(Data_Tech[[#Headers],[30]]))/(Data_Tech[[мес]:[мес]]=$J$5)/(Data_Tech[[год]:[год]]=$L$5)/(Data_Tech[[изд]:[изд]]=$N$1:$T$1)/(Data_Tech[[партия]:[партия]]=$W$1),ROW(AG4))),"") -> 0 | AI10: =IFERROR(INDEX(Data_Tech[31],_xlfn.AGGREGATE(15,6,(ROW(Data_Tech[31])-ROW(Data_Tech[[#Headers],[31]]))/(Data_Tech[[мес]:[мес]]=$J$5)/(Data_Tech[[год]:[год]]=$L$5)/(Data_Tech[[изд]:[изд]]=$N$1:$T$1)/(Data_Tech[[партия]:[партия]]=$W$1),ROW(AH4))),"") -> 0 | AJ10: 79
A11: 5 | B11: =IFERROR(INDEX(Data_Tech[коэф],_xlfn.AGGREGATE(15,6,(ROW(Data_Tech[коэф])-ROW(Data_Tech[[#Headers],[коэф]]))/(Data_Tech[[мес]:[мес]]=$J$5)/(Data_Tech[[год]:[год]]=$L$5)/(Data_Tech[[изд]:[изд]]=$N$1)/(Data_Tech[[партия]:[партия]]=$W$1),ROW(A5))),"") -> 1,4 | C11: =IFERROR(INDEX(Data_Tech[Ф. И. О.],_xlfn.AGGREGATE(15,6,(ROW(Data_Tech[Ф. И. О.])-ROW(Data_Tech[[#Headers],[Ф. И. О.]]))/(Data_Tech[[мес]:[мес]]=$J$5)/(Data_Tech[[год]:[год]]=$L$5)/(Data_Tech[[изд]:[изд]]=$N$1)/(Data_Tech[[партия]:[партия]]=$W$1),ROW(B5))),"") -> Оленева Анна Викторовна | D11: =IFERROR(INDEX(Data_Tech[р/р],_xlfn.AGGREGATE(15,6,(ROW(Data_Tech[р/р])-ROW(Data_Tech[[#Headers],[р/р]]))/(Data_Tech[[мес]:[мес]]=$J$5)/(Data_Tech[[год]:[год]]=$L$5)/(Data_Tech[[изд]:[изд]]=$N$1)/(Data_Tech[[партия]:[партия]]=$W$1),ROW(C5))),"") -> 3/2 | E11: =IFERROR(INDEX(Data_Tech[1],_xlfn.AGGREGATE(15,6,(ROW(Data_Tech[1])-ROW(Data_Tech[[#Headers],[1]]))/(Data_Tech[[мес]:[мес]]=$J$5)/(Data_Tech[[год]:[год]]=$L$5)/(Data_Tech[[изд]:[изд]]=$N$1:$T$1)/(Data_Tech[[партия]:[партия]]=$W$1),ROW(D5))),"") -> 0 | F11: =IFERROR(INDEX(Data_Tech[2],_xlfn.AGGREGATE(15,6,(ROW(Data_Tech[2])-ROW(Data_Tech[[#Headers],[2]]))/(Data_Tech[[мес]:[мес]]=$J$5)/(Data_Tech[[год]:[год]]=$L$5)/(Data_Tech[[изд]:[изд]]=$N$1:$T$1)/(Data_Tech[[партия]:[партия]]=$W$1),ROW(E5))),"") -> 0 | G11: =IFERROR(INDEX(Data_Tech[3],_xlfn.AGGREGATE(15,6,(ROW(Data_Tech[3])-ROW(Data_Tech[[#Headers],[3]]))/(Data_Tech[[мес]:[мес]]=$J$5)/(Data_Tech[[год]:[год]]=$L$5)/(Data_Tech[[изд]:[изд]]=$N$1:$T$1)/(Data_Tech[[партия]:[партия]]=$W$1),ROW(F5))),"") -> 0 | H11: =IFERROR(INDEX(Data_Tech[4],_xlfn.AGGREGATE(15,6,(ROW(Data_Tech[4])-ROW(Data_Tech[[#Headers],[4]]))/(Data_Tech[[мес]:[мес]]=$J$5)/(Data_Tech[[год]:[год]]=$L$5)/(Data_Tech[[изд]:[изд]]=$N$1:$T$1)/(Data_Tech[[партия]:[партия]]=$W$1),ROW(G5))),"") -> 0 | I11: =IFERROR(INDEX(Data_Tech[5],_xlfn.AGGREGATE(15,6,(ROW(Data_Tech[5])-ROW(Data_Tech[[#Headers],[5]]))/(Data_Tech[[мес]:[мес]]=$J$5)/(Data_Tech[[год]:[год]]=$L$5)/(Data_Tech[[изд]:[изд]]=$N$1:$T$1)/(Data_Tech[[партия]:[партия]]=$W$1),ROW(H5))),"") -> 0 | J11: =IFERROR(INDEX(Data_Tech[6],_xlfn.AGGREGATE(15,6,(ROW(Data_Tech[6])-ROW(Data_Tech[[#Headers],[6]]))/(Data_Tech[[мес]:[мес]]=$J$5)/(Data_Tech[[год]:[год]]=$L$5)/(Data_Tech[[изд]:[изд]]=$N$1:$T$1)/(Data_Tech[[партия]:[партия]]=$W$1),ROW(I5))),"") -> 0 | K11: =IFERROR(INDEX(Data_Tech[7],_xlfn.AGGREGATE(15,6,(ROW(Data_Tech[7])-ROW(Data_Tech[[#Headers],[7]]))/(Data_Tech[[мес]:[мес]]=$J$5)/(Data_Tech[[год]:[год]]=$L$5)/(Data_Tech[[изд]:[изд]]=$N$1:$T$1)/(Data_Tech[[партия]:[партия]]=$W$1),ROW(J5))),"") -> 0 | L11: =IFERROR(INDEX(Data_Tech[8],_xlfn.AGGREGATE(15,6,(ROW(Data_Tech[8])-ROW(Data_Tech[[#Headers],[8]]))/(Data_Tech[[мес]:[мес]]=$J$5)/(Data_Tech[[год]:[год]]=$L$5)/(Data_Tech[[изд]:[изд]]=$N$1:$T$1)/(Data_Tech[[партия]:[партия]]=$W$1),ROW(K5))),"") -> 5 | M11: =IFERROR(INDEX(Data_Tech[9],_xlfn.AGGREGATE(15,6,(ROW(Data_Tech[9])-ROW(Data_Tech[[#Headers],[9]]))/(Data_Tech[[мес]:[мес]]=$J$5)/(Data_Tech[[год]:[год]]=$L$5)/(Data_Tech[[изд]:[изд]]=$N$1:$T$1)/(Data_Tech[[партия]:[партия]]=$W$1),ROW(L5))),"") -> 6 | N11: =IFERROR(INDEX(Data_Tech[10],_xlfn.AGGREGATE(15,6,(ROW(Data_Tech[10])-ROW(Data_Tech[[#Headers],[10]]))/(Data_Tech[[мес]:[мес]]=$J$5)/(Data_Tech[[год]:[год]]=$L$5)/(Data_Tech[[изд]:[изд]]=$N$1:$T$1)/(Data_Tech[[партия]:[партия]]=$W$1),ROW(M5))),"") -> 0 | O11: =IFERROR(INDEX(Data_Tech[11],_xlfn.AGGREGATE(15,6,(ROW(Data_Tech[11])-ROW(Data_Tech[[#Headers],[11]]))/(Data_Tech[[мес]:[мес]]=$J$5)/(Data_Tech[[год]:[год]]=$L$5)/(Data_Tech[[изд]:[изд]]=$N$1:$T$1)/(Data_Tech[[партия]:[партия]]=$W$1),ROW(N5))),"") -> 0 | P11: =IFERROR(INDEX(Data_Tech[12],_xlfn.AGGREGATE(15,6,(ROW(Data_Tech[12])-ROW(Data_Tech[[#Headers],[12]]))/(Data_Tech[[мес]:[мес]]=$J$5)/(Data_Tech[[год]:[год]]=$L$5)/(Data_Tech[[изд]:[изд]]=$N$1:$T$1)/(Data_Tech[[партия]:[партия]]=$W$1),ROW(O5))),"") -> 0 | Q11: =IFERROR(INDEX(Data_Tech[13],_xlfn.AGGREGATE(15,6,(ROW(Data_Tech[13])-ROW(Data_Tech[[#Headers],[13]]))/(Data_Tech[[мес]:[мес]]=$J$5)/(Data_Tech[[год]:[год]]=$L$5)/(Data_Tech[[изд]:[изд]]=$N$1:$T$1)/(Data_Tech[[партия]:[партия]]=$W$1),ROW(P5))),"") -> 0 | R11: =IFERROR(INDEX(Data_Tech[14],_xlfn.AGGREGATE(15,6,(ROW(Data_Tech[14])-ROW(Data_Tech[[#Headers],[14]]))/(Data_Tech[[мес]:[мес]]=$J$5)/(Data_Tech[[год]:[год]]=$L$5)/(Data_Tech[[изд]:[изд]]=$N$1:$T$1)/(Data_Tech[[партия]:[партия]]=$W$1),ROW(Q5))),"") -> 0 | S11: =IFERROR(INDEX(Data_Tech[15],_xlfn.AGGREGATE(15,6,(ROW(Data_Tech[15])-ROW(Data_Tech[[#Headers],[15]]))/(Data_Tech[[мес]:[мес]]=$J$5)/(Data_Tech[[год]:[год]]=$L$5)/(Data_Tech[[изд]:[изд]]=$N$1:$T$1)/(Data_Tech[[партия]:[партия]]=$W$1),ROW(R5))),"") -> 0 | T11: =IFERROR(INDEX(Data_Tech[16],_xlfn.AGGREGATE(15,6,(ROW(Data_Tech[16])-ROW(Data_Tech[[#Headers],[16]]))/(Data_Tech[[мес]:[мес]]=$J$5)/(Data_Tech[[год]:[год]]=$L$5)/(Data_Tech[[изд]:[изд]]=$N$1:$T$1)/(Data_Tech[[партия]:[партия]]=$W$1),ROW(S5))),"") -> 0 | U11: =IFERROR(INDEX(Data_Tech[17],_xlfn.AGGREGATE(15,6,(ROW(Data_Tech[17])-ROW(Data_Tech[[#Headers],[17]]))/(Data_Tech[[мес]:[мес]]=$J$5)/(Data_Tech[[год]:[год]]=$L$5)/(Data_Tech[[изд]:[изд]]=$N$1:$T$1)/(Data_Tech[[партия]:[партия]]=$W$1),ROW(T5))),"") -> 0 | V11: =IFERROR(INDEX(Data_Tech[18],_xlfn.AGGREGATE(15,6,(ROW(Data_Tech[18])-ROW(Data_Tech[[#Headers],[18]]))/(Data_Tech[[мес]:[мес]]=$J$5)/(Data_Tech[[год]:[год]]=$L$5)/(Data_Tech[[изд]:[изд]]=$N$1:$T$1)/(Data_Tech[[партия]:[партия]]=$W$1),ROW(U5))),"") -> 0 | W11: =IFERROR(INDEX(Data_Tech[19],_xlfn.AGGREGATE(15,6,(ROW(Data_Tech[19])-ROW(Data_Tech[[#Headers],[19]]))/(Data_Tech[[мес]:[мес]]=$J$5)/(Data_Tech[[год]:[год]]=$L$5)/(Data_Tech[[изд]:[изд]]=$N$1:$T$1)/(Data_Tech[[партия]:[партия]]=$W$1),ROW(V5))),"") -> 0 | X11: =IFERROR(INDEX(Data_Tech[20],_xlfn.AGGREGATE(15,6,(ROW(Data_Tech[20])-ROW(Data_Tech[[#Headers],[20]]))/(Data_Tech[[мес]:[мес]]=$J$5)/(Data_Tech[[год]:[год]]=$L$5)/(Data_Tech[[изд]:[изд]]=$N$1:$T$1)/(Data_Tech[[партия]:[партия]]=$W$1),ROW(W5))),"") -> 0 | Y11: =IFERROR(INDEX(Data_Tech[21],_xlfn.AGGREGATE(15,6,(ROW(Data_Tech[21])-ROW(Data_Tech[[#Headers],[21]]))/(Data_Tech[[мес]:[мес]]=$J$5)/(Data_Tech[[год]:[год]]=$L$5)/(Data_Tech[[изд]:[изд]]=$N$1:$T$1)/(Data_Tech[[партия]:[партия]]=$W$1),ROW(X5))),"") -> 0 | Z11: =IFERROR(INDEX(Data_Tech[22],_xlfn.AGGREGATE(15,6,(ROW(Data_Tech[22])-ROW(Data_Tech[[#Headers],[22]]))/(Data_Tech[[мес]:[мес]]=$J$5)/(Data_Tech[[год]:[год]]=$L$5)/(Data_Tech[[изд]:[изд]]=$N$1:$T$1)/(Data_Tech[[партия]:[партия]]=$W$1),ROW(Y5))),"") -> 0 | AA11: =IFERROR(INDEX(Data_Tech[23],_xlfn.AGGREGATE(15,6,(ROW(Data_Tech[23])-ROW(Data_Tech[[#Headers],[23]]))/(Data_Tech[[мес]:[мес]]=$J$5)/(Data_Tech[[год]:[год]]=$L$5)/(Data_Tech[[изд]:[изд]]=$N$1:$T$1)/(Data_Tech[[партия]:[партия]]=$W$1),ROW(Z5))),"") -> 0 | AB11: =IFERROR(INDEX(Data_Tech[24],_xlfn.AGGREGATE(15,6,(ROW(Data_Tech[24])-ROW(Data_Tech[[#Headers],[24]]))/(Data_Tech[[мес]:[мес]]=$J$5)/(Data_Tech[[год]:[год]]=$L$5)/(Data_Tech[[изд]:[изд]]=$N$1:$T$1)/(Data_Tech[[партия]:[партия]]=$W$1),ROW(AA5))),"") -> 0 | AC11: =IFERROR(INDEX(Data_Tech[25],_xlfn.AGGREGATE(15,6,(ROW(Data_Tech[25])-ROW(Data_Tech[[#Headers],[25]]))/(Data_Tech[[мес]:[мес]]=$J$5)/(Data_Tech[[год]:[год]]=$L$5)/(Data_Tech[[изд]:[изд]]=$N$1:$T$1)/(Data_Tech[[партия]:[партия]]=$W$1),ROW(AB5))),"") -> 0 | AD11: =IFERROR(INDEX(Data_Tech[26],_xlfn.AGGREGATE(15,6,(ROW(Data_Tech[26])-ROW(Data_Tech[[#Headers],[26]]))/(Data_Tech[[мес]:[мес]]=$J$5)/(Data_Tech[[год]:[год]]=$L$5)/(Data_Tech[[изд]:[изд]]=$N$1:$T$1)/(Data_Tech[[партия]:[партия]]=$W$1),ROW(AC5))),"") -> 0 | AE11: =IFERROR(INDEX(Data_Tech[27],_xlfn.AGGREGATE(15,6,(ROW(Data_Tech[27])-ROW(Data_Tech[[#Headers],[27]]))/(Data_Tech[[мес]:[мес]]=$J$5)/(Data_Tech[[год]:[год]]=$L$5)/(Data_Tech[[изд]:[изд]]=$N$1:$T$1)/(Data_Tech[[партия]:[партия]]=$W$1),ROW(AD5))),"") -> 0 | AF11: =IFERROR(INDEX(Data_Tech[28],_xlfn.AGGREGATE(15,6,(ROW(Data_Tech[28])-ROW(Data_Tech[[#Headers],[28]]))/(Data_Tech[[мес]:[мес]]=$J$5)/(Data_Tech[[год]:[год]]=$L$5)/(Data_Tech[[изд]:[изд]]=$N$1:$T$1)/(Data_Tech[[партия]:[партия]]=$W$1),ROW(AE5))),"") -> 0 | AG11: =IFERROR(INDEX(Data_Tech[29],_xlfn.AGGREGATE(15,6,(ROW(Data_Tech[29])-ROW(Data_Tech[[#Headers],[29]]))/(Data_Tech[[мес]:[мес]]=$J$5)/(Data_Tech[[год]:[год]]=$L$5)/(Data_Tech[[изд]:[изд]]=$N$1:$T$1)/(Data_Tech[[партия]:[партия]]=$W$1),ROW(AF5))),"") -> 0 | AH11: =IFERROR(INDEX(Data_Tech[30],_xlfn.AGGREGATE(15,6,(ROW(Data_Tech[30])-ROW(Data_Tech[[#Headers],[30]]))/(Data_Tech[[мес]:[мес]]=$J$5)/(Data_Tech[[год]:[год]]=$L$5)/(Data_Tech[[изд]:[изд]]=$N$1:$T$1)/(Data_Tech[[партия]:[партия]]=$W$1),ROW(AG5))),"") -> 0 | AI11: =IFERROR(INDEX(Data_Tech[31],_xlfn.AGGREGATE(15,6,(ROW(Data_Tech[31])-ROW(Data_Tech[[#Headers],[31]]))/(Data_Tech[[мес]:[мес]]=$J$5)/(Data_Tech[[год]:[год]]=$L$5)/(Data_Tech[[изд]:[изд]]=$N$1:$T$1)/(Data_Tech[[партия]:[партия]]=$W$1),ROW(AH5))),"") -> 0 | AJ11: 11
A12: 6 | B12: =IFERROR(INDEX(Data_Tech[коэф],_xlfn.AGGREGATE(15,6,(ROW(Data_Tech[коэф])-ROW(Data_Tech[[#Headers],[коэф]]))/(Data_Tech[[мес]:[мес]]=$J$5)/(Data_Tech[[год]:[год]]=$L$5)/(Data_Tech[[изд]:[изд]]=$N$1)/(Data_Tech[[партия]:[партия]]=$W$1),ROW(A6))),"") -> 1,4 | C12: =IFERROR(INDEX(Data_Tech[Ф. И. О.],_xlfn.AGGREGATE(15,6,(ROW(Data_Tech[Ф. И. О.])-ROW(Data_Tech[[#Headers],[Ф. И. О.]]))/(Data_Tech[[мес]:[мес]]=$J$5)/(Data_Tech[[год]:[год]]=$L$5)/(Data_Tech[[изд]:[изд]]=$N$1)/(Data_Tech[[партия]:[партия]]=$W$1),ROW(B6))),"") -> Борода Ирина Борисовна | D12: =IFERROR(INDEX(Data_Tech[р/р],_xlfn.AGGREGATE(15,6,(ROW(Data_Tech[р/р])-ROW(Data_Tech[[#Headers],[р/р]]))/(Data_Tech[[мес]:[мес]]=$J$5)/(Data_Tech[[год]:[год]]=$L$5)/(Data_Tech[[изд]:[изд]]=$N$1)/(Data_Tech[[партия]:[партия]]=$W$1),ROW(C6))),"") -> 2а | E12: =IFERROR(INDEX(Data_Tech[1],_xlfn.AGGREGATE(15,6,(ROW(Data_Tech[1])-ROW(Data_Tech[[#Headers],[1]]))/(Data_Tech[[мес]:[мес]]=$J$5)/(Data_Tech[[год]:[год]]=$L$5)/(Data_Tech[[изд]:[изд]]=$N$1:$T$1)/(Data_Tech[[партия]:[партия]]=$W$1),ROW(D6))),"") -> 0 | F12: =IFERROR(INDEX(Data_Tech[2],_xlfn.AGGREGATE(15,6,(ROW(Data_Tech[2])-ROW(Data_Tech[[#Headers],[2]]))/(Data_Tech[[мес]:[мес]]=$J$5)/(Data_Tech[[год]:[год]]=$L$5)/(Data_Tech[[изд]:[изд]]=$N$1:$T$1)/(Data_Tech[[партия]:[партия]]=$W$1),ROW(E6))),"") -> 0 | G12: =IFERROR(INDEX(Data_Tech[3],_xlfn.AGGREGATE(15,6,(ROW(Data_Tech[3])-ROW(Data_Tech[[#Headers],[3]]))/(Data_Tech[[мес]:[мес]]=$J$5)/(Data_Tech[[год]:[год]]=$L$5)/(Data_Tech[[изд]:[изд]]=$N$1:$T$1)/(Data_Tech[[партия]:[партия]]=$W$1),ROW(F6))),"") -> 0 | H12: =IFERROR(INDEX(Data_Tech[4],_xlfn.AGGREGATE(15,6,(ROW(Data_Tech[4])-ROW(Data_Tech[[#Headers],[4]]))/(Data_Tech[[мес]:[мес]]=$J$5)/(Data_Tech[[год]:[год]]=$L$5)/(Data_Tech[[изд]:[изд]]=$N$1:$T$1)/(Data_Tech[[партия]:[партия]]=$W$1),ROW(G6))),"") -> 0 | I12: =IFERROR(INDEX(Data_Tech[5],_xlfn.AGGREGATE(15,6,(ROW(Data_Tech[5])-ROW(Data_Tech[[#Headers],[5]]))/(Data_Tech[[мес]:[мес]]=$J$5)/(Data_Tech[[год]:[год]]=$L$5)/(Data_Tech[[изд]:[изд]]=$N$1:$T$1)/(Data_Tech[[партия]:[партия]]=$W$1),ROW(H6))),"") -> 0 | J12: =IFERROR(INDEX(Data_Tech[6],_xlfn.AGGREGATE(15,6,(ROW(Data_Tech[6])-ROW(Data_Tech[[#Headers],[6]]))/(Data_Tech[[мес]:[мес]]=$J$5)/(Data_Tech[[год]:[год]]=$L$5)/(Data_Tech[[изд]:[изд]]=$N$1:$T$1)/(Data_Tech[[партия]:[партия]]=$W$1),ROW(I6))),"") -> 0 | K12: =IFERROR(INDEX(Data_Tech[7],_xlfn.AGGREGATE(15,6,(ROW(Data_Tech[7])-ROW(Data_Tech[[#Headers],[7]]))/(Data_Tech[[мес]:[мес]]=$J$5)/(Data_Tech[[год]:[год]]=$L$5)/(Data_Tech[[изд]:[изд]]=$N$1:$T$1)/(Data_Tech[[партия]:[партия]]=$W$1),ROW(J6))),"") -> 0 | L12: =IFERROR(INDEX(Data_Tech[8],_xlfn.AGGREGATE(15,6,(ROW(Data_Tech[8])-ROW(Data_Tech[[#Headers],[8]]))/(Data_Tech[[мес]:[мес]]=$J$5)/(Data_Tech[[год]:[год]]=$L$5)/(Data_Tech[[изд]:[изд]]=$N$1:$T$1)/(Data_Tech[[партия]:[партия]]=$W$1),ROW(K6))),"") -> 0 | M12: =IFERROR(INDEX(Data_Tech[9],_xlfn.AGGREGATE(15,6,(ROW(Data_Tech[9])-ROW(Data_Tech[[#Headers],[9]]))/(Data_Tech[[мес]:[мес]]=$J$5)/(Data_Tech[[год]:[год]]=$L$5)/(Data_Tech[[изд]:[изд]]=$N$1:$T$1)/(Data_Tech[[партия]:[партия]]=$W$1),ROW(L6))),"") -> 6 | N12: =IFERROR(INDEX(Data_Tech[10],_xlfn.AGGREGATE(15,6,(ROW(Data_Tech[10])-ROW(Data_Tech[[#Headers],[10]]))/(Data_Tech[[мес]:[мес]]=$J$5)/(Data_Tech[[год]:[год]]=$L$5)/(Data_Tech[[изд]:[изд]]=$N$1:$T$1)/(Data_Tech[[партия]:[партия]]=$W$1),ROW(M6))),"") -> 0 | O12: =IFERROR(INDEX(Data_Tech[11],_xlfn.AGGREGATE(15,6,(ROW(Data_Tech[11])-ROW(Data_Tech[[#Headers],[11]]))/(Data_Tech[[мес]:[мес]]=$J$5)/(Data_Tech[[год]:[год]]=$L$5)/(Data_Tech[[изд]:[изд]]=$N$1:$T$1)/(Data_Tech[[партия]:[партия]]=$W$1),ROW(N6))),"") -> 0 | P12: =IFERROR(INDEX(Data_Tech[12],_xlfn.AGGREGATE(15,6,(ROW(Data_Tech[12])-ROW(Data_Tech[[#Headers],[12]]))/(Data_Tech[[мес]:[мес]]=$J$5)/(Data_Tech[[год]:[год]]=$L$5)/(Data_Tech[[изд]:[изд]]=$N$1:$T$1)/(Data_Tech[[партия]:[партия]]=$W$1),ROW(O6))),"") -> 0 | Q12: =IFERROR(INDEX(Data_Tech[13],_xlfn.AGGREGATE(15,6,(ROW(Data_Tech[13])-ROW(Data_Tech[[#Headers],[13]]))/(Data_Tech[[мес]:[мес]]=$J$5)/(Data_Tech[[год]:[год]]=$L$5)/(Data_Tech[[изд]:[изд]]=$N$1:$T$1)/(Data_Tech[[партия]:[партия]]=$W$1),ROW(P6))),"") -> 0 | R12: =IFERROR(INDEX(Data_Tech[14],_xlfn.AGGREGATE(15,6,(ROW(Data_Tech[14])-ROW(Data_Tech[[#Headers],[14]]))/(Data_Tech[[мес]:[мес]]=$J$5)/(Data_Tech[[год]:[год]]=$L$5)/(Data_Tech[[изд]:[изд]]=$N$1:$T$1)/(Data_Tech[[партия]:[партия]]=$W$1),ROW(Q6))),"") -> 0 | S12: =IFERROR(INDEX(Data_Tech[15],_xlfn.AGGREGATE(15,6,(ROW(Data_Tech[15])-ROW(Data_Tech[[#Headers],[15]]))/(Data_Tech[[мес]:[мес]]=$J$5)/(Data_Tech[[год]:[год]]=$L$5)/(Data_Tech[[изд]:[изд]]=$N$1:$T$1)/(Data_Tech[[партия]:[партия]]=$W$1),ROW(R6))),"") -> 0 | T12: =IFERROR(INDEX(Data_Tech[16],_xlfn.AGGREGATE(15,6,(ROW(Data_Tech[16])-ROW(Data_Tech[[#Headers],[16]]))/(Data_Tech[[мес]:[мес]]=$J$5)/(Data_Tech[[год]:[год]]=$L$5)/(Data_Tech[[изд]:[изд]]=$N$1:$T$1)/(Data_Tech[[партия]:[партия]]=$W$1),ROW(S6))),"") -> 0 | U12: =IFERROR(INDEX(Data_Tech[17],_xlfn.AGGREGATE(15,6,(ROW(Data_Tech[17])-ROW(Data_Tech[[#Headers],[17]]))/(Data_Tech[[мес]:[мес]]=$J$5)/(Data_Tech[[год]:[год]]=$L$5)/(Data_Tech[[изд]:[изд]]=$N$1:$T$1)/(Data_Tech[[партия]:[партия]]=$W$1),ROW(T6))),"") -> 0 | V12: =IFERROR(INDEX(Data_Tech[18],_xlfn.AGGREGATE(15,6,(ROW(Data_Tech[18])-ROW(Data_Tech[[#Headers],[18]]))/(Data_Tech[[мес]:[мес]]=$J$5)/(Data_Tech[[год]:[год]]=$L$5)/(Data_Tech[[изд]:[изд]]=$N$1:$T$1)/(Data_Tech[[партия]:[партия]]=$W$1),ROW(U6))),"") -> 0 | W12: =IFERROR(INDEX(Data_Tech[19],_xlfn.AGGREGATE(15,6,(ROW(Data_Tech[19])-ROW(Data_Tech[[#Headers],[19]]))/(Data_Tech[[мес]:[мес]]=$J$5)/(Data_Tech[[год]:[год]]=$L$5)/(Data_Tech[[изд]:[изд]]=$N$1:$T$1)/(Data_Tech[[партия]:[партия]]=$W$1),ROW(V6))),"") -> 0 | X12: =IFERROR(INDEX(Data_Tech[20],_xlfn.AGGREGATE(15,6,(ROW(Data_Tech[20])-ROW(Data_Tech[[#Headers],[20]]))/(Data_Tech[[мес]:[мес]]=$J$5)/(Data_Tech[[год]:[год]]=$L$5)/(Data_Tech[[изд]:[изд]]=$N$1:$T$1)/(Data_Tech[[партия]:[партия]]=$W$1),ROW(W6))),"") -> 0 | Y12: =IFERROR(INDEX(Data_Tech[21],_xlfn.AGGREGATE(15,6,(ROW(Data_Tech[21])-ROW(Data_Tech[[#Headers],[21]]))/(Data_Tech[[мес]:[мес]]=$J$5)/(Data_Tech[[год]:[год]]=$L$5)/(Data_Tech[[изд]:[изд]]=$N$1:$T$1)/(Data_Tech[[партия]:[партия]]=$W$1),ROW(X6))),"") -> 4 | Z12: =IFERROR(INDEX(Data_Tech[22],_xlfn.AGGREGATE(15,6,(ROW(Data_Tech[22])-ROW(Data_Tech[[#Headers],[22]]))/(Data_Tech[[мес]:[мес]]=$J$5)/(Data_Tech[[год]:[год]]=$L$5)/(Data_Tech[[изд]:[изд]]=$N$1:$T$1)/(Data_Tech[[партия]:[партия]]=$W$1),ROW(Y6))),"") -> 0 | AA12: =IFERROR(INDEX(Data_Tech[23],_xlfn.AGGREGATE(15,6,(ROW(Data_Tech[23])-ROW(Data_Tech[[#Headers],[23]]))/(Data_Tech[[мес]:[мес]]=$J$5)/(Data_Tech[[год]:[год]]=$L$5)/(Data_Tech[[изд]:[изд]]=$N$1:$T$1)/(Data_Tech[[партия]:[партия]]=$W$1),ROW(Z6))),"") -> 0 | AB12: =IFERROR(INDEX(Data_Tech[24],_xlfn.AGGREGATE(15,6,(ROW(Data_Tech[24])-ROW(Data_Tech[[#Headers],[24]]))/(Data_Tech[[мес]:[мес]]=$J$5)/(Data_Tech[[год]:[год]]=$L$5)/(Data_Tech[[изд]:[изд]]=$N$1:$T$1)/(Data_Tech[[партия]:[партия]]=$W$1),ROW(AA6))),"") -> 0 | AC12: =IFERROR(INDEX(Data_Tech[25],_xlfn.AGGREGATE(15,6,(ROW(Data_Tech[25])-ROW(Data_Tech[[#Headers],[25]]))/(Data_Tech[[мес]:[мес]]=$J$5)/(Data_Tech[[год]:[год]]=$L$5)/(Data_Tech[[изд]:[изд]]=$N$1:$T$1)/(Data_Tech[[партия]:[партия]]=$W$1),ROW(AB6))),"") -> 0 | AD12: =IFERROR(INDEX(Data_Tech[26],_xlfn.AGGREGATE(15,6,(ROW(Data_Tech[26])-ROW(Data_Tech[[#Headers],[26]]))/(Data_Tech[[мес]:[мес]]=$J$5)/(Data_Tech[[год]:[год]]=$L$5)/(Data_Tech[[изд]:[изд]]=$N$1:$T$1)/(Data_Tech[[партия]:[партия]]=$W$1),ROW(AC6))),"") -> 0 | AE12: =IFERROR(INDEX(Data_Tech[27],_xlfn.AGGREGATE(15,6,(ROW(Data_Tech[27])-ROW(Data_Tech[[#Headers],[27]]))/(Data_Tech[[мес]:[мес]]=$J$5)/(Data_Tech[[год]:[год]]=$L$5)/(Data_Tech[[изд]:[изд]]=$N$1:$T$1)/(Data_Tech[[партия]:[партия]]=$W$1),ROW(AD6))),"") -> 8 | AF12: =IFERROR(INDEX(Data_Tech[28],_xlfn.AGGREGATE(15,6,(ROW(Data_Tech[28])-ROW(Data_Tech[[#Headers],[28]]))/(Data_Tech[[мес]:[мес]]=$J$5)/(Data_Tech[[год]:[год]]=$L$5)/(Data_Tech[[изд]:[изд]]=$N$1:$T$1)/(Data_Tech[[партия]:[партия]]=$W$1),ROW(AE6))),"") -> 0 | AG12: =IFERROR(INDEX(Data_Tech[29],_xlfn.AGGREGATE(15,6,(ROW(Data_Tech[29])-ROW(Data_Tech[[#Headers],[29]]))/(Data_Tech[[мес]:[мес]]=$J$5)/(Data_Tech[[год]:[год]]=$L$5)/(Data_Tech[[изд]:[изд]]=$N$1:$T$1)/(Data_Tech[[партия]:[партия]]=$W$1),ROW(AF6))),"") -> 0 | AH12: =IFERROR(INDEX(Data_Tech[30],_xlfn.AGGREGATE(15,6,(ROW(Data_Tech[30])-ROW(Data_Tech[[#Headers],[30]]))/(Data_Tech[[мес]:[мес]]=$J$5)/(Data_Tech[[год]:[год]]=$L$5)/(Data_Tech[[изд]:[изд]]=$N$1:$T$1)/(Data_Tech[[партия]:[партия]]=$W$1),ROW(AG6))),"") -> 8 | AI12: =IFERROR(INDEX(Data_Tech[31],_xlfn.AGGREGATE(15,6,(ROW(Data_Tech[31])-ROW(Data_Tech[[#Headers],[31]]))/(Data_Tech[[мес]:[мес]]=$J$5)/(Data_Tech[[год]:[год]]=$L$5)/(Data_Tech[[изд]:[изд]]=$N$1:$T$1)/(Data_Tech[[партия]:[партия]]=$W$1),ROW(AH6))),"") -> 0 | AJ12: 26
A13: 7 | B13: =IFERROR(INDEX(Data_Tech[коэф],_xlfn.AGGREGATE(15,6,(ROW(Data_Tech[коэф])-ROW(Data_Tech[[#Headers],[коэф]]))/(Data_Tech[[мес]:[мес]]=$J$5)/(Data_Tech[[год]:[год]]=$L$5)/(Data_Tech[[изд]:[изд]]=$N$1)/(Data_Tech[[партия]:[партия]]=$W$1),ROW(A7))),"") -> 1 | C13: =IFERROR(INDEX(Data_Tech[Ф. И. О.],_xlfn.AGGREGATE(15,6,(ROW(Data_Tech[Ф. И. О.])-ROW(Data_Tech[[#Headers],[Ф. И. О.]]))/(Data_Tech[[мес]:[мес]]=$J$5)/(Data_Tech[[год]:[год]]=$L$5)/(Data_Tech[[изд]:[изд]]=$N$1)/(Data_Tech[[партия]:[партия]]=$W$1),ROW(B7))),"") -> Хан Наталия Григорьевна | D13: =IFERROR(INDEX(Data_Tech[р/р],_xlfn.AGGREGATE(15,6,(ROW(Data_Tech[р/р])-ROW(Data_Tech[[#Headers],[р/р]]))/(Data_Tech[[мес]:[мес]]=$J$5)/(Data_Tech[[год]:[год]]=$L$5)/(Data_Tech[[изд]:[изд]]=$N$1)/(Data_Tech[[партия]:[партия]]=$W$1),ROW(C7))),"") -> 3/2 | E13: =IFERROR(INDEX(Data_Tech[1],_xlfn.AGGREGATE(15,6,(ROW(Data_Tech[1])-ROW(Data_Tech[[#Headers],[1]]))/(Data_Tech[[мес]:[мес]]=$J$5)/(Data_Tech[[год]:[год]]=$L$5)/(Data_Tech[[изд]:[изд]]=$N$1:$T$1)/(Data_Tech[[партия]:[партия]]=$W$1),ROW(D7))),"") -> 0 | F13: =IFERROR(INDEX(Data_Tech[2],_xlfn.AGGREGATE(15,6,(ROW(Data_Tech[2])-ROW(Data_Tech[[#Headers],[2]]))/(Data_Tech[[мес]:[мес]]=$J$5)/(Data_Tech[[год]:[год]]=$L$5)/(Data_Tech[[изд]:[изд]]=$N$1:$T$1)/(Data_Tech[[партия]:[партия]]=$W$1),ROW(E7))),"") -> 0 | G13: =IFERROR(INDEX(Data_Tech[3],_xlfn.AGGREGATE(15,6,(ROW(Data_Tech[3])-ROW(Data_Tech[[#Headers],[3]]))/(Data_Tech[[мес]:[мес]]=$J$5)/(Data_Tech[[год]:[год]]=$L$5)/(Data_Tech[[изд]:[изд]]=$N$1:$T$1)/(Data_Tech[[партия]:[партия]]=$W$1),ROW(F7))),"") -> 0 | H13: =IFERROR(INDEX(Data_Tech[4],_xlfn.AGGREGATE(15,6,(ROW(Data_Tech[4])-ROW(Data_Tech[[#Headers],[4]]))/(Data_Tech[[мес]:[мес]]=$J$5)/(Data_Tech[[год]:[год]]=$L$5)/(Data_Tech[[изд]:[изд]]=$N$1:$T$1)/(Data_Tech[[партия]:[партия]]=$W$1),ROW(G7))),"") -> 0 | I13: =IFERROR(INDEX(Data_Tech[5],_xlfn.AGGREGATE(15,6,(ROW(Data_Tech[5])-ROW(Data_Tech[[#Headers],[5]]))/(Data_Tech[[мес]:[мес]]=$J$5)/(Data_Tech[[год]:[год]]=$L$5)/(Data_Tech[[изд]:[изд]]=$N$1:$T$1)/(Data_Tech[[партия]:[партия]]=$W$1),ROW(H7))),"") -> 0 | J13: =IFERROR(INDEX(Data_Tech[6],_xlfn.AGGREGATE(15,6,(ROW(Data_Tech[6])-ROW(Data_Tech[[#Headers],[6]]))/(Data_Tech[[мес]:[мес]]=$J$5)/(Data_Tech[[год]:[год]]=$L$5)/(Data_Tech[[изд]:[изд]]=$N$1:$T$1)/(Data_Tech[[партия]:[партия]]=$W$1),ROW(I7))),"") -> 0 | K13: =IFERROR(INDEX(Data_Tech[7],_xlfn.AGGREGATE(15,6,(ROW(Data_Tech[7])-ROW(Data_Tech[[#Headers],[7]]))/(Data_Tech[[мес]:[мес]]=$J$5)/(Data_Tech[[год]:[год]]=$L$5)/(Data_Tech[[изд]:[изд]]=$N$1:$T$1)/(Data_Tech[[партия]:[партия]]=$W$1),ROW(J7))),"") -> 0 | L13: =IFERROR(INDEX(Data_Tech[8],_xlfn.AGGREGATE(15,6,(ROW(Data_Tech[8])-ROW(Data_Tech[[#Headers],[8]]))/(Data_Tech[[мес]:[мес]]=$J$5)/(Data_Tech[[год]:[год]]=$L$5)/(Data_Tech[[изд]:[изд]]=$N$1:$T$1)/(Data_Tech[[партия]:[партия]]=$W$1),ROW(K7))),"") -> 0 | M13: =IFERROR(INDEX(Data_Tech[9],_xlfn.AGGREGATE(15,6,(ROW(Data_Tech[9])-ROW(Data_Tech[[#Headers],[9]]))/(Data_Tech[[мес]:[мес]]=$J$5)/(Data_Tech[[год]:[год]]=$L$5)/(Data_Tech[[изд]:[изд]]=$N$1:$T$1)/(Data_Tech[[партия]:[партия]]=$W$1),ROW(L7))),"") -> 0 | N13: =IFERROR(INDEX(Data_Tech[10],_xlfn.AGGREGATE(15,6,(ROW(Data_Tech[10])-ROW(Data_Tech[[#Headers],[10]]))/(Data_Tech[[мес]:[мес]]=$J$5)/(Data_Tech[[год]:[год]]=$L$5)/(Data_Tech[[изд]:[изд]]=$N$1:$T$1)/(Data_Tech[[партия]:[партия]]=$W$1),ROW(M7))),"") -> 0 | O13: =IFERROR(INDEX(Data_Tech[11],_xlfn.AGGREGATE(15,6,(ROW(Data_Tech[11])-ROW(Data_Tech[[#Headers],[11]]))/(Data_Tech[[мес]:[мес]]=$J$5)/(Data_Tech[[год]:[год]]=$L$5)/(Data_Tech[[изд]:[изд]]=$N$1:$T$1)/(Data_Tech[[партия]:[партия]]=$W$1),ROW(N7))),"") -> 0 | P13: =IFERROR(INDEX(Data_Tech[12],_xlfn.AGGREGATE(15,6,(ROW(Data_Tech[12])-ROW(Data_Tech[[#Headers],[12]]))/(Data_Tech[[мес]:[мес]]=$J$5)/(Data_Tech[[год]:[год]]=$L$5)/(Data_Tech[[изд]:[изд]]=$N$1:$T$1)/(Data_Tech[[партия]:[партия]]=$W$1),ROW(O7))),"") -> 8 | Q13: =IFERROR(INDEX(Data_Tech[13],_xlfn.AGGREGATE(15,6,(ROW(Data_Tech[13])-ROW(Data_Tech[[#Headers],[13]]))/(Data_Tech[[мес]:[мес]]=$J$5)/(Data_Tech[[год]:[год]]=$L$5)/(Data_Tech[[изд]:[изд]]=$N$1:$T$1)/(Data_Tech[[партия]:[партия]]=$W$1),ROW(P7))),"") -> 0 | R13: =IFERROR(INDEX(Data_Tech[14],_xlfn.AGGREGATE(15,6,(ROW(Data_Tech[14])-ROW(Data_Tech[[#Headers],[14]]))/(Data_Tech[[мес]:[мес]]=$J$5)/(Data_Tech[[год]:[год]]=$L$5)/(Data_Tech[[изд]:[изд]]=$N$1:$T$1)/(Data_Tech[[партия]:[партия]]=$W$1),ROW(Q7))),"") -> 0 | S13: =IFERROR(INDEX(Data_Tech[15],_xlfn.AGGREGATE(15,6,(ROW(Data_Tech[15])-ROW(Data_Tech[[#Headers],[15]]))/(Data_Tech[[мес]:[мес]]=$J$5)/(Data_Tech[[год]:[год]]=$L$5)/(Data_Tech[[изд]:[изд]]=$N$1:$T$1)/(Data_Tech[[партия]:[партия]]=$W$1),ROW(R7))),"") -> 0 | T13: =IFERROR(INDEX(Data_Tech[16],_xlfn.AGGREGATE(15,6,(ROW(Data_Tech[16])-ROW(Data_Tech[[#Headers],[16]]))/(Data_Tech[[мес]:[мес]]=$J$5)/(Data_Tech[[год]:[год]]=$L$5)/(Data_Tech[[изд]:[изд]]=$N$1:$T$1)/(Data_Tech[[партия]:[партия]]=$W$1),ROW(S7))),"") -> 0 | U13: =IFERROR(INDEX(Data_Tech[17],_xlfn.AGGREGATE(15,6,(ROW(Data_Tech[17])-ROW(Data_Tech[[#Headers],[17]]))/(Data_Tech[[мес]:[мес]]=$J$5)/(Data_Tech[[год]:[год]]=$L$5)/(Data_Tech[[изд]:[изд]]=$N$1:$T$1)/(Data_Tech[[партия]:[партия]]=$W$1),ROW(T7))),"") -> 0 | V13: =IFERROR(INDEX(Data_Tech[18],_xlfn.AGGREGATE(15,6,(ROW(Data_Tech[18])-ROW(Data_Tech[[#Headers],[18]]))/(Data_Tech[[мес]:[мес]]=$J$5)/(Data_Tech[[год]:[год]]=$L$5)/(Data_Tech[[изд]:[изд]]=$N$1:$T$1)/(Data_Tech[[партия]:[партия]]=$W$1),ROW(U7))),"") -> 0 | W13: =IFERROR(INDEX(Data_Tech[19],_xlfn.AGGREGATE(15,6,(ROW(Data_Tech[19])-ROW(Data_Tech[[#Headers],[19]]))/(Data_Tech[[мес]:[мес]]=$J$5)/(Data_Tech[[год]:[год]]=$L$5)/(Data_Tech[[изд]:[изд]]=$N$1:$T$1)/(Data_Tech[[партия]:[партия]]=$W$1),ROW(V7))),"") -> 0 | X13: =IFERROR(INDEX(Data_Tech[20],_xlfn.AGGREGATE(15,6,(ROW(Data_Tech[20])-ROW(Data_Tech[[#Headers],[20]]))/(Data_Tech[[мес]:[мес]]=$J$5)/(Data_Tech[[год]:[год]]=$L$5)/(Data_Tech[[изд]:[изд]]=$N$1:$T$1)/(Data_Tech[[партия]:[партия]]=$W$1),ROW(W7))),"") -> 0 | Y13: =IFERROR(INDEX(Data_Tech[21],_xlfn.AGGREGATE(15,6,(ROW(Data_Tech[21])-ROW(Data_Tech[[#Headers],[21]]))/(Data_Tech[[мес]:[мес]]=$J$5)/(Data_Tech[[год]:[год]]=$L$5)/(Data_Tech[[изд]:[изд]]=$N$1:$T$1)/(Data_Tech[[партия]:[партия]]=$W$1),ROW(X7))),"") -> 0 | Z13: =IFERROR(INDEX(Data_Tech[22],_xlfn.AGGREGATE(15,6,(ROW(Data_Tech[22])-ROW(Data_Tech[[#Headers],[22]]))/(Data_Tech[[мес]:[мес]]=$J$5)/(Data_Tech[[год]:[год]]=$L$5)/(Data_Tech[[изд]:[изд]]=$N$1:$T$1)/(Data_Tech[[партия]:[партия]]=$W$1),ROW(Y7))),"") -> 0 | AA13: =IFERROR(INDEX(Data_Tech[23],_xlfn.AGGREGATE(15,6,(ROW(Data_Tech[23])-ROW(Data_Tech[[#Headers],[23]]))/(Data_Tech[[мес]:[мес]]=$J$5)/(Data_Tech[[год]:[год]]=$L$5)/(Data_Tech[[изд]:[изд]]=$N$1:$T$1)/(Data_Tech[[партия]:[партия]]=$W$1),ROW(Z7))),"") -> 0 | AB13: =IFERROR(INDEX(Data_Tech[24],_xlfn.AGGREGATE(15,6,(ROW(Data_Tech[24])-ROW(Data_Tech[[#Headers],[24]]))/(Data_Tech[[мес]:[мес]]=$J$5)/(Data_Tech[[год]:[год]]=$L$5)/(Data_Tech[[изд]:[изд]]=$N$1:$T$1)/(Data_Tech[[партия]:[партия]]=$W$1),ROW(AA7))),"") -> 0 | AC13: =IFERROR(INDEX(Data_Tech[25],_xlfn.AGGREGATE(15,6,(ROW(Data_Tech[25])-ROW(Data_Tech[[#Headers],[25]]))/(Data_Tech[[мес]:[мес]]=$J$5)/(Data_Tech[[год]:[год]]=$L$5)/(Data_Tech[[изд]:[изд]]=$N$1:$T$1)/(Data_Tech[[партия]:[партия]]=$W$1),ROW(AB7))),"") -> 0 | AD13: =IFERROR(INDEX(Data_Tech[26],_xlfn.AGGREGATE(15,6,(ROW(Data_Tech[26])-ROW(Data_Tech[[#Headers],[26]]))/(Data_Tech[[мес]:[мес]]=$J$5)/(Data_Tech[[год]:[год]]=$L$5)/(Data_Tech[[изд]:[изд]]=$N$1:$T$1)/(Data_Tech[[партия]:[партия]]=$W$1),ROW(AC7))),"") -> 0 | AE13: =IFERROR(INDEX(Data_Tech[27],_xlfn.AGGREGATE(15,6,(ROW(Data_Tech[27])-ROW(Data_Tech[[#Headers],[27]]))/(Data_Tech[[мес]:[мес]]=$J$5)/(Data_Tech[[год]:[год]]=$L$5)/(Data_Tech[[изд]:[изд]]=$N$1:$T$1)/(Data_Tech[[партия]:[партия]]=$W$1),ROW(AD7))),"") -> 0 | AF13: =IFERROR(INDEX(Data_Tech[28],_xlfn.AGGREGATE(15,6,(ROW(Data_Tech[28])-ROW(Data_Tech[[#Headers],[28]]))/(Data_Tech[[мес]:[мес]]=$J$5)/(Data_Tech[[год]:[год]]=$L$5)/(Data_Tech[[изд]:[изд]]=$N$1:$T$1)/(Data_Tech[[партия]:[партия]]=$W$1),ROW(AE7))),"") -> 0 | AG13: =IFERROR(INDEX(Data_Tech[29],_xlfn.AGGREGATE(15,6,(ROW(Data_Tech[29])-ROW(Data_Tech[[#Headers],[29]]))/(Data_Tech[[мес]:[мес]]=$J$5)/(Data_Tech[[год]:[год]]=$L$5)/(Data_Tech[[изд]:[изд]]=$N$1:$T$1)/(Data_Tech[[партия]:[партия]]=$W$1),ROW(AF7))),"") -> 0 | AH13: =IFERROR(INDEX(Data_Tech[30],_xlfn.AGGREGATE(15,6,(ROW(Data_Tech[30])-ROW(Data_Tech[[#Headers],[30]]))/(Data_Tech[[мес]:[мес]]=$J$5)/(Data_Tech[[год]:[год]]=$L$5)/(Data_Tech[[изд]:[изд]]=$N$1:$T$1)/(Data_Tech[[партия]:[партия]]=$W$1),ROW(AG7))),"") -> 0 | AI13: =IFERROR(INDEX(Data_Tech[31],_xlfn.AGGREGATE(15,6,(ROW(Data_Tech[31])-ROW(Data_Tech[[#Headers],[31]]))/(Data_Tech[[мес]:[мес]]=$J$5)/(Data_Tech[[год]:[год]]=$L$5)/(Data_Tech[[изд]:[изд]]=$N$1:$T$1)/(Data_Tech[[партия]:[партия]]=$W$1),ROW(AH7))),"") -> 0 | AJ13: 8
A14: 8 | B14: =IFERROR(INDEX(Data_Tech[коэф],_xlfn.AGGREGATE(15,6,(ROW(Data_Tech[коэф])-ROW(Data_Tech[[#Headers],[коэф]]))/(Data_Tech[[мес]:[мес]]=$J$5)/(Data_Tech[[год]:[год]]=$L$5)/(Data_Tech[[изд]:[изд]]=$N$1)/(Data_Tech[[партия]:[партия]]=$W$1),ROW(A8))),"") -> 1 | C14: =IFERROR(INDEX(Data_Tech[Ф. И. О.],_xlfn.AGGREGATE(15,6,(ROW(Data_Tech[Ф. И. О.])-ROW(Data_Tech[[#Headers],[Ф. И. О.]]))/(Data_Tech[[мес]:[мес]]=$J$5)/(Data_Tech[[год]:[год]]=$L$5)/(Data_Tech[[изд]:[изд]]=$N$1)/(Data_Tech[[партия]:[партия]]=$W$1),ROW(B8))),"") -> Борода Ирина Борисовна | D14: =IFERROR(INDEX(Data_Tech[р/р],_xlfn.AGGREGATE(15,6,(ROW(Data_Tech[р/р])-ROW(Data_Tech[[#Headers],[р/р]]))/(Data_Tech[[мес]:[мес]]=$J$5)/(Data_Tech[[год]:[год]]=$L$5)/(Data_Tech[[изд]:[изд]]=$N$1)/(Data_Tech[[партия]:[партия]]=$W$1),ROW(C8))),"") -> 2а | E14: =IFERROR(INDEX(Data_Tech[1],_xlfn.AGGREGATE(15,6,(ROW(Data_Tech[1])-ROW(Data_Tech[[#Headers],[1]]))/(Data_Tech[[мес]:[мес]]=$J$5)/(Data_Tech[[год]:[год]]=$L$5)/(Data_Tech[[изд]:[изд]]=$N$1:$T$1)/(Data_Tech[[партия]:[партия]]=$W$1),ROW(D8))),"") -> 0 | F14: =IFERROR(INDEX(Data_Tech[2],_xlfn.AGGREGATE(15,6,(ROW(Data_Tech[2])-ROW(Data_Tech[[#Headers],[2]]))/(Data_Tech[[мес]:[мес]]=$J$5)/(Data_Tech[[год]:[год]]=$L$5)/(Data_Tech[[изд]:[изд]]=$N$1:$T$1)/(Data_Tech[[партия]:[партия]]=$W$1),ROW(E8))),"") -> 0 | G14: =IFERROR(INDEX(Data_Tech[3],_xlfn.AGGREGATE(15,6,(ROW(Data_Tech[3])-ROW(Data_Tech[[#Headers],[3]]))/(Data_Tech[[мес]:[мес]]=$J$5)/(Data_Tech[[год]:[год]]=$L$5)/(Data_Tech[[изд]:[изд]]=$N$1:$T$1)/(Data_Tech[[партия]:[партия]]=$W$1),ROW(F8))),"") -> 0 | H14: =IFERROR(INDEX(Data_Tech[4],_xlfn.AGGREGATE(15,6,(ROW(Data_Tech[4])-ROW(Data_Tech[[#Headers],[4]]))/(Data_Tech[[мес]:[мес]]=$J$5)/(Data_Tech[[год]:[год]]=$L$5)/(Data_Tech[[изд]:[изд]]=$N$1:$T$1)/(Data_Tech[[партия]:[партия]]=$W$1),ROW(G8))),"") -> 0 | I14: =IFERROR(INDEX(Data_Tech[5],_xlfn.AGGREGATE(15,6,(ROW(Data_Tech[5])-ROW(Data_Tech[[#Headers],[5]]))/(Data_Tech[[мес]:[мес]]=$J$5)/(Data_Tech[[год]:[год]]=$L$5)/(Data_Tech[[изд]:[изд]]=$N$1:$T$1)/(Data_Tech[[партия]:[партия]]=$W$1),ROW(H8))),"") -> 0 | J14: =IFERROR(INDEX(Data_Tech[6],_xlfn.AGGREGATE(15,6,(ROW(Data_Tech[6])-ROW(Data_Tech[[#Headers],[6]]))/(Data_Tech[[мес]:[мес]]=$J$5)/(Data_Tech[[год]:[год]]=$L$5)/(Data_Tech[[изд]:[изд]]=$N$1:$T$1)/(Data_Tech[[партия]:[партия]]=$W$1),ROW(I8))),"") -> 0 | K14: =IFERROR(INDEX(Data_Tech[7],_xlfn.AGGREGATE(15,6,(ROW(Data_Tech[7])-ROW(Data_Tech[[#Headers],[7]]))/(Data_Tech[[мес]:[мес]]=$J$5)/(Data_Tech[[год]:[год]]=$L$5)/(Data_Tech[[изд]:[изд]]=$N$1:$T$1)/(Data_Tech[[партия]:[партия]]=$W$1),ROW(J8))),"") -> 0 | L14: =IFERROR(INDEX(Data_Tech[8],_xlfn.AGGREGATE(15,6,(ROW(Data_Tech[8])-ROW(Data_Tech[[#Headers],[8]]))/(Data_Tech[[мес]:[мес]]=$J$5)/(Data_Tech[[год]:[год]]=$L$5)/(Data_Tech[[изд]:[изд]]=$N$1:$T$1)/(Data_Tech[[партия]:[партия]]=$W$1),ROW(K8))),"") -> 0 | M14: =IFERROR(INDEX(Data_Tech[9],_xlfn.AGGREGATE(15,6,(ROW(Data_Tech[9])-ROW(Data_Tech[[#Headers],[9]]))/(Data_Tech[[мес]:[мес]]=$J$5)/(Data_Tech[[год]:[год]]=$L$5)/(Data_Tech[[изд]:[изд]]=$N$1:$T$1)/(Data_Tech[[партия]:[партия]]=$W$1),ROW(L8))),"") -> 0 | N14: =IFERROR(INDEX(Data_Tech[10],_xlfn.AGGREGATE(15,6,(ROW(Data_Tech[10])-ROW(Data_Tech[[#Headers],[10]]))/(Data_Tech[[мес]:[мес]]=$J$5)/(Data_Tech[[год]:[год]]=$L$5)/(Data_Tech[[изд]:[изд]]=$N$1:$T$1)/(Data_Tech[[партия]:[партия]]=$W$1),ROW(M8))),"") -> 0 | O14: =IFERROR(INDEX(Data_Tech[11],_xlfn.AGGREGATE(15,6,(ROW(Data_Tech[11])-ROW(Data_Tech[[#Headers],[11]]))/(Data_Tech[[мес]:[мес]]=$J$5)/(Data_Tech[[год]:[год]]=$L$5)/(Data_Tech[[изд]:[изд]]=$N$1:$T$1)/(Data_Tech[[партия]:[партия]]=$W$1),ROW(N8))),"") -> 0 | P14: =IFERROR(INDEX(Data_Tech[12],_xlfn.AGGREGATE(15,6,(ROW(Data_Tech[12])-ROW(Data_Tech[[#Headers],[12]]))/(Data_Tech[[мес]:[мес]]=$J$5)/(Data_Tech[[год]:[год]]=$L$5)/(Data_Tech[[изд]:[изд]]=$N$1:$T$1)/(Data_Tech[[партия]:[партия]]=$W$1),ROW(O8))),"") -> 8 | Q14: =IFERROR(INDEX(Data_Tech[13],_xlfn.AGGREGATE(15,6,(ROW(Data_Tech[13])-ROW(Data_Tech[[#Headers],[13]]))/(Data_Tech[[мес]:[мес]]=$J$5)/(Data_Tech[[год]:[год]]=$L$5)/(Data_Tech[[изд]:[изд]]=$N$1:$T$1)/(Data_Tech[[партия]:[партия]]=$W$1),ROW(P8))),"") -> 0 | R14: =IFERROR(INDEX(Data_Tech[14],_xlfn.AGGREGATE(15,6,(ROW(Data_Tech[14])-ROW(Data_Tech[[#Headers],[14]]))/(Data_Tech[[мес]:[мес]]=$J$5)/(Data_Tech[[год]:[год]]=$L$5)/(Data_Tech[[изд]:[изд]]=$N$1:$T$1)/(Data_Tech[[партия]:[партия]]=$W$1),ROW(Q8))),"") -> 0 | S14: =IFERROR(INDEX(Data_Tech[15],_xlfn.AGGREGATE(15,6,(ROW(Data_Tech[15])-ROW(Data_Tech[[#Headers],[15]]))/(Data_Tech[[мес]:[мес]]=$J$5)/(Data_Tech[[год]:[год]]=$L$5)/(Data_Tech[[изд]:[изд]]=$N$1:$T$1)/(Data_Tech[[партия]:[партия]]=$W$1),ROW(R8))),"") -> 0 | T14: =IFERROR(INDEX(Data_Tech[16],_xlfn.AGGREGATE(15,6,(ROW(Data_Tech[16])-ROW(Data_Tech[[#Headers],[16]]))/(Data_Tech[[мес]:[мес]]=$J$5)/(Data_Tech[[год]:[год]]=$L$5)/(Data_Tech[[изд]:[изд]]=$N$1:$T$1)/(Data_Tech[[партия]:[партия]]=$W$1),ROW(S8))),"") -> 0 | U14: =IFERROR(INDEX(Data_Tech[17],_xlfn.AGGREGATE(15,6,(ROW(Data_Tech[17])-ROW(Data_Tech[[#Headers],[17]]))/(Data_Tech[[мес]:[мес]]=$J$5)/(Data_Tech[[год]:[год]]=$L$5)/(Data_Tech[[изд]:[изд]]=$N$1:$T$1)/(Data_Tech[[партия]:[партия]]=$W$1),ROW(T8))),"") -> 0 | V14: =IFERROR(INDEX(Data_Tech[18],_xlfn.AGGREGATE(15,6,(ROW(Data_Tech[18])-ROW(Data_Tech[[#Headers],[18]]))/(Data_Tech[[мес]:[мес]]=$J$5)/(Data_Tech[[год]:[год]]=$L$5)/(Data_Tech[[изд]:[изд]]=$N$1:$T$1)/(Data_Tech[[партия]:[партия]]=$W$1),ROW(U8))),"") -> 0 | W14: =IFERROR(INDEX(Data_Tech[19],_xlfn.AGGREGATE(15,6,(ROW(Data_Tech[19])-ROW(Data_Tech[[#Headers],[19]]))/(Data_Tech[[мес]:[мес]]=$J$5)/(Data_Tech[[год]:[год]]=$L$5)/(Data_Tech[[изд]:[изд]]=$N$1:$T$1)/(Data_Tech[[партия]:[партия]]=$W$1),ROW(V8))),"") -> 0 | X14: =IFERROR(INDEX(Data_Tech[20],_xlfn.AGGREGATE(15,6,(ROW(Data_Tech[20])-ROW(Data_Tech[[#Headers],[20]]))/(Data_Tech[[мес]:[мес]]=$J$5)/(Data_Tech[[год]:[год]]=$L$5)/(Data_Tech[[изд]:[изд]]=$N$1:$T$1)/(Data_Tech[[партия]:[партия]]=$W$1),ROW(W8))),"") -> 0 | Y14: =IFERROR(INDEX(Data_Tech[21],_xlfn.AGGREGATE(15,6,(ROW(Data_Tech[21])-ROW(Data_Tech[[#Headers],[21]]))/(Data_Tech[[мес]:[мес]]=$J$5)/(Data_Tech[[год]:[год]]=$L$5)/(Data_Tech[[изд]:[изд]]=$N$1:$T$1)/(Data_Tech[[партия]:[партия]]=$W$1),ROW(X8))),"") -> 0 | Z14: =IFERROR(INDEX(Data_Tech[22],_xlfn.AGGREGATE(15,6,(ROW(Data_Tech[22])-ROW(Data_Tech[[#Headers],[22]]))/(Data_Tech[[мес]:[мес]]=$J$5)/(Data_Tech[[год]:[год]]=$L$5)/(Data_Tech[[изд]:[изд]]=$N$1:$T$1)/(Data_Tech[[партия]:[партия]]=$W$1),ROW(Y8))),"") -> 0 | AA14: =IFERROR(INDEX(Data_Tech[23],_xlfn.AGGREGATE(15,6,(ROW(Data_Tech[23])-ROW(Data_Tech[[#Headers],[23]]))/(Data_Tech[[мес]:[мес]]=$J$5)/(Data_Tech[[год]:[год]]=$L$5)/(Data_Tech[[изд]:[изд]]=$N$1:$T$1)/(Data_Tech[[партия]:[партия]]=$W$1),ROW(Z8))),"") -> 0 | AB14: =IFERROR(INDEX(Data_Tech[24],_xlfn.AGGREGATE(15,6,(ROW(Data_Tech[24])-ROW(Data_Tech[[#Headers],[24]]))/(Data_Tech[[мес]:[мес]]=$J$5)/(Data_Tech[[год]:[год]]=$L$5)/(Data_Tech[[изд]:[изд]]=$N$1:$T$1)/(Data_Tech[[партия]:[партия]]=$W$1),ROW(AA8))),"") -> 0 | AC14: =IFERROR(INDEX(Data_Tech[25],_xlfn.AGGREGATE(15,6,(ROW(Data_Tech[25])-ROW(Data_Tech[[#Headers],[25]]))/(Data_Tech[[мес]:[мес]]=$J$5)/(Data_Tech[[год]:[год]]=$L$5)/(Data_Tech[[изд]:[изд]]=$N$1:$T$1)/(Data_Tech[[партия]:[партия]]=$W$1),ROW(AB8))),"") -> 0 | AD14: =IFERROR(INDEX(Data_Tech[26],_xlfn.AGGREGATE(15,6,(ROW(Data_Tech[26])-ROW(Data_Tech[[#Headers],[26]]))/(Data_Tech[[мес]:[мес]]=$J$5)/(Data_Tech[[год]:[год]]=$L$5)/(Data_Tech[[изд]:[изд]]=$N$1:$T$1)/(Data_Tech[[партия]:[партия]]=$W$1),ROW(AC8))),"") -> 0 | AE14: =IFERROR(INDEX(Data_Tech[27],_xlfn.AGGREGATE(15,6,(ROW(Data_Tech[27])-ROW(Data_Tech[[#Headers],[27]]))/(Data_Tech[[мес]:[мес]]=$J$5)/(Data_Tech[[год]:[год]]=$L$5)/(Data_Tech[[изд]:[изд]]=$N$1:$T$1)/(Data_Tech[[партия]:[партия]]=$W$1),ROW(AD8))),"") -> 0 | AF14: =IFERROR(INDEX(Data_Tech[28],_xlfn.AGGREGATE(15,6,(ROW(Data_Tech[28])-ROW(Data_Tech[[#Headers],[28]]))/(Data_Tech[[мес]:[мес]]=$J$5)/(Data_Tech[[год]:[год]]=$L$5)/(Data_Tech[[изд]:[изд]]=$N$1:$T$1)/(Data_Tech[[партия]:[партия]]=$W$1),ROW(AE8))),"") -> 0 | AG14: =IFERROR(INDEX(Data_Tech[29],_xlfn.AGGREGATE(15,6,(ROW(Data_Tech[29])-ROW(Data_Tech[[#Headers],[29]]))/(Data_Tech[[мес]:[мес]]=$J$5)/(Data_Tech[[год]:[год]]=$L$5)/(Data_Tech[[изд]:[изд]]=$N$1:$T$1)/(Data_Tech[[партия]:[партия]]=$W$1),ROW(AF8))),"") -> 0 | AH14: =IFERROR(INDEX(Data_Tech[30],_xlfn.AGGREGATE(15,6,(ROW(Data_Tech[30])-ROW(Data_Tech[[#Headers],[30]]))/(Data_Tech[[мес]:[мес]]=$J$5)/(Data_Tech[[год]:[год]]=$L$5)/(Data_Tech[[изд]:[изд]]=$N$1:$T$1)/(Data_Tech[[партия]:[партия]]=$W$1),ROW(AG8))),"") -> 0 | AI14: =IFERROR(INDEX(Data_Tech[31],_xlfn.AGGREGATE(15,6,(ROW(Data_Tech[31])-ROW(Data_Tech[[#Headers],[31]]))/(Data_Tech[[мес]:[мес]]=$J$5)/(Data_Tech[[год]:[год]]=$L$5)/(Data_Tech[[изд]:[изд]]=$N$1:$T$1)/(Data_Tech[[партия]:[партия]]=$W$1),ROW(AH8))),"") -> 0 | AJ14: 8
A15: 9 | B15: =IFERROR(INDEX(Data_Tech[коэф],_xlfn.AGGREGATE(15,6,(ROW(Data_Tech[коэф])-ROW(Data_Tech[[#Headers],[коэф]]))/(Data_Tech[[мес]:[мес]]=$J$5)/(Data_Tech[[год]:[год]]=$L$5)/(Data_Tech[[изд]:[изд]]=$N$1)/(Data_Tech[[партия]:[партия]]=$W$1),ROW(A9))),"") -> 1 | C15: =IFERROR(INDEX(Data_Tech[Ф. И. О.],_xlfn.AGGREGATE(15,6,(ROW(Data_Tech[Ф. И. О.])-ROW(Data_Tech[[#Headers],[Ф. И. О.]]))/(Data_Tech[[мес]:[мес]]=$J$5)/(Data_Tech[[год]:[год]]=$L$5)/(Data_Tech[[изд]:[изд]]=$N$1)/(Data_Tech[[партия]:[партия]]=$W$1),ROW(B9))),"") -> Яблокова Дарья Александровна | D15: =IFERROR(INDEX(Data_Tech[р/р],_xlfn.AGGREGATE(15,6,(ROW(Data_Tech[р/р])-ROW(Data_Tech[[#Headers],[р/р]]))/(Data_Tech[[мес]:[мес]]=$J$5)/(Data_Tech[[год]:[год]]=$L$5)/(Data_Tech[[изд]:[изд]]=$N$1)/(Data_Tech[[партия]:[партия]]=$W$1),ROW(C9))),"") -> 2а | E15: =IFERROR(INDEX(Data_Tech[1],_xlfn.AGGREGATE(15,6,(ROW(Data_Tech[1])-ROW(Data_Tech[[#Headers],[1]]))/(Data_Tech[[мес]:[мес]]=$J$5)/(Data_Tech[[год]:[год]]=$L$5)/(Data_Tech[[изд]:[изд]]=$N$1:$T$1)/(Data_Tech[[партия]:[партия]]=$W$1),ROW(D9))),"") -> 0 | F15: =IFERROR(INDEX(Data_Tech[2],_xlfn.AGGREGATE(15,6,(ROW(Data_Tech[2])-ROW(Data_Tech[[#Headers],[2]]))/(Data_Tech[[мес]:[мес]]=$J$5)/(Data_Tech[[год]:[год]]=$L$5)/(Data_Tech[[изд]:[изд]]=$N$1:$T$1)/(Data_Tech[[партия]:[партия]]=$W$1),ROW(E9))),"") -> 0 | G15: =IFERROR(INDEX(Data_Tech[3],_xlfn.AGGREGATE(15,6,(ROW(Data_Tech[3])-ROW(Data_Tech[[#Headers],[3]]))/(Data_Tech[[мес]:[мес]]=$J$5)/(Data_Tech[[год]:[год]]=$L$5)/(Data_Tech[[изд]:[изд]]=$N$1:$T$1)/(Data_Tech[[партия]:[партия]]=$W$1),ROW(F9))),"") -> 0 | H15: =IFERROR(INDEX(Data_Tech[4],_xlfn.AGGREGATE(15,6,(ROW(Data_Tech[4])-ROW(Data_Tech[[#Headers],[4]]))/(Data_Tech[[мес]:[мес]]=$J$5)/(Data_Tech[[год]:[год]]=$L$5)/(Data_Tech[[изд]:[изд]]=$N$1:$T$1)/(Data_Tech[[партия]:[партия]]=$W$1),ROW(G9))),"") -> 0 | I15: =IFERROR(INDEX(Data_Tech[5],_xlfn.AGGREGATE(15,6,(ROW(Data_Tech[5])-ROW(Data_Tech[[#Headers],[5]]))/(Data_Tech[[мес]:[мес]]=$J$5)/(Data_Tech[[год]:[год]]=$L$5)/(Data_Tech[[изд]:[изд]]=$N$1:$T$1)/(Data_Tech[[партия]:[партия]]=$W$1),ROW(H9))),"") -> 0 | J15: =IFERROR(INDEX(Data_Tech[6],_xlfn.AGGREGATE(15,6,(ROW(Data_Tech[6])-ROW(Data_Tech[[#Headers],[6]]))/(Data_Tech[[мес]:[мес]]=$J$5)/(Data_Tech[[год]:[год]]=$L$5)/(Data_Tech[[изд]:[изд]]=$N$1:$T$1)/(Data_Tech[[партия]:[партия]]=$W$1),ROW(I9))),"") -> 0 | K15: =IFERROR(INDEX(Data_Tech[7],_xlfn.AGGREGATE(15,6,(ROW(Data_Tech[7])-ROW(Data_Tech[[#Headers],[7]]))/(Data_Tech[[мес]:[мес]]=$J$5)/(Data_Tech[[год]:[год]]=$L$5)/(Data_Tech[[изд]:[изд]]=$N$1:$T$1)/(Data_Tech[[партия]:[партия]]=$W$1),ROW(J9))),"") -> 0 | L15: =IFERROR(INDEX(Data_Tech[8],_xlfn.AGGREGATE(15,6,(ROW(Data_Tech[8])-ROW(Data_Tech[[#Headers],[8]]))/(Data_Tech[[мес]:[мес]]=$J$5)/(Data_Tech[[год]:[год]]=$L$5)/(Data_Tech[[изд]:[изд]]=$N$1:$T$1)/(Data_Tech[[партия]:[партия]]=$W$1),ROW(K9))),"") -> 7 | M15: =IFERROR(INDEX(Data_Tech[9],_xlfn.AGGREGATE(15,6,(ROW(Data_Tech[9])-ROW(Data_Tech[[#Headers],[9]]))/(Data_Tech[[мес]:[мес]]=$J$5)/(Data_Tech[[год]:[год]]=$L$5)/(Data_Tech[[изд]:[изд]]=$N$1:$T$1)/(Data_Tech[[партия]:[партия]]=$W$1),ROW(L9))),"") -> 0 | N15: =IFERROR(INDEX(Data_Tech[10],_xlfn.AGGREGATE(15,6,(ROW(Data_Tech[10])-ROW(Data_Tech[[#Headers],[10]]))/(Data_Tech[[мес]:[мес]]=$J$5)/(Data_Tech[[год]:[год]]=$L$5)/(Data_Tech[[изд]:[изд]]=$N$1:$T$1)/(Data_Tech[[партия]:[партия]]=$W$1),ROW(M9))),"") -> 0 | O15: =IFERROR(INDEX(Data_Tech[11],_xlfn.AGGREGATE(15,6,(ROW(Data_Tech[11])-ROW(Data_Tech[[#Headers],[11]]))/(Data_Tech[[мес]:[мес]]=$J$5)/(Data_Tech[[год]:[год]]=$L$5)/(Data_Tech[[изд]:[изд]]=$N$1:$T$1)/(Data_Tech[[партия]:[партия]]=$W$1),ROW(N9))),"") -> 0 | P15: =IFERROR(INDEX(Data_Tech[12],_xlfn.AGGREGATE(15,6,(ROW(Data_Tech[12])-ROW(Data_Tech[[#Headers],[12]]))/(Data_Tech[[мес]:[мес]]=$J$5)/(Data_Tech[[год]:[год]]=$L$5)/(Data_Tech[[изд]:[изд]]=$N$1:$T$1)/(Data_Tech[[партия]:[партия]]=$W$1),ROW(O9))),"") -> 0 | Q15: =IFERROR(INDEX(Data_Tech[13],_xlfn.AGGREGATE(15,6,(ROW(Data_Tech[13])-ROW(Data_Tech[[#Headers],[13]]))/(Data_Tech[[мес]:[мес]]=$J$5)/(Data_Tech[[год]:[год]]=$L$5)/(Data_Tech[[изд]:[изд]]=$N$1:$T$1)/(Data_Tech[[партия]:[партия]]=$W$1),ROW(P9))),"") -> 0 | R15: =IFERROR(INDEX(Data_Tech[14],_xlfn.AGGREGATE(15,6,(ROW(Data_Tech[14])-ROW(Data_Tech[[#Headers],[14]]))/(Data_Tech[[мес]:[мес]]=$J$5)/(Data_Tech[[год]:[год]]=$L$5)/(Data_Tech[[изд]:[изд]]=$N$1:$T$1)/(Data_Tech[[партия]:[партия]]=$W$1),ROW(Q9))),"") -> 0 | S15: =IFERROR(INDEX(Data_Tech[15],_xlfn.AGGREGATE(15,6,(ROW(Data_Tech[15])-ROW(Data_Tech[[#Headers],[15]]))/(Data_Tech[[мес]:[мес]]=$J$5)/(Data_Tech[[год]:[год]]=$L$5)/(Data_Tech[[изд]:[изд]]=$N$1:$T$1)/(Data_Tech[[партия]:[партия]]=$W$1),ROW(R9))),"") -> 0 | T15: =IFERROR(INDEX(Data_Tech[16],_xlfn.AGGREGATE(15,6,(ROW(Data_Tech[16])-ROW(Data_Tech[[#Headers],[16]]))/(Data_Tech[[мес]:[мес]]=$J$5)/(Data_Tech[[год]:[год]]=$L$5)/(Data_Tech[[изд]:[изд]]=$N$1:$T$1)/(Data_Tech[[партия]:[партия]]=$W$1),ROW(S9))),"") -> 0 | U15: =IFERROR(INDEX(Data_Tech[17],_xlfn.AGGREGATE(15,6,(ROW(Data_Tech[17])-ROW(Data_Tech[[#Headers],[17]]))/(Data_Tech[[мес]:[мес]]=$J$5)/(Data_Tech[[год]:[год]]=$L$5)/(Data_Tech[[изд]:[изд]]=$N$1:$T$1)/(Data_Tech[[партия]:[партия]]=$W$1),ROW(T9))),"") -> 0 | V15: =IFERROR(INDEX(Data_Tech[18],_xlfn.AGGREGATE(15,6,(ROW(Data_Tech[18])-ROW(Data_Tech[[#Headers],[18]]))/(Data_Tech[[мес]:[мес]]=$J$5)/(Data_Tech[[год]:[год]]=$L$5)/(Data_Tech[[изд]:[изд]]=$N$1:$T$1)/(Data_Tech[[партия]:[партия]]=$W$1),ROW(U9))),"") -> 0 | W15: =IFERROR(INDEX(Data_Tech[19],_xlfn.AGGREGATE(15,6,(ROW(Data_Tech[19])-ROW(Data_Tech[[#Headers],[19]]))/(Data_Tech[[мес]:[мес]]=$J$5)/(Data_Tech[[год]:[год]]=$L$5)/(Data_Tech[[изд]:[изд]]=$N$1:$T$1)/(Data_Tech[[партия]:[партия]]=$W$1),ROW(V9))),"") -> 0 | X15: =IFERROR(INDEX(Data_Tech[20],_xlfn.AGGREGATE(15,6,(ROW(Data_Tech[20])-ROW(Data_Tech[[#Headers],[20]]))/(Data_Tech[[мес]:[мес]]=$J$5)/(Data_Tech[[год]:[год]]=$L$5)/(Data_Tech[[изд]:[изд]]=$N$1:$T$1)/(Data_Tech[[партия]:[партия]]=$W$1),ROW(W9))),"") -> 0 | Y15: =IFERROR(INDEX(Data_Tech[21],_xlfn.AGGREGATE(15,6,(ROW(Data_Tech[21])-ROW(Data_Tech[[#Headers],[21]]))/(Data_Tech[[мес]:[мес]]=$J$5)/(Data_Tech[[год]:[год]]=$L$5)/(Data_Tech[[изд]:[изд]]=$N$1:$T$1)/(Data_Tech[[партия]:[партия]]=$W$1),ROW(X9))),"") -> 0 | Z15: =IFERROR(INDEX(Data_Tech[22],_xlfn.AGGREGATE(15,6,(ROW(Data_Tech[22])-ROW(Data_Tech[[#Headers],[22]]))/(Data_Tech[[мес]:[мес]]=$J$5)/(Data_Tech[[год]:[год]]=$L$5)/(Data_Tech[[изд]:[изд]]=$N$1:$T$1)/(Data_Tech[[партия]:[партия]]=$W$1),ROW(Y9))),"") -> 0 | AA15: =IFERROR(INDEX(Data_Tech[23],_xlfn.AGGREGATE(15,6,(ROW(Data_Tech[23])-ROW(Data_Tech[[#Headers],[23]]))/(Data_Tech[[мес]:[мес]]=$J$5)/(Data_Tech[[год]:[год]]=$L$5)/(Data_Tech[[изд]:[изд]]=$N$1:$T$1)/(Data_Tech[[партия]:[партия]]=$W$1),ROW(Z9))),"") -> 0 | AB15: =IFERROR(INDEX(Data_Tech[24],_xlfn.AGGREGATE(15,6,(ROW(Data_Tech[24])-ROW(Data_Tech[[#Headers],[24]]))/(Data_Tech[[мес]:[мес]]=$J$5)/(Data_Tech[[год]:[год]]=$L$5)/(Data_Tech[[изд]:[изд]]=$N$1:$T$1)/(Data_Tech[[партия]:[партия]]=$W$1),ROW(AA9))),"") -> 0 | AC15: =IFERROR(INDEX(Data_Tech[25],_xlfn.AGGREGATE(15,6,(ROW(Data_Tech[25])-ROW(Data_Tech[[#Headers],[25]]))/(Data_Tech[[мес]:[мес]]=$J$5)/(Data_Tech[[год]:[год]]=$L$5)/(Data_Tech[[изд]:[изд]]=$N$1:$T$1)/(Data_Tech[[партия]:[партия]]=$W$1),ROW(AB9))),"") -> 0 | AD15: =IFERROR(INDEX(Data_Tech[26],_xlfn.AGGREGATE(15,6,(ROW(Data_Tech[26])-ROW(Data_Tech[[#Headers],[26]]))/(Data_Tech[[мес]:[мес]]=$J$5)/(Data_Tech[[год]:[год]]=$L$5)/(Data_Tech[[изд]:[изд]]=$N$1:$T$1)/(Data_Tech[[партия]:[партия]]=$W$1),ROW(AC9))),"") -> 0 | AE15: =IFERROR(INDEX(Data_Tech[27],_xlfn.AGGREGATE(15,6,(ROW(Data_Tech[27])-ROW(Data_Tech[[#Headers],[27]]))/(Data_Tech[[мес]:[мес]]=$J$5)/(Data_Tech[[год]:[год]]=$L$5)/(Data_Tech[[изд]:[изд]]=$N$1:$T$1)/(Data_Tech[[партия]:[партия]]=$W$1),ROW(AD9))),"") -> 0 | AF15: =IFERROR(INDEX(Data_Tech[28],_xlfn.AGGREGATE(15,6,(ROW(Data_Tech[28])-ROW(Data_Tech[[#Headers],[28]]))/(Data_Tech[[мес]:[мес]]=$J$5)/(Data_Tech[[год]:[год]]=$L$5)/(Data_Tech[[изд]:[изд]]=$N$1:$T$1)/(Data_Tech[[партия]:[партия]]=$W$1),ROW(AE9))),"") -> 0 | AG15: =IFERROR(INDEX(Data_Tech[29],_xlfn.AGGREGATE(15,6,(ROW(Data_Tech[29])-ROW(Data_Tech[[#Headers],[29]]))/(Data_Tech[[мес]:[мес]]=$J$5)/(Data_Tech[[год]:[год]]=$L$5)/(Data_Tech[[изд]:[изд]]=$N$1:$T$1)/(Data_Tech[[партия]:[партия]]=$W$1),ROW(AF9))),"") -> 0 | AH15: =IFERROR(INDEX(Data_Tech[30],_xlfn.AGGREGATE(15,6,(ROW(Data_Tech[30])-ROW(Data_Tech[[#Headers],[30]]))/(Data_Tech[[мес]:[мес]]=$J$5)/(Data_Tech[[год]:[год]]=$L$5)/(Data_Tech[[изд]:[изд]]=$N$1:$T$1)/(Data_Tech[[партия]:[партия]]=$W$1),ROW(AG9))),"") -> 0 | AI15: =IFERROR(INDEX(Data_Tech[31],_xlfn.AGGREGATE(15,6,(ROW(Data_Tech[31])-ROW(Data_Tech[[#Headers],[31]]))/(Data_Tech[[мес]:[мес]]=$J$5)/(Data_Tech[[год]:[год]]=$L$5)/(Data_Tech[[изд]:[изд]]=$N$1:$T$1)/(Data_Tech[[партия]:[партия]]=$W$1),ROW(AH9))),"") -> 0 | AJ15: 7
A16: 10 | B16: =IFERROR(INDEX(Data_Tech[коэф],_xlfn.AGGREGATE(15,6,(ROW(Data_Tech[коэф])-ROW(Data_Tech[[#Headers],[коэф]]))/(Data_Tech[[мес]:[мес]]=$J$5)/(Data_Tech[[год]:[год]]=$L$5)/(Data_Tech[[изд]:[изд]]=$N$1)/(Data_Tech[[партия]:[партия]]=$W$1),ROW(A10))),"") -> 1,5 | C16: =IFERROR(INDEX(Data_Tech[Ф. И. О.],_xlfn.AGGREGATE(15,6,(ROW(Data_Tech[Ф. И. О.])-ROW(Data_Tech[[#Headers],[Ф. И. О.]]))/(Data_Tech[[мес]:[мес]]=$J$5)/(Data_Tech[[год]:[год]]=$L$5)/(Data_Tech[[изд]:[изд]]=$N$1)/(Data_Tech[[партия]:[партия]]=$W$1),ROW(B10))),"") -> Груздь Олеся Иванна | D16: =IFERROR(INDEX(Data_Tech[р/р],_xlfn.AGGREGATE(15,6,(ROW(Data_Tech[р/р])-ROW(Data_Tech[[#Headers],[р/р]]))/(Data_Tech[[мес]:[мес]]=$J$5)/(Data_Tech[[год]:[год]]=$L$5)/(Data_Tech[[изд]:[изд]]=$N$1)/(Data_Tech[[партия]:[партия]]=$W$1),ROW(C10))),"") -> 4/8 | E16: =IFERROR(INDEX(Data_Tech[1],_xlfn.AGGREGATE(15,6,(ROW(Data_Tech[1])-ROW(Data_Tech[[#Headers],[1]]))/(Data_Tech[[мес]:[мес]]=$J$5)/(Data_Tech[[год]:[год]]=$L$5)/(Data_Tech[[изд]:[изд]]=$N$1:$T$1)/(Data_Tech[[партия]:[партия]]=$W$1),ROW(D10))),"") -> 0 | F16: =IFERROR(INDEX(Data_Tech[2],_xlfn.AGGREGATE(15,6,(ROW(Data_Tech[2])-ROW(Data_Tech[[#Headers],[2]]))/(Data_Tech[[мес]:[мес]]=$J$5)/(Data_Tech[[год]:[год]]=$L$5)/(Data_Tech[[изд]:[изд]]=$N$1:$T$1)/(Data_Tech[[партия]:[партия]]=$W$1),ROW(E10))),"") -> 0 | G16: =IFERROR(INDEX(Data_Tech[3],_xlfn.AGGREGATE(15,6,(ROW(Data_Tech[3])-ROW(Data_Tech[[#Headers],[3]]))/(Data_Tech[[мес]:[мес]]=$J$5)/(Data_Tech[[год]:[год]]=$L$5)/(Data_Tech[[изд]:[изд]]=$N$1:$T$1)/(Data_Tech[[партия]:[партия]]=$W$1),ROW(F10))),"") -> 0 | H16: =IFERROR(INDEX(Data_Tech[4],_xlfn.AGGREGATE(15,6,(ROW(Data_Tech[4])-ROW(Data_Tech[[#Headers],[4]]))/(Data_Tech[[мес]:[мес]]=$J$5)/(Data_Tech[[год]:[год]]=$L$5)/(Data_Tech[[изд]:[изд]]=$N$1:$T$1)/(Data_Tech[[партия]:[партия]]=$W$1),ROW(G10))),"") -> 0 | I16: =IFERROR(INDEX(Data_Tech[5],_xlfn.AGGREGATE(15,6,(ROW(Data_Tech[5])-ROW(Data_Tech[[#Headers],[5]]))/(Data_Tech[[мес]:[мес]]=$J$5)/(Data_Tech[[год]:[год]]=$L$5)/(Data_Tech[[изд]:[изд]]=$N$1:$T$1)/(Data_Tech[[партия]:[партия]]=$W$1),ROW(H10))),"") -> 0 | J16: =IFERROR(INDEX(Data_Tech[6],_xlfn.AGGREGATE(15,6,(ROW(Data_Tech[6])-ROW(Data_Tech[[#Headers],[6]]))/(Data_Tech[[мес]:[мес]]=$J$5)/(Data_Tech[[год]:[год]]=$L$5)/(Data_Tech[[изд]:[изд]]=$N$1:$T$1)/(Data_Tech[[партия]:[партия]]=$W$1),ROW(I10))),"") -> 0 | K16: =IFERROR(INDEX(Data_Tech[7],_xlfn.AGGREGATE(15,6,(ROW(Data_Tech[7])-ROW(Data_Tech[[#Headers],[7]]))/(Data_Tech[[мес]:[мес]]=$J$5)/(Data_Tech[[год]:[год]]=$L$5)/(Data_Tech[[изд]:[изд]]=$N$1:$T$1)/(Data_Tech[[партия]:[партия]]=$W$1),ROW(J10))),"") -> 0 | L16: =IFERROR(INDEX(Data_Tech[8],_xlfn.AGGREGATE(15,6,(ROW(Data_Tech[8])-ROW(Data_Tech[[#Headers],[8]]))/(Data_Tech[[мес]:[мес]]=$J$5)/(Data_Tech[[год]:[год]]=$L$5)/(Data_Tech[[изд]:[изд]]=$N$1:$T$1)/(Data_Tech[[партия]:[партия]]=$W$1),ROW(K10))),"") -> 0 | M16: =IFERROR(INDEX(Data_Tech[9],_xlfn.AGGREGATE(15,6,(ROW(Data_Tech[9])-ROW(Data_Tech[[#Headers],[9]]))/(Data_Tech[[мес]:[мес]]=$J$5)/(Data_Tech[[год]:[год]]=$L$5)/(Data_Tech[[изд]:[изд]]=$N$1:$T$1)/(Data_Tech[[партия]:[партия]]=$W$1),ROW(L10))),"") -> 0 | N16: =IFERROR(INDEX(Data_Tech[10],_xlfn.AGGREGATE(15,6,(ROW(Data_Tech[10])-ROW(Data_Tech[[#Headers],[10]]))/(Data_Tech[[мес]:[мес]]=$J$5)/(Data_Tech[[год]:[год]]=$L$5)/(Data_Tech[[изд]:[изд]]=$N$1:$T$1)/(Data_Tech[[партия]:[партия]]=$W$1),ROW(M10))),"") -> 0 | O16: =IFERROR(INDEX(Data_Tech[11],_xlfn.AGGREGATE(15,6,(ROW(Data_Tech[11])-ROW(Data_Tech[[#Headers],[11]]))/(Data_Tech[[мес]:[мес]]=$J$5)/(Data_Tech[[год]:[год]]=$L$5)/(Data_Tech[[изд]:[изд]]=$N$1:$T$1)/(Data_Tech[[партия]:[партия]]=$W$1),ROW(N10))),"") -> 0 | P16: =IFERROR(INDEX(Data_Tech[12],_xlfn.AGGREGATE(15,6,(ROW(Data_Tech[12])-ROW(Data_Tech[[#Headers],[12]]))/(Data_Tech[[мес]:[мес]]=$J$5)/(Data_Tech[[год]:[год]]=$L$5)/(Data_Tech[[изд]:[изд]]=$N$1:$T$1)/(Data_Tech[[партия]:[партия]]=$W$1),ROW(O10))),"") -> 0 | Q16: =IFERROR(INDEX(Data_Tech[13],_xlfn.AGGREGATE(15,6,(ROW(Data_Tech[13])-ROW(Data_Tech[[#Headers],[13]]))/(Data_Tech[[мес]:[мес]]=$J$5)/(Data_Tech[[год]:[год]]=$L$5)/(Data_Tech[[изд]:[изд]]=$N$1:$T$1)/(Data_Tech[[партия]:[партия]]=$W$1),ROW(P10))),"") -> 0 | R16: =IFERROR(INDEX(Data_Tech[14],_xlfn.AGGREGATE(15,6,(ROW(Data_Tech[14])-ROW(Data_Tech[[#Headers],[14]]))/(Data_Tech[[мес]:[мес]]=$J$5)/(Data_Tech[[год]:[год]]=$L$5)/(Data_Tech[[изд]:[изд]]=$N$1:$T$1)/(Data_Tech[[партия]:[партия]]=$W$1),ROW(Q10))),"") -> 8 | S16: =IFERROR(INDEX(Data_Tech[15],_xlfn.AGGREGATE(15,6,(ROW(Data_Tech[15])-ROW(Data_Tech[[#Headers],[15]]))/(Data_Tech[[мес]:[мес]]=$J$5)/(Data_Tech[[год]:[год]]=$L$5)/(Data_Tech[[изд]:[изд]]=$N$1:$T$1)/(Data_Tech[[партия]:[партия]]=$W$1),ROW(R10))),"") -> 8 | T16: =IFERROR(INDEX(Data_Tech[16],_xlfn.AGGREGATE(15,6,(ROW(Data_Tech[16])-ROW(Data_Tech[[#Headers],[16]]))/(Data_Tech[[мес]:[мес]]=$J$5)/(Data_Tech[[год]:[год]]=$L$5)/(Data_Tech[[изд]:[изд]]=$N$1:$T$1)/(Data_Tech[[партия]:[партия]]=$W$1),ROW(S10))),"") -> 8 | U16: =IFERROR(INDEX(Data_Tech[17],_xlfn.AGGREGATE(15,6,(ROW(Data_Tech[17])-ROW(Data_Tech[[#Headers],[17]]))/(Data_Tech[[мес]:[мес]]=$J$5)/(Data_Tech[[год]:[год]]=$L$5)/(Data_Tech[[изд]:[изд]]=$N$1:$T$1)/(Data_Tech[[партия]:[партия]]=$W$1),ROW(T10))),"") -> 6 | V16: =IFERROR(INDEX(Data_Tech[18],_xlfn.AGGREGATE(15,6,(ROW(Data_Tech[18])-ROW(Data_Tech[[#Headers],[18]]))/(Data_Tech[[мес]:[мес]]=$J$5)/(Data_Tech[[год]:[год]]=$L$5)/(Data_Tech[[изд]:[изд]]=$N$1:$T$1)/(Data_Tech[[партия]:[партия]]=$W$1),ROW(U10))),"") -> 0 | W16: =IFERROR(INDEX(Data_Tech[19],_xlfn.AGGREGATE(15,6,(ROW(Data_Tech[19])-ROW(Data_Tech[[#Headers],[19]]))/(Data_Tech[[мес]:[мес]]=$J$5)/(Data_Tech[[год]:[год]]=$L$5)/(Data_Tech[[изд]:[изд]]=$N$1:$T$1)/(Data_Tech[[партия]:[партия]]=$W$1),ROW(V10))),"") -> 8 | X16: =IFERROR(INDEX(Data_Tech[20],_xlfn.AGGREGATE(15,6,(ROW(Data_Tech[20])-ROW(Data_Tech[[#Headers],[20]]))/(Data_Tech[[мес]:[мес]]=$J$5)/(Data_Tech[[год]:[год]]=$L$5)/(Data_Tech[[изд]:[изд]]=$N$1:$T$1)/(Data_Tech[[партия]:[партия]]=$W$1),ROW(W10))),"") -> 8 | Y16: =IFERROR(INDEX(Data_Tech[21],_xlfn.AGGREGATE(15,6,(ROW(Data_Tech[21])-ROW(Data_Tech[[#Headers],[21]]))/(Data_Tech[[мес]:[мес]]=$J$5)/(Data_Tech[[год]:[год]]=$L$5)/(Data_Tech[[изд]:[изд]]=$N$1:$T$1)/(Data_Tech[[партия]:[партия]]=$W$1),ROW(X10))),"") -> 8 | Z16: =IFERROR(INDEX(Data_Tech[22],_xlfn.AGGREGATE(15,6,(ROW(Data_Tech[22])-ROW(Data_Tech[[#Headers],[22]]))/(Data_Tech[[мес]:[мес]]=$J$5)/(Data_Tech[[год]:[год]]=$L$5)/(Data_Tech[[изд]:[изд]]=$N$1:$T$1)/(Data_Tech[[партия]:[партия]]=$W$1),ROW(Y10))),"") -> 8 | AA16: =IFERROR(INDEX(Data_Tech[23],_xlfn.AGGREGATE(15,6,(ROW(Data_Tech[23])-ROW(Data_Tech[[#Headers],[23]]))/(Data_Tech[[мес]:[мес]]=$J$5)/(Data_Tech[[год]:[год]]=$L$5)/(Data_Tech[[изд]:[изд]]=$N$1:$T$1)/(Data_Tech[[партия]:[партия]]=$W$1),ROW(Z10))),"") -> 8 | AB16: =IFERROR(INDEX(Data_Tech[24],_xlfn.AGGREGATE(15,6,(ROW(Data_Tech[24])-ROW(Data_Tech[[#Headers],[24]]))/(Data_Tech[[мес]:[мес]]=$J$5)/(Data_Tech[[год]:[год]]=$L$5)/(Data_Tech[[изд]:[изд]]=$N$1:$T$1)/(Data_Tech[[партия]:[партия]]=$W$1),ROW(AA10))),"") -> 6 | AC16: =IFERROR(INDEX(Data_Tech[25],_xlfn.AGGREGATE(15,6,(ROW(Data_Tech[25])-ROW(Data_Tech[[#Headers],[25]]))/(Data_Tech[[мес]:[мес]]=$J$5)/(Data_Tech[[год]:[год]]=$L$5)/(Data_Tech[[изд]:[изд]]=$N$1:$T$1)/(Data_Tech[[партия]:[партия]]=$W$1),ROW(AB10))),"") -> 0 | AD16: =IFERROR(INDEX(Data_Tech[26],_xlfn.AGGREGATE(15,6,(ROW(Data_Tech[26])-ROW(Data_Tech[[#Headers],[26]]))/(Data_Tech[[мес]:[мес]]=$J$5)/(Data_Tech[[год]:[год]]=$L$5)/(Data_Tech[[изд]:[изд]]=$N$1:$T$1)/(Data_Tech[[партия]:[партия]]=$W$1),ROW(AC10))),"") -> 8 | AE16: =IFERROR(INDEX(Data_Tech[27],_xlfn.AGGREGATE(15,6,(ROW(Data_Tech[27])-ROW(Data_Tech[[#Headers],[27]]))/(Data_Tech[[мес]:[мес]]=$J$5)/(Data_Tech[[год]:[год]]=$L$5)/(Data_Tech[[изд]:[изд]]=$N$1:$T$1)/(Data_Tech[[партия]:[партия]]=$W$1),ROW(AD10))),"") -> 8 | AF16: =IFERROR(INDEX(Data_Tech[28],_xlfn.AGGREGATE(15,6,(ROW(Data_Tech[28])-ROW(Data_Tech[[#Headers],[28]]))/(Data_Tech[[мес]:[мес]]=$J$5)/(Data_Tech[[год]:[год]]=$L$5)/(Data_Tech[[изд]:[изд]]=$N$1:$T$1)/(Data_Tech[[партия]:[партия]]=$W$1),ROW(AE10))),"") -> 8 | AG16: =IFERROR(INDEX(Data_Tech[29],_xlfn.AGGREGATE(15,6,(ROW(Data_Tech[29])-ROW(Data_Tech[[#Headers],[29]]))/(Data_Tech[[мес]:[мес]]=$J$5)/(Data_Tech[[год]:[год]]=$L$5)/(Data_Tech[[изд]:[изд]]=$N$1:$T$1)/(Data_Tech[[партия]:[партия]]=$W$1),ROW(AF10))),"") -> 8 | AH16: =IFERROR(INDEX(Data_Tech[30],_xlfn.AGGREGATE(15,6,(ROW(Data_Tech[30])-ROW(Data_Tech[[#Headers],[30]]))/(Data_Tech[[мес]:[мес]]=$J$5)/(Data_Tech[[год]:[год]]=$L$5)/(Data_Tech[[изд]:[изд]]=$N$1:$T$1)/(Data_Tech[[партия]:[партия]]=$W$1),ROW(AG10))),"") -> 8 | AI16: =IFERROR(INDEX(Data_Tech[31],_xlfn.AGGREGATE(15,6,(ROW(Data_Tech[31])-ROW(Data_Tech[[#Headers],[31]]))/(Data_Tech[[мес]:[мес]]=$J$5)/(Data_Tech[[год]:[год]]=$L$5)/(Data_Tech[[изд]:[изд]]=$N$1:$T$1)/(Data_Tech[[партия]:[партия]]=$W$1),ROW(AH10))),"") -> 6 | AJ16: 122
A17: 11 | B17: =IFERROR(INDEX(Data_Tech[коэф],_xlfn.AGGREGATE(15,6,(ROW(Data_Tech[коэф])-ROW(Data_Tech[[#Headers],[коэф]]))/(Data_Tech[[мес]:[мес]]=$J$5)/(Data_Tech[[год]:[год]]=$L$5)/(Data_Tech[[изд]:[изд]]=$N$1)/(Data_Tech[[партия]:[партия]]=$W$1),ROW(A11))),"") -> 1,4 | C17: =IFERROR(INDEX(Data_Tech[Ф. И. О.],_xlfn.AGGREGATE(15,6,(ROW(Data_Tech[Ф. И. О.])-ROW(Data_Tech[[#Headers],[Ф. И. О.]]))/(Data_Tech[[мес]:[мес]]=$J$5)/(Data_Tech[[год]:[год]]=$L$5)/(Data_Tech[[изд]:[изд]]=$N$1)/(Data_Tech[[партия]:[партия]]=$W$1),ROW(B11))),"") -> Хан Наталия Григорьевна | D17: =IFERROR(INDEX(Data_Tech[р/р],_xlfn.AGGREGATE(15,6,(ROW(Data_Tech[р/р])-ROW(Data_Tech[[#Headers],[р/р]]))/(Data_Tech[[мес]:[мес]]=$J$5)/(Data_Tech[[год]:[год]]=$L$5)/(Data_Tech[[изд]:[изд]]=$N$1)/(Data_Tech[[партия]:[партия]]=$W$1),ROW(C11))),"") -> 3/2 | E17: =IFERROR(INDEX(Data_Tech[1],_xlfn.AGGREGATE(15,6,(ROW(Data_Tech[1])-ROW(Data_Tech[[#Headers],[1]]))/(Data_Tech[[мес]:[мес]]=$J$5)/(Data_Tech[[год]:[год]]=$L$5)/(Data_Tech[[изд]:[изд]]=$N$1:$T$1)/(Data_Tech[[партия]:[партия]]=$W$1),ROW(D11))),"") -> 0 | F17: =IFERROR(INDEX(Data_Tech[2],_xlfn.AGGREGATE(15,6,(ROW(Data_Tech[2])-ROW(Data_Tech[[#Headers],[2]]))/(Data_Tech[[мес]:[мес]]=$J$5)/(Data_Tech[[год]:[год]]=$L$5)/(Data_Tech[[изд]:[изд]]=$N$1:$T$1)/(Data_Tech[[партия]:[партия]]=$W$1),ROW(E11))),"") -> 0 | G17: =IFERROR(INDEX(Data_Tech[3],_xlfn.AGGREGATE(15,6,(ROW(Data_Tech[3])-ROW(Data_Tech[[#Headers],[3]]))/(Data_Tech[[мес]:[мес]]=$J$5)/(Data_Tech[[год]:[год]]=$L$5)/(Data_Tech[[изд]:[изд]]=$N$1:$T$1)/(Data_Tech[[партия]:[партия]]=$W$1),ROW(F11))),"") -> 0 | H17: =IFERROR(INDEX(Data_Tech[4],_xlfn.AGGREGATE(15,6,(ROW(Data_Tech[4])-ROW(Data_Tech[[#Headers],[4]]))/(Data_Tech[[мес]:[мес]]=$J$5)/(Data_Tech[[год]:[год]]=$L$5)/(Data_Tech[[изд]:[изд]]=$N$1:$T$1)/(Data_Tech[[партия]:[партия]]=$W$1),ROW(G11))),"") -> 0 | I17: =IFERROR(INDEX(Data_Tech[5],_xlfn.AGGREGATE(15,6,(ROW(Data_Tech[5])-ROW(Data_Tech[[#Headers],[5]]))/(Data_Tech[[мес]:[мес]]=$J$5)/(Data_Tech[[год]:[год]]=$L$5)/(Data_Tech[[изд]:[изд]]=$N$1:$T$1)/(Data_Tech[[партия]:[партия]]=$W$1),ROW(H11))),"") -> 0 | J17: =IFERROR(INDEX(Data_Tech[6],_xlfn.AGGREGATE(15,6,(ROW(Data_Tech[6])-ROW(Data_Tech[[#Headers],[6]]))/(Data_Tech[[мес]:[мес]]=$J$5)/(Data_Tech[[год]:[год]]=$L$5)/(Data_Tech[[изд]:[изд]]=$N$1:$T$1)/(Data_Tech[[партия]:[партия]]=$W$1),ROW(I11))),"") -> 0 | K17: =IFERROR(INDEX(Data_Tech[7],_xlfn.AGGREGATE(15,6,(ROW(Data_Tech[7])-ROW(Data_Tech[[#Headers],[7]]))/(Data_Tech[[мес]:[мес]]=$J$5)/(Data_Tech[[год]:[год]]=$L$5)/(Data_Tech[[изд]:[изд]]=$N$1:$T$1)/(Data_Tech[[партия]:[партия]]=$W$1),ROW(J11))),"") -> 0 | L17: =IFERROR(INDEX(Data_Tech[8],_xlfn.AGGREGATE(15,6,(ROW(Data_Tech[8])-ROW(Data_Tech[[#Headers],[8]]))/(Data_Tech[[мес]:[мес]]=$J$5)/(Data_Tech[[год]:[год]]=$L$5)/(Data_Tech[[изд]:[изд]]=$N$1:$T$1)/(Data_Tech[[партия]:[партия]]=$W$1),ROW(K11))),"") -> 0 | M17: =IFERROR(INDEX(Data_Tech[9],_xlfn.AGGREGATE(15,6,(ROW(Data_Tech[9])-ROW(Data_Tech[[#Headers],[9]]))/(Data_Tech[[мес]:[мес]]=$J$5)/(Data_Tech[[год]:[год]]=$L$5)/(Data_Tech[[изд]:[изд]]=$N$1:$T$1)/(Data_Tech[[партия]:[партия]]=$W$1),ROW(L11))),"") -> 0 | N17: =IFERROR(INDEX(Data_Tech[10],_xlfn.AGGREGATE(15,6,(ROW(Data_Tech[10])-ROW(Data_Tech[[#Headers],[10]]))/(Data_Tech[[мес]:[мес]]=$J$5)/(Data_Tech[[год]:[год]]=$L$5)/(Data_Tech[[изд]:[изд]]=$N$1:$T$1)/(Data_Tech[[партия]:[партия]]=$W$1),ROW(M11))),"") -> 0 | O17: =IFERROR(INDEX(Data_Tech[11],_xlfn.AGGREGATE(15,6,(ROW(Data_Tech[11])-ROW(Data_Tech[[#Headers],[11]]))/(Data_Tech[[мес]:[мес]]=$J$5)/(Data_Tech[[год]:[год]]=$L$5)/(Data_Tech[[изд]:[изд]]=$N$1:$T$1)/(Data_Tech[[партия]:[партия]]=$W$1),ROW(N11))),"") -> 0 | P17: =IFERROR(INDEX(Data_Tech[12],_xlfn.AGGREGATE(15,6,(ROW(Data_Tech[12])-ROW(Data_Tech[[#Headers],[12]]))/(Data_Tech[[мес]:[мес]]=$J$5)/(Data_Tech[[год]:[год]]=$L$5)/(Data_Tech[[изд]:[изд]]=$N$1:$T$1)/(Data_Tech[[партия]:[партия]]=$W$1),ROW(O11))),"") -> 0 | Q17: =IFERROR(INDEX(Data_Tech[13],_xlfn.AGGREGATE(15,6,(ROW(Data_Tech[13])-ROW(Data_Tech[[#Headers],[13]]))/(Data_Tech[[мес]:[мес]]=$J$5)/(Data_Tech[[год]:[год]]=$L$5)/(Data_Tech[[изд]:[изд]]=$N$1:$T$1)/(Data_Tech[[партия]:[партия]]=$W$1),ROW(P11))),"") -> 0 | R17: =IFERROR(INDEX(Data_Tech[14],_xlfn.AGGREGATE(15,6,(ROW(Data_Tech[14])-ROW(Data_Tech[[#Headers],[14]]))/(Data_Tech[[мес]:[мес]]=$J$5)/(Data_Tech[[год]:[год]]=$L$5)/(Data_Tech[[изд]:[изд]]=$N$1:$T$1)/(Data_Tech[[партия]:[партия]]=$W$1),ROW(Q11))),"") -> 0 | S17: =IFERROR(INDEX(Data_Tech[15],_xlfn.AGGREGATE(15,6,(ROW(Data_Tech[15])-ROW(Data_Tech[[#Headers],[15]]))/(Data_Tech[[мес]:[мес]]=$J$5)/(Data_Tech[[год]:[год]]=$L$5)/(Data_Tech[[изд]:[изд]]=$N$1:$T$1)/(Data_Tech[[партия]:[партия]]=$W$1),ROW(R11))),"") -> 0 | T17: =IFERROR(INDEX(Data_Tech[16],_xlfn.AGGREGATE(15,6,(ROW(Data_Tech[16])-ROW(Data_Tech[[#Headers],[16]]))/(Data_Tech[[мес]:[мес]]=$J$5)/(Data_Tech[[год]:[год]]=$L$5)/(Data_Tech[[изд]:[изд]]=$N$1:$T$1)/(Data_Tech[[партия]:[партия]]=$W$1),ROW(S11))),"") -> 8 | U17: =IFERROR(INDEX(Data_Tech[17],_xlfn.AGGREGATE(15,6,(ROW(Data_Tech[17])-ROW(Data_Tech[[#Headers],[17]]))/(Data_Tech[[мес]:[мес]]=$J$5)/(Data_Tech[[год]:[год]]=$L$5)/(Data_Tech[[изд]:[изд]]=$N$1:$T$1)/(Data_Tech[[партия]:[партия]]=$W$1),ROW(T11))),"") -> 0 | V17: =IFERROR(INDEX(Data_Tech[18],_xlfn.AGGREGATE(15,6,(ROW(Data_Tech[18])-ROW(Data_Tech[[#Headers],[18]]))/(Data_Tech[[мес]:[мес]]=$J$5)/(Data_Tech[[год]:[год]]=$L$5)/(Data_Tech[[изд]:[изд]]=$N$1:$T$1)/(Data_Tech[[партия]:[партия]]=$W$1),ROW(U11))),"") -> 0 | W17: =IFERROR(INDEX(Data_Tech[19],_xlfn.AGGREGATE(15,6,(ROW(Data_Tech[19])-ROW(Data_Tech[[#Headers],[19]]))/(Data_Tech[[мес]:[мес]]=$J$5)/(Data_Tech[[год]:[год]]=$L$5)/(Data_Tech[[изд]:[изд]]=$N$1:$T$1)/(Data_Tech[[партия]:[партия]]=$W$1),ROW(V11))),"") -> 0 | X17: =IFERROR(INDEX(Data_Tech[20],_xlfn.AGGREGATE(15,6,(ROW(Data_Tech[20])-ROW(Data_Tech[[#Headers],[20]]))/(Data_Tech[[мес]:[мес]]=$J$5)/(Data_Tech[[год]:[год]]=$L$5)/(Data_Tech[[изд]:[изд]]=$N$1:$T$1)/(Data_Tech[[партия]:[партия]]=$W$1),ROW(W11))),"") -> 0 | Y17: =IFERROR(INDEX(Data_Tech[21],_xlfn.AGGREGATE(15,6,(ROW(Data_Tech[21])-ROW(Data_Tech[[#Headers],[21]]))/(Data_Tech[[мес]:[мес]]=$J$5)/(Data_Tech[[год]:[год]]=$L$5)/(Data_Tech[[изд]:[изд]]=$N$1:$T$1)/(Data_Tech[[партия]:[партия]]=$W$1),ROW(X11))),"") -> 0 | Z17: =IFERROR(INDEX(Data_Tech[22],_xlfn.AGGREGATE(15,6,(ROW(Data_Tech[22])-ROW(Data_Tech[[#Headers],[22]]))/(Data_Tech[[мес]:[мес]]=$J$5)/(Data_Tech[[год]:[год]]=$L$5)/(Data_Tech[[изд]:[изд]]=$N$1:$T$1)/(Data_Tech[[партия]:[партия]]=$W$1),ROW(Y11))),"") -> 0 | AA17: =IFERROR(INDEX(Data_Tech[23],_xlfn.AGGREGATE(15,6,(ROW(Data_Tech[23])-ROW(Data_Tech[[#Headers],[23]]))/(Data_Tech[[мес]:[мес]]=$J$5)/(Data_Tech[[год]:[год]]=$L$5)/(Data_Tech[[изд]:[изд]]=$N$1:$T$1)/(Data_Tech[[партия]:[партия]]=$W$1),ROW(Z11))),"") -> 0 | AB17: =IFERROR(INDEX(Data_Tech[24],_xlfn.AGGREGATE(15,6,(ROW(Data_Tech[24])-ROW(Data_Tech[[#Headers],[24]]))/(Data_Tech[[мес]:[мес]]=$J$5)/(Data_Tech[[год]:[год]]=$L$5)/(Data_Tech[[изд]:[изд]]=$N$1:$T$1)/(Data_Tech[[партия]:[партия]]=$W$1),ROW(AA11))),"") -> 0 | AC17: =IFERROR(INDEX(Data_Tech[25],_xlfn.AGGREGATE(15,6,(ROW(Data_Tech[25])-ROW(Data_Tech[[#Headers],[25]]))/(Data_Tech[[мес]:[мес]]=$J$5)/(Data_Tech[[год]:[год]]=$L$5)/(Data_Tech[[изд]:[изд]]=$N$1:$T$1)/(Data_Tech[[партия]:[партия]]=$W$1),ROW(AB11))),"") -> 0 | AD17: =IFERROR(INDEX(Data_Tech[26],_xlfn.AGGREGATE(15,6,(ROW(Data_Tech[26])-ROW(Data_Tech[[#Headers],[26]]))/(Data_Tech[[мес]:[мес]]=$J$5)/(Data_Tech[[год]:[год]]=$L$5)/(Data_Tech[[изд]:[изд]]=$N$1:$T$1)/(Data_Tech[[партия]:[партия]]=$W$1),ROW(AC11))),"") -> 0 | AE17: =IFERROR(INDEX(Data_Tech[27],_xlfn.AGGREGATE(15,6,(ROW(Data_Tech[27])-ROW(Data_Tech[[#Headers],[27]]))/(Data_Tech[[мес]:[мес]]=$J$5)/(Data_Tech[[год]:[год]]=$L$5)/(Data_Tech[[изд]:[изд]]=$N$1:$T$1)/(Data_Tech[[партия]:[партия]]=$W$1),ROW(AD11))),"") -> 0 | AF17: =IFERROR(INDEX(Data_Tech[28],_xlfn.AGGREGATE(15,6,(ROW(Data_Tech[28])-ROW(Data_Tech[[#Headers],[28]]))/(Data_Tech[[мес]:[мес]]=$J$5)/(Data_Tech[[год]:[год]]=$L$5)/(Data_Tech[[изд]:[изд]]=$N$1:$T$1)/(Data_Tech[[партия]:[партия]]=$W$1),ROW(AE11))),"") -> 0 | AG17: =IFERROR(INDEX(Data_Tech[29],_xlfn.AGGREGATE(15,6,(ROW(Data_Tech[29])-ROW(Data_Tech[[#Headers],[29]]))/(Data_Tech[[мес]:[мес]]=$J$5)/(Data_Tech[[год]:[год]]=$L$5)/(Data_Tech[[изд]:[изд]]=$N$1:$T$1)/(Data_Tech[[партия]:[партия]]=$W$1),ROW(AF11))),"") -> 0 | AH17: =IFERROR(INDEX(Data_Tech[30],_xlfn.AGGREGATE(15,6,(ROW(Data_Tech[30])-ROW(Data_Tech[[#Headers],[30]]))/(Data_Tech[[мес]:[мес]]=$J$5)/(Data_Tech[[год]:[год]]=$L$5)/(Data_Tech[[изд]:[изд]]=$N$1:$T$1)/(Data_Tech[[партия]:[партия]]=$W$1),ROW(AG11))),"") -> 0 | AI17: =IFERROR(INDEX(Data_Tech[31],_xlfn.AGGREGATE(15,6,(ROW(Data_Tech[31])-ROW(Data_Tech[[#Headers],[31]]))/(Data_Tech[[мес]:[мес]]=$J$5)/(Data_Tech[[год]:[год]]=$L$5)/(Data_Tech[[изд]:[изд]]=$N$1:$T$1)/(Data_Tech[[партия]:[партия]]=$W$1),ROW(AH11))),"") -> 0 | AJ17: 8
A18: 12 | B18: =IFERROR(INDEX(Data_Tech[коэф],_xlfn.AGGREGATE(15,6,(ROW(Data_Tech[коэф])-ROW(Data_Tech[[#Headers],[коэф]]))/(Data_Tech[[мес]:[мес]]=$J$5)/(Data_Tech[[год]:[год]]=$L$5)/(Data_Tech[[изд]:[изд]]=$N$1)/(Data_Tech[[партия]:[партия]]=$W$1),ROW(A12))),"") -> 1,5 | C18: =IFERROR(INDEX(Data_Tech[Ф. И. О.],_xlfn.AGGREGATE(15,6,(ROW(Data_Tech[Ф. И. О.])-ROW(Data_Tech[[#Headers],[Ф. И. О.]]))/(Data_Tech[[мес]:[мес]]=$J$5)/(Data_Tech[[год]:[год]]=$L$5)/(Data_Tech[[изд]:[изд]]=$N$1)/(Data_Tech[[партия]:[партия]]=$W$1),ROW(B12))),"") -> Королёва Надежда Игоревна | D18: =IFERROR(INDEX(Data_Tech[р/р],_xlfn.AGGREGATE(15,6,(ROW(Data_Tech[р/р])-ROW(Data_Tech[[#Headers],[р/р]]))/(Data_Tech[[мес]:[мес]]=$J$5)/(Data_Tech[[год]:[год]]=$L$5)/(Data_Tech[[изд]:[изд]]=$N$1)/(Data_Tech[[партия]:[партия]]=$W$1),ROW(C12))),"") -> 4/8 | E18: =IFERROR(INDEX(Data_Tech[1],_xlfn.AGGREGATE(15,6,(ROW(Data_Tech[1])-ROW(Data_Tech[[#Headers],[1]]))/(Data_Tech[[мес]:[мес]]=$J$5)/(Data_Tech[[год]:[год]]=$L$5)/(Data_Tech[[изд]:[изд]]=$N$1:$T$1)/(Data_Tech[[партия]:[партия]]=$W$1),ROW(D12))),"") -> 0 | F18: =IFERROR(INDEX(Data_Tech[2],_xlfn.AGGREGATE(15,6,(ROW(Data_Tech[2])-ROW(Data_Tech[[#Headers],[2]]))/(Data_Tech[[мес]:[мес]]=$J$5)/(Data_Tech[[год]:[год]]=$L$5)/(Data_Tech[[изд]:[изд]]=$N$1:$T$1)/(Data_Tech[[партия]:[партия]]=$W$1),ROW(E12))),"") -> 0 | G18: =IFERROR(INDEX(Data_Tech[3],_xlfn.AGGREGATE(15,6,(ROW(Data_Tech[3])-ROW(Data_Tech[[#Headers],[3]]))/(Data_Tech[[мес]:[мес]]=$J$5)/(Data_Tech[[год]:[год]]=$L$5)/(Data_Tech[[изд]:[изд]]=$N$1:$T$1)/(Data_Tech[[партия]:[партия]]=$W$1),ROW(F12))),"") -> 0 | H18: =IFERROR(INDEX(Data_Tech[4],_xlfn.AGGREGATE(15,6,(ROW(Data_Tech[4])-ROW(Data_Tech[[#Headers],[4]]))/(Data_Tech[[мес]:[мес]]=$J$5)/(Data_Tech[[год]:[год]]=$L$5)/(Data_Tech[[изд]:[изд]]=$N$1:$T$1)/(Data_Tech[[партия]:[партия]]=$W$1),ROW(G12))),"") -> 0 | I18: =IFERROR(INDEX(Data_Tech[5],_xlfn.AGGREGATE(15,6,(ROW(Data_Tech[5])-ROW(Data_Tech[[#Headers],[5]]))/(Data_Tech[[мес]:[мес]]=$J$5)/(Data_Tech[[год]:[год]]=$L$5)/(Data_Tech[[изд]:[изд]]=$N$1:$T$1)/(Data_Tech[[партия]:[партия]]=$W$1),ROW(H12))),"") -> 0 | J18: =IFERROR(INDEX(Data_Tech[6],_xlfn.AGGREGATE(15,6,(ROW(Data_Tech[6])-ROW(Data_Tech[[#Headers],[6]]))/(Data_Tech[[мес]:[мес]]=$J$5)/(Data_Tech[[год]:[год]]=$L$5)/(Data_Tech[[изд]:[изд]]=$N$1:$T$1)/(Data_Tech[[партия]:[партия]]=$W$1),ROW(I12))),"") -> 0 | K18: =IFERROR(INDEX(Data_Tech[7],_xlfn.AGGREGATE(15,6,(ROW(Data_Tech[7])-ROW(Data_Tech[[#Headers],[7]]))/(Data_Tech[[мес]:[мес]]=$J$5)/(Data_Tech[[год]:[год]]=$L$5)/(Data_Tech[[изд]:[изд]]=$N$1:$T$1)/(Data_Tech[[партия]:[партия]]=$W$1),ROW(J12))),"") -> 0 | L18: =IFERROR(INDEX(Data_Tech[8],_xlfn.AGGREGATE(15,6,(ROW(Data_Tech[8])-ROW(Data_Tech[[#Headers],[8]]))/(Data_Tech[[мес]:[мес]]=$J$5)/(Data_Tech[[год]:[год]]=$L$5)/(Data_Tech[[изд]:[изд]]=$N$1:$T$1)/(Data_Tech[[партия]:[партия]]=$W$1),ROW(K12))),"") -> 0 | M18: =IFERROR(INDEX(Data_Tech[9],_xlfn.AGGREGATE(15,6,(ROW(Data_Tech[9])-ROW(Data_Tech[[#Headers],[9]]))/(Data_Tech[[мес]:[мес]]=$J$5)/(Data_Tech[[год]:[год]]=$L$5)/(Data_Tech[[изд]:[изд]]=$N$1:$T$1)/(Data_Tech[[партия]:[партия]]=$W$1),ROW(L12))),"") -> 0 | N18: =IFERROR(INDEX(Data_Tech[10],_xlfn.AGGREGATE(15,6,(ROW(Data_Tech[10])-ROW(Data_Tech[[#Headers],[10]]))/(Data_Tech[[мес]:[мес]]=$J$5)/(Data_Tech[[год]:[год]]=$L$5)/(Data_Tech[[изд]:[изд]]=$N$1:$T$1)/(Data_Tech[[партия]:[партия]]=$W$1),ROW(M12))),"") -> 0 | O18: =IFERROR(INDEX(Data_Tech[11],_xlfn.AGGREGATE(15,6,(ROW(Data_Tech[11])-ROW(Data_Tech[[#Headers],[11]]))/(Data_Tech[[мес]:[мес]]=$J$5)/(Data_Tech[[год]:[год]]=$L$5)/(Data_Tech[[изд]:[изд]]=$N$1:$T$1)/(Data_Tech[[партия]:[партия]]=$W$1),ROW(N12))),"") -> 0 | P18: =IFERROR(INDEX(Data_Tech[12],_xlfn.AGGREGATE(15,6,(ROW(Data_Tech[12])-ROW(Data_Tech[[#Headers],[12]]))/(Data_Tech[[мес]:[мес]]=$J$5)/(Data_Tech[[год]:[год]]=$L$5)/(Data_Tech[[изд]:[изд]]=$N$1:$T$1)/(Data_Tech[[партия]:[партия]]=$W$1),ROW(O12))),"") -> 0 | Q18: =IFERROR(INDEX(Data_Tech[13],_xlfn.AGGREGATE(15,6,(ROW(Data_Tech[13])-ROW(Data_Tech[[#Headers],[13]]))/(Data_Tech[[мес]:[мес]]=$J$5)/(Data_Tech[[год]:[год]]=$L$5)/(Data_Tech[[изд]:[изд]]=$N$1:$T$1)/(Data_Tech[[партия]:[партия]]=$W$1),ROW(P12))),"") -> 0 | R18: =IFERROR(INDEX(Data_Tech[14],_xlfn.AGGREGATE(15,6,(ROW(Data_Tech[14])-ROW(Data_Tech[[#Headers],[14]]))/(Data_Tech[[мес]:[мес]]=$J$5)/(Data_Tech[[год]:[год]]=$L$5)/(Data_Tech[[изд]:[изд]]=$N$1:$T$1)/(Data_Tech[[партия]:[партия]]=$W$1),ROW(Q12))),"") -> 0 | S18: =IFERROR(INDEX(Data_Tech[15],_xlfn.AGGREGATE(15,6,(ROW(Data_Tech[15])-ROW(Data_Tech[[#Headers],[15]]))/(Data_Tech[[мес]:[мес]]=$J$5)/(Data_Tech[[год]:[год]]=$L$5)/(Data_Tech[[изд]:[изд]]=$N$1:$T$1)/(Data_Tech[[партия]:[партия]]=$W$1),ROW(R12))),"") -> 0 | T18: =IFERROR(INDEX(Data_Tech[16],_xlfn.AGGREGATE(15,6,(ROW(Data_Tech[16])-ROW(Data_Tech[[#Headers],[16]]))/(Data_Tech[[мес]:[мес]]=$J$5)/(Data_Tech[[год]:[год]]=$L$5)/(Data_Tech[[изд]:[изд]]=$N$1:$T$1)/(Data_Tech[[партия]:[партия]]=$W$1),ROW(S12))),"") -> 8 | U18: =IFERROR(INDEX(Data_Tech[17],_xlfn.AGGREGATE(15,6,(ROW(Data_Tech[17])-ROW(Data_Tech[[#Headers],[17]]))/(Data_Tech[[мес]:[мес]]=$J$5)/(Data_Tech[[год]:[год]]=$L$5)/(Data_Tech[[изд]:[изд]]=$N$1:$T$1)/(Data_Tech[[партия]:[партия]]=$W$1),ROW(T12))),"") -> 0 | V18: =IFERROR(INDEX(Data_Tech[18],_xlfn.AGGREGATE(15,6,(ROW(Data_Tech[18])-ROW(Data_Tech[[#Headers],[18]]))/(Data_Tech[[мес]:[мес]]=$J$5)/(Data_Tech[[год]:[год]]=$L$5)/(Data_Tech[[изд]:[изд]]=$N$1:$T$1)/(Data_Tech[[партия]:[партия]]=$W$1),ROW(U12))),"") -> 0 | W18: =IFERROR(INDEX(Data_Tech[19],_xlfn.AGGREGATE(15,6,(ROW(Data_Tech[19])-ROW(Data_Tech[[#Headers],[19]]))/(Data_Tech[[мес]:[мес]]=$J$5)/(Data_Tech[[год]:[год]]=$L$5)/(Data_Tech[[изд]:[изд]]=$N$1:$T$1)/(Data_Tech[[партия]:[партия]]=$W$1),ROW(V12))),"") -> 0 | X18: =IFERROR(INDEX(Data_Tech[20],_xlfn.AGGREGATE(15,6,(ROW(Data_Tech[20])-ROW(Data_Tech[[#Headers],[20]]))/(Data_Tech[[мес]:[мес]]=$J$5)/(Data_Tech[[год]:[год]]=$L$5)/(Data_Tech[[изд]:[изд]]=$N$1:$T$1)/(Data_Tech[[партия]:[партия]]=$W$1),ROW(W12))),"") -> 0 | Y18: =IFERROR(INDEX(Data_Tech[21],_xlfn.AGGREGATE(15,6,(ROW(Data_Tech[21])-ROW(Data_Tech[[#Headers],[21]]))/(Data_Tech[[мес]:[мес]]=$J$5)/(Data_Tech[[год]:[год]]=$L$5)/(Data_Tech[[изд]:[изд]]=$N$1:$T$1)/(Data_Tech[[партия]:[партия]]=$W$1),ROW(X12))),"") -> 0 | Z18: =IFERROR(INDEX(Data_Tech[22],_xlfn.AGGREGATE(15,6,(ROW(Data_Tech[22])-ROW(Data_Tech[[#Headers],[22]]))/(Data_Tech[[мес]:[мес]]=$J$5)/(Data_Tech[[год]:[год]]=$L$5)/(Data_Tech[[изд]:[изд]]=$N$1:$T$1)/(Data_Tech[[партия]:[партия]]=$W$1),ROW(Y12))),"") -> 0 | AA18: =IFERROR(INDEX(Data_Tech[23],_xlfn.AGGREGATE(15,6,(ROW(Data_Tech[23])-ROW(Data_Tech[[#Headers],[23]]))/(Data_Tech[[мес]:[мес]]=$J$5)/(Data_Tech[[год]:[год]]=$L$5)/(Data_Tech[[изд]:[изд]]=$N$1:$T$1)/(Data_Tech[[партия]:[партия]]=$W$1),ROW(Z12))),"") -> 0 | AB18: =IFERROR(INDEX(Data_Tech[24],_xlfn.AGGREGATE(15,6,(ROW(Data_Tech[24])-ROW(Data_Tech[[#Headers],[24]]))/(Data_Tech[[мес]:[мес]]=$J$5)/(Data_Tech[[год]:[год]]=$L$5)/(Data_Tech[[изд]:[изд]]=$N$1:$T$1)/(Data_Tech[[партия]:[партия]]=$W$1),ROW(AA12))),"") -> 0 | AC18: =IFERROR(INDEX(Data_Tech[25],_xlfn.AGGREGATE(15,6,(ROW(Data_Tech[25])-ROW(Data_Tech[[#Headers],[25]]))/(Data_Tech[[мес]:[мес]]=$J$5)/(Data_Tech[[год]:[год]]=$L$5)/(Data_Tech[[изд]:[изд]]=$N$1:$T$1)/(Data_Tech[[партия]:[партия]]=$W$1),ROW(AB12))),"") -> 0 | AD18: =IFERROR(INDEX(Data_Tech[26],_xlfn.AGGREGATE(15,6,(ROW(Data_Tech[26])-ROW(Data_Tech[[#Headers],[26]]))/(Data_Tech[[мес]:[мес]]=$J$5)/(Data_Tech[[год]:[год]]=$L$5)/(Data_Tech[[изд]:[изд]]=$N$1:$T$1)/(Data_Tech[[партия]:[партия]]=$W$1),ROW(AC12))),"") -> 8 | AE18: =IFERROR(INDEX(Data_Tech[27],_xlfn.AGGREGATE(15,6,(ROW(Data_Tech[27])-ROW(Data_Tech[[#Headers],[27]]))/(Data_Tech[[мес]:[мес]]=$J$5)/(Data_Tech[[год]:[год]]=$L$5)/(Data_Tech[[изд]:[изд]]=$N$1:$T$1)/(Data_Tech[[партия]:[партия]]=$W$1),ROW(AD12))),"") -> 0 | AF18: =IFERROR(INDEX(Data_Tech[28],_xlfn.AGGREGATE(15,6,(ROW(Data_Tech[28])-ROW(Data_Tech[[#Headers],[28]]))/(Data_Tech[[мес]:[мес]]=$J$5)/(Data_Tech[[год]:[год]]=$L$5)/(Data_Tech[[изд]:[изд]]=$N$1:$T$1)/(Data_Tech[[партия]:[партия]]=$W$1),ROW(AE12))),"") -> 0 | AG18: =IFERROR(INDEX(Data_Tech[29],_xlfn.AGGREGATE(15,6,(ROW(Data_Tech[29])-ROW(Data_Tech[[#Headers],[29]]))/(Data_Tech[[мес]:[мес]]=$J$5)/(Data_Tech[[год]:[год]]=$L$5)/(Data_Tech[[изд]:[изд]]=$N$1:$T$1)/(Data_Tech[[партия]:[партия]]=$W$1),ROW(AF12))),"") -> 0 | AH18: =IFERROR(INDEX(Data_Tech[30],_xlfn.AGGREGATE(15,6,(ROW(Data_Tech[30])-ROW(Data_Tech[[#Headers],[30]]))/(Data_Tech[[мес]:[мес]]=$J$5)/(Data_Tech[[год]:[год]]=$L$5)/(Data_Tech[[изд]:[изд]]=$N$1:$T$1)/(Data_Tech[[партия]:[партия]]=$W$1),ROW(AG12))),"") -> 0 | AI18: =IFERROR(INDEX(Data_Tech[31],_xlfn.AGGREGATE(15,6,(ROW(Data_Tech[31])-ROW(Data_Tech[[#Headers],[31]]))/(Data_Tech[[мес]:[мес]]=$J$5)/(Data_Tech[[год]:[год]]=$L$5)/(Data_Tech[[изд]:[изд]]=$N$1:$T$1)/(Data_Tech[[партия]:[партия]]=$W$1),ROW(AH12))),"") -> 0 | AJ18: 16
A19: 13 | B19: =IFERROR(INDEX(Data_Tech[коэф],_xlfn.AGGREGATE(15,6,(ROW(Data_Tech[коэф])-ROW(Data_Tech[[#Headers],[коэф]]))/(Data_Tech[[мес]:[мес]]=$J$5)/(Data_Tech[[год]:[год]]=$L$5)/(Data_Tech[[изд]:[изд]]=$N$1)/(Data_Tech[[партия]:[партия]]=$W$1),ROW(A13))),"") -> 1 | C19: =IFERROR(INDEX(Data_Tech[Ф. И. О.],_xlfn.AGGREGATE(15,6,(ROW(Data_Tech[Ф. И. О.])-ROW(Data_Tech[[#Headers],[Ф. И. О.]]))/(Data_Tech[[мес]:[мес]]=$J$5)/(Data_Tech[[год]:[год]]=$L$5)/(Data_Tech[[изд]:[изд]]=$N$1)/(Data_Tech[[партия]:[партия]]=$W$1),ROW(B13))),"") -> Иванова Инна Игоревна | D19: =IFERROR(INDEX(Data_Tech[р/р],_xlfn.AGGREGATE(15,6,(ROW(Data_Tech[р/р])-ROW(Data_Tech[[#Headers],[р/р]]))/(Data_Tech[[мес]:[мес]]=$J$5)/(Data_Tech[[год]:[год]]=$L$5)/(Data_Tech[[изд]:[изд]]=$N$1)/(Data_Tech[[партия]:[партия]]=$W$1),ROW(C13))),"") -> 3/2 | E19: =IFERROR(INDEX(Data_Tech[1],_xlfn.AGGREGATE(15,6,(ROW(Data_Tech[1])-ROW(Data_Tech[[#Headers],[1]]))/(Data_Tech[[мес]:[мес]]=$J$5)/(Data_Tech[[год]:[год]]=$L$5)/(Data_Tech[[изд]:[изд]]=$N$1:$T$1)/(Data_Tech[[партия]:[партия]]=$W$1),ROW(D13))),"") -> 0 | F19: =IFERROR(INDEX(Data_Tech[2],_xlfn.AGGREGATE(15,6,(ROW(Data_Tech[2])-ROW(Data_Tech[[#Headers],[2]]))/(Data_Tech[[мес]:[мес]]=$J$5)/(Data_Tech[[год]:[год]]=$L$5)/(Data_Tech[[изд]:[изд]]=$N$1:$T$1)/(Data_Tech[[партия]:[партия]]=$W$1),ROW(E13))),"") -> 0 | G19: =IFERROR(INDEX(Data_Tech[3],_xlfn.AGGREGATE(15,6,(ROW(Data_Tech[3])-ROW(Data_Tech[[#Headers],[3]]))/(Data_Tech[[мес]:[мес]]=$J$5)/(Data_Tech[[год]:[год]]=$L$5)/(Data_Tech[[изд]:[изд]]=$N$1:$T$1)/(Data_Tech[[партия]:[партия]]=$W$1),ROW(F13))),"") -> 0 | H19: =IFERROR(INDEX(Data_Tech[4],_xlfn.AGGREGATE(15,6,(ROW(Data_Tech[4])-ROW(Data_Tech[[#Headers],[4]]))/(Data_Tech[[мес]:[мес]]=$J$5)/(Data_Tech[[год]:[год]]=$L$5)/(Data_Tech[[изд]:[изд]]=$N$1:$T$1)/(Data_Tech[[партия]:[партия]]=$W$1),ROW(G13))),"") -> 0 | I19: =IFERROR(INDEX(Data_Tech[5],_xlfn.AGGREGATE(15,6,(ROW(Data_Tech[5])-ROW(Data_Tech[[#Headers],[5]]))/(Data_Tech[[мес]:[мес]]=$J$5)/(Data_Tech[[год]:[год]]=$L$5)/(Data_Tech[[изд]:[изд]]=$N$1:$T$1)/(Data_Tech[[партия]:[партия]]=$W$1),ROW(H13))),"") -> 0 | J19: =IFERROR(INDEX(Data_Tech[6],_xlfn.AGGREGATE(15,6,(ROW(Data_Tech[6])-ROW(Data_Tech[[#Headers],[6]]))/(Data_Tech[[мес]:[мес]]=$J$5)/(Data_Tech[[год]:[год]]=$L$5)/(Data_Tech[[изд]:[изд]]=$N$1:$T$1)/(Data_Tech[[партия]:[партия]]=$W$1),ROW(I13))),"") -> 0 | K19: =IFERROR(INDEX(Data_Tech[7],_xlfn.AGGREGATE(15,6,(ROW(Data_Tech[7])-ROW(Data_Tech[[#Headers],[7]]))/(Data_Tech[[мес]:[мес]]=$J$5)/(Data_Tech[[год]:[год]]=$L$5)/(Data_Tech[[изд]:[изд]]=$N$1:$T$1)/(Data_Tech[[партия]:[партия]]=$W$1),ROW(J13))),"") -> 0 | L19: =IFERROR(INDEX(Data_Tech[8],_xlfn.AGGREGATE(15,6,(ROW(Data_Tech[8])-ROW(Data_Tech[[#Headers],[8]]))/(Data_Tech[[мес]:[мес]]=$J$5)/(Data_Tech[[год]:[год]]=$L$5)/(Data_Tech[[изд]:[изд]]=$N$1:$T$1)/(Data_Tech[[партия]:[партия]]=$W$1),ROW(K13))),"") -> 0 | M19: =IFERROR(INDEX(Data_Tech[9],_xlfn.AGGREGATE(15,6,(ROW(Data_Tech[9])-ROW(Data_Tech[[#Headers],[9]]))/(Data_Tech[[мес]:[мес]]=$J$5)/(Data_Tech[[год]:[год]]=$L$5)/(Data_Tech[[изд]:[изд]]=$N$1:$T$1)/(Data_Tech[[партия]:[партия]]=$W$1),ROW(L13))),"") -> 0 | N19: =IFERROR(INDEX(Data_Tech[10],_xlfn.AGGREGATE(15,6,(ROW(Data_Tech[10])-ROW(Data_Tech[[#Headers],[10]]))/(Data_Tech[[мес]:[мес]]=$J$5)/(Data_Tech[[год]:[год]]=$L$5)/(Data_Tech[[изд]:[изд]]=$N$1:$T$1)/(Data_Tech[[партия]:[партия]]=$W$1),ROW(M13))),"") -> 0 | O19: =IFERROR(INDEX(Data_Tech[11],_xlfn.AGGREGATE(15,6,(ROW(Data_Tech[11])-ROW(Data_Tech[[#Headers],[11]]))/(Data_Tech[[мес]:[мес]]=$J$5)/(Data_Tech[[год]:[год]]=$L$5)/(Data_Tech[[изд]:[изд]]=$N$1:$T$1)/(Data_Tech[[партия]:[партия]]=$W$1),ROW(N13))),"") -> 0 | P19: =IFERROR(INDEX(Data_Tech[12],_xlfn.AGGREGATE(15,6,(ROW(Data_Tech[12])-ROW(Data_Tech[[#Headers],[12]]))/(Data_Tech[[мес]:[мес]]=$J$5)/(Data_Tech[[год]:[год]]=$L$5)/(Data_Tech[[изд]:[изд]]=$N$1:$T$1)/(Data_Tech[[партия]:[партия]]=$W$1),ROW(O13))),"") -> 0 | Q19: =IFERROR(INDEX(Data_Tech[13],_xlfn.AGGREGATE(15,6,(ROW(Data_Tech[13])-ROW(Data_Tech[[#Headers],[13]]))/(Data_Tech[[мес]:[мес]]=$J$5)/(Data_Tech[[год]:[год]]=$L$5)/(Data_Tech[[изд]:[изд]]=$N$1:$T$1)/(Data_Tech[[партия]:[партия]]=$W$1),ROW(P13))),"") -> 0 | R19: =IFERROR(INDEX(Data_Tech[14],_xlfn.AGGREGATE(15,6,(ROW(Data_Tech[14])-ROW(Data_Tech[[#Headers],[14]]))/(Data_Tech[[мес]:[мес]]=$J$5)/(Data_Tech[[год]:[год]]=$L$5)/(Data_Tech[[изд]:[изд]]=$N$1:$T$1)/(Data_Tech[[партия]:[партия]]=$W$1),ROW(Q13))),"") -> 0 | S19: =IFERROR(INDEX(Data_Tech[15],_xlfn.AGGREGATE(15,6,(ROW(Data_Tech[15])-ROW(Data_Tech[[#Headers],[15]]))/(Data_Tech[[мес]:[мес]]=$J$5)/(Data_Tech[[год]:[год]]=$L$5)/(Data_Tech[[изд]:[изд]]=$N$1:$T$1)/(Data_Tech[[партия]:[партия]]=$W$1),ROW(R13))),"") -> 0 | T19: =IFERROR(INDEX(Data_Tech[16],_xlfn.AGGREGATE(15,6,(ROW(Data_Tech[16])-ROW(Data_Tech[[#Headers],[16]]))/(Data_Tech[[мес]:[мес]]=$J$5)/(Data_Tech[[год]:[год]]=$L$5)/(Data_Tech[[изд]:[изд]]=$N$1:$T$1)/(Data_Tech[[партия]:[партия]]=$W$1),ROW(S13))),"") -> 8 | U19: =IFERROR(INDEX(Data_Tech[17],_xlfn.AGGREGATE(15,6,(ROW(Data_Tech[17])-ROW(Data_Tech[[#Headers],[17]]))/(Data_Tech[[мес]:[мес]]=$J$5)/(Data_Tech[[год]:[год]]=$L$5)/(Data_Tech[[изд]:[изд]]=$N$1:$T$1)/(Data_Tech[[партия]:[партия]]=$W$1),ROW(T13))),"") -> 0 | V19: =IFERROR(INDEX(Data_Tech[18],_xlfn.AGGREGATE(15,6,(ROW(Data_Tech[18])-ROW(Data_Tech[[#Headers],[18]]))/(Data_Tech[[мес]:[мес]]=$J$5)/(Data_Tech[[год]:[год]]=$L$5)/(Data_Tech[[изд]:[изд]]=$N$1:$T$1)/(Data_Tech[[партия]:[партия]]=$W$1),ROW(U13))),"") -> 0 | W19: =IFERROR(INDEX(Data_Tech[19],_xlfn.AGGREGATE(15,6,(ROW(Data_Tech[19])-ROW(Data_Tech[[#Headers],[19]]))/(Data_Tech[[мес]:[мес]]=$J$5)/(Data_Tech[[год]:[год]]=$L$5)/(Data_Tech[[изд]:[изд]]=$N$1:$T$1)/(Data_Tech[[партия]:[партия]]=$W$1),ROW(V13))),"") -> 0 | X19: =IFERROR(INDEX(Data_Tech[20],_xlfn.AGGREGATE(15,6,(ROW(Data_Tech[20])-ROW(Data_Tech[[#Headers],[20]]))/(Data_Tech[[мес]:[мес]]=$J$5)/(Data_Tech[[год]:[год]]=$L$5)/(Data_Tech[[изд]:[изд]]=$N$1:$T$1)/(Data_Tech[[партия]:[партия]]=$W$1),ROW(W13))),"") -> 0 | Y19: =IFERROR(INDEX(Data_Tech[21],_xlfn.AGGREGATE(15,6,(ROW(Data_Tech[21])-ROW(Data_Tech[[#Headers],[21]]))/(Data_Tech[[мес]:[мес]]=$J$5)/(Data_Tech[[год]:[год]]=$L$5)/(Data_Tech[[изд]:[изд]]=$N$1:$T$1)/(Data_Tech[[партия]:[партия]]=$W$1),ROW(X13))),"") -> 0 | Z19: =IFERROR(INDEX(Data_Tech[22],_xlfn.AGGREGATE(15,6,(ROW(Data_Tech[22])-ROW(Data_Tech[[#Headers],[22]]))/(Data_Tech[[мес]:[мес]]=$J$5)/(Data_Tech[[год]:[год]]=$L$5)/(Data_Tech[[изд]:[изд]]=$N$1:$T$1)/(Data_Tech[[партия]:[партия]]=$W$1),ROW(Y13))),"") -> 0 | AA19: =IFERROR(INDEX(Data_Tech[23],_xlfn.AGGREGATE(15,6,(ROW(Data_Tech[23])-ROW(Data_Tech[[#Headers],[23]]))/(Data_Tech[[мес]:[мес]]=$J$5)/(Data_Tech[[год]:[год]]=$L$5)/(Data_Tech[[изд]:[изд]]=$N$1:$T$1)/(Data_Tech[[партия]:[партия]]=$W$1),ROW(Z13))),"") -> 0 | AB19: =IFERROR(INDEX(Data_Tech[24],_xlfn.AGGREGATE(15,6,(ROW(Data_Tech[24])-ROW(Data_Tech[[#Headers],[24]]))/(Data_Tech[[мес]:[мес]]=$J$5)/(Data_Tech[[год]:[год]]=$L$5)/(Data_Tech[[изд]:[изд]]=$N$1:$T$1)/(Data_Tech[[партия]:[партия]]=$W$1),ROW(AA13))),"") -> 0 | AC19: =IFERROR(INDEX(Data_Tech[25],_xlfn.AGGREGATE(15,6,(ROW(Data_Tech[25])-ROW(Data_Tech[[#Headers],[25]]))/(Data_Tech[[мес]:[мес]]=$J$5)/(Data_Tech[[год]:[год]]=$L$5)/(Data_Tech[[изд]:[изд]]=$N$1:$T$1)/(Data_Tech[[партия]:[партия]]=$W$1),ROW(AB13))),"") -> 0 | AD19: =IFERROR(INDEX(Data_Tech[26],_xlfn.AGGREGATE(15,6,(ROW(Data_Tech[26])-ROW(Data_Tech[[#Headers],[26]]))/(Data_Tech[[мес]:[мес]]=$J$5)/(Data_Tech[[год]:[год]]=$L$5)/(Data_Tech[[изд]:[изд]]=$N$1:$T$1)/(Data_Tech[[партия]:[партия]]=$W$1),ROW(AC13))),"") -> 0 | AE19: =IFERROR(INDEX(Data_Tech[27],_xlfn.AGGREGATE(15,6,(ROW(Data_Tech[27])-ROW(Data_Tech[[#Headers],[27]]))/(Data_Tech[[мес]:[мес]]=$J$5)/(Data_Tech[[год]:[год]]=$L$5)/(Data_Tech[[изд]:[изд]]=$N$1:$T$1)/(Data_Tech[[партия]:[партия]]=$W$1),ROW(AD13))),"") -> 0 | AF19: =IFERROR(INDEX(Data_Tech[28],_xlfn.AGGREGATE(15,6,(ROW(Data_Tech[28])-ROW(Data_Tech[[#Headers],[28]]))/(Data_Tech[[мес]:[мес]]=$J$5)/(Data_Tech[[год]:[год]]=$L$5)/(Data_Tech[[изд]:[изд]]=$N$1:$T$1)/(Data_Tech[[партия]:[партия]]=$W$1),ROW(AE13))),"") -> 0 | AG19: =IFERROR(INDEX(Data_Tech[29],_xlfn.AGGREGATE(15,6,(ROW(Data_Tech[29])-ROW(Data_Tech[[#Headers],[29]]))/(Data_Tech[[мес]:[мес]]=$J$5)/(Data_Tech[[год]:[год]]=$L$5)/(Data_Tech[[изд]:[изд]]=$N$1:$T$1)/(Data_Tech[[партия]:[партия]]=$W$1),ROW(AF13))),"") -> 0 | AH19: =IFERROR(INDEX(Data_Tech[30],_xlfn.AGGREGATE(15,6,(ROW(Data_Tech[30])-ROW(Data_Tech[[#Headers],[30]]))/(Data_Tech[[мес]:[мес]]=$J$5)/(Data_Tech[[год]:[год]]=$L$5)/(Data_Tech[[изд]:[изд]]=$N$1:$T$1)/(Data_Tech[[партия]:[партия]]=$W$1),ROW(AG13))),"") -> 0 | AI19: =IFERROR(INDEX(Data_Tech[31],_xlfn.AGGREGATE(15,6,(ROW(Data_Tech[31])-ROW(Data_Tech[[#Headers],[31]]))/(Data_Tech[[мес]:[мес]]=$J$5)/(Data_Tech[[год]:[год]]=$L$5)/(Data_Tech[[изд]:[изд]]=$N$1:$T$1)/(Data_Tech[[партия]:[партия]]=$W$1),ROW(AH13))),"") -> 0 | AJ19: 8
A20: 14 | B20: =IFERROR(INDEX(Data_Tech[коэф],_xlfn.AGGREGATE(15,6,(ROW(Data_Tech[коэф])-ROW(Data_Tech[[#Headers],[коэф]]))/(Data_Tech[[мес]:[мес]]=$J$5)/(Data_Tech[[год]:[год]]=$L$5)/(Data_Tech[[изд]:[изд]]=$N$1)/(Data_Tech[[партия]:[партия]]=$W$1),ROW(A14))),"") -> 1,4 | C20: =IFERROR(INDEX(Data_Tech[Ф. И. О.],_xlfn.AGGREGATE(15,6,(ROW(Data_Tech[Ф. И. О.])-ROW(Data_Tech[[#Headers],[Ф. И. О.]]))/(Data_Tech[[мес]:[мес]]=$J$5)/(Data_Tech[[год]:[год]]=$L$5)/(Data_Tech[[изд]:[изд]]=$N$1)/(Data_Tech[[партия]:[партия]]=$W$1),ROW(B14))),"") -> Носова Мария Андреевна | D20: =IFERROR(INDEX(Data_Tech[р/р],_xlfn.AGGREGATE(15,6,(ROW(Data_Tech[р/р])-ROW(Data_Tech[[#Headers],[р/р]]))/(Data_Tech[[мес]:[мес]]=$J$5)/(Data_Tech[[год]:[год]]=$L$5)/(Data_Tech[[изд]:[изд]]=$N$1)/(Data_Tech[[партия]:[партия]]=$W$1),ROW(C14))),"") -> 3/1 | E20: =IFERROR(INDEX(Data_Tech[1],_xlfn.AGGREGATE(15,6,(ROW(Data_Tech[1])-ROW(Data_Tech[[#Headers],[1]]))/(Data_Tech[[мес]:[мес]]=$J$5)/(Data_Tech[[год]:[год]]=$L$5)/(Data_Tech[[изд]:[изд]]=$N$1:$T$1)/(Data_Tech[[партия]:[партия]]=$W$1),ROW(D14))),"") -> 0 | F20: =IFERROR(INDEX(Data_Tech[2],_xlfn.AGGREGATE(15,6,(ROW(Data_Tech[2])-ROW(Data_Tech[[#Headers],[2]]))/(Data_Tech[[мес]:[мес]]=$J$5)/(Data_Tech[[год]:[год]]=$L$5)/(Data_Tech[[изд]:[изд]]=$N$1:$T$1)/(Data_Tech[[партия]:[партия]]=$W$1),ROW(E14))),"") -> 0 | G20: =IFERROR(INDEX(Data_Tech[3],_xlfn.AGGREGATE(15,6,(ROW(Data_Tech[3])-ROW(Data_Tech[[#Headers],[3]]))/(Data_Tech[[мес]:[мес]]=$J$5)/(Data_Tech[[год]:[год]]=$L$5)/(Data_Tech[[изд]:[изд]]=$N$1:$T$1)/(Data_Tech[[партия]:[партия]]=$W$1),ROW(F14))),"") -> 0 | H20: =IFERROR(INDEX(Data_Tech[4],_xlfn.AGGREGATE(15,6,(ROW(Data_Tech[4])-ROW(Data_Tech[[#Headers],[4]]))/(Data_Tech[[мес]:[мес]]=$J$5)/(Data_Tech[[год]:[год]]=$L$5)/(Data_Tech[[изд]:[изд]]=$N$1:$T$1)/(Data_Tech[[партия]:[партия]]=$W$1),ROW(G14))),"") -> 0 | I20: =IFERROR(INDEX(Data_Tech[5],_xlfn.AGGREGATE(15,6,(ROW(Data_Tech[5])-ROW(Data_Tech[[#Headers],[5]]))/(Data_Tech[[мес]:[мес]]=$J$5)/(Data_Tech[[год]:[год]]=$L$5)/(Data_Tech[[изд]:[изд]]=$N$1:$T$1)/(Data_Tech[[партия]:[партия]]=$W$1),ROW(H14))),"") -> 0 | J20: =IFERROR(INDEX(Data_Tech[6],_xlfn.AGGREGATE(15,6,(ROW(Data_Tech[6])-ROW(Data_Tech[[#Headers],[6]]))/(Data_Tech[[мес]:[мес]]=$J$5)/(Data_Tech[[год]:[год]]=$L$5)/(Data_Tech[[изд]:[изд]]=$N$1:$T$1)/(Data_Tech[[партия]:[партия]]=$W$1),ROW(I14))),"") -> 0 | K20: =IFERROR(INDEX(Data_Tech[7],_xlfn.AGGREGATE(15,6,(ROW(Data_Tech[7])-ROW(Data_Tech[[#Headers],[7]]))/(Data_Tech[[мес]:[мес]]=$J$5)/(Data_Tech[[год]:[год]]=$L$5)/(Data_Tech[[изд]:[изд]]=$N$1:$T$1)/(Data_Tech[[партия]:[партия]]=$W$1),ROW(J14))),"") -> 0 | L20: =IFERROR(INDEX(Data_Tech[8],_xlfn.AGGREGATE(15,6,(ROW(Data_Tech[8])-ROW(Data_Tech[[#Headers],[8]]))/(Data_Tech[[мес]:[мес]]=$J$5)/(Data_Tech[[год]:[год]]=$L$5)/(Data_Tech[[изд]:[изд]]=$N$1:$T$1)/(Data_Tech[[партия]:[партия]]=$W$1),ROW(K14))),"") -> 0 | M20: =IFERROR(INDEX(Data_Tech[9],_xlfn.AGGREGATE(15,6,(ROW(Data_Tech[9])-ROW(Data_Tech[[#Headers],[9]]))/(Data_Tech[[мес]:[мес]]=$J$5)/(Data_Tech[[год]:[год]]=$L$5)/(Data_Tech[[изд]:[изд]]=$N$1:$T$1)/(Data_Tech[[партия]:[партия]]=$W$1),ROW(L14))),"") -> 0 | N20: =IFERROR(INDEX(Data_Tech[10],_xlfn.AGGREGATE(15,6,(ROW(Data_Tech[10])-ROW(Data_Tech[[#Headers],[10]]))/(Data_Tech[[мес]:[мес]]=$J$5)/(Data_Tech[[год]:[год]]=$L$5)/(Data_Tech[[изд]:[изд]]=$N$1:$T$1)/(Data_Tech[[партия]:[партия]]=$W$1),ROW(M14))),"") -> 0 | O20: =IFERROR(INDEX(Data_Tech[11],_xlfn.AGGREGATE(15,6,(ROW(Data_Tech[11])-ROW(Data_Tech[[#Headers],[11]]))/(Data_Tech[[мес]:[мес]]=$J$5)/(Data_Tech[[год]:[год]]=$L$5)/(Data_Tech[[изд]:[изд]]=$N$1:$T$1)/(Data_Tech[[партия]:[партия]]=$W$1),ROW(N14))),"") -> 0 | P20: =IFERROR(INDEX(Data_Tech[12],_xlfn.AGGREGATE(15,6,(ROW(Data_Tech[12])-ROW(Data_Tech[[#Headers],[12]]))/(Data_Tech[[мес]:[мес]]=$J$5)/(Data_Tech[[год]:[год]]=$L$5)/(Data_Tech[[изд]:[изд]]=$N$1:$T$1)/(Data_Tech[[партия]:[партия]]=$W$1),ROW(O14))),"") -> 0 | Q20: =IFERROR(INDEX(Data_Tech[13],_xlfn.AGGREGATE(15,6,(ROW(Data_Tech[13])-ROW(Data_Tech[[#Headers],[13]]))/(Data_Tech[[мес]:[мес]]=$J$5)/(Data_Tech[[год]:[год]]=$L$5)/(Data_Tech[[изд]:[изд]]=$N$1:$T$1)/(Data_Tech[[партия]:[партия]]=$W$1),ROW(P14))),"") -> 0 | R20: =IFERROR(INDEX(Data_Tech[14],_xlfn.AGGREGATE(15,6,(ROW(Data_Tech[14])-ROW(Data_Tech[[#Headers],[14]]))/(Data_Tech[[мес]:[мес]]=$J$5)/(Data_Tech[[год]:[год]]=$L$5)/(Data_Tech[[изд]:[изд]]=$N$1:$T$1)/(Data_Tech[[партия]:[партия]]=$W$1),ROW(Q14))),"") -> 0 | S20: =IFERROR(INDEX(Data_Tech[15],_xlfn.AGGREGATE(15,6,(ROW(Data_Tech[15])-ROW(Data_Tech[[#Headers],[15]]))/(Data_Tech[[мес]:[мес]]=$J$5)/(Data_Tech[[год]:[год]]=$L$5)/(Data_Tech[[изд]:[изд]]=$N$1:$T$1)/(Data_Tech[[партия]:[партия]]=$W$1),ROW(R14))),"") -> 0 | T20: =IFERROR(INDEX(Data_Tech[16],_xlfn.AGGREGATE(15,6,(ROW(Data_Tech[16])-ROW(Data_Tech[[#Headers],[16]]))/(Data_Tech[[мес]:[мес]]=$J$5)/(Data_Tech[[год]:[год]]=$L$5)/(Data_Tech[[изд]:[изд]]=$N$1:$T$1)/(Data_Tech[[партия]:[партия]]=$W$1),ROW(S14))),"") -> 0 | U20: =IFERROR(INDEX(Data_Tech[17],_xlfn.AGGREGATE(15,6,(ROW(Data_Tech[17])-ROW(Data_Tech[[#Headers],[17]]))/(Data_Tech[[мес]:[мес]]=$J$5)/(Data_Tech[[год]:[год]]=$L$5)/(Data_Tech[[изд]:[изд]]=$N$1:$T$1)/(Data_Tech[[партия]:[партия]]=$W$1),ROW(T14))),"") -> 7 | V20: =IFERROR(INDEX(Data_Tech[18],_xlfn.AGGREGATE(15,6,(ROW(Data_Tech[18])-ROW(Data_Tech[[#Headers],[18]]))/(Data_Tech[[мес]:[мес]]=$J$5)/(Data_Tech[[год]:[год]]=$L$5)/(Data_Tech[[изд]:[изд]]=$N$1:$T$1)/(Data_Tech[[партия]:[партия]]=$W$1),ROW(U14))),"") -> 0 | W20: =IFERROR(INDEX(Data_Tech[19],_xlfn.AGGREGATE(15,6,(ROW(Data_Tech[19])-ROW(Data_Tech[[#Headers],[19]]))/(Data_Tech[[мес]:[мес]]=$J$5)/(Data_Tech[[год]:[год]]=$L$5)/(Data_Tech[[изд]:[изд]]=$N$1:$T$1)/(Data_Tech[[партия]:[партия]]=$W$1),ROW(V14))),"") -> 0 | X20: =IFERROR(INDEX(Data_Tech[20],_xlfn.AGGREGATE(15,6,(ROW(Data_Tech[20])-ROW(Data_Tech[[#Headers],[20]]))/(Data_Tech[[мес]:[мес]]=$J$5)/(Data_Tech[[год]:[год]]=$L$5)/(Data_Tech[[изд]:[изд]]=$N$1:$T$1)/(Data_Tech[[партия]:[партия]]=$W$1),ROW(W14))),"") -> 0 | Y20: =IFERROR(INDEX(Data_Tech[21],_xlfn.AGGREGATE(15,6,(ROW(Data_Tech[21])-ROW(Data_Tech[[#Headers],[21]]))/(Data_Tech[[мес]:[мес]]=$J$5)/(Data_Tech[[год]:[год]]=$L$5)/(Data_Tech[[изд]:[изд]]=$N$1:$T$1)/(Data_Tech[[партия]:[партия]]=$W$1),ROW(X14))),"") -> 0 | Z20: =IFERROR(INDEX(Data_Tech[22],_xlfn.AGGREGATE(15,6,(ROW(Data_Tech[22])-ROW(Data_Tech[[#Headers],[22]]))/(Data_Tech[[мес]:[мес]]=$J$5)/(Data_Tech[[год]:[год]]=$L$5)/(Data_Tech[[изд]:[изд]]=$N$1:$T$1)/(Data_Tech[[партия]:[партия]]=$W$1),ROW(Y14))),"") -> 0 | AA20: =IFERROR(INDEX(Data_Tech[23],_xlfn.AGGREGATE(15,6,(ROW(Data_Tech[23])-ROW(Data_Tech[[#Headers],[23]]))/(Data_Tech[[мес]:[мес]]=$J$5)/(Data_Tech[[год]:[год]]=$L$5)/(Data_Tech[[изд]:[изд]]=$N$1:$T$1)/(Data_Tech[[партия]:[партия]]=$W$1),ROW(Z14))),"") -> 0 | AB20: =IFERROR(INDEX(Data_Tech[24],_xlfn.AGGREGATE(15,6,(ROW(Data_Tech[24])-ROW(Data_Tech[[#Headers],[24]]))/(Data_Tech[[мес]:[мес]]=$J$5)/(Data_Tech[[год]:[год]]=$L$5)/(Data_Tech[[изд]:[изд]]=$N$1:$T$1)/(Data_Tech[[партия]:[партия]]=$W$1),ROW(AA14))),"") -> 8 | AC20: =IFERROR(INDEX(Data_Tech[25],_xlfn.AGGREGATE(15,6,(ROW(Data_Tech[25])-ROW(Data_Tech[[#Headers],[25]]))/(Data_Tech[[мес]:[мес]]=$J$5)/(Data_Tech[[год]:[год]]=$L$5)/(Data_Tech[[изд]:[изд]]=$N$1:$T$1)/(Data_Tech[[партия]:[партия]]=$W$1),ROW(AB14))),"") -> 0 | AD20: =IFERROR(INDEX(Data_Tech[26],_xlfn.AGGREGATE(15,6,(ROW(Data_Tech[26])-ROW(Data_Tech[[#Headers],[26]]))/(Data_Tech[[мес]:[мес]]=$J$5)/(Data_Tech[[год]:[год]]=$L$5)/(Data_Tech[[изд]:[изд]]=$N$1:$T$1)/(Data_Tech[[партия]:[партия]]=$W$1),ROW(AC14))),"") -> 0 | AE20: =IFERROR(INDEX(Data_Tech[27],_xlfn.AGGREGATE(15,6,(ROW(Data_Tech[27])-ROW(Data_Tech[[#Headers],[27]]))/(Data_Tech[[мес]:[мес]]=$J$5)/(Data_Tech[[год]:[год]]=$L$5)/(Data_Tech[[изд]:[изд]]=$N$1:$T$1)/(Data_Tech[[партия]:[партия]]=$W$1),ROW(AD14))),"") -> 0 | AF20: =IFERROR(INDEX(Data_Tech[28],_xlfn.AGGREGATE(15,6,(ROW(Data_Tech[28])-ROW(Data_Tech[[#Headers],[28]]))/(Data_Tech[[мес]:[мес]]=$J$5)/(Data_Tech[[год]:[год]]=$L$5)/(Data_Tech[[изд]:[изд]]=$N$1:$T$1)/(Data_Tech[[партия]:[партия]]=$W$1),ROW(AE14))),"") -> 0 | AG20: =IFERROR(INDEX(Data_Tech[29],_xlfn.AGGREGATE(15,6,(ROW(Data_Tech[29])-ROW(Data_Tech[[#Headers],[29]]))/(Data_Tech[[мес]:[мес]]=$J$5)/(Data_Tech[[год]:[год]]=$L$5)/(Data_Tech[[изд]:[изд]]=$N$1:$T$1)/(Data_Tech[[партия]:[партия]]=$W$1),ROW(AF14))),"") -> 0 | AH20: =IFERROR(INDEX(Data_Tech[30],_xlfn.AGGREGATE(15,6,(ROW(Data_Tech[30])-ROW(Data_Tech[[#Headers],[30]]))/(Data_Tech[[мес]:[мес]]=$J$5)/(Data_Tech[[год]:[год]]=$L$5)/(Data_Tech[[изд]:[изд]]=$N$1:$T$1)/(Data_Tech[[партия]:[партия]]=$W$1),ROW(AG14))),"") -> 0 | AI20: =IFERROR(INDEX(Data_Tech[31],_xlfn.AGGREGATE(15,6,(ROW(Data_Tech[31])-ROW(Data_Tech[[#Headers],[31]]))/(Data_Tech[[мес]:[мес]]=$J$5)/(Data_Tech[[год]:[год]]=$L$5)/(Data_Tech[[изд]:[изд]]=$N$1:$T$1)/(Data_Tech[[партия]:[партия]]=$W$1),ROW(AH14))),"") -> 0 | AJ20: 15
A21: 15 | B21: =IFERROR(INDEX(Data_Tech[коэф],_xlfn.AGGREGATE(15,6,(ROW(Data_Tech[коэф])-ROW(Data_Tech[[#Headers],[коэф]]))/(Data_Tech[[мес]:[мес]]=$J$5)/(Data_Tech[[год]:[год]]=$L$5)/(Data_Tech[[изд]:[изд]]=$N$1)/(Data_Tech[[партия]:[партия]]=$W$1),ROW(A15))),"") -> 1 | C21: =IFERROR(INDEX(Data_Tech[Ф. И. О.],_xlfn.AGGREGATE(15,6,(ROW(Data_Tech[Ф. И. О.])-ROW(Data_Tech[[#Headers],[Ф. И. О.]]))/(Data_Tech[[мес]:[мес]]=$J$5)/(Data_Tech[[год]:[год]]=$L$5)/(Data_Tech[[изд]:[изд]]=$N$1)/(Data_Tech[[партия]:[партия]]=$W$1),ROW(B15))),"") -> Гриша Ольга Викторовна | D21: =IFERROR(INDEX(Data_Tech[р/р],_xlfn.AGGREGATE(15,6,(ROW(Data_Tech[р/р])-ROW(Data_Tech[[#Headers],[р/р]]))/(Data_Tech[[мес]:[мес]]=$J$5)/(Data_Tech[[год]:[год]]=$L$5)/(Data_Tech[[изд]:[изд]]=$N$1)/(Data_Tech[[партия]:[партия]]=$W$1),ROW(C15))),"") -> 3/1 | E21: =IFERROR(INDEX(Data_Tech[1],_xlfn.AGGREGATE(15,6,(ROW(Data_Tech[1])-ROW(Data_Tech[[#Headers],[1]]))/(Data_Tech[[мес]:[мес]]=$J$5)/(Data_Tech[[год]:[год]]=$L$5)/(Data_Tech[[изд]:[изд]]=$N$1:$T$1)/(Data_Tech[[партия]:[партия]]=$W$1),ROW(D15))),"") -> 0 | F21: =IFERROR(INDEX(Data_Tech[2],_xlfn.AGGREGATE(15,6,(ROW(Data_Tech[2])-ROW(Data_Tech[[#Headers],[2]]))/(Data_Tech[[мес]:[мес]]=$J$5)/(Data_Tech[[год]:[год]]=$L$5)/(Data_Tech[[изд]:[изд]]=$N$1:$T$1)/(Data_Tech[[партия]:[партия]]=$W$1),ROW(E15))),"") -> 0 | G21: =IFERROR(INDEX(Data_Tech[3],_xlfn.AGGREGATE(15,6,(ROW(Data_Tech[3])-ROW(Data_Tech[[#Headers],[3]]))/(Data_Tech[[мес]:[мес]]=$J$5)/(Data_Tech[[год]:[год]]=$L$5)/(Data_Tech[[изд]:[изд]]=$N$1:$T$1)/(Data_Tech[[партия]:[партия]]=$W$1),ROW(F15))),"") -> 0 | H21: =IFERROR(INDEX(Data_Tech[4],_xlfn.AGGREGATE(15,6,(ROW(Data_Tech[4])-ROW(Data_Tech[[#Headers],[4]]))/(Data_Tech[[мес]:[мес]]=$J$5)/(Data_Tech[[год]:[год]]=$L$5)/(Data_Tech[[изд]:[изд]]=$N$1:$T$1)/(Data_Tech[[партия]:[партия]]=$W$1),ROW(G15))),"") -> 0 | I21: =IFERROR(INDEX(Data_Tech[5],_xlfn.AGGREGATE(15,6,(ROW(Data_Tech[5])-ROW(Data_Tech[[#Headers],[5]]))/(Data_Tech[[мес]:[мес]]=$J$5)/(Data_Tech[[год]:[год]]=$L$5)/(Data_Tech[[изд]:[изд]]=$N$1:$T$1)/(Data_Tech[[партия]:[партия]]=$W$1),ROW(H15))),"") -> 0 | J21: =IFERROR(INDEX(Data_Tech[6],_xlfn.AGGREGATE(15,6,(ROW(Data_Tech[6])-ROW(Data_Tech[[#Headers],[6]]))/(Data_Tech[[мес]:[мес]]=$J$5)/(Data_Tech[[год]:[год]]=$L$5)/(Data_Tech[[изд]:[изд]]=$N$1:$T$1)/(Data_Tech[[партия]:[партия]]=$W$1),ROW(I15))),"") -> 0 | K21: =IFERROR(INDEX(Data_Tech[7],_xlfn.AGGREGATE(15,6,(ROW(Data_Tech[7])-ROW(Data_Tech[[#Headers],[7]]))/(Data_Tech[[мес]:[мес]]=$J$5)/(Data_Tech[[год]:[год]]=$L$5)/(Data_Tech[[изд]:[изд]]=$N$1:$T$1)/(Data_Tech[[партия]:[партия]]=$W$1),ROW(J15))),"") -> 0 | L21: =IFERROR(INDEX(Data_Tech[8],_xlfn.AGGREGATE(15,6,(ROW(Data_Tech[8])-ROW(Data_Tech[[#Headers],[8]]))/(Data_Tech[[мес]:[мес]]=$J$5)/(Data_Tech[[год]:[год]]=$L$5)/(Data_Tech[[изд]:[изд]]=$N$1:$T$1)/(Data_Tech[[партия]:[партия]]=$W$1),ROW(K15))),"") -> 0 | M21: =IFERROR(INDEX(Data_Tech[9],_xlfn.AGGREGATE(15,6,(ROW(Data_Tech[9])-ROW(Data_Tech[[#Headers],[9]]))/(Data_Tech[[мес]:[мес]]=$J$5)/(Data_Tech[[год]:[год]]=$L$5)/(Data_Tech[[изд]:[изд]]=$N$1:$T$1)/(Data_Tech[[партия]:[партия]]=$W$1),ROW(L15))),"") -> 0 | N21: =IFERROR(INDEX(Data_Tech[10],_xlfn.AGGREGATE(15,6,(ROW(Data_Tech[10])-ROW(Data_Tech[[#Headers],[10]]))/(Data_Tech[[мес]:[мес]]=$J$5)/(Data_Tech[[год]:[год]]=$L$5)/(Data_Tech[[изд]:[изд]]=$N$1:$T$1)/(Data_Tech[[партия]:[партия]]=$W$1),ROW(M15))),"") -> 0 | O21: =IFERROR(INDEX(Data_Tech[11],_xlfn.AGGREGATE(15,6,(ROW(Data_Tech[11])-ROW(Data_Tech[[#Headers],[11]]))/(Data_Tech[[мес]:[мес]]=$J$5)/(Data_Tech[[год]:[год]]=$L$5)/(Data_Tech[[изд]:[изд]]=$N$1:$T$1)/(Data_Tech[[партия]:[партия]]=$W$1),ROW(N15))),"") -> 0 | P21: =IFERROR(INDEX(Data_Tech[12],_xlfn.AGGREGATE(15,6,(ROW(Data_Tech[12])-ROW(Data_Tech[[#Headers],[12]]))/(Data_Tech[[мес]:[мес]]=$J$5)/(Data_Tech[[год]:[год]]=$L$5)/(Data_Tech[[изд]:[изд]]=$N$1:$T$1)/(Data_Tech[[партия]:[партия]]=$W$1),ROW(O15))),"") -> 0 | Q21: =IFERROR(INDEX(Data_Tech[13],_xlfn.AGGREGATE(15,6,(ROW(Data_Tech[13])-ROW(Data_Tech[[#Headers],[13]]))/(Data_Tech[[мес]:[мес]]=$J$5)/(Data_Tech[[год]:[год]]=$L$5)/(Data_Tech[[изд]:[изд]]=$N$1:$T$1)/(Data_Tech[[партия]:[партия]]=$W$1),ROW(P15))),"") -> 0 | R21: =IFERROR(INDEX(Data_Tech[14],_xlfn.AGGREGATE(15,6,(ROW(Data_Tech[14])-ROW(Data_Tech[[#Headers],[14]]))/(Data_Tech[[мес]:[мес]]=$J$5)/(Data_Tech[[год]:[год]]=$L$5)/(Data_Tech[[изд]:[изд]]=$N$1:$T$1)/(Data_Tech[[партия]:[партия]]=$W$1),ROW(Q15))),"") -> 0 | S21: =IFERROR(INDEX(Data_Tech[15],_xlfn.AGGREGATE(15,6,(ROW(Data_Tech[15])-ROW(Data_Tech[[#Headers],[15]]))/(Data_Tech[[мес]:[мес]]=$J$5)/(Data_Tech[[год]:[год]]=$L$5)/(Data_Tech[[изд]:[изд]]=$N$1:$T$1)/(Data_Tech[[партия]:[партия]]=$W$1),ROW(R15))),"") -> 0 | T21: =IFERROR(INDEX(Data_Tech[16],_xlfn.AGGREGATE(15,6,(ROW(Data_Tech[16])-ROW(Data_Tech[[#Headers],[16]]))/(Data_Tech[[мес]:[мес]]=$J$5)/(Data_Tech[[год]:[год]]=$L$5)/(Data_Tech[[изд]:[изд]]=$N$1:$T$1)/(Data_Tech[[партия]:[партия]]=$W$1),ROW(S15))),"") -> 0 | U21: =IFERROR(INDEX(Data_Tech[17],_xlfn.AGGREGATE(15,6,(ROW(Data_Tech[17])-ROW(Data_Tech[[#Headers],[17]]))/(Data_Tech[[мес]:[мес]]=$J$5)/(Data_Tech[[год]:[год]]=$L$5)/(Data_Tech[[изд]:[изд]]=$N$1:$T$1)/(Data_Tech[[партия]:[партия]]=$W$1),ROW(T15))),"") -> 0 | V21: =IFERROR(INDEX(Data_Tech[18],_xlfn.AGGREGATE(15,6,(ROW(Data_Tech[18])-ROW(Data_Tech[[#Headers],[18]]))/(Data_Tech[[мес]:[мес]]=$J$5)/(Data_Tech[[год]:[год]]=$L$5)/(Data_Tech[[изд]:[изд]]=$N$1:$T$1)/(Data_Tech[[партия]:[партия]]=$W$1),ROW(U15))),"") -> 0 | W21: =IFERROR(INDEX(Data_Tech[19],_xlfn.AGGREGATE(15,6,(ROW(Data_Tech[19])-ROW(Data_Tech[[#Headers],[19]]))/(Data_Tech[[мес]:[мес]]=$J$5)/(Data_Tech[[год]:[год]]=$L$5)/(Data_Tech[[изд]:[изд]]=$N$1:$T$1)/(Data_Tech[[партия]:[партия]]=$W$1),ROW(V15))),"") -> 0 | X21: =IFERROR(INDEX(Data_Tech[20],_xlfn.AGGREGATE(15,6,(ROW(Data_Tech[20])-ROW(Data_Tech[[#Headers],[20]]))/(Data_Tech[[мес]:[мес]]=$J$5)/(Data_Tech[[год]:[год]]=$L$5)/(Data_Tech[[изд]:[изд]]=$N$1:$T$1)/(Data_Tech[[партия]:[партия]]=$W$1),ROW(W15))),"") -> 8 | Y21: =IFERROR(INDEX(Data_Tech[21],_xlfn.AGGREGATE(15,6,(ROW(Data_Tech[21])-ROW(Data_Tech[[#Headers],[21]]))/(Data_Tech[[мес]:[мес]]=$J$5)/(Data_Tech[[год]:[год]]=$L$5)/(Data_Tech[[изд]:[изд]]=$N$1:$T$1)/(Data_Tech[[партия]:[партия]]=$W$1),ROW(X15))),"") -> 0 | Z21: =IFERROR(INDEX(Data_Tech[22],_xlfn.AGGREGATE(15,6,(ROW(Data_Tech[22])-ROW(Data_Tech[[#Headers],[22]]))/(Data_Tech[[мес]:[мес]]=$J$5)/(Data_Tech[[год]:[год]]=$L$5)/(Data_Tech[[изд]:[изд]]=$N$1:$T$1)/(Data_Tech[[партия]:[партия]]=$W$1),ROW(Y15))),"") -> 0 | AA21: =IFERROR(INDEX(Data_Tech[23],_xlfn.AGGREGATE(15,6,(ROW(Data_Tech[23])-ROW(Data_Tech[[#Headers],[23]]))/(Data_Tech[[мес]:[мес]]=$J$5)/(Data_Tech[[год]:[год]]=$L$5)/(Data_Tech[[изд]:[изд]]=$N$1:$T$1)/(Data_Tech[[партия]:[партия]]=$W$1),ROW(Z15))),"") -> 0 | AB21: =IFERROR(INDEX(Data_Tech[24],_xlfn.AGGREGATE(15,6,(ROW(Data_Tech[24])-ROW(Data_Tech[[#Headers],[24]]))/(Data_Tech[[мес]:[мес]]=$J$5)/(Data_Tech[[год]:[год]]=$L$5)/(Data_Tech[[изд]:[изд]]=$N$1:$T$1)/(Data_Tech[[партия]:[партия]]=$W$1),ROW(AA15))),"") -> 0 | AC21: =IFERROR(INDEX(Data_Tech[25],_xlfn.AGGREGATE(15,6,(ROW(Data_Tech[25])-ROW(Data_Tech[[#Headers],[25]]))/(Data_Tech[[мес]:[мес]]=$J$5)/(Data_Tech[[год]:[год]]=$L$5)/(Data_Tech[[изд]:[изд]]=$N$1:$T$1)/(Data_Tech[[партия]:[партия]]=$W$1),ROW(AB15))),"") -> 0 | AD21: =IFERROR(INDEX(Data_Tech[26],_xlfn.AGGREGATE(15,6,(ROW(Data_Tech[26])-ROW(Data_Tech[[#Headers],[26]]))/(Data_Tech[[мес]:[мес]]=$J$5)/(Data_Tech[[год]:[год]]=$L$5)/(Data_Tech[[изд]:[изд]]=$N$1:$T$1)/(Data_Tech[[партия]:[партия]]=$W$1),ROW(AC15))),"") -> 0 | AE21: =IFERROR(INDEX(Data_Tech[27],_xlfn.AGGREGATE(15,6,(ROW(Data_Tech[27])-ROW(Data_Tech[[#Headers],[27]]))/(Data_Tech[[мес]:[мес]]=$J$5)/(Data_Tech[[год]:[год]]=$L$5)/(Data_Tech[[изд]:[изд]]=$N$1:$T$1)/(Data_Tech[[партия]:[партия]]=$W$1),ROW(AD15))),"") -> 0 | AF21: =IFERROR(INDEX(Data_Tech[28],_xlfn.AGGREGATE(15,6,(ROW(Data_Tech[28])-ROW(Data_Tech[[#Headers],[28]]))/(Data_Tech[[мес]:[мес]]=$J$5)/(Data_Tech[[год]:[год]]=$L$5)/(Data_Tech[[изд]:[изд]]=$N$1:$T$1)/(Data_Tech[[партия]:[партия]]=$W$1),ROW(AE15))),"") -> 0 | AG21: =IFERROR(INDEX(Data_Tech[29],_xlfn.AGGREGATE(15,6,(ROW(Data_Tech[29])-ROW(Data_Tech[[#Headers],[29]]))/(Data_Tech[[мес]:[мес]]=$J$5)/(Data_Tech[[год]:[год]]=$L$5)/(Data_Tech[[изд]:[изд]]=$N$1:$T$1)/(Data_Tech[[партия]:[партия]]=$W$1),ROW(AF15))),"") -> 0 | AH21: =IFERROR(INDEX(Data_Tech[30],_xlfn.AGGREGATE(15,6,(ROW(Data_Tech[30])-ROW(Data_Tech[[#Headers],[30]]))/(Data_Tech[[мес]:[мес]]=$J$5)/(Data_Tech[[год]:[год]]=$L$5)/(Data_Tech[[изд]:[изд]]=$N$1:$T$1)/(Data_Tech[[партия]:[партия]]=$W$1),ROW(AG15))),"") -> 0 | AI21: =IFERROR(INDEX(Data_Tech[31],_xlfn.AGGREGATE(15,6,(ROW(Data_Tech[31])-ROW(Data_Tech[[#Headers],[31]]))/(Data_Tech[[мес]:[мес]]=$J$5)/(Data_Tech[[год]:[год]]=$L$5)/(Data_Tech[[изд]:[изд]]=$N$1:$T$1)/(Data_Tech[[партия]:[партия]]=$W$1),ROW(AH15))),"") -> 0 | AJ21: 8
A22: 16 | B22: =IFERROR(INDEX(Data_Tech[коэф],_xlfn.AGGREGATE(15,6,(ROW(Data_Tech[коэф])-ROW(Data_Tech[[#Headers],[коэф]]))/(Data_Tech[[мес]:[мес]]=$J$5)/(Data_Tech[[год]:[год]]=$L$5)/(Data_Tech[[изд]:[изд]]=$N$1)/(Data_Tech[[партия]:[партия]]=$W$1),ROW(A16))),"") -> 1 | C22: =IFERROR(INDEX(Data_Tech[Ф. И. О.],_xlfn.AGGREGATE(15,6,(ROW(Data_Tech[Ф. И. О.])-ROW(Data_Tech[[#Headers],[Ф. И. О.]]))/(Data_Tech[[мес]:[мес]]=$J$5)/(Data_Tech[[год]:[год]]=$L$5)/(Data_Tech[[изд]:[изд]]=$N$1)/(Data_Tech[[партия]:[партия]]=$W$1),ROW(B16))),"") -> Кузнецова Алина Дмитриевна | D22: =IFERROR(INDEX(Data_Tech[р/р],_xlfn.AGGREGATE(15,6,(ROW(Data_Tech[р/р])-ROW(Data_Tech[[#Headers],[р/р]]))/(Data_Tech[[мес]:[мес]]=$J$5)/(Data_Tech[[год]:[год]]=$L$5)/(Data_Tech[[изд]:[изд]]=$N$1)/(Data_Tech[[партия]:[партия]]=$W$1),ROW(C16))),"") -> 3/1 | E22: =IFERROR(INDEX(Data_Tech[1],_xlfn.AGGREGATE(15,6,(ROW(Data_Tech[1])-ROW(Data_Tech[[#Headers],[1]]))/(Data_Tech[[мес]:[мес]]=$J$5)/(Data_Tech[[год]:[год]]=$L$5)/(Data_Tech[[изд]:[изд]]=$N$1:$T$1)/(Data_Tech[[партия]:[партия]]=$W$1),ROW(D16))),"") -> 0 | F22: =IFERROR(INDEX(Data_Tech[2],_xlfn.AGGREGATE(15,6,(ROW(Data_Tech[2])-ROW(Data_Tech[[#Headers],[2]]))/(Data_Tech[[мес]:[мес]]=$J$5)/(Data_Tech[[год]:[год]]=$L$5)/(Data_Tech[[изд]:[изд]]=$N$1:$T$1)/(Data_Tech[[партия]:[партия]]=$W$1),ROW(E16))),"") -> 0 | G22: =IFERROR(INDEX(Data_Tech[3],_xlfn.AGGREGATE(15,6,(ROW(Data_Tech[3])-ROW(Data_Tech[[#Headers],[3]]))/(Data_Tech[[мес]:[мес]]=$J$5)/(Data_Tech[[год]:[год]]=$L$5)/(Data_Tech[[изд]:[изд]]=$N$1:$T$1)/(Data_Tech[[партия]:[партия]]=$W$1),ROW(F16))),"") -> 0 | H22: =IFERROR(INDEX(Data_Tech[4],_xlfn.AGGREGATE(15,6,(ROW(Data_Tech[4])-ROW(Data_Tech[[#Headers],[4]]))/(Data_Tech[[мес]:[мес]]=$J$5)/(Data_Tech[[год]:[год]]=$L$5)/(Data_Tech[[изд]:[изд]]=$N$1:$T$1)/(Data_Tech[[партия]:[партия]]=$W$1),ROW(G16))),"") -> 0 | I22: =IFERROR(INDEX(Data_Tech[5],_xlfn.AGGREGATE(15,6,(ROW(Data_Tech[5])-ROW(Data_Tech[[#Headers],[5]]))/(Data_Tech[[мес]:[мес]]=$J$5)/(Data_Tech[[год]:[год]]=$L$5)/(Data_Tech[[изд]:[изд]]=$N$1:$T$1)/(Data_Tech[[партия]:[партия]]=$W$1),ROW(H16))),"") -> 0 | J22: =IFERROR(INDEX(Data_Tech[6],_xlfn.AGGREGATE(15,6,(ROW(Data_Tech[6])-ROW(Data_Tech[[#Headers],[6]]))/(Data_Tech[[мес]:[мес]]=$J$5)/(Data_Tech[[год]:[год]]=$L$5)/(Data_Tech[[изд]:[изд]]=$N$1:$T$1)/(Data_Tech[[партия]:[партия]]=$W$1),ROW(I16))),"") -> 0 | K22: =IFERROR(INDEX(Data_Tech[7],_xlfn.AGGREGATE(15,6,(ROW(Data_Tech[7])-ROW(Data_Tech[[#Headers],[7]]))/(Data_Tech[[мес]:[мес]]=$J$5)/(Data_Tech[[год]:[год]]=$L$5)/(Data_Tech[[изд]:[изд]]=$N$1:$T$1)/(Data_Tech[[партия]:[партия]]=$W$1),ROW(J16))),"") -> 0 | L22: =IFERROR(INDEX(Data_Tech[8],_xlfn.AGGREGATE(15,6,(ROW(Data_Tech[8])-ROW(Data_Tech[[#Headers],[8]]))/(Data_Tech[[мес]:[мес]]=$J$5)/(Data_Tech[[год]:[год]]=$L$5)/(Data_Tech[[изд]:[изд]]=$N$1:$T$1)/(Data_Tech[[партия]:[партия]]=$W$1),ROW(K16))),"") -> 0 | M22: =IFERROR(INDEX(Data_Tech[9],_xlfn.AGGREGATE(15,6,(ROW(Data_Tech[9])-ROW(Data_Tech[[#Headers],[9]]))/(Data_Tech[[мес]:[мес]]=$J$5)/(Data_Tech[[год]:[год]]=$L$5)/(Data_Tech[[изд]:[изд]]=$N$1:$T$1)/(Data_Tech[[партия]:[партия]]=$W$1),ROW(L16))),"") -> 0 | N22: =IFERROR(INDEX(Data_Tech[10],_xlfn.AGGREGATE(15,6,(ROW(Data_Tech[10])-ROW(Data_Tech[[#Headers],[10]]))/(Data_Tech[[мес]:[мес]]=$J$5)/(Data_Tech[[год]:[год]]=$L$5)/(Data_Tech[[изд]:[изд]]=$N$1:$T$1)/(Data_Tech[[партия]:[партия]]=$W$1),ROW(M16))),"") -> 0 | O22: =IFERROR(INDEX(Data_Tech[11],_xlfn.AGGREGATE(15,6,(ROW(Data_Tech[11])-ROW(Data_Tech[[#Headers],[11]]))/(Data_Tech[[мес]:[мес]]=$J$5)/(Data_Tech[[год]:[год]]=$L$5)/(Data_Tech[[изд]:[изд]]=$N$1:$T$1)/(Data_Tech[[партия]:[партия]]=$W$1),ROW(N16))),"") -> 0 | P22: =IFERROR(INDEX(Data_Tech[12],_xlfn.AGGREGATE(15,6,(ROW(Data_Tech[12])-ROW(Data_Tech[[#Headers],[12]]))/(Data_Tech[[мес]:[мес]]=$J$5)/(Data_Tech[[год]:[год]]=$L$5)/(Data_Tech[[изд]:[изд]]=$N$1:$T$1)/(Data_Tech[[партия]:[партия]]=$W$1),ROW(O16))),"") -> 0 | Q22: =IFERROR(INDEX(Data_Tech[13],_xlfn.AGGREGATE(15,6,(ROW(Data_Tech[13])-ROW(Data_Tech[[#Headers],[13]]))/(Data_Tech[[мес]:[мес]]=$J$5)/(Data_Tech[[год]:[год]]=$L$5)/(Data_Tech[[изд]:[изд]]=$N$1:$T$1)/(Data_Tech[[партия]:[партия]]=$W$1),ROW(P16))),"") -> 0 | R22: =IFERROR(INDEX(Data_Tech[14],_xlfn.AGGREGATE(15,6,(ROW(Data_Tech[14])-ROW(Data_Tech[[#Headers],[14]]))/(Data_Tech[[мес]:[мес]]=$J$5)/(Data_Tech[[год]:[год]]=$L$5)/(Data_Tech[[изд]:[изд]]=$N$1:$T$1)/(Data_Tech[[партия]:[партия]]=$W$1),ROW(Q16))),"") -> 0 | S22: =IFERROR(INDEX(Data_Tech[15],_xlfn.AGGREGATE(15,6,(ROW(Data_Tech[15])-ROW(Data_Tech[[#Headers],[15]]))/(Data_Tech[[мес]:[мес]]=$J$5)/(Data_Tech[[год]:[год]]=$L$5)/(Data_Tech[[изд]:[изд]]=$N$1:$T$1)/(Data_Tech[[партия]:[партия]]=$W$1),ROW(R16))),"") -> 0 | T22: =IFERROR(INDEX(Data_Tech[16],_xlfn.AGGREGATE(15,6,(ROW(Data_Tech[16])-ROW(Data_Tech[[#Headers],[16]]))/(Data_Tech[[мес]:[мес]]=$J$5)/(Data_Tech[[год]:[год]]=$L$5)/(Data_Tech[[изд]:[изд]]=$N$1:$T$1)/(Data_Tech[[партия]:[партия]]=$W$1),ROW(S16))),"") -> 0 | U22: =IFERROR(INDEX(Data_Tech[17],_xlfn.AGGREGATE(15,6,(ROW(Data_Tech[17])-ROW(Data_Tech[[#Headers],[17]]))/(Data_Tech[[мес]:[мес]]=$J$5)/(Data_Tech[[год]:[год]]=$L$5)/(Data_Tech[[изд]:[изд]]=$N$1:$T$1)/(Data_Tech[[партия]:[партия]]=$W$1),ROW(T16))),"") -> 0 | V22: =IFERROR(INDEX(Data_Tech[18],_xlfn.AGGREGATE(15,6,(ROW(Data_Tech[18])-ROW(Data_Tech[[#Headers],[18]]))/(Data_Tech[[мес]:[мес]]=$J$5)/(Data_Tech[[год]:[год]]=$L$5)/(Data_Tech[[изд]:[изд]]=$N$1:$T$1)/(Data_Tech[[партия]:[партия]]=$W$1),ROW(U16))),"") -> 0 | W22: =IFERROR(INDEX(Data_Tech[19],_xlfn.AGGREGATE(15,6,(ROW(Data_Tech[19])-ROW(Data_Tech[[#Headers],[19]]))/(Data_Tech[[мес]:[мес]]=$J$5)/(Data_Tech[[год]:[год]]=$L$5)/(Data_Tech[[изд]:[изд]]=$N$1:$T$1)/(Data_Tech[[партия]:[партия]]=$W$1),ROW(V16))),"") -> 0 | X22: =IFERROR(INDEX(Data_Tech[20],_xlfn.AGGREGATE(15,6,(ROW(Data_Tech[20])-ROW(Data_Tech[[#Headers],[20]]))/(Data_Tech[[мес]:[мес]]=$J$5)/(Data_Tech[[год]:[год]]=$L$5)/(Data_Tech[[изд]:[изд]]=$N$1:$T$1)/(Data_Tech[[партия]:[партия]]=$W$1),ROW(W16))),"") -> 0 | Y22: =IFERROR(INDEX(Data_Tech[21],_xlfn.AGGREGATE(15,6,(ROW(Data_Tech[21])-ROW(Data_Tech[[#Headers],[21]]))/(Data_Tech[[мес]:[мес]]=$J$5)/(Data_Tech[[год]:[год]]=$L$5)/(Data_Tech[[изд]:[изд]]=$N$1:$T$1)/(Data_Tech[[партия]:[партия]]=$W$1),ROW(X16))),"") -> 0 | Z22: =IFERROR(INDEX(Data_Tech[22],_xlfn.AGGREGATE(15,6,(ROW(Data_Tech[22])-ROW(Data_Tech[[#Headers],[22]]))/(Data_Tech[[мес]:[мес]]=$J$5)/(Data_Tech[[год]:[год]]=$L$5)/(Data_Tech[[изд]:[изд]]=$N$1:$T$1)/(Data_Tech[[партия]:[партия]]=$W$1),ROW(Y16))),"") -> 0 | AA22: =IFERROR(INDEX(Data_Tech[23],_xlfn.AGGREGATE(15,6,(ROW(Data_Tech[23])-ROW(Data_Tech[[#Headers],[23]]))/(Data_Tech[[мес]:[мес]]=$J$5)/(Data_Tech[[год]:[год]]=$L$5)/(Data_Tech[[изд]:[изд]]=$N$1:$T$1)/(Data_Tech[[партия]:[партия]]=$W$1),ROW(Z16))),"") -> 0 | AB22: =IFERROR(INDEX(Data_Tech[24],_xlfn.AGGREGATE(15,6,(ROW(Data_Tech[24])-ROW(Data_Tech[[#Headers],[24]]))/(Data_Tech[[мес]:[мес]]=$J$5)/(Data_Tech[[год]:[год]]=$L$5)/(Data_Tech[[изд]:[изд]]=$N$1:$T$1)/(Data_Tech[[партия]:[партия]]=$W$1),ROW(AA16))),"") -> 6 | AC22: =IFERROR(INDEX(Data_Tech[25],_xlfn.AGGREGATE(15,6,(ROW(Data_Tech[25])-ROW(Data_Tech[[#Headers],[25]]))/(Data_Tech[[мес]:[мес]]=$J$5)/(Data_Tech[[год]:[год]]=$L$5)/(Data_Tech[[изд]:[изд]]=$N$1:$T$1)/(Data_Tech[[партия]:[партия]]=$W$1),ROW(AB16))),"") -> 0 | AD22: =IFERROR(INDEX(Data_Tech[26],_xlfn.AGGREGATE(15,6,(ROW(Data_Tech[26])-ROW(Data_Tech[[#Headers],[26]]))/(Data_Tech[[мес]:[мес]]=$J$5)/(Data_Tech[[год]:[год]]=$L$5)/(Data_Tech[[изд]:[изд]]=$N$1:$T$1)/(Data_Tech[[партия]:[партия]]=$W$1),ROW(AC16))),"") -> 0 | AE22: =IFERROR(INDEX(Data_Tech[27],_xlfn.AGGREGATE(15,6,(ROW(Data_Tech[27])-ROW(Data_Tech[[#Headers],[27]]))/(Data_Tech[[мес]:[мес]]=$J$5)/(Data_Tech[[год]:[год]]=$L$5)/(Data_Tech[[изд]:[изд]]=$N$1:$T$1)/(Data_Tech[[партия]:[партия]]=$W$1),ROW(AD16))),"") -> 0 | AF22: =IFERROR(INDEX(Data_Tech[28],_xlfn.AGGREGATE(15,6,(ROW(Data_Tech[28])-ROW(Data_Tech[[#Headers],[28]]))/(Data_Tech[[мес]:[мес]]=$J$5)/(Data_Tech[[год]:[год]]=$L$5)/(Data_Tech[[изд]:[изд]]=$N$1:$T$1)/(Data_Tech[[партия]:[партия]]=$W$1),ROW(AE16))),"") -> 0 | AG22: =IFERROR(INDEX(Data_Tech[29],_xlfn.AGGREGATE(15,6,(ROW(Data_Tech[29])-ROW(Data_Tech[[#Headers],[29]]))/(Data_Tech[[мес]:[мес]]=$J$5)/(Data_Tech[[год]:[год]]=$L$5)/(Data_Tech[[изд]:[изд]]=$N$1:$T$1)/(Data_Tech[[партия]:[партия]]=$W$1),ROW(AF16))),"") -> 0 | AH22: =IFERROR(INDEX(Data_Tech[30],_xlfn.AGGREGATE(15,6,(ROW(Data_Tech[30])-ROW(Data_Tech[[#Headers],[30]]))/(Data_Tech[[мес]:[мес]]=$J$5)/(Data_Tech[[год]:[год]]=$L$5)/(Data_Tech[[изд]:[изд]]=$N$1:$T$1)/(Data_Tech[[партия]:[партия]]=$W$1),ROW(AG16))),"") -> 0 | AI22: =IFERROR(INDEX(Data_Tech[31],_xlfn.AGGREGATE(15,6,(ROW(Data_Tech[31])-ROW(Data_Tech[[#Headers],[31]]))/(Data_Tech[[мес]:[мес]]=$J$5)/(Data_Tech[[год]:[год]]=$L$5)/(Data_Tech[[изд]:[изд]]=$N$1:$T$1)/(Data_Tech[[партия]:[партия]]=$W$1),ROW(AH16))),"") -> 0 | AJ22: 6
A23: 17 | B23: =IFERROR(INDEX(Data_Tech[коэф],_xlfn.AGGREGATE(15,6,(ROW(Data_Tech[коэф])-ROW(Data_Tech[[#Headers],[коэф]]))/(Data_Tech[[мес]:[мес]]=$J$5)/(Data_Tech[[год]:[год]]=$L$5)/(Data_Tech[[изд]:[изд]]=$N$1)/(Data_Tech[[партия]:[партия]]=$W$1),ROW(A17))),"") -> 1 | C23: =IFERROR(INDEX(Data_Tech[Ф. И. О.],_xlfn.AGGREGATE(15,6,(ROW(Data_Tech[Ф. И. О.])-ROW(Data_Tech[[#Headers],[Ф. И. О.]]))/(Data_Tech[[мес]:[мес]]=$J$5)/(Data_Tech[[год]:[год]]=$L$5)/(Data_Tech[[изд]:[изд]]=$N$1)/(Data_Tech[[партия]:[партия]]=$W$1),ROW(B17))),"") -> Носова Мария Андреевна | D23: =IFERROR(INDEX(Data_Tech[р/р],_xlfn.AGGREGATE(15,6,(ROW(Data_Tech[р/р])-ROW(Data_Tech[[#Headers],[р/р]]))/(Data_Tech[[мес]:[мес]]=$J$5)/(Data_Tech[[год]:[год]]=$L$5)/(Data_Tech[[изд]:[изд]]=$N$1)/(Data_Tech[[партия]:[партия]]=$W$1),ROW(C17))),"") -> 3/1 | E23: =IFERROR(INDEX(Data_Tech[1],_xlfn.AGGREGATE(15,6,(ROW(Data_Tech[1])-ROW(Data_Tech[[#Headers],[1]]))/(Data_Tech[[мес]:[мес]]=$J$5)/(Data_Tech[[год]:[год]]=$L$5)/(Data_Tech[[изд]:[изд]]=$N$1:$T$1)/(Data_Tech[[партия]:[партия]]=$W$1),ROW(D17))),"") -> 0 | F23: =IFERROR(INDEX(Data_Tech[2],_xlfn.AGGREGATE(15,6,(ROW(Data_Tech[2])-ROW(Data_Tech[[#Headers],[2]]))/(Data_Tech[[мес]:[мес]]=$J$5)/(Data_Tech[[год]:[год]]=$L$5)/(Data_Tech[[изд]:[изд]]=$N$1:$T$1)/(Data_Tech[[партия]:[партия]]=$W$1),ROW(E17))),"") -> 0 | G23: =IFERROR(INDEX(Data_Tech[3],_xlfn.AGGREGATE(15,6,(ROW(Data_Tech[3])-ROW(Data_Tech[[#Headers],[3]]))/(Data_Tech[[мес]:[мес]]=$J$5)/(Data_Tech[[год]:[год]]=$L$5)/(Data_Tech[[изд]:[изд]]=$N$1:$T$1)/(Data_Tech[[партия]:[партия]]=$W$1),ROW(F17))),"") -> 0 | H23: =IFERROR(INDEX(Data_Tech[4],_xlfn.AGGREGATE(15,6,(ROW(Data_Tech[4])-ROW(Data_Tech[[#Headers],[4]]))/(Data_Tech[[мес]:[мес]]=$J$5)/(Data_Tech[[год]:[год]]=$L$5)/(Data_Tech[[изд]:[изд]]=$N$1:$T$1)/(Data_Tech[[партия]:[партия]]=$W$1),ROW(G17))),"") -> 0 | I23: =IFERROR(INDEX(Data_Tech[5],_xlfn.AGGREGATE(15,6,(ROW(Data_Tech[5])-ROW(Data_Tech[[#Headers],[5]]))/(Data_Tech[[мес]:[мес]]=$J$5)/(Data_Tech[[год]:[год]]=$L$5)/(Data_Tech[[изд]:[изд]]=$N$1:$T$1)/(Data_Tech[[партия]:[партия]]=$W$1),ROW(H17))),"") -> 0 | J23: =IFERROR(INDEX(Data_Tech[6],_xlfn.AGGREGATE(15,6,(ROW(Data_Tech[6])-ROW(Data_Tech[[#Headers],[6]]))/(Data_Tech[[мес]:[мес]]=$J$5)/(Data_Tech[[год]:[год]]=$L$5)/(Data_Tech[[изд]:[изд]]=$N$1:$T$1)/(Data_Tech[[партия]:[партия]]=$W$1),ROW(I17))),"") -> 0 | K23: =IFERROR(INDEX(Data_Tech[7],_xlfn.AGGREGATE(15,6,(ROW(Data_Tech[7])-ROW(Data_Tech[[#Headers],[7]]))/(Data_Tech[[мес]:[мес]]=$J$5)/(Data_Tech[[год]:[год]]=$L$5)/(Data_Tech[[изд]:[изд]]=$N$1:$T$1)/(Data_Tech[[партия]:[партия]]=$W$1),ROW(J17))),"") -> 0 | L23: =IFERROR(INDEX(Data_Tech[8],_xlfn.AGGREGATE(15,6,(ROW(Data_Tech[8])-ROW(Data_Tech[[#Headers],[8]]))/(Data_Tech[[мес]:[мес]]=$J$5)/(Data_Tech[[год]:[год]]=$L$5)/(Data_Tech[[изд]:[изд]]=$N$1:$T$1)/(Data_Tech[[партия]:[партия]]=$W$1),ROW(K17))),"") -> 0 | M23: =IFERROR(INDEX(Data_Tech[9],_xlfn.AGGREGATE(15,6,(ROW(Data_Tech[9])-ROW(Data_Tech[[#Headers],[9]]))/(Data_Tech[[мес]:[мес]]=$J$5)/(Data_Tech[[год]:[год]]=$L$5)/(Data_Tech[[изд]:[изд]]=$N$1:$T$1)/(Data_Tech[[партия]:[партия]]=$W$1),ROW(L17))),"") -> 0 | N23: =IFERROR(INDEX(Data_Tech[10],_xlfn.AGGREGATE(15,6,(ROW(Data_Tech[10])-ROW(Data_Tech[[#Headers],[10]]))/(Data_Tech[[мес]:[мес]]=$J$5)/(Data_Tech[[год]:[год]]=$L$5)/(Data_Tech[[изд]:[изд]]=$N$1:$T$1)/(Data_Tech[[партия]:[партия]]=$W$1),ROW(M17))),"") -> 0 | O23: =IFERROR(INDEX(Data_Tech[11],_xlfn.AGGREGATE(15,6,(ROW(Data_Tech[11])-ROW(Data_Tech[[#Headers],[11]]))/(Data_Tech[[мес]:[мес]]=$J$5)/(Data_Tech[[год]:[год]]=$L$5)/(Data_Tech[[изд]:[изд]]=$N$1:$T$1)/(Data_Tech[[партия]:[партия]]=$W$1),ROW(N17))),"") -> 0 | P23: =IFERROR(INDEX(Data_Tech[12],_xlfn.AGGREGATE(15,6,(ROW(Data_Tech[12])-ROW(Data_Tech[[#Headers],[12]]))/(Data_Tech[[мес]:[мес]]=$J$5)/(Data_Tech[[год]:[год]]=$L$5)/(Data_Tech[[изд]:[изд]]=$N$1:$T$1)/(Data_Tech[[партия]:[партия]]=$W$1),ROW(O17))),"") -> 0 | Q23: =IFERROR(INDEX(Data_Tech[13],_xlfn.AGGREGATE(15,6,(ROW(Data_Tech[13])-ROW(Data_Tech[[#Headers],[13]]))/(Data_Tech[[мес]:[мес]]=$J$5)/(Data_Tech[[год]:[год]]=$L$5)/(Data_Tech[[изд]:[изд]]=$N$1:$T$1)/(Data_Tech[[партия]:[партия]]=$W$1),ROW(P17))),"") -> 0 | R23: =IFERROR(INDEX(Data_Tech[14],_xlfn.AGGREGATE(15,6,(ROW(Data_Tech[14])-ROW(Data_Tech[[#Headers],[14]]))/(Data_Tech[[мес]:[мес]]=$J$5)/(Data_Tech[[год]:[год]]=$L$5)/(Data_Tech[[изд]:[изд]]=$N$1:$T$1)/(Data_Tech[[партия]:[партия]]=$W$1),ROW(Q17))),"") -> 0 | S23: =IFERROR(INDEX(Data_Tech[15],_xlfn.AGGREGATE(15,6,(ROW(Data_Tech[15])-ROW(Data_Tech[[#Headers],[15]]))/(Data_Tech[[мес]:[мес]]=$J$5)/(Data_Tech[[год]:[год]]=$L$5)/(Data_Tech[[изд]:[изд]]=$N$1:$T$1)/(Data_Tech[[партия]:[партия]]=$W$1),ROW(R17))),"") -> 0 | T23: =IFERROR(INDEX(Data_Tech[16],_xlfn.AGGREGATE(15,6,(ROW(Data_Tech[16])-ROW(Data_Tech[[#Headers],[16]]))/(Data_Tech[[мес]:[мес]]=$J$5)/(Data_Tech[[год]:[год]]=$L$5)/(Data_Tech[[изд]:[изд]]=$N$1:$T$1)/(Data_Tech[[партия]:[партия]]=$W$1),ROW(S17))),"") -> 0 | U23: =IFERROR(INDEX(Data_Tech[17],_xlfn.AGGREGATE(15,6,(ROW(Data_Tech[17])-ROW(Data_Tech[[#Headers],[17]]))/(Data_Tech[[мес]:[мес]]=$J$5)/(Data_Tech[[год]:[год]]=$L$5)/(Data_Tech[[изд]:[изд]]=$N$1:$T$1)/(Data_Tech[[партия]:[партия]]=$W$1),ROW(T17))),"") -> 0 | V23: =IFERROR(INDEX(Data_Tech[18],_xlfn.AGGREGATE(15,6,(ROW(Data_Tech[18])-ROW(Data_Tech[[#Headers],[18]]))/(Data_Tech[[мес]:[мес]]=$J$5)/(Data_Tech[[год]:[год]]=$L$5)/(Data_Tech[[изд]:[изд]]=$N$1:$T$1)/(Data_Tech[[партия]:[партия]]=$W$1),ROW(U17))),"") -> 0 | W23: =IFERROR(INDEX(Data_Tech[19],_xlfn.AGGREGATE(15,6,(ROW(Data_Tech[19])-ROW(Data_Tech[[#Headers],[19]]))/(Data_Tech[[мес]:[мес]]=$J$5)/(Data_Tech[[год]:[год]]=$L$5)/(Data_Tech[[изд]:[изд]]=$N$1:$T$1)/(Data_Tech[[партия]:[партия]]=$W$1),ROW(V17))),"") -> 0 | X23: =IFERROR(INDEX(Data_Tech[20],_xlfn.AGGREGATE(15,6,(ROW(Data_Tech[20])-ROW(Data_Tech[[#Headers],[20]]))/(Data_Tech[[мес]:[мес]]=$J$5)/(Data_Tech[[год]:[год]]=$L$5)/(Data_Tech[[изд]:[изд]]=$N$1:$T$1)/(Data_Tech[[партия]:[партия]]=$W$1),ROW(W17))),"") -> 0 | Y23: =IFERROR(INDEX(Data_Tech[21],_xlfn.AGGREGATE(15,6,(ROW(Data_Tech[21])-ROW(Data_Tech[[#Headers],[21]]))/(Data_Tech[[мес]:[мес]]=$J$5)/(Data_Tech[[год]:[год]]=$L$5)/(Data_Tech[[изд]:[изд]]=$N$1:$T$1)/(Data_Tech[[партия]:[партия]]=$W$1),ROW(X17))),"") -> 0 | Z23: =IFERROR(INDEX(Data_Tech[22],_xlfn.AGGREGATE(15,6,(ROW(Data_Tech[22])-ROW(Data_Tech[[#Headers],[22]]))/(Data_Tech[[мес]:[мес]]=$J$5)/(Data_Tech[[год]:[год]]=$L$5)/(Data_Tech[[изд]:[изд]]=$N$1:$T$1)/(Data_Tech[[партия]:[партия]]=$W$1),ROW(Y17))),"") -> 0 | AA23: =IFERROR(INDEX(Data_Tech[23],_xlfn.AGGREGATE(15,6,(ROW(Data_Tech[23])-ROW(Data_Tech[[#Headers],[23]]))/(Data_Tech[[мес]:[мес]]=$J$5)/(Data_Tech[[год]:[год]]=$L$5)/(Data_Tech[[изд]:[изд]]=$N$1:$T$1)/(Data_Tech[[партия]:[партия]]=$W$1),ROW(Z17))),"") -> 0 | AB23: =IFERROR(INDEX(Data_Tech[24],_xlfn.AGGREGATE(15,6,(ROW(Data_Tech[24])-ROW(Data_Tech[[#Headers],[24]]))/(Data_Tech[[мес]:[мес]]=$J$5)/(Data_Tech[[год]:[год]]=$L$5)/(Data_Tech[[изд]:[изд]]=$N$1:$T$1)/(Data_Tech[[партия]:[партия]]=$W$1),ROW(AA17))),"") -> 0 | AC23: =IFERROR(INDEX(Data_Tech[25],_xlfn.AGGREGATE(15,6,(ROW(Data_Tech[25])-ROW(Data_Tech[[#Headers],[25]]))/(Data_Tech[[мес]:[мес]]=$J$5)/(Data_Tech[[год]:[год]]=$L$5)/(Data_Tech[[изд]:[изд]]=$N$1:$T$1)/(Data_Tech[[партия]:[партия]]=$W$1),ROW(AB17))),"") -> 0 | AD23: =IFERROR(INDEX(Data_Tech[26],_xlfn.AGGREGATE(15,6,(ROW(Data_Tech[26])-ROW(Data_Tech[[#Headers],[26]]))/(Data_Tech[[мес]:[мес]]=$J$5)/(Data_Tech[[год]:[год]]=$L$5)/(Data_Tech[[изд]:[изд]]=$N$1:$T$1)/(Data_Tech[[партия]:[партия]]=$W$1),ROW(AC17))),"") -> 0 | AE23: =IFERROR(INDEX(Data_Tech[27],_xlfn.AGGREGATE(15,6,(ROW(Data_Tech[27])-ROW(Data_Tech[[#Headers],[27]]))/(Data_Tech[[мес]:[мес]]=$J$5)/(Data_Tech[[год]:[год]]=$L$5)/(Data_Tech[[изд]:[изд]]=$N$1:$T$1)/(Data_Tech[[партия]:[партия]]=$W$1),ROW(AD17))),"") -> 4 | AF23: =IFERROR(INDEX(Data_Tech[28],_xlfn.AGGREGATE(15,6,(ROW(Data_Tech[28])-ROW(Data_Tech[[#Headers],[28]]))/(Data_Tech[[мес]:[мес]]=$J$5)/(Data_Tech[[год]:[год]]=$L$5)/(Data_Tech[[изд]:[изд]]=$N$1:$T$1)/(Data_Tech[[партия]:[партия]]=$W$1),ROW(AE17))),"") -> 0 | AG23: =IFERROR(INDEX(Data_Tech[29],_xlfn.AGGREGATE(15,6,(ROW(Data_Tech[29])-ROW(Data_Tech[[#Headers],[29]]))/(Data_Tech[[мес]:[мес]]=$J$5)/(Data_Tech[[год]:[год]]=$L$5)/(Data_Tech[[изд]:[изд]]=$N$1:$T$1)/(Data_Tech[[партия]:[партия]]=$W$1),ROW(AF17))),"") -> 0 | AH23: =IFERROR(INDEX(Data_Tech[30],_xlfn.AGGREGATE(15,6,(ROW(Data_Tech[30])-ROW(Data_Tech[[#Headers],[30]]))/(Data_Tech[[мес]:[мес]]=$J$5)/(Data_Tech[[год]:[год]]=$L$5)/(Data_Tech[[изд]:[изд]]=$N$1:$T$1)/(Data_Tech[[партия]:[партия]]=$W$1),ROW(AG17))),"") -> 0 | AI23: =IFERROR(INDEX(Data_Tech[31],_xlfn.AGGREGATE(15,6,(ROW(Data_Tech[31])-ROW(Data_Tech[[#Headers],[31]]))/(Data_Tech[[мес]:[мес]]=$J$5)/(Data_Tech[[год]:[год]]=$L$5)/(Data_Tech[[изд]:[изд]]=$N$1:$T$1)/(Data_Tech[[партия]:[партия]]=$W$1),ROW(AH17))),"") -> 0 | AJ23: 4
A24: 18 | B24: =IFERROR(INDEX(Data_Tech[коэф],_xlfn.AGGREGATE(15,6,(ROW(Data_Tech[коэф])-ROW(Data_Tech[[#Headers],[коэф]]))/(Data_Tech[[мес]:[мес]]=$J$5)/(Data_Tech[[год]:[год]]=$L$5)/(Data_Tech[[изд]:[изд]]=$N$1)/(Data_Tech[[партия]:[партия]]=$W$1),ROW(A18))),"") ->  | C24: =IFERROR(INDEX(Data_Tech[Ф. И. О.],_xlfn.AGGREGATE(15,6,(ROW(Data_Tech[Ф. И. О.])-ROW(Data_Tech[[#Headers],[Ф. И. О.]]))/(Data_Tech[[мес]:[мес]]=$J$5)/(Data_Tech[[год]:[год]]=$L$5)/(Data_Tech[[изд]:[изд]]=$N$1)/(Data_Tech[[партия]:[партия]]=$W$1),ROW(B18))),"") ->  | D24: =IFERROR(INDEX(Data_Tech[р/р],_xlfn.AGGREGATE(15,6,(ROW(Data_Tech[р/р])-ROW(Data_Tech[[#Headers],[р/р]]))/(Data_Tech[[мес]:[мес]]=$J$5)/(Data_Tech[[год]:[год]]=$L$5)/(Data_Tech[[изд]:[изд]]=$N$1)/(Data_Tech[[партия]:[партия]]=$W$1),ROW(C18))),"") ->  | E24: =IFERROR(INDEX(Data_Tech[1],_xlfn.AGGREGATE(15,6,(ROW(Data_Tech[1])-ROW(Data_Tech[[#Headers],[1]]))/(Data_Tech[[мес]:[мес]]=$J$5)/(Data_Tech[[год]:[год]]=$L$5)/(Data_Tech[[изд]:[изд]]=$N$1:$T$1)/(Data_Tech[[партия]:[партия]]=$W$1),ROW(D18))),"") ->  | F24: =IFERROR(INDEX(Data_Tech[2],_xlfn.AGGREGATE(15,6,(ROW(Data_Tech[2])-ROW(Data_Tech[[#Headers],[2]]))/(Data_Tech[[мес]:[мес]]=$J$5)/(Data_Tech[[год]:[год]]=$L$5)/(Data_Tech[[изд]:[изд]]=$N$1:$T$1)/(Data_Tech[[партия]:[партия]]=$W$1),ROW(E18))),"") ->  | G24: =IFERROR(INDEX(Data_Tech[3],_xlfn.AGGREGATE(15,6,(ROW(Data_Tech[3])-ROW(Data_Tech[[#Headers],[3]]))/(Data_Tech[[мес]:[мес]]=$J$5)/(Data_Tech[[год]:[год]]=$L$5)/(Data_Tech[[изд]:[изд]]=$N$1:$T$1)/(Data_Tech[[партия]:[партия]]=$W$1),ROW(F18))),"") ->  | H24: =IFERROR(INDEX(Data_Tech[4],_xlfn.AGGREGATE(15,6,(ROW(Data_Tech[4])-ROW(Data_Tech[[#Headers],[4]]))/(Data_Tech[[мес]:[мес]]=$J$5)/(Data_Tech[[год]:[год]]=$L$5)/(Data_Tech[[изд]:[изд]]=$N$1:$T$1)/(Data_Tech[[партия]:[партия]]=$W$1),ROW(G18))),"") ->  | I24: =IFERROR(INDEX(Data_Tech[5],_xlfn.AGGREGATE(15,6,(ROW(Data_Tech[5])-ROW(Data_Tech[[#Headers],[5]]))/(Data_Tech[[мес]:[мес]]=$J$5)/(Data_Tech[[год]:[год]]=$L$5)/(Data_Tech[[изд]:[изд]]=$N$1:$T$1)/(Data_Tech[[партия]:[партия]]=$W$1),ROW(H18))),"") ->  | J24: =IFERROR(INDEX(Data_Tech[6],_xlfn.AGGREGATE(15,6,(ROW(Data_Tech[6])-ROW(Data_Tech[[#Headers],[6]]))/(Data_Tech[[мес]:[мес]]=$J$5)/(Data_Tech[[год]:[год]]=$L$5)/(Data_Tech[[изд]:[изд]]=$N$1:$T$1)/(Data_Tech[[партия]:[партия]]=$W$1),ROW(I18))),"") ->  | K24: =IFERROR(INDEX(Data_Tech[7],_xlfn.AGGREGATE(15,6,(ROW(Data_Tech[7])-ROW(Data_Tech[[#Headers],[7]]))/(Data_Tech[[мес]:[мес]]=$J$5)/(Data_Tech[[год]:[год]]=$L$5)/(Data_Tech[[изд]:[изд]]=$N$1:$T$1)/(Data_Tech[[партия]:[партия]]=$W$1),ROW(J18))),"") ->  | L24: =IFERROR(INDEX(Data_Tech[8],_xlfn.AGGREGATE(15,6,(ROW(Data_Tech[8])-ROW(Data_Tech[[#Headers],[8]]))/(Data_Tech[[мес]:[мес]]=$J$5)/(Data_Tech[[год]:[год]]=$L$5)/(Data_Tech[[изд]:[изд]]=$N$1:$T$1)/(Data_Tech[[партия]:[партия]]=$W$1),ROW(K18))),"") ->  | M24: =IFERROR(INDEX(Data_Tech[9],_xlfn.AGGREGATE(15,6,(ROW(Data_Tech[9])-ROW(Data_Tech[[#Headers],[9]]))/(Data_Tech[[мес]:[мес]]=$J$5)/(Data_Tech[[год]:[год]]=$L$5)/(Data_Tech[[изд]:[изд]]=$N$1:$T$1)/(Data_Tech[[партия]:[партия]]=$W$1),ROW(L18))),"") ->  | N24: =IFERROR(INDEX(Data_Tech[10],_xlfn.AGGREGATE(15,6,(ROW(Data_Tech[10])-ROW(Data_Tech[[#Headers],[10]]))/(Data_Tech[[мес]:[мес]]=$J$5)/(Data_Tech[[год]:[год]]=$L$5)/(Data_Tech[[изд]:[изд]]=$N$1:$T$1)/(Data_Tech[[партия]:[партия]]=$W$1),ROW(M18))),"") ->  | O24: =IFERROR(INDEX(Data_Tech[11],_xlfn.AGGREGATE(15,6,(ROW(Data_Tech[11])-ROW(Data_Tech[[#Headers],[11]]))/(Data_Tech[[мес]:[мес]]=$J$5)/(Data_Tech[[год]:[год]]=$L$5)/(Data_Tech[[изд]:[изд]]=$N$1:$T$1)/(Data_Tech[[партия]:[партия]]=$W$1),ROW(N18))),"") ->  | P24: =IFERROR(INDEX(Data_Tech[12],_xlfn.AGGREGATE(15,6,(ROW(Data_Tech[12])-ROW(Data_Tech[[#Headers],[12]]))/(Data_Tech[[мес]:[мес]]=$J$5)/(Data_Tech[[год]:[год]]=$L$5)/(Data_Tech[[изд]:[изд]]=$N$1:$T$1)/(Data_Tech[[партия]:[партия]]=$W$1),ROW(O18))),"") ->  | Q24: =IFERROR(INDEX(Data_Tech[13],_xlfn.AGGREGATE(15,6,(ROW(Data_Tech[13])-ROW(Data_Tech[[#Headers],[13]]))/(Data_Tech[[мес]:[мес]]=$J$5)/(Data_Tech[[год]:[год]]=$L$5)/(Data_Tech[[изд]:[изд]]=$N$1:$T$1)/(Data_Tech[[партия]:[партия]]=$W$1),ROW(P18))),"") ->  | R24: =IFERROR(INDEX(Data_Tech[14],_xlfn.AGGREGATE(15,6,(ROW(Data_Tech[14])-ROW(Data_Tech[[#Headers],[14]]))/(Data_Tech[[мес]:[мес]]=$J$5)/(Data_Tech[[год]:[год]]=$L$5)/(Data_Tech[[изд]:[изд]]=$N$1:$T$1)/(Data_Tech[[партия]:[партия]]=$W$1),ROW(Q18))),"") ->  | S24: =IFERROR(INDEX(Data_Tech[15],_xlfn.AGGREGATE(15,6,(ROW(Data_Tech[15])-ROW(Data_Tech[[#Headers],[15]]))/(Data_Tech[[мес]:[мес]]=$J$5)/(Data_Tech[[год]:[год]]=$L$5)/(Data_Tech[[изд]:[изд]]=$N$1:$T$1)/(Data_Tech[[партия]:[партия]]=$W$1),ROW(R18))),"") ->  | T24: =IFERROR(INDEX(Data_Tech[16],_xlfn.AGGREGATE(15,6,(ROW(Data_Tech[16])-ROW(Data_Tech[[#Headers],[16]]))/(Data_Tech[[мес]:[мес]]=$J$5)/(Data_Tech[[год]:[год]]=$L$5)/(Data_Tech[[изд]:[изд]]=$N$1:$T$1)/(Data_Tech[[партия]:[партия]]=$W$1),ROW(S18))),"") ->  | U24: =IFERROR(INDEX(Data_Tech[17],_xlfn.AGGREGATE(15,6,(ROW(Data_Tech[17])-ROW(Data_Tech[[#Headers],[17]]))/(Data_Tech[[мес]:[мес]]=$J$5)/(Data_Tech[[год]:[год]]=$L$5)/(Data_Tech[[изд]:[изд]]=$N$1:$T$1)/(Data_Tech[[партия]:[партия]]=$W$1),ROW(T18))),"") ->  | V24: =IFERROR(INDEX(Data_Tech[18],_xlfn.AGGREGATE(15,6,(ROW(Data_Tech[18])-ROW(Data_Tech[[#Headers],[18]]))/(Data_Tech[[мес]:[мес]]=$J$5)/(Data_Tech[[год]:[год]]=$L$5)/(Data_Tech[[изд]:[изд]]=$N$1:$T$1)/(Data_Tech[[партия]:[партия]]=$W$1),ROW(U18))),"") ->  | W24: =IFERROR(INDEX(Data_Tech[19],_xlfn.AGGREGATE(15,6,(ROW(Data_Tech[19])-ROW(Data_Tech[[#Headers],[19]]))/(Data_Tech[[мес]:[мес]]=$J$5)/(Data_Tech[[год]:[год]]=$L$5)/(Data_Tech[[изд]:[изд]]=$N$1:$T$1)/(Data_Tech[[партия]:[партия]]=$W$1),ROW(V18))),"") ->  | X24: =IFERROR(INDEX(Data_Tech[20],_xlfn.AGGREGATE(15,6,(ROW(Data_Tech[20])-ROW(Data_Tech[[#Headers],[20]]))/(Data_Tech[[мес]:[мес]]=$J$5)/(Data_Tech[[год]:[год]]=$L$5)/(Data_Tech[[изд]:[изд]]=$N$1:$T$1)/(Data_Tech[[партия]:[партия]]=$W$1),ROW(W18))),"") ->  | Y24: =IFERROR(INDEX(Data_Tech[21],_xlfn.AGGREGATE(15,6,(ROW(Data_Tech[21])-ROW(Data_Tech[[#Headers],[21]]))/(Data_Tech[[мес]:[мес]]=$J$5)/(Data_Tech[[год]:[год]]=$L$5)/(Data_Tech[[изд]:[изд]]=$N$1:$T$1)/(Data_Tech[[партия]:[партия]]=$W$1),ROW(X18))),"") ->  | Z24: =IFERROR(INDEX(Data_Tech[22],_xlfn.AGGREGATE(15,6,(ROW(Data_Tech[22])-ROW(Data_Tech[[#Headers],[22]]))/(Data_Tech[[мес]:[мес]]=$J$5)/(Data_Tech[[год]:[год]]=$L$5)/(Data_Tech[[изд]:[изд]]=$N$1:$T$1)/(Data_Tech[[партия]:[партия]]=$W$1),ROW(Y18))),"") ->  | AA24: =IFERROR(INDEX(Data_Tech[23],_xlfn.AGGREGATE(15,6,(ROW(Data_Tech[23])-ROW(Data_Tech[[#Headers],[23]]))/(Data_Tech[[мес]:[мес]]=$J$5)/(Data_Tech[[год]:[год]]=$L$5)/(Data_Tech[[изд]:[изд]]=$N$1:$T$1)/(Data_Tech[[партия]:[партия]]=$W$1),ROW(Z18))),"") ->  | AB24: =IFERROR(INDEX(Data_Tech[24],_xlfn.AGGREGATE(15,6,(ROW(Data_Tech[24])-ROW(Data_Tech[[#Headers],[24]]))/(Data_Tech[[мес]:[мес]]=$J$5)/(Data_Tech[[год]:[год]]=$L$5)/(Data_Tech[[изд]:[изд]]=$N$1:$T$1)/(Data_Tech[[партия]:[партия]]=$W$1),ROW(AA18))),"") ->  | AC24: =IFERROR(INDEX(Data_Tech[25],_xlfn.AGGREGATE(15,6,(ROW(Data_Tech[25])-ROW(Data_Tech[[#Headers],[25]]))/(Data_Tech[[мес]:[мес]]=$J$5)/(Data_Tech[[год]:[год]]=$L$5)/(Data_Tech[[изд]:[изд]]=$N$1:$T$1)/(Data_Tech[[партия]:[партия]]=$W$1),ROW(AB18))),"") ->  | AD24: =IFERROR(INDEX(Data_Tech[26],_xlfn.AGGREGATE(15,6,(ROW(Data_Tech[26])-ROW(Data_Tech[[#Headers],[26]]))/(Data_Tech[[мес]:[мес]]=$J$5)/(Data_Tech[[год]:[год]]=$L$5)/(Data_Tech[[изд]:[изд]]=$N$1:$T$1)/(Data_Tech[[партия]:[партия]]=$W$1),ROW(AC18))),"") ->  | AE24: =IFERROR(INDEX(Data_Tech[27],_xlfn.AGGREGATE(15,6,(ROW(Data_Tech[27])-ROW(Data_Tech[[#Headers],[27]]))/(Data_Tech[[мес]:[мес]]=$J$5)/(Data_Tech[[год]:[год]]=$L$5)/(Data_Tech[[изд]:[изд]]=$N$1:$T$1)/(Data_Tech[[партия]:[партия]]=$W$1),ROW(AD18))),"") ->  | AF24: =IFERROR(INDEX(Data_Tech[28],_xlfn.AGGREGATE(15,6,(ROW(Data_Tech[28])-ROW(Data_Tech[[#Headers],[28]]))/(Data_Tech[[мес]:[мес]]=$J$5)/(Data_Tech[[год]:[год]]=$L$5)/(Data_Tech[[изд]:[изд]]=$N$1:$T$1)/(Data_Tech[[партия]:[партия]]=$W$1),ROW(AE18))),"") ->  | AG24: =IFERROR(INDEX(Data_Tech[29],_xlfn.AGGREGATE(15,6,(ROW(Data_Tech[29])-ROW(Data_Tech[[#Headers],[29]]))/(Data_Tech[[мес]:[мес]]=$J$5)/(Data_Tech[[год]:[год]]=$L$5)/(Data_Tech[[изд]:[изд]]=$N$1:$T$1)/(Data_Tech[[партия]:[партия]]=$W$1),ROW(AF18))),"") ->  | AH24: =IFERROR(INDEX(Data_Tech[30],_xlfn.AGGREGATE(15,6,(ROW(Data_Tech[30])-ROW(Data_Tech[[#Headers],[30]]))/(Data_Tech[[мес]:[мес]]=$J$5)/(Data_Tech[[год]:[год]]=$L$5)/(Data_Tech[[изд]:[изд]]=$N$1:$T$1)/(Data_Tech[[партия]:[партия]]=$W$1),ROW(AG18))),"") ->  | AI24: =IFERROR(INDEX(Data_Tech[31],_xlfn.AGGREGATE(15,6,(ROW(Data_Tech[31])-ROW(Data_Tech[[#Headers],[31]]))/(Data_Tech[[мес]:[мес]]=$J$5)/(Data_Tech[[год]:[год]]=$L$5)/(Data_Tech[[изд]:[изд]]=$N$1:$T$1)/(Data_Tech[[партия]:[партия]]=$W$1),ROW(AH18))),"") ->  | AJ24: 0
A25: 19 | B25: =IFERROR(INDEX(Data_Tech[коэф],_xlfn.AGGREGATE(15,6,(ROW(Data_Tech[коэф])-ROW(Data_Tech[[#Headers],[коэф]]))/(Data_Tech[[мес]:[мес]]=$J$5)/(Data_Tech[[год]:[год]]=$L$5)/(Data_Tech[[изд]:[изд]]=$N$1)/(Data_Tech[[партия]:[партия]]=$W$1),ROW(A19))),"") ->  | C25: =IFERROR(INDEX(Data_Tech[Ф. И. О.],_xlfn.AGGREGATE(15,6,(ROW(Data_Tech[Ф. И. О.])-ROW(Data_Tech[[#Headers],[Ф. И. О.]]))/(Data_Tech[[мес]:[мес]]=$J$5)/(Data_Tech[[год]:[год]]=$L$5)/(Data_Tech[[изд]:[изд]]=$N$1)/(Data_Tech[[партия]:[партия]]=$W$1),ROW(B19))),"") ->  | D25: =IFERROR(INDEX(Data_Tech[р/р],_xlfn.AGGREGATE(15,6,(ROW(Data_Tech[р/р])-ROW(Data_Tech[[#Headers],[р/р]]))/(Data_Tech[[мес]:[мес]]=$J$5)/(Data_Tech[[год]:[год]]=$L$5)/(Data_Tech[[изд]:[изд]]=$N$1)/(Data_Tech[[партия]:[партия]]=$W$1),ROW(C19))),"") ->  | E25: =IFERROR(INDEX(Data_Tech[1],_xlfn.AGGREGATE(15,6,(ROW(Data_Tech[1])-ROW(Data_Tech[[#Headers],[1]]))/(Data_Tech[[мес]:[мес]]=$J$5)/(Data_Tech[[год]:[год]]=$L$5)/(Data_Tech[[изд]:[изд]]=$N$1:$T$1)/(Data_Tech[[партия]:[партия]]=$W$1),ROW(D19))),"") ->  | F25: =IFERROR(INDEX(Data_Tech[2],_xlfn.AGGREGATE(15,6,(ROW(Data_Tech[2])-ROW(Data_Tech[[#Headers],[2]]))/(Data_Tech[[мес]:[мес]]=$J$5)/(Data_Tech[[год]:[год]]=$L$5)/(Data_Tech[[изд]:[изд]]=$N$1:$T$1)/(Data_Tech[[партия]:[партия]]=$W$1),ROW(E19))),"") ->  | G25: =IFERROR(INDEX(Data_Tech[3],_xlfn.AGGREGATE(15,6,(ROW(Data_Tech[3])-ROW(Data_Tech[[#Headers],[3]]))/(Data_Tech[[мес]:[мес]]=$J$5)/(Data_Tech[[год]:[год]]=$L$5)/(Data_Tech[[изд]:[изд]]=$N$1:$T$1)/(Data_Tech[[партия]:[партия]]=$W$1),ROW(F19))),"") ->  | H25: =IFERROR(INDEX(Data_Tech[4],_xlfn.AGGREGATE(15,6,(ROW(Data_Tech[4])-ROW(Data_Tech[[#Headers],[4]]))/(Data_Tech[[мес]:[мес]]=$J$5)/(Data_Tech[[год]:[год]]=$L$5)/(Data_Tech[[изд]:[изд]]=$N$1:$T$1)/(Data_Tech[[партия]:[партия]]=$W$1),ROW(G19))),"") ->  | I25: =IFERROR(INDEX(Data_Tech[5],_xlfn.AGGREGATE(15,6,(ROW(Data_Tech[5])-ROW(Data_Tech[[#Headers],[5]]))/(Data_Tech[[мес]:[мес]]=$J$5)/(Data_Tech[[год]:[год]]=$L$5)/(Data_Tech[[изд]:[изд]]=$N$1:$T$1)/(Data_Tech[[партия]:[партия]]=$W$1),ROW(H19))),"") ->  | J25: =IFERROR(INDEX(Data_Tech[6],_xlfn.AGGREGATE(15,6,(ROW(Data_Tech[6])-ROW(Data_Tech[[#Headers],[6]]))/(Data_Tech[[мес]:[мес]]=$J$5)/(Data_Tech[[год]:[год]]=$L$5)/(Data_Tech[[изд]:[изд]]=$N$1:$T$1)/(Data_Tech[[партия]:[партия]]=$W$1),ROW(I19))),"") ->  | K25: =IFERROR(INDEX(Data_Tech[7],_xlfn.AGGREGATE(15,6,(ROW(Data_Tech[7])-ROW(Data_Tech[[#Headers],[7]]))/(Data_Tech[[мес]:[мес]]=$J$5)/(Data_Tech[[год]:[год]]=$L$5)/(Data_Tech[[изд]:[изд]]=$N$1:$T$1)/(Data_Tech[[партия]:[партия]]=$W$1),ROW(J19))),"") ->  | L25: =IFERROR(INDEX(Data_Tech[8],_xlfn.AGGREGATE(15,6,(ROW(Data_Tech[8])-ROW(Data_Tech[[#Headers],[8]]))/(Data_Tech[[мес]:[мес]]=$J$5)/(Data_Tech[[год]:[год]]=$L$5)/(Data_Tech[[изд]:[изд]]=$N$1:$T$1)/(Data_Tech[[партия]:[партия]]=$W$1),ROW(K19))),"") ->  | M25: =IFERROR(INDEX(Data_Tech[9],_xlfn.AGGREGATE(15,6,(ROW(Data_Tech[9])-ROW(Data_Tech[[#Headers],[9]]))/(Data_Tech[[мес]:[мес]]=$J$5)/(Data_Tech[[год]:[год]]=$L$5)/(Data_Tech[[изд]:[изд]]=$N$1:$T$1)/(Data_Tech[[партия]:[партия]]=$W$1),ROW(L19))),"") ->  | N25: =IFERROR(INDEX(Data_Tech[10],_xlfn.AGGREGATE(15,6,(ROW(Data_Tech[10])-ROW(Data_Tech[[#Headers],[10]]))/(Data_Tech[[мес]:[мес]]=$J$5)/(Data_Tech[[год]:[год]]=$L$5)/(Data_Tech[[изд]:[изд]]=$N$1:$T$1)/(Data_Tech[[партия]:[партия]]=$W$1),ROW(M19))),"") ->  | O25: =IFERROR(INDEX(Data_Tech[11],_xlfn.AGGREGATE(15,6,(ROW(Data_Tech[11])-ROW(Data_Tech[[#Headers],[11]]))/(Data_Tech[[мес]:[мес]]=$J$5)/(Data_Tech[[год]:[год]]=$L$5)/(Data_Tech[[изд]:[изд]]=$N$1:$T$1)/(Data_Tech[[партия]:[партия]]=$W$1),ROW(N19))),"") ->  | P25: =IFERROR(INDEX(Data_Tech[12],_xlfn.AGGREGATE(15,6,(ROW(Data_Tech[12])-ROW(Data_Tech[[#Headers],[12]]))/(Data_Tech[[мес]:[мес]]=$J$5)/(Data_Tech[[год]:[год]]=$L$5)/(Data_Tech[[изд]:[изд]]=$N$1:$T$1)/(Data_Tech[[партия]:[партия]]=$W$1),ROW(O19))),"") ->  | Q25: =IFERROR(INDEX(Data_Tech[13],_xlfn.AGGREGATE(15,6,(ROW(Data_Tech[13])-ROW(Data_Tech[[#Headers],[13]]))/(Data_Tech[[мес]:[мес]]=$J$5)/(Data_Tech[[год]:[год]]=$L$5)/(Data_Tech[[изд]:[изд]]=$N$1:$T$1)/(Data_Tech[[партия]:[партия]]=$W$1),ROW(P19))),"") ->  | R25: =IFERROR(INDEX(Data_Tech[14],_xlfn.AGGREGATE(15,6,(ROW(Data_Tech[14])-ROW(Data_Tech[[#Headers],[14]]))/(Data_Tech[[мес]:[мес]]=$J$5)/(Data_Tech[[год]:[год]]=$L$5)/(Data_Tech[[изд]:[изд]]=$N$1:$T$1)/(Data_Tech[[партия]:[партия]]=$W$1),ROW(Q19))),"") ->  | S25: =IFERROR(INDEX(Data_Tech[15],_xlfn.AGGREGATE(15,6,(ROW(Data_Tech[15])-ROW(Data_Tech[[#Headers],[15]]))/(Data_Tech[[мес]:[мес]]=$J$5)/(Data_Tech[[год]:[год]]=$L$5)/(Data_Tech[[изд]:[изд]]=$N$1:$T$1)/(Data_Tech[[партия]:[партия]]=$W$1),ROW(R19))),"") ->  | T25: =IFERROR(INDEX(Data_Tech[16],_xlfn.AGGREGATE(15,6,(ROW(Data_Tech[16])-ROW(Data_Tech[[#Headers],[16]]))/(Data_Tech[[мес]:[мес]]=$J$5)/(Data_Tech[[год]:[год]]=$L$5)/(Data_Tech[[изд]:[изд]]=$N$1:$T$1)/(Data_Tech[[партия]:[партия]]=$W$1),ROW(S19))),"") ->  | U25: =IFERROR(INDEX(Data_Tech[17],_xlfn.AGGREGATE(15,6,(ROW(Data_Tech[17])-ROW(Data_Tech[[#Headers],[17]]))/(Data_Tech[[мес]:[мес]]=$J$5)/(Data_Tech[[год]:[год]]=$L$5)/(Data_Tech[[изд]:[изд]]=$N$1:$T$1)/(Data_Tech[[партия]:[партия]]=$W$1),ROW(T19))),"") ->  | V25: =IFERROR(INDEX(Data_Tech[18],_xlfn.AGGREGATE(15,6,(ROW(Data_Tech[18])-ROW(Data_Tech[[#Headers],[18]]))/(Data_Tech[[мес]:[мес]]=$J$5)/(Data_Tech[[год]:[год]]=$L$5)/(Data_Tech[[изд]:[изд]]=$N$1:$T$1)/(Data_Tech[[партия]:[партия]]=$W$1),ROW(U19))),"") ->  | W25: =IFERROR(INDEX(Data_Tech[19],_xlfn.AGGREGATE(15,6,(ROW(Data_Tech[19])-ROW(Data_Tech[[#Headers],[19]]))/(Data_Tech[[мес]:[мес]]=$J$5)/(Data_Tech[[год]:[год]]=$L$5)/(Data_Tech[[изд]:[изд]]=$N$1:$T$1)/(Data_Tech[[партия]:[партия]]=$W$1),ROW(V19))),"") ->  | X25: =IFERROR(INDEX(Data_Tech[20],_xlfn.AGGREGATE(15,6,(ROW(Data_Tech[20])-ROW(Data_Tech[[#Headers],[20]]))/(Data_Tech[[мес]:[мес]]=$J$5)/(Data_Tech[[год]:[год]]=$L$5)/(Data_Tech[[изд]:[изд]]=$N$1:$T$1)/(Data_Tech[[партия]:[партия]]=$W$1),ROW(W19))),"") ->  | Y25: =IFERROR(INDEX(Data_Tech[21],_xlfn.AGGREGATE(15,6,(ROW(Data_Tech[21])-ROW(Data_Tech[[#Headers],[21]]))/(Data_Tech[[мес]:[мес]]=$J$5)/(Data_Tech[[год]:[год]]=$L$5)/(Data_Tech[[изд]:[изд]]=$N$1:$T$1)/(Data_Tech[[партия]:[партия]]=$W$1),ROW(X19))),"") ->  | Z25: =IFERROR(INDEX(Data_Tech[22],_xlfn.AGGREGATE(15,6,(ROW(Data_Tech[22])-ROW(Data_Tech[[#Headers],[22]]))/(Data_Tech[[мес]:[мес]]=$J$5)/(Data_Tech[[год]:[год]]=$L$5)/(Data_Tech[[изд]:[изд]]=$N$1:$T$1)/(Data_Tech[[партия]:[партия]]=$W$1),ROW(Y19))),"") ->  | AA25: =IFERROR(INDEX(Data_Tech[23],_xlfn.AGGREGATE(15,6,(ROW(Data_Tech[23])-ROW(Data_Tech[[#Headers],[23]]))/(Data_Tech[[мес]:[мес]]=$J$5)/(Data_Tech[[год]:[год]]=$L$5)/(Data_Tech[[изд]:[изд]]=$N$1:$T$1)/(Data_Tech[[партия]:[партия]]=$W$1),ROW(Z19))),"") ->  | AB25: =IFERROR(INDEX(Data_Tech[24],_xlfn.AGGREGATE(15,6,(ROW(Data_Tech[24])-ROW(Data_Tech[[#Headers],[24]]))/(Data_Tech[[мес]:[мес]]=$J$5)/(Data_Tech[[год]:[год]]=$L$5)/(Data_Tech[[изд]:[изд]]=$N$1:$T$1)/(Data_Tech[[партия]:[партия]]=$W$1),ROW(AA19))),"") ->  | AC25: =IFERROR(INDEX(Data_Tech[25],_xlfn.AGGREGATE(15,6,(ROW(Data_Tech[25])-ROW(Data_Tech[[#Headers],[25]]))/(Data_Tech[[мес]:[мес]]=$J$5)/(Data_Tech[[год]:[год]]=$L$5)/(Data_Tech[[изд]:[изд]]=$N$1:$T$1)/(Data_Tech[[партия]:[партия]]=$W$1),ROW(AB19))),"") ->  | AD25: =IFERROR(INDEX(Data_Tech[26],_xlfn.AGGREGATE(15,6,(ROW(Data_Tech[26])-ROW(Data_Tech[[#Headers],[26]]))/(Data_Tech[[мес]:[мес]]=$J$5)/(Data_Tech[[год]:[год]]=$L$5)/(Data_Tech[[изд]:[изд]]=$N$1:$T$1)/(Data_Tech[[партия]:[партия]]=$W$1),ROW(AC19))),"") ->  | AE25: =IFERROR(INDEX(Data_Tech[27],_xlfn.AGGREGATE(15,6,(ROW(Data_Tech[27])-ROW(Data_Tech[[#Headers],[27]]))/(Data_Tech[[мес]:[мес]]=$J$5)/(Data_Tech[[год]:[год]]=$L$5)/(Data_Tech[[изд]:[изд]]=$N$1:$T$1)/(Data_Tech[[партия]:[партия]]=$W$1),ROW(AD19))),"") ->  | AF25: =IFERROR(INDEX(Data_Tech[28],_xlfn.AGGREGATE(15,6,(ROW(Data_Tech[28])-ROW(Data_Tech[[#Headers],[28]]))/(Data_Tech[[мес]:[мес]]=$J$5)/(Data_Tech[[год]:[год]]=$L$5)/(Data_Tech[[изд]:[изд]]=$N$1:$T$1)/(Data_Tech[[партия]:[партия]]=$W$1),ROW(AE19))),"") ->  | AG25: =IFERROR(INDEX(Data_Tech[29],_xlfn.AGGREGATE(15,6,(ROW(Data_Tech[29])-ROW(Data_Tech[[#Headers],[29]]))/(Data_Tech[[мес]:[мес]]=$J$5)/(Data_Tech[[год]:[год]]=$L$5)/(Data_Tech[[изд]:[изд]]=$N$1:$T$1)/(Data_Tech[[партия]:[партия]]=$W$1),ROW(AF19))),"") ->  | AH25: =IFERROR(INDEX(Data_Tech[30],_xlfn.AGGREGATE(15,6,(ROW(Data_Tech[30])-ROW(Data_Tech[[#Headers],[30]]))/(Data_Tech[[мес]:[мес]]=$J$5)/(Data_Tech[[год]:[год]]=$L$5)/(Data_Tech[[изд]:[изд]]=$N$1:$T$1)/(Data_Tech[[партия]:[партия]]=$W$1),ROW(AG19))),"") ->  | AI25: =IFERROR(INDEX(Data_Tech[31],_xlfn.AGGREGATE(15,6,(ROW(Data_Tech[31])-ROW(Data_Tech[[#Headers],[31]]))/(Data_Tech[[мес]:[мес]]=$J$5)/(Data_Tech[[год]:[год]]=$L$5)/(Data_Tech[[изд]:[изд]]=$N$1:$T$1)/(Data_Tech[[партия]:[партия]]=$W$1),ROW(AH19))),"") ->  | AJ25: 0
A26: 20 | B26: =IFERROR(INDEX(Data_Tech[коэф],_xlfn.AGGREGATE(15,6,(ROW(Data_Tech[коэф])-ROW(Data_Tech[[#Headers],[коэф]]))/(Data_Tech[[мес]:[мес]]=$J$5)/(Data_Tech[[год]:[год]]=$L$5)/(Data_Tech[[изд]:[изд]]=$N$1)/(Data_Tech[[партия]:[партия]]=$W$1),ROW(A20))),"") ->  | C26: =IFERROR(INDEX(Data_Tech[Ф. И. О.],_xlfn.AGGREGATE(15,6,(ROW(Data_Tech[Ф. И. О.])-ROW(Data_Tech[[#Headers],[Ф. И. О.]]))/(Data_Tech[[мес]:[мес]]=$J$5)/(Data_Tech[[год]:[год]]=$L$5)/(Data_Tech[[изд]:[изд]]=$N$1)/(Data_Tech[[партия]:[партия]]=$W$1),ROW(B20))),"") ->  | D26: =IFERROR(INDEX(Data_Tech[р/р],_xlfn.AGGREGATE(15,6,(ROW(Data_Tech[р/р])-ROW(Data_Tech[[#Headers],[р/р]]))/(Data_Tech[[мес]:[мес]]=$J$5)/(Data_Tech[[год]:[год]]=$L$5)/(Data_Tech[[изд]:[изд]]=$N$1)/(Data_Tech[[партия]:[партия]]=$W$1),ROW(C20))),"") ->  | E26: =IFERROR(INDEX(Data_Tech[1],_xlfn.AGGREGATE(15,6,(ROW(Data_Tech[1])-ROW(Data_Tech[[#Headers],[1]]))/(Data_Tech[[мес]:[мес]]=$J$5)/(Data_Tech[[год]:[год]]=$L$5)/(Data_Tech[[изд]:[изд]]=$N$1:$T$1)/(Data_Tech[[партия]:[партия]]=$W$1),ROW(D20))),"") ->  | F26: =IFERROR(INDEX(Data_Tech[2],_xlfn.AGGREGATE(15,6,(ROW(Data_Tech[2])-ROW(Data_Tech[[#Headers],[2]]))/(Data_Tech[[мес]:[мес]]=$J$5)/(Data_Tech[[год]:[год]]=$L$5)/(Data_Tech[[изд]:[изд]]=$N$1:$T$1)/(Data_Tech[[партия]:[партия]]=$W$1),ROW(E20))),"") ->  | G26: =IFERROR(INDEX(Data_Tech[3],_xlfn.AGGREGATE(15,6,(ROW(Data_Tech[3])-ROW(Data_Tech[[#Headers],[3]]))/(Data_Tech[[мес]:[мес]]=$J$5)/(Data_Tech[[год]:[год]]=$L$5)/(Data_Tech[[изд]:[изд]]=$N$1:$T$1)/(Data_Tech[[партия]:[партия]]=$W$1),ROW(F20))),"") ->  | H26: =IFERROR(INDEX(Data_Tech[4],_xlfn.AGGREGATE(15,6,(ROW(Data_Tech[4])-ROW(Data_Tech[[#Headers],[4]]))/(Data_Tech[[мес]:[мес]]=$J$5)/(Data_Tech[[год]:[год]]=$L$5)/(Data_Tech[[изд]:[изд]]=$N$1:$T$1)/(Data_Tech[[партия]:[партия]]=$W$1),ROW(G20))),"") ->  | I26: =IFERROR(INDEX(Data_Tech[5],_xlfn.AGGREGATE(15,6,(ROW(Data_Tech[5])-ROW(Data_Tech[[#Headers],[5]]))/(Data_Tech[[мес]:[мес]]=$J$5)/(Data_Tech[[год]:[год]]=$L$5)/(Data_Tech[[изд]:[изд]]=$N$1:$T$1)/(Data_Tech[[партия]:[партия]]=$W$1),ROW(H20))),"") ->  | J26: =IFERROR(INDEX(Data_Tech[6],_xlfn.AGGREGATE(15,6,(ROW(Data_Tech[6])-ROW(Data_Tech[[#Headers],[6]]))/(Data_Tech[[мес]:[мес]]=$J$5)/(Data_Tech[[год]:[год]]=$L$5)/(Data_Tech[[изд]:[изд]]=$N$1:$T$1)/(Data_Tech[[партия]:[партия]]=$W$1),ROW(I20))),"") ->  | K26: =IFERROR(INDEX(Data_Tech[7],_xlfn.AGGREGATE(15,6,(ROW(Data_Tech[7])-ROW(Data_Tech[[#Headers],[7]]))/(Data_Tech[[мес]:[мес]]=$J$5)/(Data_Tech[[год]:[год]]=$L$5)/(Data_Tech[[изд]:[изд]]=$N$1:$T$1)/(Data_Tech[[партия]:[партия]]=$W$1),ROW(J20))),"") ->  | L26: =IFERROR(INDEX(Data_Tech[8],_xlfn.AGGREGATE(15,6,(ROW(Data_Tech[8])-ROW(Data_Tech[[#Headers],[8]]))/(Data_Tech[[мес]:[мес]]=$J$5)/(Data_Tech[[год]:[год]]=$L$5)/(Data_Tech[[изд]:[изд]]=$N$1:$T$1)/(Data_Tech[[партия]:[партия]]=$W$1),ROW(K20))),"") ->  | M26: =IFERROR(INDEX(Data_Tech[9],_xlfn.AGGREGATE(15,6,(ROW(Data_Tech[9])-ROW(Data_Tech[[#Headers],[9]]))/(Data_Tech[[мес]:[мес]]=$J$5)/(Data_Tech[[год]:[год]]=$L$5)/(Data_Tech[[изд]:[изд]]=$N$1:$T$1)/(Data_Tech[[партия]:[партия]]=$W$1),ROW(L20))),"") ->  | N26: =IFERROR(INDEX(Data_Tech[10],_xlfn.AGGREGATE(15,6,(ROW(Data_Tech[10])-ROW(Data_Tech[[#Headers],[10]]))/(Data_Tech[[мес]:[мес]]=$J$5)/(Data_Tech[[год]:[год]]=$L$5)/(Data_Tech[[изд]:[изд]]=$N$1:$T$1)/(Data_Tech[[партия]:[партия]]=$W$1),ROW(M20))),"") ->  | O26: =IFERROR(INDEX(Data_Tech[11],_xlfn.AGGREGATE(15,6,(ROW(Data_Tech[11])-ROW(Data_Tech[[#Headers],[11]]))/(Data_Tech[[мес]:[мес]]=$J$5)/(Data_Tech[[год]:[год]]=$L$5)/(Data_Tech[[изд]:[изд]]=$N$1:$T$1)/(Data_Tech[[партия]:[партия]]=$W$1),ROW(N20))),"") ->  | P26: =IFERROR(INDEX(Data_Tech[12],_xlfn.AGGREGATE(15,6,(ROW(Data_Tech[12])-ROW(Data_Tech[[#Headers],[12]]))/(Data_Tech[[мес]:[мес]]=$J$5)/(Data_Tech[[год]:[год]]=$L$5)/(Data_Tech[[изд]:[изд]]=$N$1:$T$1)/(Data_Tech[[партия]:[партия]]=$W$1),ROW(O20))),"") ->  | Q26: =IFERROR(INDEX(Data_Tech[13],_xlfn.AGGREGATE(15,6,(ROW(Data_Tech[13])-ROW(Data_Tech[[#Headers],[13]]))/(Data_Tech[[мес]:[мес]]=$J$5)/(Data_Tech[[год]:[год]]=$L$5)/(Data_Tech[[изд]:[изд]]=$N$1:$T$1)/(Data_Tech[[партия]:[партия]]=$W$1),ROW(P20))),"") ->  | R26: =IFERROR(INDEX(Data_Tech[14],_xlfn.AGGREGATE(15,6,(ROW(Data_Tech[14])-ROW(Data_Tech[[#Headers],[14]]))/(Data_Tech[[мес]:[мес]]=$J$5)/(Data_Tech[[год]:[год]]=$L$5)/(Data_Tech[[изд]:[изд]]=$N$1:$T$1)/(Data_Tech[[партия]:[партия]]=$W$1),ROW(Q20))),"") ->  | S26: =IFERROR(INDEX(Data_Tech[15],_xlfn.AGGREGATE(15,6,(ROW(Data_Tech[15])-ROW(Data_Tech[[#Headers],[15]]))/(Data_Tech[[мес]:[мес]]=$J$5)/(Data_Tech[[год]:[год]]=$L$5)/(Data_Tech[[изд]:[изд]]=$N$1:$T$1)/(Data_Tech[[партия]:[партия]]=$W$1),ROW(R20))),"") ->  | T26: =IFERROR(INDEX(Data_Tech[16],_xlfn.AGGREGATE(15,6,(ROW(Data_Tech[16])-ROW(Data_Tech[[#Headers],[16]]))/(Data_Tech[[мес]:[мес]]=$J$5)/(Data_Tech[[год]:[год]]=$L$5)/(Data_Tech[[изд]:[изд]]=$N$1:$T$1)/(Data_Tech[[партия]:[партия]]=$W$1),ROW(S20))),"") ->  | U26: =IFERROR(INDEX(Data_Tech[17],_xlfn.AGGREGATE(15,6,(ROW(Data_Tech[17])-ROW(Data_Tech[[#Headers],[17]]))/(Data_Tech[[мес]:[мес]]=$J$5)/(Data_Tech[[год]:[год]]=$L$5)/(Data_Tech[[изд]:[изд]]=$N$1:$T$1)/(Data_Tech[[партия]:[партия]]=$W$1),ROW(T20))),"") ->  | V26: =IFERROR(INDEX(Data_Tech[18],_xlfn.AGGREGATE(15,6,(ROW(Data_Tech[18])-ROW(Data_Tech[[#Headers],[18]]))/(Data_Tech[[мес]:[мес]]=$J$5)/(Data_Tech[[год]:[год]]=$L$5)/(Data_Tech[[изд]:[изд]]=$N$1:$T$1)/(Data_Tech[[партия]:[партия]]=$W$1),ROW(U20))),"") ->  | W26: =IFERROR(INDEX(Data_Tech[19],_xlfn.AGGREGATE(15,6,(ROW(Data_Tech[19])-ROW(Data_Tech[[#Headers],[19]]))/(Data_Tech[[мес]:[мес]]=$J$5)/(Data_Tech[[год]:[год]]=$L$5)/(Data_Tech[[изд]:[изд]]=$N$1:$T$1)/(Data_Tech[[партия]:[партия]]=$W$1),ROW(V20))),"") ->  | X26: =IFERROR(INDEX(Data_Tech[20],_xlfn.AGGREGATE(15,6,(ROW(Data_Tech[20])-ROW(Data_Tech[[#Headers],[20]]))/(Data_Tech[[мес]:[мес]]=$J$5)/(Data_Tech[[год]:[год]]=$L$5)/(Data_Tech[[изд]:[изд]]=$N$1:$T$1)/(Data_Tech[[партия]:[партия]]=$W$1),ROW(W20))),"") ->  | Y26: =IFERROR(INDEX(Data_Tech[21],_xlfn.AGGREGATE(15,6,(ROW(Data_Tech[21])-ROW(Data_Tech[[#Headers],[21]]))/(Data_Tech[[мес]:[мес]]=$J$5)/(Data_Tech[[год]:[год]]=$L$5)/(Data_Tech[[изд]:[изд]]=$N$1:$T$1)/(Data_Tech[[партия]:[партия]]=$W$1),ROW(X20))),"") ->  | Z26: =IFERROR(INDEX(Data_Tech[22],_xlfn.AGGREGATE(15,6,(ROW(Data_Tech[22])-ROW(Data_Tech[[#Headers],[22]]))/(Data_Tech[[мес]:[мес]]=$J$5)/(Data_Tech[[год]:[год]]=$L$5)/(Data_Tech[[изд]:[изд]]=$N$1:$T$1)/(Data_Tech[[партия]:[партия]]=$W$1),ROW(Y20))),"") ->  | AA26: =IFERROR(INDEX(Data_Tech[23],_xlfn.AGGREGATE(15,6,(ROW(Data_Tech[23])-ROW(Data_Tech[[#Headers],[23]]))/(Data_Tech[[мес]:[мес]]=$J$5)/(Data_Tech[[год]:[год]]=$L$5)/(Data_Tech[[изд]:[изд]]=$N$1:$T$1)/(Data_Tech[[партия]:[партия]]=$W$1),ROW(Z20))),"") ->  | AB26: =IFERROR(INDEX(Data_Tech[24],_xlfn.AGGREGATE(15,6,(ROW(Data_Tech[24])-ROW(Data_Tech[[#Headers],[24]]))/(Data_Tech[[мес]:[мес]]=$J$5)/(Data_Tech[[год]:[год]]=$L$5)/(Data_Tech[[изд]:[изд]]=$N$1:$T$1)/(Data_Tech[[партия]:[партия]]=$W$1),ROW(AA20))),"") ->  | AC26: =IFERROR(INDEX(Data_Tech[25],_xlfn.AGGREGATE(15,6,(ROW(Data_Tech[25])-ROW(Data_Tech[[#Headers],[25]]))/(Data_Tech[[мес]:[мес]]=$J$5)/(Data_Tech[[год]:[год]]=$L$5)/(Data_Tech[[изд]:[изд]]=$N$1:$T$1)/(Data_Tech[[партия]:[партия]]=$W$1),ROW(AB20))),"") ->  | AD26: =IFERROR(INDEX(Data_Tech[26],_xlfn.AGGREGATE(15,6,(ROW(Data_Tech[26])-ROW(Data_Tech[[#Headers],[26]]))/(Data_Tech[[мес]:[мес]]=$J$5)/(Data_Tech[[год]:[год]]=$L$5)/(Data_Tech[[изд]:[изд]]=$N$1:$T$1)/(Data_Tech[[партия]:[партия]]=$W$1),ROW(AC20))),"") ->  | AE26: =IFERROR(INDEX(Data_Tech[27],_xlfn.AGGREGATE(15,6,(ROW(Data_Tech[27])-ROW(Data_Tech[[#Headers],[27]]))/(Data_Tech[[мес]:[мес]]=$J$5)/(Data_Tech[[год]:[год]]=$L$5)/(Data_Tech[[изд]:[изд]]=$N$1:$T$1)/(Data_Tech[[партия]:[партия]]=$W$1),ROW(AD20))),"") ->  | AF26: =IFERROR(INDEX(Data_Tech[28],_xlfn.AGGREGATE(15,6,(ROW(Data_Tech[28])-ROW(Data_Tech[[#Headers],[28]]))/(Data_Tech[[мес]:[мес]]=$J$5)/(Data_Tech[[год]:[год]]=$L$5)/(Data_Tech[[изд]:[изд]]=$N$1:$T$1)/(Data_Tech[[партия]:[партия]]=$W$1),ROW(AE20))),"") ->  | AG26: =IFERROR(INDEX(Data_Tech[29],_xlfn.AGGREGATE(15,6,(ROW(Data_Tech[29])-ROW(Data_Tech[[#Headers],[29]]))/(Data_Tech[[мес]:[мес]]=$J$5)/(Data_Tech[[год]:[год]]=$L$5)/(Data_Tech[[изд]:[изд]]=$N$1:$T$1)/(Data_Tech[[партия]:[партия]]=$W$1),ROW(AF20))),"") ->  | AH26: =IFERROR(INDEX(Data_Tech[30],_xlfn.AGGREGATE(15,6,(ROW(Data_Tech[30])-ROW(Data_Tech[[#Headers],[30]]))/(Data_Tech[[мес]:[мес]]=$J$5)/(Data_Tech[[год]:[год]]=$L$5)/(Data_Tech[[изд]:[изд]]=$N$1:$T$1)/(Data_Tech[[партия]:[партия]]=$W$1),ROW(AG20))),"") ->  | AI26: =IFERROR(INDEX(Data_Tech[31],_xlfn.AGGREGATE(15,6,(ROW(Data_Tech[31])-ROW(Data_Tech[[#Headers],[31]]))/(Data_Tech[[мес]:[мес]]=$J$5)/(Data_Tech[[год]:[год]]=$L$5)/(Data_Tech[[изд]:[изд]]=$N$1:$T$1)/(Data_Tech[[партия]:[партия]]=$W$1),ROW(AH20))),"") ->  | AJ26: =SUM(E26:AI26) -> 0
A27: 21 | B27: =IFERROR(INDEX(Data_Tech[коэф],_xlfn.AGGREGATE(15,6,(ROW(Data_Tech[коэф])-ROW(Data_Tech[[#Headers],[коэф]]))/(Data_Tech[[мес]:[мес]]=$J$5)/(Data_Tech[[год]:[год]]=$L$5)/(Data_Tech[[изд]:[изд]]=$N$1)/(Data_Tech[[партия]:[партия]]=$W$1),ROW(A21))),"") ->  | C27: =IFERROR(INDEX(Data_Tech[Ф. И. О.],_xlfn.AGGREGATE(15,6,(ROW(Data_Tech[Ф. И. О.])-ROW(Data_Tech[[#Headers],[Ф. И. О.]]))/(Data_Tech[[мес]:[мес]]=$J$5)/(Data_Tech[[год]:[год]]=$L$5)/(Data_Tech[[изд]:[изд]]=$N$1)/(Data_Tech[[партия]:[партия]]=$W$1),ROW(B21))),"") ->  | D27: =IFERROR(INDEX(Data_Tech[р/р],_xlfn.AGGREGATE(15,6,(ROW(Data_Tech[р/р])-ROW(Data_Tech[[#Headers],[р/р]]))/(Data_Tech[[мес]:[мес]]=$J$5)/(Data_Tech[[год]:[год]]=$L$5)/(Data_Tech[[изд]:[изд]]=$N$1)/(Data_Tech[[партия]:[партия]]=$W$1),ROW(C21))),"") ->  | E27: =IFERROR(INDEX(Data_Tech[1],_xlfn.AGGREGATE(15,6,(ROW(Data_Tech[1])-ROW(Data_Tech[[#Headers],[1]]))/(Data_Tech[[мес]:[мес]]=$J$5)/(Data_Tech[[год]:[год]]=$L$5)/(Data_Tech[[изд]:[изд]]=$N$1:$T$1)/(Data_Tech[[партия]:[партия]]=$W$1),ROW(D21))),"") ->  | F27: =IFERROR(INDEX(Data_Tech[2],_xlfn.AGGREGATE(15,6,(ROW(Data_Tech[2])-ROW(Data_Tech[[#Headers],[2]]))/(Data_Tech[[мес]:[мес]]=$J$5)/(Data_Tech[[год]:[год]]=$L$5)/(Data_Tech[[изд]:[изд]]=$N$1:$T$1)/(Data_Tech[[партия]:[партия]]=$W$1),ROW(E21))),"") ->  | G27: =IFERROR(INDEX(Data_Tech[3],_xlfn.AGGREGATE(15,6,(ROW(Data_Tech[3])-ROW(Data_Tech[[#Headers],[3]]))/(Data_Tech[[мес]:[мес]]=$J$5)/(Data_Tech[[год]:[год]]=$L$5)/(Data_Tech[[изд]:[изд]]=$N$1:$T$1)/(Data_Tech[[партия]:[партия]]=$W$1),ROW(F21))),"") ->  | H27: =IFERROR(INDEX(Data_Tech[4],_xlfn.AGGREGATE(15,6,(ROW(Data_Tech[4])-ROW(Data_Tech[[#Headers],[4]]))/(Data_Tech[[мес]:[мес]]=$J$5)/(Data_Tech[[год]:[год]]=$L$5)/(Data_Tech[[изд]:[изд]]=$N$1:$T$1)/(Data_Tech[[партия]:[партия]]=$W$1),ROW(G21))),"") ->  | I27: =IFERROR(INDEX(Data_Tech[5],_xlfn.AGGREGATE(15,6,(ROW(Data_Tech[5])-ROW(Data_Tech[[#Headers],[5]]))/(Data_Tech[[мес]:[мес]]=$J$5)/(Data_Tech[[год]:[год]]=$L$5)/(Data_Tech[[изд]:[изд]]=$N$1:$T$1)/(Data_Tech[[партия]:[партия]]=$W$1),ROW(H21))),"") ->  | J27: =IFERROR(INDEX(Data_Tech[6],_xlfn.AGGREGATE(15,6,(ROW(Data_Tech[6])-ROW(Data_Tech[[#Headers],[6]]))/(Data_Tech[[мес]:[мес]]=$J$5)/(Data_Tech[[год]:[год]]=$L$5)/(Data_Tech[[изд]:[изд]]=$N$1:$T$1)/(Data_Tech[[партия]:[партия]]=$W$1),ROW(I21))),"") ->  | K27: =IFERROR(INDEX(Data_Tech[7],_xlfn.AGGREGATE(15,6,(ROW(Data_Tech[7])-ROW(Data_Tech[[#Headers],[7]]))/(Data_Tech[[мес]:[мес]]=$J$5)/(Data_Tech[[год]:[год]]=$L$5)/(Data_Tech[[изд]:[изд]]=$N$1:$T$1)/(Data_Tech[[партия]:[партия]]=$W$1),ROW(J21))),"") ->  | L27: =IFERROR(INDEX(Data_Tech[8],_xlfn.AGGREGATE(15,6,(ROW(Data_Tech[8])-ROW(Data_Tech[[#Headers],[8]]))/(Data_Tech[[мес]:[мес]]=$J$5)/(Data_Tech[[год]:[год]]=$L$5)/(Data_Tech[[изд]:[изд]]=$N$1:$T$1)/(Data_Tech[[партия]:[партия]]=$W$1),ROW(K21))),"") ->  | M27: =IFERROR(INDEX(Data_Tech[9],_xlfn.AGGREGATE(15,6,(ROW(Data_Tech[9])-ROW(Data_Tech[[#Headers],[9]]))/(Data_Tech[[мес]:[мес]]=$J$5)/(Data_Tech[[год]:[год]]=$L$5)/(Data_Tech[[изд]:[изд]]=$N$1:$T$1)/(Data_Tech[[партия]:[партия]]=$W$1),ROW(L21))),"") ->  | N27: =IFERROR(INDEX(Data_Tech[10],_xlfn.AGGREGATE(15,6,(ROW(Data_Tech[10])-ROW(Data_Tech[[#Headers],[10]]))/(Data_Tech[[мес]:[мес]]=$J$5)/(Data_Tech[[год]:[год]]=$L$5)/(Data_Tech[[изд]:[изд]]=$N$1:$T$1)/(Data_Tech[[партия]:[партия]]=$W$1),ROW(M21))),"") ->  | O27: =IFERROR(INDEX(Data_Tech[11],_xlfn.AGGREGATE(15,6,(ROW(Data_Tech[11])-ROW(Data_Tech[[#Headers],[11]]))/(Data_Tech[[мес]:[мес]]=$J$5)/(Data_Tech[[год]:[год]]=$L$5)/(Data_Tech[[изд]:[изд]]=$N$1:$T$1)/(Data_Tech[[партия]:[партия]]=$W$1),ROW(N21))),"") ->  | P27: =IFERROR(INDEX(Data_Tech[12],_xlfn.AGGREGATE(15,6,(ROW(Data_Tech[12])-ROW(Data_Tech[[#Headers],[12]]))/(Data_Tech[[мес]:[мес]]=$J$5)/(Data_Tech[[год]:[год]]=$L$5)/(Data_Tech[[изд]:[изд]]=$N$1:$T$1)/(Data_Tech[[партия]:[партия]]=$W$1),ROW(O21))),"") ->  | Q27: =IFERROR(INDEX(Data_Tech[13],_xlfn.AGGREGATE(15,6,(ROW(Data_Tech[13])-ROW(Data_Tech[[#Headers],[13]]))/(Data_Tech[[мес]:[мес]]=$J$5)/(Data_Tech[[год]:[год]]=$L$5)/(Data_Tech[[изд]:[изд]]=$N$1:$T$1)/(Data_Tech[[партия]:[партия]]=$W$1),ROW(P21))),"") ->  | R27: =IFERROR(INDEX(Data_Tech[14],_xlfn.AGGREGATE(15,6,(ROW(Data_Tech[14])-ROW(Data_Tech[[#Headers],[14]]))/(Data_Tech[[мес]:[мес]]=$J$5)/(Data_Tech[[год]:[год]]=$L$5)/(Data_Tech[[изд]:[изд]]=$N$1:$T$1)/(Data_Tech[[партия]:[партия]]=$W$1),ROW(Q21))),"") ->  | S27: =IFERROR(INDEX(Data_Tech[15],_xlfn.AGGREGATE(15,6,(ROW(Data_Tech[15])-ROW(Data_Tech[[#Headers],[15]]))/(Data_Tech[[мес]:[мес]]=$J$5)/(Data_Tech[[год]:[год]]=$L$5)/(Data_Tech[[изд]:[изд]]=$N$1:$T$1)/(Data_Tech[[партия]:[партия]]=$W$1),ROW(R21))),"") ->  | T27: =IFERROR(INDEX(Data_Tech[16],_xlfn.AGGREGATE(15,6,(ROW(Data_Tech[16])-ROW(Data_Tech[[#Headers],[16]]))/(Data_Tech[[мес]:[мес]]=$J$5)/(Data_Tech[[год]:[год]]=$L$5)/(Data_Tech[[изд]:[изд]]=$N$1:$T$1)/(Data_Tech[[партия]:[партия]]=$W$1),ROW(S21))),"") ->  | U27: =IFERROR(INDEX(Data_Tech[17],_xlfn.AGGREGATE(15,6,(ROW(Data_Tech[17])-ROW(Data_Tech[[#Headers],[17]]))/(Data_Tech[[мес]:[мес]]=$J$5)/(Data_Tech[[год]:[год]]=$L$5)/(Data_Tech[[изд]:[изд]]=$N$1:$T$1)/(Data_Tech[[партия]:[партия]]=$W$1),ROW(T21))),"") ->  | V27: =IFERROR(INDEX(Data_Tech[18],_xlfn.AGGREGATE(15,6,(ROW(Data_Tech[18])-ROW(Data_Tech[[#Headers],[18]]))/(Data_Tech[[мес]:[мес]]=$J$5)/(Data_Tech[[год]:[год]]=$L$5)/(Data_Tech[[изд]:[изд]]=$N$1:$T$1)/(Data_Tech[[партия]:[партия]]=$W$1),ROW(U21))),"") ->  | W27: =IFERROR(INDEX(Data_Tech[19],_xlfn.AGGREGATE(15,6,(ROW(Data_Tech[19])-ROW(Data_Tech[[#Headers],[19]]))/(Data_Tech[[мес]:[мес]]=$J$5)/(Data_Tech[[год]:[год]]=$L$5)/(Data_Tech[[изд]:[изд]]=$N$1:$T$1)/(Data_Tech[[партия]:[партия]]=$W$1),ROW(V21))),"") ->  | X27: =IFERROR(INDEX(Data_Tech[20],_xlfn.AGGREGATE(15,6,(ROW(Data_Tech[20])-ROW(Data_Tech[[#Headers],[20]]))/(Data_Tech[[мес]:[мес]]=$J$5)/(Data_Tech[[год]:[год]]=$L$5)/(Data_Tech[[изд]:[изд]]=$N$1:$T$1)/(Data_Tech[[партия]:[партия]]=$W$1),ROW(W21))),"") ->  | Y27: =IFERROR(INDEX(Data_Tech[21],_xlfn.AGGREGATE(15,6,(ROW(Data_Tech[21])-ROW(Data_Tech[[#Headers],[21]]))/(Data_Tech[[мес]:[мес]]=$J$5)/(Data_Tech[[год]:[год]]=$L$5)/(Data_Tech[[изд]:[изд]]=$N$1:$T$1)/(Data_Tech[[партия]:[партия]]=$W$1),ROW(X21))),"") ->  | Z27: =IFERROR(INDEX(Data_Tech[22],_xlfn.AGGREGATE(15,6,(ROW(Data_Tech[22])-ROW(Data_Tech[[#Headers],[22]]))/(Data_Tech[[мес]:[мес]]=$J$5)/(Data_Tech[[год]:[год]]=$L$5)/(Data_Tech[[изд]:[изд]]=$N$1:$T$1)/(Data_Tech[[партия]:[партия]]=$W$1),ROW(Y21))),"") ->  | AA27: =IFERROR(INDEX(Data_Tech[23],_xlfn.AGGREGATE(15,6,(ROW(Data_Tech[23])-ROW(Data_Tech[[#Headers],[23]]))/(Data_Tech[[мес]:[мес]]=$J$5)/(Data_Tech[[год]:[год]]=$L$5)/(Data_Tech[[изд]:[изд]]=$N$1:$T$1)/(Data_Tech[[партия]:[партия]]=$W$1),ROW(Z21))),"") ->  | AB27: =IFERROR(INDEX(Data_Tech[24],_xlfn.AGGREGATE(15,6,(ROW(Data_Tech[24])-ROW(Data_Tech[[#Headers],[24]]))/(Data_Tech[[мес]:[мес]]=$J$5)/(Data_Tech[[год]:[год]]=$L$5)/(Data_Tech[[изд]:[изд]]=$N$1:$T$1)/(Data_Tech[[партия]:[партия]]=$W$1),ROW(AA21))),"") ->  | AC27: =IFERROR(INDEX(Data_Tech[25],_xlfn.AGGREGATE(15,6,(ROW(Data_Tech[25])-ROW(Data_Tech[[#Headers],[25]]))/(Data_Tech[[мес]:[мес]]=$J$5)/(Data_Tech[[год]:[год]]=$L$5)/(Data_Tech[[изд]:[изд]]=$N$1:$T$1)/(Data_Tech[[партия]:[партия]]=$W$1),ROW(AB21))),"") ->  | AD27: =IFERROR(INDEX(Data_Tech[26],_xlfn.AGGREGATE(15,6,(ROW(Data_Tech[26])-ROW(Data_Tech[[#Headers],[26]]))/(Data_Tech[[мес]:[мес]]=$J$5)/(Data_Tech[[год]:[год]]=$L$5)/(Data_Tech[[изд]:[изд]]=$N$1:$T$1)/(Data_Tech[[партия]:[партия]]=$W$1),ROW(AC21))),"") ->  | AE27: =IFERROR(INDEX(Data_Tech[27],_xlfn.AGGREGATE(15,6,(ROW(Data_Tech[27])-ROW(Data_Tech[[#Headers],[27]]))/(Data_Tech[[мес]:[мес]]=$J$5)/(Data_Tech[[год]:[год]]=$L$5)/(Data_Tech[[изд]:[изд]]=$N$1:$T$1)/(Data_Tech[[партия]:[партия]]=$W$1),ROW(AD21))),"") ->  | AF27: =IFERROR(INDEX(Data_Tech[28],_xlfn.AGGREGATE(15,6,(ROW(Data_Tech[28])-ROW(Data_Tech[[#Headers],[28]]))/(Data_Tech[[мес]:[мес]]=$J$5)/(Data_Tech[[год]:[год]]=$L$5)/(Data_Tech[[изд]:[изд]]=$N$1:$T$1)/(Data_Tech[[партия]:[партия]]=$W$1),ROW(AE21))),"") ->  | AG27: =IFERROR(INDEX(Data_Tech[29],_xlfn.AGGREGATE(15,6,(ROW(Data_Tech[29])-ROW(Data_Tech[[#Headers],[29]]))/(Data_Tech[[мес]:[мес]]=$J$5)/(Data_Tech[[год]:[год]]=$L$5)/(Data_Tech[[изд]:[изд]]=$N$1:$T$1)/(Data_Tech[[партия]:[партия]]=$W$1),ROW(AF21))),"") ->  | AH27: =IFERROR(INDEX(Data_Tech[30],_xlfn.AGGREGATE(15,6,(ROW(Data_Tech[30])-ROW(Data_Tech[[#Headers],[30]]))/(Data_Tech[[мес]:[мес]]=$J$5)/(Data_Tech[[год]:[год]]=$L$5)/(Data_Tech[[изд]:[изд]]=$N$1:$T$1)/(Data_Tech[[партия]:[партия]]=$W$1),ROW(AG21))),"") ->  | AI27: =IFERROR(INDEX(Data_Tech[31],_xlfn.AGGREGATE(15,6,(ROW(Data_Tech[31])-ROW(Data_Tech[[#Headers],[31]]))/(Data_Tech[[мес]:[мес]]=$J$5)/(Data_Tech[[год]:[год]]=$L$5)/(Data_Tech[[изд]:[изд]]=$N$1:$T$1)/(Data_Tech[[партия]:[партия]]=$W$1),ROW(AH21))),"") ->  | AJ27: 0
A28: 22 | B28: =IFERROR(INDEX(Data_Tech[коэф],_xlfn.AGGREGATE(15,6,(ROW(Data_Tech[коэф])-ROW(Data_Tech[[#Headers],[коэф]]))/(Data_Tech[[мес]:[мес]]=$J$5)/(Data_Tech[[год]:[год]]=$L$5)/(Data_Tech[[изд]:[изд]]=$N$1)/(Data_Tech[[партия]:[партия]]=$W$1),ROW(A22))),"") ->  | C28: =IFERROR(INDEX(Data_Tech[Ф. И. О.],_xlfn.AGGREGATE(15,6,(ROW(Data_Tech[Ф. И. О.])-ROW(Data_Tech[[#Headers],[Ф. И. О.]]))/(Data_Tech[[мес]:[мес]]=$J$5)/(Data_Tech[[год]:[год]]=$L$5)/(Data_Tech[[изд]:[изд]]=$N$1)/(Data_Tech[[партия]:[партия]]=$W$1),ROW(B22))),"") ->  | D28: =IFERROR(INDEX(Data_Tech[р/р],_xlfn.AGGREGATE(15,6,(ROW(Data_Tech[р/р])-ROW(Data_Tech[[#Headers],[р/р]]))/(Data_Tech[[мес]:[мес]]=$J$5)/(Data_Tech[[год]:[год]]=$L$5)/(Data_Tech[[изд]:[изд]]=$N$1)/(Data_Tech[[партия]:[партия]]=$W$1),ROW(C22))),"") ->  | E28: =IFERROR(INDEX(Data_Tech[1],_xlfn.AGGREGATE(15,6,(ROW(Data_Tech[1])-ROW(Data_Tech[[#Headers],[1]]))/(Data_Tech[[мес]:[мес]]=$J$5)/(Data_Tech[[год]:[год]]=$L$5)/(Data_Tech[[изд]:[изд]]=$N$1:$T$1)/(Data_Tech[[партия]:[партия]]=$W$1),ROW(D22))),"") ->  | F28: =IFERROR(INDEX(Data_Tech[2],_xlfn.AGGREGATE(15,6,(ROW(Data_Tech[2])-ROW(Data_Tech[[#Headers],[2]]))/(Data_Tech[[мес]:[мес]]=$J$5)/(Data_Tech[[год]:[год]]=$L$5)/(Data_Tech[[изд]:[изд]]=$N$1:$T$1)/(Data_Tech[[партия]:[партия]]=$W$1),ROW(E22))),"") ->  | G28: =IFERROR(INDEX(Data_Tech[3],_xlfn.AGGREGATE(15,6,(ROW(Data_Tech[3])-ROW(Data_Tech[[#Headers],[3]]))/(Data_Tech[[мес]:[мес]]=$J$5)/(Data_Tech[[год]:[год]]=$L$5)/(Data_Tech[[изд]:[изд]]=$N$1:$T$1)/(Data_Tech[[партия]:[партия]]=$W$1),ROW(F22))),"") ->  | H28: =IFERROR(INDEX(Data_Tech[4],_xlfn.AGGREGATE(15,6,(ROW(Data_Tech[4])-ROW(Data_Tech[[#Headers],[4]]))/(Data_Tech[[мес]:[мес]]=$J$5)/(Data_Tech[[год]:[год]]=$L$5)/(Data_Tech[[изд]:[изд]]=$N$1:$T$1)/(Data_Tech[[партия]:[партия]]=$W$1),ROW(G22))),"") ->  | I28: =IFERROR(INDEX(Data_Tech[5],_xlfn.AGGREGATE(15,6,(ROW(Data_Tech[5])-ROW(Data_Tech[[#Headers],[5]]))/(Data_Tech[[мес]:[мес]]=$J$5)/(Data_Tech[[год]:[год]]=$L$5)/(Data_Tech[[изд]:[изд]]=$N$1:$T$1)/(Data_Tech[[партия]:[партия]]=$W$1),ROW(H22))),"") ->  | J28: =IFERROR(INDEX(Data_Tech[6],_xlfn.AGGREGATE(15,6,(ROW(Data_Tech[6])-ROW(Data_Tech[[#Headers],[6]]))/(Data_Tech[[мес]:[мес]]=$J$5)/(Data_Tech[[год]:[год]]=$L$5)/(Data_Tech[[изд]:[изд]]=$N$1:$T$1)/(Data_Tech[[партия]:[партия]]=$W$1),ROW(I22))),"") ->  | K28: =IFERROR(INDEX(Data_Tech[7],_xlfn.AGGREGATE(15,6,(ROW(Data_Tech[7])-ROW(Data_Tech[[#Headers],[7]]))/(Data_Tech[[мес]:[мес]]=$J$5)/(Data_Tech[[год]:[год]]=$L$5)/(Data_Tech[[изд]:[изд]]=$N$1:$T$1)/(Data_Tech[[партия]:[партия]]=$W$1),ROW(J22))),"") ->  | L28: =IFERROR(INDEX(Data_Tech[8],_xlfn.AGGREGATE(15,6,(ROW(Data_Tech[8])-ROW(Data_Tech[[#Headers],[8]]))/(Data_Tech[[мес]:[мес]]=$J$5)/(Data_Tech[[год]:[год]]=$L$5)/(Data_Tech[[изд]:[изд]]=$N$1:$T$1)/(Data_Tech[[партия]:[партия]]=$W$1),ROW(K22))),"") ->  | M28: =IFERROR(INDEX(Data_Tech[9],_xlfn.AGGREGATE(15,6,(ROW(Data_Tech[9])-ROW(Data_Tech[[#Headers],[9]]))/(Data_Tech[[мес]:[мес]]=$J$5)/(Data_Tech[[год]:[год]]=$L$5)/(Data_Tech[[изд]:[изд]]=$N$1:$T$1)/(Data_Tech[[партия]:[партия]]=$W$1),ROW(L22))),"") ->  | N28: =IFERROR(INDEX(Data_Tech[10],_xlfn.AGGREGATE(15,6,(ROW(Data_Tech[10])-ROW(Data_Tech[[#Headers],[10]]))/(Data_Tech[[мес]:[мес]]=$J$5)/(Data_Tech[[год]:[год]]=$L$5)/(Data_Tech[[изд]:[изд]]=$N$1:$T$1)/(Data_Tech[[партия]:[партия]]=$W$1),ROW(M22))),"") ->  | O28: =IFERROR(INDEX(Data_Tech[11],_xlfn.AGGREGATE(15,6,(ROW(Data_Tech[11])-ROW(Data_Tech[[#Headers],[11]]))/(Data_Tech[[мес]:[мес]]=$J$5)/(Data_Tech[[год]:[год]]=$L$5)/(Data_Tech[[изд]:[изд]]=$N$1:$T$1)/(Data_Tech[[партия]:[партия]]=$W$1),ROW(N22))),"") ->  | P28: =IFERROR(INDEX(Data_Tech[12],_xlfn.AGGREGATE(15,6,(ROW(Data_Tech[12])-ROW(Data_Tech[[#Headers],[12]]))/(Data_Tech[[мес]:[мес]]=$J$5)/(Data_Tech[[год]:[год]]=$L$5)/(Data_Tech[[изд]:[изд]]=$N$1:$T$1)/(Data_Tech[[партия]:[партия]]=$W$1),ROW(O22))),"") ->  | Q28: =IFERROR(INDEX(Data_Tech[13],_xlfn.AGGREGATE(15,6,(ROW(Data_Tech[13])-ROW(Data_Tech[[#Headers],[13]]))/(Data_Tech[[мес]:[мес]]=$J$5)/(Data_Tech[[год]:[год]]=$L$5)/(Data_Tech[[изд]:[изд]]=$N$1:$T$1)/(Data_Tech[[партия]:[партия]]=$W$1),ROW(P22))),"") ->  | R28: =IFERROR(INDEX(Data_Tech[14],_xlfn.AGGREGATE(15,6,(ROW(Data_Tech[14])-ROW(Data_Tech[[#Headers],[14]]))/(Data_Tech[[мес]:[мес]]=$J$5)/(Data_Tech[[год]:[год]]=$L$5)/(Data_Tech[[изд]:[изд]]=$N$1:$T$1)/(Data_Tech[[партия]:[партия]]=$W$1),ROW(Q22))),"") ->  | S28: =IFERROR(INDEX(Data_Tech[15],_xlfn.AGGREGATE(15,6,(ROW(Data_Tech[15])-ROW(Data_Tech[[#Headers],[15]]))/(Data_Tech[[мес]:[мес]]=$J$5)/(Data_Tech[[год]:[год]]=$L$5)/(Data_Tech[[изд]:[изд]]=$N$1:$T$1)/(Data_Tech[[партия]:[партия]]=$W$1),ROW(R22))),"") ->  | T28: =IFERROR(INDEX(Data_Tech[16],_xlfn.AGGREGATE(15,6,(ROW(Data_Tech[16])-ROW(Data_Tech[[#Headers],[16]]))/(Data_Tech[[мес]:[мес]]=$J$5)/(Data_Tech[[год]:[год]]=$L$5)/(Data_Tech[[изд]:[изд]]=$N$1:$T$1)/(Data_Tech[[партия]:[партия]]=$W$1),ROW(S22))),"") ->  | U28: =IFERROR(INDEX(Data_Tech[17],_xlfn.AGGREGATE(15,6,(ROW(Data_Tech[17])-ROW(Data_Tech[[#Headers],[17]]))/(Data_Tech[[мес]:[мес]]=$J$5)/(Data_Tech[[год]:[год]]=$L$5)/(Data_Tech[[изд]:[изд]]=$N$1:$T$1)/(Data_Tech[[партия]:[партия]]=$W$1),ROW(T22))),"") ->  | V28: =IFERROR(INDEX(Data_Tech[18],_xlfn.AGGREGATE(15,6,(ROW(Data_Tech[18])-ROW(Data_Tech[[#Headers],[18]]))/(Data_Tech[[мес]:[мес]]=$J$5)/(Data_Tech[[год]:[год]]=$L$5)/(Data_Tech[[изд]:[изд]]=$N$1:$T$1)/(Data_Tech[[партия]:[партия]]=$W$1),ROW(U22))),"") ->  | W28: =IFERROR(INDEX(Data_Tech[19],_xlfn.AGGREGATE(15,6,(ROW(Data_Tech[19])-ROW(Data_Tech[[#Headers],[19]]))/(Data_Tech[[мес]:[мес]]=$J$5)/(Data_Tech[[год]:[год]]=$L$5)/(Data_Tech[[изд]:[изд]]=$N$1:$T$1)/(Data_Tech[[партия]:[партия]]=$W$1),ROW(V22))),"") ->  | X28: =IFERROR(INDEX(Data_Tech[20],_xlfn.AGGREGATE(15,6,(ROW(Data_Tech[20])-ROW(Data_Tech[[#Headers],[20]]))/(Data_Tech[[мес]:[мес]]=$J$5)/(Data_Tech[[год]:[год]]=$L$5)/(Data_Tech[[изд]:[изд]]=$N$1:$T$1)/(Data_Tech[[партия]:[партия]]=$W$1),ROW(W22))),"") ->  | Y28: =IFERROR(INDEX(Data_Tech[21],_xlfn.AGGREGATE(15,6,(ROW(Data_Tech[21])-ROW(Data_Tech[[#Headers],[21]]))/(Data_Tech[[мес]:[мес]]=$J$5)/(Data_Tech[[год]:[год]]=$L$5)/(Data_Tech[[изд]:[изд]]=$N$1:$T$1)/(Data_Tech[[партия]:[партия]]=$W$1),ROW(X22))),"") ->  | Z28: =IFERROR(INDEX(Data_Tech[22],_xlfn.AGGREGATE(15,6,(ROW(Data_Tech[22])-ROW(Data_Tech[[#Headers],[22]]))/(Data_Tech[[мес]:[мес]]=$J$5)/(Data_Tech[[год]:[год]]=$L$5)/(Data_Tech[[изд]:[изд]]=$N$1:$T$1)/(Data_Tech[[партия]:[партия]]=$W$1),ROW(Y22))),"") ->  | AA28: =IFERROR(INDEX(Data_Tech[23],_xlfn.AGGREGATE(15,6,(ROW(Data_Tech[23])-ROW(Data_Tech[[#Headers],[23]]))/(Data_Tech[[мес]:[мес]]=$J$5)/(Data_Tech[[год]:[год]]=$L$5)/(Data_Tech[[изд]:[изд]]=$N$1:$T$1)/(Data_Tech[[партия]:[партия]]=$W$1),ROW(Z22))),"") ->  | AB28: =IFERROR(INDEX(Data_Tech[24],_xlfn.AGGREGATE(15,6,(ROW(Data_Tech[24])-ROW(Data_Tech[[#Headers],[24]]))/(Data_Tech[[мес]:[мес]]=$J$5)/(Data_Tech[[год]:[год]]=$L$5)/(Data_Tech[[изд]:[изд]]=$N$1:$T$1)/(Data_Tech[[партия]:[партия]]=$W$1),ROW(AA22))),"") ->  | AC28: =IFERROR(INDEX(Data_Tech[25],_xlfn.AGGREGATE(15,6,(ROW(Data_Tech[25])-ROW(Data_Tech[[#Headers],[25]]))/(Data_Tech[[мес]:[мес]]=$J$5)/(Data_Tech[[год]:[год]]=$L$5)/(Data_Tech[[изд]:[изд]]=$N$1:$T$1)/(Data_Tech[[партия]:[партия]]=$W$1),ROW(AB22))),"") ->  | AD28: =IFERROR(INDEX(Data_Tech[26],_xlfn.AGGREGATE(15,6,(ROW(Data_Tech[26])-ROW(Data_Tech[[#Headers],[26]]))/(Data_Tech[[мес]:[мес]]=$J$5)/(Data_Tech[[год]:[год]]=$L$5)/(Data_Tech[[изд]:[изд]]=$N$1:$T$1)/(Data_Tech[[партия]:[партия]]=$W$1),ROW(AC22))),"") ->  | AE28: =IFERROR(INDEX(Data_Tech[27],_xlfn.AGGREGATE(15,6,(ROW(Data_Tech[27])-ROW(Data_Tech[[#Headers],[27]]))/(Data_Tech[[мес]:[мес]]=$J$5)/(Data_Tech[[год]:[год]]=$L$5)/(Data_Tech[[изд]:[изд]]=$N$1:$T$1)/(Data_Tech[[партия]:[партия]]=$W$1),ROW(AD22))),"") ->  | AF28: =IFERROR(INDEX(Data_Tech[28],_xlfn.AGGREGATE(15,6,(ROW(Data_Tech[28])-ROW(Data_Tech[[#Headers],[28]]))/(Data_Tech[[мес]:[мес]]=$J$5)/(Data_Tech[[год]:[год]]=$L$5)/(Data_Tech[[изд]:[изд]]=$N$1:$T$1)/(Data_Tech[[партия]:[партия]]=$W$1),ROW(AE22))),"") ->  | AG28: =IFERROR(INDEX(Data_Tech[29],_xlfn.AGGREGATE(15,6,(ROW(Data_Tech[29])-ROW(Data_Tech[[#Headers],[29]]))/(Data_Tech[[мес]:[мес]]=$J$5)/(Data_Tech[[год]:[год]]=$L$5)/(Data_Tech[[изд]:[изд]]=$N$1:$T$1)/(Data_Tech[[партия]:[партия]]=$W$1),ROW(AF22))),"") ->  | AH28: =IFERROR(INDEX(Data_Tech[30],_xlfn.AGGREGATE(15,6,(ROW(Data_Tech[30])-ROW(Data_Tech[[#Headers],[30]]))/(Data_Tech[[мес]:[мес]]=$J$5)/(Data_Tech[[год]:[год]]=$L$5)/(Data_Tech[[изд]:[изд]]=$N$1:$T$1)/(Data_Tech[[партия]:[партия]]=$W$1),ROW(AG22))),"") ->  | AI28: =IFERROR(INDEX(Data_Tech[31],_xlfn.AGGREGATE(15,6,(ROW(Data_Tech[31])-ROW(Data_Tech[[#Headers],[31]]))/(Data_Tech[[мес]:[мес]]=$J$5)/(Data_Tech[[год]:[год]]=$L$5)/(Data_Tech[[изд]:[изд]]=$N$1:$T$1)/(Data_Tech[[партия]:[партия]]=$W$1),ROW(AH22))),"") ->  | AJ28: 0
A29: 23 | B29: =IFERROR(INDEX(Data_Tech[коэф],_xlfn.AGGREGATE(15,6,(ROW(Data_Tech[коэф])-ROW(Data_Tech[[#Headers],[коэф]]))/(Data_Tech[[мес]:[мес]]=$J$5)/(Data_Tech[[год]:[год]]=$L$5)/(Data_Tech[[изд]:[изд]]=$N$1)/(Data_Tech[[партия]:[партия]]=$W$1),ROW(A23))),"") ->  | C29: =IFERROR(INDEX(Data_Tech[Ф. И. О.],_xlfn.AGGREGATE(15,6,(ROW(Data_Tech[Ф. И. О.])-ROW(Data_Tech[[#Headers],[Ф. И. О.]]))/(Data_Tech[[мес]:[мес]]=$J$5)/(Data_Tech[[год]:[год]]=$L$5)/(Data_Tech[[изд]:[изд]]=$N$1)/(Data_Tech[[партия]:[партия]]=$W$1),ROW(B23))),"") ->  | D29: =IFERROR(INDEX(Data_Tech[р/р],_xlfn.AGGREGATE(15,6,(ROW(Data_Tech[р/р])-ROW(Data_Tech[[#Headers],[р/р]]))/(Data_Tech[[мес]:[мес]]=$J$5)/(Data_Tech[[год]:[год]]=$L$5)/(Data_Tech[[изд]:[изд]]=$N$1)/(Data_Tech[[партия]:[партия]]=$W$1),ROW(C23))),"") ->  | E29: =IFERROR(INDEX(Data_Tech[1],_xlfn.AGGREGATE(15,6,(ROW(Data_Tech[1])-ROW(Data_Tech[[#Headers],[1]]))/(Data_Tech[[мес]:[мес]]=$J$5)/(Data_Tech[[год]:[год]]=$L$5)/(Data_Tech[[изд]:[изд]]=$N$1:$T$1)/(Data_Tech[[партия]:[партия]]=$W$1),ROW(D23))),"") ->  | F29: =IFERROR(INDEX(Data_Tech[2],_xlfn.AGGREGATE(15,6,(ROW(Data_Tech[2])-ROW(Data_Tech[[#Headers],[2]]))/(Data_Tech[[мес]:[мес]]=$J$5)/(Data_Tech[[год]:[год]]=$L$5)/(Data_Tech[[изд]:[изд]]=$N$1:$T$1)/(Data_Tech[[партия]:[партия]]=$W$1),ROW(E23))),"") ->  | G29: =IFERROR(INDEX(Data_Tech[3],_xlfn.AGGREGATE(15,6,(ROW(Data_Tech[3])-ROW(Data_Tech[[#Headers],[3]]))/(Data_Tech[[мес]:[мес]]=$J$5)/(Data_Tech[[год]:[год]]=$L$5)/(Data_Tech[[изд]:[изд]]=$N$1:$T$1)/(Data_Tech[[партия]:[партия]]=$W$1),ROW(F23))),"") ->  | H29: =IFERROR(INDEX(Data_Tech[4],_xlfn.AGGREGATE(15,6,(ROW(Data_Tech[4])-ROW(Data_Tech[[#Headers],[4]]))/(Data_Tech[[мес]:[мес]]=$J$5)/(Data_Tech[[год]:[год]]=$L$5)/(Data_Tech[[изд]:[изд]]=$N$1:$T$1)/(Data_Tech[[партия]:[партия]]=$W$1),ROW(G23))),"") ->  | I29: =IFERROR(INDEX(Data_Tech[5],_xlfn.AGGREGATE(15,6,(ROW(Data_Tech[5])-ROW(Data_Tech[[#Headers],[5]]))/(Data_Tech[[мес]:[мес]]=$J$5)/(Data_Tech[[год]:[год]]=$L$5)/(Data_Tech[[изд]:[изд]]=$N$1:$T$1)/(Data_Tech[[партия]:[партия]]=$W$1),ROW(H23))),"") ->  | J29: =IFERROR(INDEX(Data_Tech[6],_xlfn.AGGREGATE(15,6,(ROW(Data_Tech[6])-ROW(Data_Tech[[#Headers],[6]]))/(Data_Tech[[мес]:[мес]]=$J$5)/(Data_Tech[[год]:[год]]=$L$5)/(Data_Tech[[изд]:[изд]]=$N$1:$T$1)/(Data_Tech[[партия]:[партия]]=$W$1),ROW(I23))),"") ->  | K29: =IFERROR(INDEX(Data_Tech[7],_xlfn.AGGREGATE(15,6,(ROW(Data_Tech[7])-ROW(Data_Tech[[#Headers],[7]]))/(Data_Tech[[мес]:[мес]]=$J$5)/(Data_Tech[[год]:[год]]=$L$5)/(Data_Tech[[изд]:[изд]]=$N$1:$T$1)/(Data_Tech[[партия]:[партия]]=$W$1),ROW(J23))),"") ->  | L29: =IFERROR(INDEX(Data_Tech[8],_xlfn.AGGREGATE(15,6,(ROW(Data_Tech[8])-ROW(Data_Tech[[#Headers],[8]]))/(Data_Tech[[мес]:[мес]]=$J$5)/(Data_Tech[[год]:[год]]=$L$5)/(Data_Tech[[изд]:[изд]]=$N$1:$T$1)/(Data_Tech[[партия]:[партия]]=$W$1),ROW(K23))),"") ->  | M29: =IFERROR(INDEX(Data_Tech[9],_xlfn.AGGREGATE(15,6,(ROW(Data_Tech[9])-ROW(Data_Tech[[#Headers],[9]]))/(Data_Tech[[мес]:[мес]]=$J$5)/(Data_Tech[[год]:[год]]=$L$5)/(Data_Tech[[изд]:[изд]]=$N$1:$T$1)/(Data_Tech[[партия]:[партия]]=$W$1),ROW(L23))),"") ->  | N29: =IFERROR(INDEX(Data_Tech[10],_xlfn.AGGREGATE(15,6,(ROW(Data_Tech[10])-ROW(Data_Tech[[#Headers],[10]]))/(Data_Tech[[мес]:[мес]]=$J$5)/(Data_Tech[[год]:[год]]=$L$5)/(Data_Tech[[изд]:[изд]]=$N$1:$T$1)/(Data_Tech[[партия]:[партия]]=$W$1),ROW(M23))),"") ->  | O29: =IFERROR(INDEX(Data_Tech[11],_xlfn.AGGREGATE(15,6,(ROW(Data_Tech[11])-ROW(Data_Tech[[#Headers],[11]]))/(Data_Tech[[мес]:[мес]]=$J$5)/(Data_Tech[[год]:[год]]=$L$5)/(Data_Tech[[изд]:[изд]]=$N$1:$T$1)/(Data_Tech[[партия]:[партия]]=$W$1),ROW(N23))),"") ->  | P29: =IFERROR(INDEX(Data_Tech[12],_xlfn.AGGREGATE(15,6,(ROW(Data_Tech[12])-ROW(Data_Tech[[#Headers],[12]]))/(Data_Tech[[мес]:[мес]]=$J$5)/(Data_Tech[[год]:[год]]=$L$5)/(Data_Tech[[изд]:[изд]]=$N$1:$T$1)/(Data_Tech[[партия]:[партия]]=$W$1),ROW(O23))),"") ->  | Q29: =IFERROR(INDEX(Data_Tech[13],_xlfn.AGGREGATE(15,6,(ROW(Data_Tech[13])-ROW(Data_Tech[[#Headers],[13]]))/(Data_Tech[[мес]:[мес]]=$J$5)/(Data_Tech[[год]:[год]]=$L$5)/(Data_Tech[[изд]:[изд]]=$N$1:$T$1)/(Data_Tech[[партия]:[партия]]=$W$1),ROW(P23))),"") ->  | R29: =IFERROR(INDEX(Data_Tech[14],_xlfn.AGGREGATE(15,6,(ROW(Data_Tech[14])-ROW(Data_Tech[[#Headers],[14]]))/(Data_Tech[[мес]:[мес]]=$J$5)/(Data_Tech[[год]:[год]]=$L$5)/(Data_Tech[[изд]:[изд]]=$N$1:$T$1)/(Data_Tech[[партия]:[партия]]=$W$1),ROW(Q23))),"") ->  | S29: =IFERROR(INDEX(Data_Tech[15],_xlfn.AGGREGATE(15,6,(ROW(Data_Tech[15])-ROW(Data_Tech[[#Headers],[15]]))/(Data_Tech[[мес]:[мес]]=$J$5)/(Data_Tech[[год]:[год]]=$L$5)/(Data_Tech[[изд]:[изд]]=$N$1:$T$1)/(Data_Tech[[партия]:[партия]]=$W$1),ROW(R23))),"") ->  | T29: =IFERROR(INDEX(Data_Tech[16],_xlfn.AGGREGATE(15,6,(ROW(Data_Tech[16])-ROW(Data_Tech[[#Headers],[16]]))/(Data_Tech[[мес]:[мес]]=$J$5)/(Data_Tech[[год]:[год]]=$L$5)/(Data_Tech[[изд]:[изд]]=$N$1:$T$1)/(Data_Tech[[партия]:[партия]]=$W$1),ROW(S23))),"") ->  | U29: =IFERROR(INDEX(Data_Tech[17],_xlfn.AGGREGATE(15,6,(ROW(Data_Tech[17])-ROW(Data_Tech[[#Headers],[17]]))/(Data_Tech[[мес]:[мес]]=$J$5)/(Data_Tech[[год]:[год]]=$L$5)/(Data_Tech[[изд]:[изд]]=$N$1:$T$1)/(Data_Tech[[партия]:[партия]]=$W$1),ROW(T23))),"") ->  | V29: =IFERROR(INDEX(Data_Tech[18],_xlfn.AGGREGATE(15,6,(ROW(Data_Tech[18])-ROW(Data_Tech[[#Headers],[18]]))/(Data_Tech[[мес]:[мес]]=$J$5)/(Data_Tech[[год]:[год]]=$L$5)/(Data_Tech[[изд]:[изд]]=$N$1:$T$1)/(Data_Tech[[партия]:[партия]]=$W$1),ROW(U23))),"") ->  | W29: =IFERROR(INDEX(Data_Tech[19],_xlfn.AGGREGATE(15,6,(ROW(Data_Tech[19])-ROW(Data_Tech[[#Headers],[19]]))/(Data_Tech[[мес]:[мес]]=$J$5)/(Data_Tech[[год]:[год]]=$L$5)/(Data_Tech[[изд]:[изд]]=$N$1:$T$1)/(Data_Tech[[партия]:[партия]]=$W$1),ROW(V23))),"") ->  | X29: =IFERROR(INDEX(Data_Tech[20],_xlfn.AGGREGATE(15,6,(ROW(Data_Tech[20])-ROW(Data_Tech[[#Headers],[20]]))/(Data_Tech[[мес]:[мес]]=$J$5)/(Data_Tech[[год]:[год]]=$L$5)/(Data_Tech[[изд]:[изд]]=$N$1:$T$1)/(Data_Tech[[партия]:[партия]]=$W$1),ROW(W23))),"") ->  | Y29: =IFERROR(INDEX(Data_Tech[21],_xlfn.AGGREGATE(15,6,(ROW(Data_Tech[21])-ROW(Data_Tech[[#Headers],[21]]))/(Data_Tech[[мес]:[мес]]=$J$5)/(Data_Tech[[год]:[год]]=$L$5)/(Data_Tech[[изд]:[изд]]=$N$1:$T$1)/(Data_Tech[[партия]:[партия]]=$W$1),ROW(X23))),"") ->  | Z29: =IFERROR(INDEX(Data_Tech[22],_xlfn.AGGREGATE(15,6,(ROW(Data_Tech[22])-ROW(Data_Tech[[#Headers],[22]]))/(Data_Tech[[мес]:[мес]]=$J$5)/(Data_Tech[[год]:[год]]=$L$5)/(Data_Tech[[изд]:[изд]]=$N$1:$T$1)/(Data_Tech[[партия]:[партия]]=$W$1),ROW(Y23))),"") ->  | AA29: =IFERROR(INDEX(Data_Tech[23],_xlfn.AGGREGATE(15,6,(ROW(Data_Tech[23])-ROW(Data_Tech[[#Headers],[23]]))/(Data_Tech[[мес]:[мес]]=$J$5)/(Data_Tech[[год]:[год]]=$L$5)/(Data_Tech[[изд]:[изд]]=$N$1:$T$1)/(Data_Tech[[партия]:[партия]]=$W$1),ROW(Z23))),"") ->  | AB29: =IFERROR(INDEX(Data_Tech[24],_xlfn.AGGREGATE(15,6,(ROW(Data_Tech[24])-ROW(Data_Tech[[#Headers],[24]]))/(Data_Tech[[мес]:[мес]]=$J$5)/(Data_Tech[[год]:[год]]=$L$5)/(Data_Tech[[изд]:[изд]]=$N$1:$T$1)/(Data_Tech[[партия]:[партия]]=$W$1),ROW(AA23))),"") ->  | AC29: =IFERROR(INDEX(Data_Tech[25],_xlfn.AGGREGATE(15,6,(ROW(Data_Tech[25])-ROW(Data_Tech[[#Headers],[25]]))/(Data_Tech[[мес]:[мес]]=$J$5)/(Data_Tech[[год]:[год]]=$L$5)/(Data_Tech[[изд]:[изд]]=$N$1:$T$1)/(Data_Tech[[партия]:[партия]]=$W$1),ROW(AB23))),"") ->  | AD29: =IFERROR(INDEX(Data_Tech[26],_xlfn.AGGREGATE(15,6,(ROW(Data_Tech[26])-ROW(Data_Tech[[#Headers],[26]]))/(Data_Tech[[мес]:[мес]]=$J$5)/(Data_Tech[[год]:[год]]=$L$5)/(Data_Tech[[изд]:[изд]]=$N$1:$T$1)/(Data_Tech[[партия]:[партия]]=$W$1),ROW(AC23))),"") ->  | AE29: =IFERROR(INDEX(Data_Tech[27],_xlfn.AGGREGATE(15,6,(ROW(Data_Tech[27])-ROW(Data_Tech[[#Headers],[27]]))/(Data_Tech[[мес]:[мес]]=$J$5)/(Data_Tech[[год]:[год]]=$L$5)/(Data_Tech[[изд]:[изд]]=$N$1:$T$1)/(Data_Tech[[партия]:[партия]]=$W$1),ROW(AD23))),"") ->  | AF29: =IFERROR(INDEX(Data_Tech[28],_xlfn.AGGREGATE(15,6,(ROW(Data_Tech[28])-ROW(Data_Tech[[#Headers],[28]]))/(Data_Tech[[мес]:[мес]]=$J$5)/(Data_Tech[[год]:[год]]=$L$5)/(Data_Tech[[изд]:[изд]]=$N$1:$T$1)/(Data_Tech[[партия]:[партия]]=$W$1),ROW(AE23))),"") ->  | AG29: =IFERROR(INDEX(Data_Tech[29],_xlfn.AGGREGATE(15,6,(ROW(Data_Tech[29])-ROW(Data_Tech[[#Headers],[29]]))/(Data_Tech[[мес]:[мес]]=$J$5)/(Data_Tech[[год]:[год]]=$L$5)/(Data_Tech[[изд]:[изд]]=$N$1:$T$1)/(Data_Tech[[партия]:[партия]]=$W$1),ROW(AF23))),"") ->  | AH29: =IFERROR(INDEX(Data_Tech[30],_xlfn.AGGREGATE(15,6,(ROW(Data_Tech[30])-ROW(Data_Tech[[#Headers],[30]]))/(Data_Tech[[мес]:[мес]]=$J$5)/(Data_Tech[[год]:[год]]=$L$5)/(Data_Tech[[изд]:[изд]]=$N$1:$T$1)/(Data_Tech[[партия]:[партия]]=$W$1),ROW(AG23))),"") ->  | AI29: =IFERROR(INDEX(Data_Tech[31],_xlfn.AGGREGATE(15,6,(ROW(Data_Tech[31])-ROW(Data_Tech[[#Headers],[31]]))/(Data_Tech[[мес]:[мес]]=$J$5)/(Data_Tech[[год]:[год]]=$L$5)/(Data_Tech[[изд]:[изд]]=$N$1:$T$1)/(Data_Tech[[партия]:[партия]]=$W$1),ROW(AH23))),"") ->  | AJ29: 0
A30: 24 | B30: =IFERROR(INDEX(Data_Tech[коэф],_xlfn.AGGREGATE(15,6,(ROW(Data_Tech[коэф])-ROW(Data_Tech[[#Headers],[коэф]]))/(Data_Tech[[мес]:[мес]]=$J$5)/(Data_Tech[[год]:[год]]=$L$5)/(Data_Tech[[изд]:[изд]]=$N$1)/(Data_Tech[[партия]:[партия]]=$W$1),ROW(A24))),"") ->  | C30: =IFERROR(INDEX(Data_Tech[Ф. И. О.],_xlfn.AGGREGATE(15,6,(ROW(Data_Tech[Ф. И. О.])-ROW(Data_Tech[[#Headers],[Ф. И. О.]]))/(Data_Tech[[мес]:[мес]]=$J$5)/(Data_Tech[[год]:[год]]=$L$5)/(Data_Tech[[изд]:[изд]]=$N$1)/(Data_Tech[[партия]:[партия]]=$W$1),ROW(B24))),"") ->  | D30: =IFERROR(INDEX(Data_Tech[р/р],_xlfn.AGGREGATE(15,6,(ROW(Data_Tech[р/р])-ROW(Data_Tech[[#Headers],[р/р]]))/(Data_Tech[[мес]:[мес]]=$J$5)/(Data_Tech[[год]:[год]]=$L$5)/(Data_Tech[[изд]:[изд]]=$N$1)/(Data_Tech[[партия]:[партия]]=$W$1),ROW(C24))),"") ->  | E30: =IFERROR(INDEX(Data_Tech[1],_xlfn.AGGREGATE(15,6,(ROW(Data_Tech[1])-ROW(Data_Tech[[#Headers],[1]]))/(Data_Tech[[мес]:[мес]]=$J$5)/(Data_Tech[[год]:[год]]=$L$5)/(Data_Tech[[изд]:[изд]]=$N$1:$T$1)/(Data_Tech[[партия]:[партия]]=$W$1),ROW(D24))),"") ->  | F30: =IFERROR(INDEX(Data_Tech[2],_xlfn.AGGREGATE(15,6,(ROW(Data_Tech[2])-ROW(Data_Tech[[#Headers],[2]]))/(Data_Tech[[мес]:[мес]]=$J$5)/(Data_Tech[[год]:[год]]=$L$5)/(Data_Tech[[изд]:[изд]]=$N$1:$T$1)/(Data_Tech[[партия]:[партия]]=$W$1),ROW(E24))),"") ->  | G30: =IFERROR(INDEX(Data_Tech[3],_xlfn.AGGREGATE(15,6,(ROW(Data_Tech[3])-ROW(Data_Tech[[#Headers],[3]]))/(Data_Tech[[мес]:[мес]]=$J$5)/(Data_Tech[[год]:[год]]=$L$5)/(Data_Tech[[изд]:[изд]]=$N$1:$T$1)/(Data_Tech[[партия]:[партия]]=$W$1),ROW(F24))),"") ->  | H30: =IFERROR(INDEX(Data_Tech[4],_xlfn.AGGREGATE(15,6,(ROW(Data_Tech[4])-ROW(Data_Tech[[#Headers],[4]]))/(Data_Tech[[мес]:[мес]]=$J$5)/(Data_Tech[[год]:[год]]=$L$5)/(Data_Tech[[изд]:[изд]]=$N$1:$T$1)/(Data_Tech[[партия]:[партия]]=$W$1),ROW(G24))),"") ->  | I30: =IFERROR(INDEX(Data_Tech[5],_xlfn.AGGREGATE(15,6,(ROW(Data_Tech[5])-ROW(Data_Tech[[#Headers],[5]]))/(Data_Tech[[мес]:[мес]]=$J$5)/(Data_Tech[[год]:[год]]=$L$5)/(Data_Tech[[изд]:[изд]]=$N$1:$T$1)/(Data_Tech[[партия]:[партия]]=$W$1),ROW(H24))),"") ->  | J30: =IFERROR(INDEX(Data_Tech[6],_xlfn.AGGREGATE(15,6,(ROW(Data_Tech[6])-ROW(Data_Tech[[#Headers],[6]]))/(Data_Tech[[мес]:[мес]]=$J$5)/(Data_Tech[[год]:[год]]=$L$5)/(Data_Tech[[изд]:[изд]]=$N$1:$T$1)/(Data_Tech[[партия]:[партия]]=$W$1),ROW(I24))),"") ->  | K30: =IFERROR(INDEX(Data_Tech[7],_xlfn.AGGREGATE(15,6,(ROW(Data_Tech[7])-ROW(Data_Tech[[#Headers],[7]]))/(Data_Tech[[мес]:[мес]]=$J$5)/(Data_Tech[[год]:[год]]=$L$5)/(Data_Tech[[изд]:[изд]]=$N$1:$T$1)/(Data_Tech[[партия]:[партия]]=$W$1),ROW(J24))),"") ->  | L30: =IFERROR(INDEX(Data_Tech[8],_xlfn.AGGREGATE(15,6,(ROW(Data_Tech[8])-ROW(Data_Tech[[#Headers],[8]]))/(Data_Tech[[мес]:[мес]]=$J$5)/(Data_Tech[[год]:[год]]=$L$5)/(Data_Tech[[изд]:[изд]]=$N$1:$T$1)/(Data_Tech[[партия]:[партия]]=$W$1),ROW(K24))),"") ->  | M30: =IFERROR(INDEX(Data_Tech[9],_xlfn.AGGREGATE(15,6,(ROW(Data_Tech[9])-ROW(Data_Tech[[#Headers],[9]]))/(Data_Tech[[мес]:[мес]]=$J$5)/(Data_Tech[[год]:[год]]=$L$5)/(Data_Tech[[изд]:[изд]]=$N$1:$T$1)/(Data_Tech[[партия]:[партия]]=$W$1),ROW(L24))),"") ->  | N30: =IFERROR(INDEX(Data_Tech[10],_xlfn.AGGREGATE(15,6,(ROW(Data_Tech[10])-ROW(Data_Tech[[#Headers],[10]]))/(Data_Tech[[мес]:[мес]]=$J$5)/(Data_Tech[[год]:[год]]=$L$5)/(Data_Tech[[изд]:[изд]]=$N$1:$T$1)/(Data_Tech[[партия]:[партия]]=$W$1),ROW(M24))),"") ->  | O30: =IFERROR(INDEX(Data_Tech[11],_xlfn.AGGREGATE(15,6,(ROW(Data_Tech[11])-ROW(Data_Tech[[#Headers],[11]]))/(Data_Tech[[мес]:[мес]]=$J$5)/(Data_Tech[[год]:[год]]=$L$5)/(Data_Tech[[изд]:[изд]]=$N$1:$T$1)/(Data_Tech[[партия]:[партия]]=$W$1),ROW(N24))),"") ->  | P30: =IFERROR(INDEX(Data_Tech[12],_xlfn.AGGREGATE(15,6,(ROW(Data_Tech[12])-ROW(Data_Tech[[#Headers],[12]]))/(Data_Tech[[мес]:[мес]]=$J$5)/(Data_Tech[[год]:[год]]=$L$5)/(Data_Tech[[изд]:[изд]]=$N$1:$T$1)/(Data_Tech[[партия]:[партия]]=$W$1),ROW(O24))),"") ->  | Q30: =IFERROR(INDEX(Data_Tech[13],_xlfn.AGGREGATE(15,6,(ROW(Data_Tech[13])-ROW(Data_Tech[[#Headers],[13]]))/(Data_Tech[[мес]:[мес]]=$J$5)/(Data_Tech[[год]:[год]]=$L$5)/(Data_Tech[[изд]:[изд]]=$N$1:$T$1)/(Data_Tech[[партия]:[партия]]=$W$1),ROW(P24))),"") ->  | R30: =IFERROR(INDEX(Data_Tech[14],_xlfn.AGGREGATE(15,6,(ROW(Data_Tech[14])-ROW(Data_Tech[[#Headers],[14]]))/(Data_Tech[[мес]:[мес]]=$J$5)/(Data_Tech[[год]:[год]]=$L$5)/(Data_Tech[[изд]:[изд]]=$N$1:$T$1)/(Data_Tech[[партия]:[партия]]=$W$1),ROW(Q24))),"") ->  | S30: =IFERROR(INDEX(Data_Tech[15],_xlfn.AGGREGATE(15,6,(ROW(Data_Tech[15])-ROW(Data_Tech[[#Headers],[15]]))/(Data_Tech[[мес]:[мес]]=$J$5)/(Data_Tech[[год]:[год]]=$L$5)/(Data_Tech[[изд]:[изд]]=$N$1:$T$1)/(Data_Tech[[партия]:[партия]]=$W$1),ROW(R24))),"") ->  | T30: =IFERROR(INDEX(Data_Tech[16],_xlfn.AGGREGATE(15,6,(ROW(Data_Tech[16])-ROW(Data_Tech[[#Headers],[16]]))/(Data_Tech[[мес]:[мес]]=$J$5)/(Data_Tech[[год]:[год]]=$L$5)/(Data_Tech[[изд]:[изд]]=$N$1:$T$1)/(Data_Tech[[партия]:[партия]]=$W$1),ROW(S24))),"") ->  | U30: =IFERROR(INDEX(Data_Tech[17],_xlfn.AGGREGATE(15,6,(ROW(Data_Tech[17])-ROW(Data_Tech[[#Headers],[17]]))/(Data_Tech[[мес]:[мес]]=$J$5)/(Data_Tech[[год]:[год]]=$L$5)/(Data_Tech[[изд]:[изд]]=$N$1:$T$1)/(Data_Tech[[партия]:[партия]]=$W$1),ROW(T24))),"") ->  | V30: =IFERROR(INDEX(Data_Tech[18],_xlfn.AGGREGATE(15,6,(ROW(Data_Tech[18])-ROW(Data_Tech[[#Headers],[18]]))/(Data_Tech[[мес]:[мес]]=$J$5)/(Data_Tech[[год]:[год]]=$L$5)/(Data_Tech[[изд]:[изд]]=$N$1:$T$1)/(Data_Tech[[партия]:[партия]]=$W$1),ROW(U24))),"") ->  | W30: =IFERROR(INDEX(Data_Tech[19],_xlfn.AGGREGATE(15,6,(ROW(Data_Tech[19])-ROW(Data_Tech[[#Headers],[19]]))/(Data_Tech[[мес]:[мес]]=$J$5)/(Data_Tech[[год]:[год]]=$L$5)/(Data_Tech[[изд]:[изд]]=$N$1:$T$1)/(Data_Tech[[партия]:[партия]]=$W$1),ROW(V24))),"") ->  | X30: =IFERROR(INDEX(Data_Tech[20],_xlfn.AGGREGATE(15,6,(ROW(Data_Tech[20])-ROW(Data_Tech[[#Headers],[20]]))/(Data_Tech[[мес]:[мес]]=$J$5)/(Data_Tech[[год]:[год]]=$L$5)/(Data_Tech[[изд]:[изд]]=$N$1:$T$1)/(Data_Tech[[партия]:[партия]]=$W$1),ROW(W24))),"") ->  | Y30: =IFERROR(INDEX(Data_Tech[21],_xlfn.AGGREGATE(15,6,(ROW(Data_Tech[21])-ROW(Data_Tech[[#Headers],[21]]))/(Data_Tech[[мес]:[мес]]=$J$5)/(Data_Tech[[год]:[год]]=$L$5)/(Data_Tech[[изд]:[изд]]=$N$1:$T$1)/(Data_Tech[[партия]:[партия]]=$W$1),ROW(X24))),"") ->  | Z30: =IFERROR(INDEX(Data_Tech[22],_xlfn.AGGREGATE(15,6,(ROW(Data_Tech[22])-ROW(Data_Tech[[#Headers],[22]]))/(Data_Tech[[мес]:[мес]]=$J$5)/(Data_Tech[[год]:[год]]=$L$5)/(Data_Tech[[изд]:[изд]]=$N$1:$T$1)/(Data_Tech[[партия]:[партия]]=$W$1),ROW(Y24))),"") ->  | AA30: =IFERROR(INDEX(Data_Tech[23],_xlfn.AGGREGATE(15,6,(ROW(Data_Tech[23])-ROW(Data_Tech[[#Headers],[23]]))/(Data_Tech[[мес]:[мес]]=$J$5)/(Data_Tech[[год]:[год]]=$L$5)/(Data_Tech[[изд]:[изд]]=$N$1:$T$1)/(Data_Tech[[партия]:[партия]]=$W$1),ROW(Z24))),"") ->  | AB30: =IFERROR(INDEX(Data_Tech[24],_xlfn.AGGREGATE(15,6,(ROW(Data_Tech[24])-ROW(Data_Tech[[#Headers],[24]]))/(Data_Tech[[мес]:[мес]]=$J$5)/(Data_Tech[[год]:[год]]=$L$5)/(Data_Tech[[изд]:[изд]]=$N$1:$T$1)/(Data_Tech[[партия]:[партия]]=$W$1),ROW(AA24))),"") ->  | AC30: =IFERROR(INDEX(Data_Tech[25],_xlfn.AGGREGATE(15,6,(ROW(Data_Tech[25])-ROW(Data_Tech[[#Headers],[25]]))/(Data_Tech[[мес]:[мес]]=$J$5)/(Data_Tech[[год]:[год]]=$L$5)/(Data_Tech[[изд]:[изд]]=$N$1:$T$1)/(Data_Tech[[партия]:[партия]]=$W$1),ROW(AB24))),"") ->  | AD30: =IFERROR(INDEX(Data_Tech[26],_xlfn.AGGREGATE(15,6,(ROW(Data_Tech[26])-ROW(Data_Tech[[#Headers],[26]]))/(Data_Tech[[мес]:[мес]]=$J$5)/(Data_Tech[[год]:[год]]=$L$5)/(Data_Tech[[изд]:[изд]]=$N$1:$T$1)/(Data_Tech[[партия]:[партия]]=$W$1),ROW(AC24))),"") ->  | AE30: =IFERROR(INDEX(Data_Tech[27],_xlfn.AGGREGATE(15,6,(ROW(Data_Tech[27])-ROW(Data_Tech[[#Headers],[27]]))/(Data_Tech[[мес]:[мес]]=$J$5)/(Data_Tech[[год]:[год]]=$L$5)/(Data_Tech[[изд]:[изд]]=$N$1:$T$1)/(Data_Tech[[партия]:[партия]]=$W$1),ROW(AD24))),"") ->  | AF30: =IFERROR(INDEX(Data_Tech[28],_xlfn.AGGREGATE(15,6,(ROW(Data_Tech[28])-ROW(Data_Tech[[#Headers],[28]]))/(Data_Tech[[мес]:[мес]]=$J$5)/(Data_Tech[[год]:[год]]=$L$5)/(Data_Tech[[изд]:[изд]]=$N$1:$T$1)/(Data_Tech[[партия]:[партия]]=$W$1),ROW(AE24))),"") ->  | AG30: =IFERROR(INDEX(Data_Tech[29],_xlfn.AGGREGATE(15,6,(ROW(Data_Tech[29])-ROW(Data_Tech[[#Headers],[29]]))/(Data_Tech[[мес]:[мес]]=$J$5)/(Data_Tech[[год]:[год]]=$L$5)/(Data_Tech[[изд]:[изд]]=$N$1:$T$1)/(Data_Tech[[партия]:[партия]]=$W$1),ROW(AF24))),"") ->  | AH30: =IFERROR(INDEX(Data_Tech[30],_xlfn.AGGREGATE(15,6,(ROW(Data_Tech[30])-ROW(Data_Tech[[#Headers],[30]]))/(Data_Tech[[мес]:[мес]]=$J$5)/(Data_Tech[[год]:[год]]=$L$5)/(Data_Tech[[изд]:[изд]]=$N$1:$T$1)/(Data_Tech[[партия]:[партия]]=$W$1),ROW(AG24))),"") ->  | AI30: =IFERROR(INDEX(Data_Tech[31],_xlfn.AGGREGATE(15,6,(ROW(Data_Tech[31])-ROW(Data_Tech[[#Headers],[31]]))/(Data_Tech[[мес]:[мес]]=$J$5)/(Data_Tech[[год]:[год]]=$L$5)/(Data_Tech[[изд]:[изд]]=$N$1:$T$1)/(Data_Tech[[партия]:[партия]]=$W$1),ROW(AH24))),"") ->  | AJ30: =SUM(E30:AI30) -> 0
A31: 25 | B31: =IFERROR(INDEX(Data_Tech[коэф],_xlfn.AGGREGATE(15,6,(ROW(Data_Tech[коэф])-ROW(Data_Tech[[#Headers],[коэф]]))/(Data_Tech[[мес]:[мес]]=$J$5)/(Data_Tech[[год]:[год]]=$L$5)/(Data_Tech[[изд]:[изд]]=$N$1)/(Data_Tech[[партия]:[партия]]=$W$1),ROW(A25))),"") ->  | C31: =IFERROR(INDEX(Data_Tech[Ф. И. О.],_xlfn.AGGREGATE(15,6,(ROW(Data_Tech[Ф. И. О.])-ROW(Data_Tech[[#Headers],[Ф. И. О.]]))/(Data_Tech[[мес]:[мес]]=$J$5)/(Data_Tech[[год]:[год]]=$L$5)/(Data_Tech[[изд]:[изд]]=$N$1)/(Data_Tech[[партия]:[партия]]=$W$1),ROW(B25))),"") ->  | D31: =IFERROR(INDEX(Data_Tech[р/р],_xlfn.AGGREGATE(15,6,(ROW(Data_Tech[р/р])-ROW(Data_Tech[[#Headers],[р/р]]))/(Data_Tech[[мес]:[мес]]=$J$5)/(Data_Tech[[год]:[год]]=$L$5)/(Data_Tech[[изд]:[изд]]=$N$1)/(Data_Tech[[партия]:[партия]]=$W$1),ROW(C25))),"") ->  | E31: =IFERROR(INDEX(Data_Tech[1],_xlfn.AGGREGATE(15,6,(ROW(Data_Tech[1])-ROW(Data_Tech[[#Headers],[1]]))/(Data_Tech[[мес]:[мес]]=$J$5)/(Data_Tech[[год]:[год]]=$L$5)/(Data_Tech[[изд]:[изд]]=$N$1:$T$1)/(Data_Tech[[партия]:[партия]]=$W$1),ROW(D25))),"") ->  | F31: =IFERROR(INDEX(Data_Tech[2],_xlfn.AGGREGATE(15,6,(ROW(Data_Tech[2])-ROW(Data_Tech[[#Headers],[2]]))/(Data_Tech[[мес]:[мес]]=$J$5)/(Data_Tech[[год]:[год]]=$L$5)/(Data_Tech[[изд]:[изд]]=$N$1:$T$1)/(Data_Tech[[партия]:[партия]]=$W$1),ROW(E25))),"") ->  | G31: =IFERROR(INDEX(Data_Tech[3],_xlfn.AGGREGATE(15,6,(ROW(Data_Tech[3])-ROW(Data_Tech[[#Headers],[3]]))/(Data_Tech[[мес]:[мес]]=$J$5)/(Data_Tech[[год]:[год]]=$L$5)/(Data_Tech[[изд]:[изд]]=$N$1:$T$1)/(Data_Tech[[партия]:[партия]]=$W$1),ROW(F25))),"") ->  | H31: =IFERROR(INDEX(Data_Tech[4],_xlfn.AGGREGATE(15,6,(ROW(Data_Tech[4])-ROW(Data_Tech[[#Headers],[4]]))/(Data_Tech[[мес]:[мес]]=$J$5)/(Data_Tech[[год]:[год]]=$L$5)/(Data_Tech[[изд]:[изд]]=$N$1:$T$1)/(Data_Tech[[партия]:[партия]]=$W$1),ROW(G25))),"") ->  | I31: =IFERROR(INDEX(Data_Tech[5],_xlfn.AGGREGATE(15,6,(ROW(Data_Tech[5])-ROW(Data_Tech[[#Headers],[5]]))/(Data_Tech[[мес]:[мес]]=$J$5)/(Data_Tech[[год]:[год]]=$L$5)/(Data_Tech[[изд]:[изд]]=$N$1:$T$1)/(Data_Tech[[партия]:[партия]]=$W$1),ROW(H25))),"") ->  | J31: =IFERROR(INDEX(Data_Tech[6],_xlfn.AGGREGATE(15,6,(ROW(Data_Tech[6])-ROW(Data_Tech[[#Headers],[6]]))/(Data_Tech[[мес]:[мес]]=$J$5)/(Data_Tech[[год]:[год]]=$L$5)/(Data_Tech[[изд]:[изд]]=$N$1:$T$1)/(Data_Tech[[партия]:[партия]]=$W$1),ROW(I25))),"") ->  | K31: =IFERROR(INDEX(Data_Tech[7],_xlfn.AGGREGATE(15,6,(ROW(Data_Tech[7])-ROW(Data_Tech[[#Headers],[7]]))/(Data_Tech[[мес]:[мес]]=$J$5)/(Data_Tech[[год]:[год]]=$L$5)/(Data_Tech[[изд]:[изд]]=$N$1:$T$1)/(Data_Tech[[партия]:[партия]]=$W$1),ROW(J25))),"") ->  | L31: =IFERROR(INDEX(Data_Tech[8],_xlfn.AGGREGATE(15,6,(ROW(Data_Tech[8])-ROW(Data_Tech[[#Headers],[8]]))/(Data_Tech[[мес]:[мес]]=$J$5)/(Data_Tech[[год]:[год]]=$L$5)/(Data_Tech[[изд]:[изд]]=$N$1:$T$1)/(Data_Tech[[партия]:[партия]]=$W$1),ROW(K25))),"") ->  | M31: =IFERROR(INDEX(Data_Tech[9],_xlfn.AGGREGATE(15,6,(ROW(Data_Tech[9])-ROW(Data_Tech[[#Headers],[9]]))/(Data_Tech[[мес]:[мес]]=$J$5)/(Data_Tech[[год]:[год]]=$L$5)/(Data_Tech[[изд]:[изд]]=$N$1:$T$1)/(Data_Tech[[партия]:[партия]]=$W$1),ROW(L25))),"") ->  | N31: =IFERROR(INDEX(Data_Tech[10],_xlfn.AGGREGATE(15,6,(ROW(Data_Tech[10])-ROW(Data_Tech[[#Headers],[10]]))/(Data_Tech[[мес]:[мес]]=$J$5)/(Data_Tech[[год]:[год]]=$L$5)/(Data_Tech[[изд]:[изд]]=$N$1:$T$1)/(Data_Tech[[партия]:[партия]]=$W$1),ROW(M25))),"") ->  | O31: =IFERROR(INDEX(Data_Tech[11],_xlfn.AGGREGATE(15,6,(ROW(Data_Tech[11])-ROW(Data_Tech[[#Headers],[11]]))/(Data_Tech[[мес]:[мес]]=$J$5)/(Data_Tech[[год]:[год]]=$L$5)/(Data_Tech[[изд]:[изд]]=$N$1:$T$1)/(Data_Tech[[партия]:[партия]]=$W$1),ROW(N25))),"") ->  | P31: =IFERROR(INDEX(Data_Tech[12],_xlfn.AGGREGATE(15,6,(ROW(Data_Tech[12])-ROW(Data_Tech[[#Headers],[12]]))/(Data_Tech[[мес]:[мес]]=$J$5)/(Data_Tech[[год]:[год]]=$L$5)/(Data_Tech[[изд]:[изд]]=$N$1:$T$1)/(Data_Tech[[партия]:[партия]]=$W$1),ROW(O25))),"") ->  | Q31: =IFERROR(INDEX(Data_Tech[13],_xlfn.AGGREGATE(15,6,(ROW(Data_Tech[13])-ROW(Data_Tech[[#Headers],[13]]))/(Data_Tech[[мес]:[мес]]=$J$5)/(Data_Tech[[год]:[год]]=$L$5)/(Data_Tech[[изд]:[изд]]=$N$1:$T$1)/(Data_Tech[[партия]:[партия]]=$W$1),ROW(P25))),"") ->  | R31: =IFERROR(INDEX(Data_Tech[14],_xlfn.AGGREGATE(15,6,(ROW(Data_Tech[14])-ROW(Data_Tech[[#Headers],[14]]))/(Data_Tech[[мес]:[мес]]=$J$5)/(Data_Tech[[год]:[год]]=$L$5)/(Data_Tech[[изд]:[изд]]=$N$1:$T$1)/(Data_Tech[[партия]:[партия]]=$W$1),ROW(Q25))),"") ->  | S31: =IFERROR(INDEX(Data_Tech[15],_xlfn.AGGREGATE(15,6,(ROW(Data_Tech[15])-ROW(Data_Tech[[#Headers],[15]]))/(Data_Tech[[мес]:[мес]]=$J$5)/(Data_Tech[[год]:[год]]=$L$5)/(Data_Tech[[изд]:[изд]]=$N$1:$T$1)/(Data_Tech[[партия]:[партия]]=$W$1),ROW(R25))),"") ->  | T31: =IFERROR(INDEX(Data_Tech[16],_xlfn.AGGREGATE(15,6,(ROW(Data_Tech[16])-ROW(Data_Tech[[#Headers],[16]]))/(Data_Tech[[мес]:[мес]]=$J$5)/(Data_Tech[[год]:[год]]=$L$5)/(Data_Tech[[изд]:[изд]]=$N$1:$T$1)/(Data_Tech[[партия]:[партия]]=$W$1),ROW(S25))),"") ->  | U31: =IFERROR(INDEX(Data_Tech[17],_xlfn.AGGREGATE(15,6,(ROW(Data_Tech[17])-ROW(Data_Tech[[#Headers],[17]]))/(Data_Tech[[мес]:[мес]]=$J$5)/(Data_Tech[[год]:[год]]=$L$5)/(Data_Tech[[изд]:[изд]]=$N$1:$T$1)/(Data_Tech[[партия]:[партия]]=$W$1),ROW(T25))),"") ->  | V31: =IFERROR(INDEX(Data_Tech[18],_xlfn.AGGREGATE(15,6,(ROW(Data_Tech[18])-ROW(Data_Tech[[#Headers],[18]]))/(Data_Tech[[мес]:[мес]]=$J$5)/(Data_Tech[[год]:[год]]=$L$5)/(Data_Tech[[изд]:[изд]]=$N$1:$T$1)/(Data_Tech[[партия]:[партия]]=$W$1),ROW(U25))),"") ->  | W31: =IFERROR(INDEX(Data_Tech[19],_xlfn.AGGREGATE(15,6,(ROW(Data_Tech[19])-ROW(Data_Tech[[#Headers],[19]]))/(Data_Tech[[мес]:[мес]]=$J$5)/(Data_Tech[[год]:[год]]=$L$5)/(Data_Tech[[изд]:[изд]]=$N$1:$T$1)/(Data_Tech[[партия]:[партия]]=$W$1),ROW(V25))),"") ->  | X31: =IFERROR(INDEX(Data_Tech[20],_xlfn.AGGREGATE(15,6,(ROW(Data_Tech[20])-ROW(Data_Tech[[#Headers],[20]]))/(Data_Tech[[мес]:[мес]]=$J$5)/(Data_Tech[[год]:[год]]=$L$5)/(Data_Tech[[изд]:[изд]]=$N$1:$T$1)/(Data_Tech[[партия]:[партия]]=$W$1),ROW(W25))),"") ->  | Y31: =IFERROR(INDEX(Data_Tech[21],_xlfn.AGGREGATE(15,6,(ROW(Data_Tech[21])-ROW(Data_Tech[[#Headers],[21]]))/(Data_Tech[[мес]:[мес]]=$J$5)/(Data_Tech[[год]:[год]]=$L$5)/(Data_Tech[[изд]:[изд]]=$N$1:$T$1)/(Data_Tech[[партия]:[партия]]=$W$1),ROW(X25))),"") ->  | Z31: =IFERROR(INDEX(Data_Tech[22],_xlfn.AGGREGATE(15,6,(ROW(Data_Tech[22])-ROW(Data_Tech[[#Headers],[22]]))/(Data_Tech[[мес]:[мес]]=$J$5)/(Data_Tech[[год]:[год]]=$L$5)/(Data_Tech[[изд]:[изд]]=$N$1:$T$1)/(Data_Tech[[партия]:[партия]]=$W$1),ROW(Y25))),"") ->  | AA31: =IFERROR(INDEX(Data_Tech[23],_xlfn.AGGREGATE(15,6,(ROW(Data_Tech[23])-ROW(Data_Tech[[#Headers],[23]]))/(Data_Tech[[мес]:[мес]]=$J$5)/(Data_Tech[[год]:[год]]=$L$5)/(Data_Tech[[изд]:[изд]]=$N$1:$T$1)/(Data_Tech[[партия]:[партия]]=$W$1),ROW(Z25))),"") ->  | AB31: =IFERROR(INDEX(Data_Tech[24],_xlfn.AGGREGATE(15,6,(ROW(Data_Tech[24])-ROW(Data_Tech[[#Headers],[24]]))/(Data_Tech[[мес]:[мес]]=$J$5)/(Data_Tech[[год]:[год]]=$L$5)/(Data_Tech[[изд]:[изд]]=$N$1:$T$1)/(Data_Tech[[партия]:[партия]]=$W$1),ROW(AA25))),"") ->  | AC31: =IFERROR(INDEX(Data_Tech[25],_xlfn.AGGREGATE(15,6,(ROW(Data_Tech[25])-ROW(Data_Tech[[#Headers],[25]]))/(Data_Tech[[мес]:[мес]]=$J$5)/(Data_Tech[[год]:[год]]=$L$5)/(Data_Tech[[изд]:[изд]]=$N$1:$T$1)/(Data_Tech[[партия]:[партия]]=$W$1),ROW(AB25))),"") ->  | AD31: =IFERROR(INDEX(Data_Tech[26],_xlfn.AGGREGATE(15,6,(ROW(Data_Tech[26])-ROW(Data_Tech[[#Headers],[26]]))/(Data_Tech[[мес]:[мес]]=$J$5)/(Data_Tech[[год]:[год]]=$L$5)/(Data_Tech[[изд]:[изд]]=$N$1:$T$1)/(Data_Tech[[партия]:[партия]]=$W$1),ROW(AC25))),"") ->  | AE31: =IFERROR(INDEX(Data_Tech[27],_xlfn.AGGREGATE(15,6,(ROW(Data_Tech[27])-ROW(Data_Tech[[#Headers],[27]]))/(Data_Tech[[мес]:[мес]]=$J$5)/(Data_Tech[[год]:[год]]=$L$5)/(Data_Tech[[изд]:[изд]]=$N$1:$T$1)/(Data_Tech[[партия]:[партия]]=$W$1),ROW(AD25))),"") ->  | AF31: =IFERROR(INDEX(Data_Tech[28],_xlfn.AGGREGATE(15,6,(ROW(Data_Tech[28])-ROW(Data_Tech[[#Headers],[28]]))/(Data_Tech[[мес]:[мес]]=$J$5)/(Data_Tech[[год]:[год]]=$L$5)/(Data_Tech[[изд]:[изд]]=$N$1:$T$1)/(Data_Tech[[партия]:[партия]]=$W$1),ROW(AE25))),"") ->  | AG31: =IFERROR(INDEX(Data_Tech[29],_xlfn.AGGREGATE(15,6,(ROW(Data_Tech[29])-ROW(Data_Tech[[#Headers],[29]]))/(Data_Tech[[мес]:[мес]]=$J$5)/(Data_Tech[[год]:[год]]=$L$5)/(Data_Tech[[изд]:[изд]]=$N$1:$T$1)/(Data_Tech[[партия]:[партия]]=$W$1),ROW(AF25))),"") ->  | AH31: =IFERROR(INDEX(Data_Tech[30],_xlfn.AGGREGATE(15,6,(ROW(Data_Tech[30])-ROW(Data_Tech[[#Headers],[30]]))/(Data_Tech[[мес]:[мес]]=$J$5)/(Data_Tech[[год]:[год]]=$L$5)/(Data_Tech[[изд]:[изд]]=$N$1:$T$1)/(Data_Tech[[партия]:[партия]]=$W$1),ROW(AG25))),"") ->  | AI31: =IFERROR(INDEX(Data_Tech[31],_xlfn.AGGREGATE(15,6,(ROW(Data_Tech[31])-ROW(Data_Tech[[#Headers],[31]]))/(Data_Tech[[мес]:[мес]]=$J$5)/(Data_Tech[[год]:[год]]=$L$5)/(Data_Tech[[изд]:[изд]]=$N$1:$T$1)/(Data_Tech[[партия]:[партия]]=$W$1),ROW(AH25))),"") ->  | AJ31: 0
A32: 26 | B32: =IFERROR(INDEX(Data_Tech[коэф],_xlfn.AGGREGATE(15,6,(ROW(Data_Tech[коэф])-ROW(Data_Tech[[#Headers],[коэф]]))/(Data_Tech[[мес]:[мес]]=$J$5)/(Data_Tech[[год]:[год]]=$L$5)/(Data_Tech[[изд]:[изд]]=$N$1)/(Data_Tech[[партия]:[партия]]=$W$1),ROW(A26))),"") ->  | C32: =IFERROR(INDEX(Data_Tech[Ф. И. О.],_xlfn.AGGREGATE(15,6,(ROW(Data_Tech[Ф. И. О.])-ROW(Data_Tech[[#Headers],[Ф. И. О.]]))/(Data_Tech[[мес]:[мес]]=$J$5)/(Data_Tech[[год]:[год]]=$L$5)/(Data_Tech[[изд]:[изд]]=$N$1)/(Data_Tech[[партия]:[партия]]=$W$1),ROW(B26))),"") ->  | D32: =IFERROR(INDEX(Data_Tech[р/р],_xlfn.AGGREGATE(15,6,(ROW(Data_Tech[р/р])-ROW(Data_Tech[[#Headers],[р/р]]))/(Data_Tech[[мес]:[мес]]=$J$5)/(Data_Tech[[год]:[год]]=$L$5)/(Data_Tech[[изд]:[изд]]=$N$1)/(Data_Tech[[партия]:[партия]]=$W$1),ROW(C26))),"") ->  | E32: =IFERROR(INDEX(Data_Tech[1],_xlfn.AGGREGATE(15,6,(ROW(Data_Tech[1])-ROW(Data_Tech[[#Headers],[1]]))/(Data_Tech[[мес]:[мес]]=$J$5)/(Data_Tech[[год]:[год]]=$L$5)/(Data_Tech[[изд]:[изд]]=$N$1:$T$1)/(Data_Tech[[партия]:[партия]]=$W$1),ROW(D26))),"") ->  | F32: =IFERROR(INDEX(Data_Tech[2],_xlfn.AGGREGATE(15,6,(ROW(Data_Tech[2])-ROW(Data_Tech[[#Headers],[2]]))/(Data_Tech[[мес]:[мес]]=$J$5)/(Data_Tech[[год]:[год]]=$L$5)/(Data_Tech[[изд]:[изд]]=$N$1:$T$1)/(Data_Tech[[партия]:[партия]]=$W$1),ROW(E26))),"") ->  | G32: =IFERROR(INDEX(Data_Tech[3],_xlfn.AGGREGATE(15,6,(ROW(Data_Tech[3])-ROW(Data_Tech[[#Headers],[3]]))/(Data_Tech[[мес]:[мес]]=$J$5)/(Data_Tech[[год]:[год]]=$L$5)/(Data_Tech[[изд]:[изд]]=$N$1:$T$1)/(Data_Tech[[партия]:[партия]]=$W$1),ROW(F26))),"") ->  | H32: =IFERROR(INDEX(Data_Tech[4],_xlfn.AGGREGATE(15,6,(ROW(Data_Tech[4])-ROW(Data_Tech[[#Headers],[4]]))/(Data_Tech[[мес]:[мес]]=$J$5)/(Data_Tech[[год]:[год]]=$L$5)/(Data_Tech[[изд]:[изд]]=$N$1:$T$1)/(Data_Tech[[партия]:[партия]]=$W$1),ROW(G26))),"") ->  | I32: =IFERROR(INDEX(Data_Tech[5],_xlfn.AGGREGATE(15,6,(ROW(Data_Tech[5])-ROW(Data_Tech[[#Headers],[5]]))/(Data_Tech[[мес]:[мес]]=$J$5)/(Data_Tech[[год]:[год]]=$L$5)/(Data_Tech[[изд]:[изд]]=$N$1:$T$1)/(Data_Tech[[партия]:[партия]]=$W$1),ROW(H26))),"") ->  | J32: =IFERROR(INDEX(Data_Tech[6],_xlfn.AGGREGATE(15,6,(ROW(Data_Tech[6])-ROW(Data_Tech[[#Headers],[6]]))/(Data_Tech[[мес]:[мес]]=$J$5)/(Data_Tech[[год]:[год]]=$L$5)/(Data_Tech[[изд]:[изд]]=$N$1:$T$1)/(Data_Tech[[партия]:[партия]]=$W$1),ROW(I26))),"") ->  | K32: =IFERROR(INDEX(Data_Tech[7],_xlfn.AGGREGATE(15,6,(ROW(Data_Tech[7])-ROW(Data_Tech[[#Headers],[7]]))/(Data_Tech[[мес]:[мес]]=$J$5)/(Data_Tech[[год]:[год]]=$L$5)/(Data_Tech[[изд]:[изд]]=$N$1:$T$1)/(Data_Tech[[партия]:[партия]]=$W$1),ROW(J26))),"") ->  | L32: =IFERROR(INDEX(Data_Tech[8],_xlfn.AGGREGATE(15,6,(ROW(Data_Tech[8])-ROW(Data_Tech[[#Headers],[8]]))/(Data_Tech[[мес]:[мес]]=$J$5)/(Data_Tech[[год]:[год]]=$L$5)/(Data_Tech[[изд]:[изд]]=$N$1:$T$1)/(Data_Tech[[партия]:[партия]]=$W$1),ROW(K26))),"") ->  | M32: =IFERROR(INDEX(Data_Tech[9],_xlfn.AGGREGATE(15,6,(ROW(Data_Tech[9])-ROW(Data_Tech[[#Headers],[9]]))/(Data_Tech[[мес]:[мес]]=$J$5)/(Data_Tech[[год]:[год]]=$L$5)/(Data_Tech[[изд]:[изд]]=$N$1:$T$1)/(Data_Tech[[партия]:[партия]]=$W$1),ROW(L26))),"") ->  | N32: =IFERROR(INDEX(Data_Tech[10],_xlfn.AGGREGATE(15,6,(ROW(Data_Tech[10])-ROW(Data_Tech[[#Headers],[10]]))/(Data_Tech[[мес]:[мес]]=$J$5)/(Data_Tech[[год]:[год]]=$L$5)/(Data_Tech[[изд]:[изд]]=$N$1:$T$1)/(Data_Tech[[партия]:[партия]]=$W$1),ROW(M26))),"") ->  | O32: =IFERROR(INDEX(Data_Tech[11],_xlfn.AGGREGATE(15,6,(ROW(Data_Tech[11])-ROW(Data_Tech[[#Headers],[11]]))/(Data_Tech[[мес]:[мес]]=$J$5)/(Data_Tech[[год]:[год]]=$L$5)/(Data_Tech[[изд]:[изд]]=$N$1:$T$1)/(Data_Tech[[партия]:[партия]]=$W$1),ROW(N26))),"") ->  | P32: =IFERROR(INDEX(Data_Tech[12],_xlfn.AGGREGATE(15,6,(ROW(Data_Tech[12])-ROW(Data_Tech[[#Headers],[12]]))/(Data_Tech[[мес]:[мес]]=$J$5)/(Data_Tech[[год]:[год]]=$L$5)/(Data_Tech[[изд]:[изд]]=$N$1:$T$1)/(Data_Tech[[партия]:[партия]]=$W$1),ROW(O26))),"") ->  | Q32: =IFERROR(INDEX(Data_Tech[13],_xlfn.AGGREGATE(15,6,(ROW(Data_Tech[13])-ROW(Data_Tech[[#Headers],[13]]))/(Data_Tech[[мес]:[мес]]=$J$5)/(Data_Tech[[год]:[год]]=$L$5)/(Data_Tech[[изд]:[изд]]=$N$1:$T$1)/(Data_Tech[[партия]:[партия]]=$W$1),ROW(P26))),"") ->  | R32: =IFERROR(INDEX(Data_Tech[14],_xlfn.AGGREGATE(15,6,(ROW(Data_Tech[14])-ROW(Data_Tech[[#Headers],[14]]))/(Data_Tech[[мес]:[мес]]=$J$5)/(Data_Tech[[год]:[год]]=$L$5)/(Data_Tech[[изд]:[изд]]=$N$1:$T$1)/(Data_Tech[[партия]:[партия]]=$W$1),ROW(Q26))),"") ->  | S32: =IFERROR(INDEX(Data_Tech[15],_xlfn.AGGREGATE(15,6,(ROW(Data_Tech[15])-ROW(Data_Tech[[#Headers],[15]]))/(Data_Tech[[мес]:[мес]]=$J$5)/(Data_Tech[[год]:[год]]=$L$5)/(Data_Tech[[изд]:[изд]]=$N$1:$T$1)/(Data_Tech[[партия]:[партия]]=$W$1),ROW(R26))),"") ->  | T32: =IFERROR(INDEX(Data_Tech[16],_xlfn.AGGREGATE(15,6,(ROW(Data_Tech[16])-ROW(Data_Tech[[#Headers],[16]]))/(Data_Tech[[мес]:[мес]]=$J$5)/(Data_Tech[[год]:[год]]=$L$5)/(Data_Tech[[изд]:[изд]]=$N$1:$T$1)/(Data_Tech[[партия]:[партия]]=$W$1),ROW(S26))),"") ->  | U32: =IFERROR(INDEX(Data_Tech[17],_xlfn.AGGREGATE(15,6,(ROW(Data_Tech[17])-ROW(Data_Tech[[#Headers],[17]]))/(Data_Tech[[мес]:[мес]]=$J$5)/(Data_Tech[[год]:[год]]=$L$5)/(Data_Tech[[изд]:[изд]]=$N$1:$T$1)/(Data_Tech[[партия]:[партия]]=$W$1),ROW(T26))),"") ->  | V32: =IFERROR(INDEX(Data_Tech[18],_xlfn.AGGREGATE(15,6,(ROW(Data_Tech[18])-ROW(Data_Tech[[#Headers],[18]]))/(Data_Tech[[мес]:[мес]]=$J$5)/(Data_Tech[[год]:[год]]=$L$5)/(Data_Tech[[изд]:[изд]]=$N$1:$T$1)/(Data_Tech[[партия]:[партия]]=$W$1),ROW(U26))),"") ->  | W32: =IFERROR(INDEX(Data_Tech[19],_xlfn.AGGREGATE(15,6,(ROW(Data_Tech[19])-ROW(Data_Tech[[#Headers],[19]]))/(Data_Tech[[мес]:[мес]]=$J$5)/(Data_Tech[[год]:[год]]=$L$5)/(Data_Tech[[изд]:[изд]]=$N$1:$T$1)/(Data_Tech[[партия]:[партия]]=$W$1),ROW(V26))),"") ->  | X32: =IFERROR(INDEX(Data_Tech[20],_xlfn.AGGREGATE(15,6,(ROW(Data_Tech[20])-ROW(Data_Tech[[#Headers],[20]]))/(Data_Tech[[мес]:[мес]]=$J$5)/(Data_Tech[[год]:[год]]=$L$5)/(Data_Tech[[изд]:[изд]]=$N$1:$T$1)/(Data_Tech[[партия]:[партия]]=$W$1),ROW(W26))),"") ->  | Y32: =IFERROR(INDEX(Data_Tech[21],_xlfn.AGGREGATE(15,6,(ROW(Data_Tech[21])-ROW(Data_Tech[[#Headers],[21]]))/(Data_Tech[[мес]:[мес]]=$J$5)/(Data_Tech[[год]:[год]]=$L$5)/(Data_Tech[[изд]:[изд]]=$N$1:$T$1)/(Data_Tech[[партия]:[партия]]=$W$1),ROW(X26))),"") ->  | Z32: =IFERROR(INDEX(Data_Tech[22],_xlfn.AGGREGATE(15,6,(ROW(Data_Tech[22])-ROW(Data_Tech[[#Headers],[22]]))/(Data_Tech[[мес]:[мес]]=$J$5)/(Data_Tech[[год]:[год]]=$L$5)/(Data_Tech[[изд]:[изд]]=$N$1:$T$1)/(Data_Tech[[партия]:[партия]]=$W$1),ROW(Y26))),"") ->  | AA32: =IFERROR(INDEX(Data_Tech[23],_xlfn.AGGREGATE(15,6,(ROW(Data_Tech[23])-ROW(Data_Tech[[#Headers],[23]]))/(Data_Tech[[мес]:[мес]]=$J$5)/(Data_Tech[[год]:[год]]=$L$5)/(Data_Tech[[изд]:[изд]]=$N$1:$T$1)/(Data_Tech[[партия]:[партия]]=$W$1),ROW(Z26))),"") ->  | AB32: =IFERROR(INDEX(Data_Tech[24],_xlfn.AGGREGATE(15,6,(ROW(Data_Tech[24])-ROW(Data_Tech[[#Headers],[24]]))/(Data_Tech[[мес]:[мес]]=$J$5)/(Data_Tech[[год]:[год]]=$L$5)/(Data_Tech[[изд]:[изд]]=$N$1:$T$1)/(Data_Tech[[партия]:[партия]]=$W$1),ROW(AA26))),"") ->  | AC32: =IFERROR(INDEX(Data_Tech[25],_xlfn.AGGREGATE(15,6,(ROW(Data_Tech[25])-ROW(Data_Tech[[#Headers],[25]]))/(Data_Tech[[мес]:[мес]]=$J$5)/(Data_Tech[[год]:[год]]=$L$5)/(Data_Tech[[изд]:[изд]]=$N$1:$T$1)/(Data_Tech[[партия]:[партия]]=$W$1),ROW(AB26))),"") ->  | AD32: =IFERROR(INDEX(Data_Tech[26],_xlfn.AGGREGATE(15,6,(ROW(Data_Tech[26])-ROW(Data_Tech[[#Headers],[26]]))/(Data_Tech[[мес]:[мес]]=$J$5)/(Data_Tech[[год]:[год]]=$L$5)/(Data_Tech[[изд]:[изд]]=$N$1:$T$1)/(Data_Tech[[партия]:[партия]]=$W$1),ROW(AC26))),"") ->  | AE32: =IFERROR(INDEX(Data_Tech[27],_xlfn.AGGREGATE(15,6,(ROW(Data_Tech[27])-ROW(Data_Tech[[#Headers],[27]]))/(Data_Tech[[мес]:[мес]]=$J$5)/(Data_Tech[[год]:[год]]=$L$5)/(Data_Tech[[изд]:[изд]]=$N$1:$T$1)/(Data_Tech[[партия]:[партия]]=$W$1),ROW(AD26))),"") ->  | AF32: =IFERROR(INDEX(Data_Tech[28],_xlfn.AGGREGATE(15,6,(ROW(Data_Tech[28])-ROW(Data_Tech[[#Headers],[28]]))/(Data_Tech[[мес]:[мес]]=$J$5)/(Data_Tech[[год]:[год]]=$L$5)/(Data_Tech[[изд]:[изд]]=$N$1:$T$1)/(Data_Tech[[партия]:[партия]]=$W$1),ROW(AE26))),"") ->  | AG32: =IFERROR(INDEX(Data_Tech[29],_xlfn.AGGREGATE(15,6,(ROW(Data_Tech[29])-ROW(Data_Tech[[#Headers],[29]]))/(Data_Tech[[мес]:[мес]]=$J$5)/(Data_Tech[[год]:[год]]=$L$5)/(Data_Tech[[изд]:[изд]]=$N$1:$T$1)/(Data_Tech[[партия]:[партия]]=$W$1),ROW(AF26))),"") ->  | AH32: =IFERROR(INDEX(Data_Tech[30],_xlfn.AGGREGATE(15,6,(ROW(Data_Tech[30])-ROW(Data_Tech[[#Headers],[30]]))/(Data_Tech[[мес]:[мес]]=$J$5)/(Data_Tech[[год]:[год]]=$L$5)/(Data_Tech[[изд]:[изд]]=$N$1:$T$1)/(Data_Tech[[партия]:[партия]]=$W$1),ROW(AG26))),"") ->  | AI32: =IFERROR(INDEX(Data_Tech[31],_xlfn.AGGREGATE(15,6,(ROW(Data_Tech[31])-ROW(Data_Tech[[#Headers],[31]]))/(Data_Tech[[мес]:[мес]]=$J$5)/(Data_Tech[[год]:[год]]=$L$5)/(Data_Tech[[изд]:[изд]]=$N$1:$T$1)/(Data_Tech[[партия]:[партия]]=$W$1),ROW(AH26))),"") ->  | AJ32: 0
A33: 27 | B33: =IFERROR(INDEX(Data_Tech[коэф],_xlfn.AGGREGATE(15,6,(ROW(Data_Tech[коэф])-ROW(Data_Tech[[#Headers],[коэф]]))/(Data_Tech[[мес]:[мес]]=$J$5)/(Data_Tech[[год]:[год]]=$L$5)/(Data_Tech[[изд]:[изд]]=$N$1)/(Data_Tech[[партия]:[партия]]=$W$1),ROW(A27))),"") ->  | C33: =IFERROR(INDEX(Data_Tech[Ф. И. О.],_xlfn.AGGREGATE(15,6,(ROW(Data_Tech[Ф. И. О.])-ROW(Data_Tech[[#Headers],[Ф. И. О.]]))/(Data_Tech[[мес]:[мес]]=$J$5)/(Data_Tech[[год]:[год]]=$L$5)/(Data_Tech[[изд]:[изд]]=$N$1)/(Data_Tech[[партия]:[партия]]=$W$1),ROW(B27))),"") ->  | D33: =IFERROR(INDEX(Data_Tech[р/р],_xlfn.AGGREGATE(15,6,(ROW(Data_Tech[р/р])-ROW(Data_Tech[[#Headers],[р/р]]))/(Data_Tech[[мес]:[мес]]=$J$5)/(Data_Tech[[год]:[год]]=$L$5)/(Data_Tech[[изд]:[изд]]=$N$1)/(Data_Tech[[партия]:[партия]]=$W$1),ROW(C27))),"") ->  | E33: =IFERROR(INDEX(Data_Tech[1],_xlfn.AGGREGATE(15,6,(ROW(Data_Tech[1])-ROW(Data_Tech[[#Headers],[1]]))/(Data_Tech[[мес]:[мес]]=$J$5)/(Data_Tech[[год]:[год]]=$L$5)/(Data_Tech[[изд]:[изд]]=$N$1:$T$1)/(Data_Tech[[партия]:[партия]]=$W$1),ROW(D27))),"") ->  | F33: =IFERROR(INDEX(Data_Tech[2],_xlfn.AGGREGATE(15,6,(ROW(Data_Tech[2])-ROW(Data_Tech[[#Headers],[2]]))/(Data_Tech[[мес]:[мес]]=$J$5)/(Data_Tech[[год]:[год]]=$L$5)/(Data_Tech[[изд]:[изд]]=$N$1:$T$1)/(Data_Tech[[партия]:[партия]]=$W$1),ROW(E27))),"") ->  | G33: =IFERROR(INDEX(Data_Tech[3],_xlfn.AGGREGATE(15,6,(ROW(Data_Tech[3])-ROW(Data_Tech[[#Headers],[3]]))/(Data_Tech[[мес]:[мес]]=$J$5)/(Data_Tech[[год]:[год]]=$L$5)/(Data_Tech[[изд]:[изд]]=$N$1:$T$1)/(Data_Tech[[партия]:[партия]]=$W$1),ROW(F27))),"") ->  | H33: =IFERROR(INDEX(Data_Tech[4],_xlfn.AGGREGATE(15,6,(ROW(Data_Tech[4])-ROW(Data_Tech[[#Headers],[4]]))/(Data_Tech[[мес]:[мес]]=$J$5)/(Data_Tech[[год]:[год]]=$L$5)/(Data_Tech[[изд]:[изд]]=$N$1:$T$1)/(Data_Tech[[партия]:[партия]]=$W$1),ROW(G27))),"") ->  | I33: =IFERROR(INDEX(Data_Tech[5],_xlfn.AGGREGATE(15,6,(ROW(Data_Tech[5])-ROW(Data_Tech[[#Headers],[5]]))/(Data_Tech[[мес]:[мес]]=$J$5)/(Data_Tech[[год]:[год]]=$L$5)/(Data_Tech[[изд]:[изд]]=$N$1:$T$1)/(Data_Tech[[партия]:[партия]]=$W$1),ROW(H27))),"") ->  | J33: =IFERROR(INDEX(Data_Tech[6],_xlfn.AGGREGATE(15,6,(ROW(Data_Tech[6])-ROW(Data_Tech[[#Headers],[6]]))/(Data_Tech[[мес]:[мес]]=$J$5)/(Data_Tech[[год]:[год]]=$L$5)/(Data_Tech[[изд]:[изд]]=$N$1:$T$1)/(Data_Tech[[партия]:[партия]]=$W$1),ROW(I27))),"") ->  | K33: =IFERROR(INDEX(Data_Tech[7],_xlfn.AGGREGATE(15,6,(ROW(Data_Tech[7])-ROW(Data_Tech[[#Headers],[7]]))/(Data_Tech[[мес]:[мес]]=$J$5)/(Data_Tech[[год]:[год]]=$L$5)/(Data_Tech[[изд]:[изд]]=$N$1:$T$1)/(Data_Tech[[партия]:[партия]]=$W$1),ROW(J27))),"") ->  | L33: =IFERROR(INDEX(Data_Tech[8],_xlfn.AGGREGATE(15,6,(ROW(Data_Tech[8])-ROW(Data_Tech[[#Headers],[8]]))/(Data_Tech[[мес]:[мес]]=$J$5)/(Data_Tech[[год]:[год]]=$L$5)/(Data_Tech[[изд]:[изд]]=$N$1:$T$1)/(Data_Tech[[партия]:[партия]]=$W$1),ROW(K27))),"") ->  | M33: =IFERROR(INDEX(Data_Tech[9],_xlfn.AGGREGATE(15,6,(ROW(Data_Tech[9])-ROW(Data_Tech[[#Headers],[9]]))/(Data_Tech[[мес]:[мес]]=$J$5)/(Data_Tech[[год]:[год]]=$L$5)/(Data_Tech[[изд]:[изд]]=$N$1:$T$1)/(Data_Tech[[партия]:[партия]]=$W$1),ROW(L27))),"") ->  | N33: =IFERROR(INDEX(Data_Tech[10],_xlfn.AGGREGATE(15,6,(ROW(Data_Tech[10])-ROW(Data_Tech[[#Headers],[10]]))/(Data_Tech[[мес]:[мес]]=$J$5)/(Data_Tech[[год]:[год]]=$L$5)/(Data_Tech[[изд]:[изд]]=$N$1:$T$1)/(Data_Tech[[партия]:[партия]]=$W$1),ROW(M27))),"") ->  | O33: =IFERROR(INDEX(Data_Tech[11],_xlfn.AGGREGATE(15,6,(ROW(Data_Tech[11])-ROW(Data_Tech[[#Headers],[11]]))/(Data_Tech[[мес]:[мес]]=$J$5)/(Data_Tech[[год]:[год]]=$L$5)/(Data_Tech[[изд]:[изд]]=$N$1:$T$1)/(Data_Tech[[партия]:[партия]]=$W$1),ROW(N27))),"") ->  | P33: =IFERROR(INDEX(Data_Tech[12],_xlfn.AGGREGATE(15,6,(ROW(Data_Tech[12])-ROW(Data_Tech[[#Headers],[12]]))/(Data_Tech[[мес]:[мес]]=$J$5)/(Data_Tech[[год]:[год]]=$L$5)/(Data_Tech[[изд]:[изд]]=$N$1:$T$1)/(Data_Tech[[партия]:[партия]]=$W$1),ROW(O27))),"") ->  | Q33: =IFERROR(INDEX(Data_Tech[13],_xlfn.AGGREGATE(15,6,(ROW(Data_Tech[13])-ROW(Data_Tech[[#Headers],[13]]))/(Data_Tech[[мес]:[мес]]=$J$5)/(Data_Tech[[год]:[год]]=$L$5)/(Data_Tech[[изд]:[изд]]=$N$1:$T$1)/(Data_Tech[[партия]:[партия]]=$W$1),ROW(P27))),"") ->  | R33: =IFERROR(INDEX(Data_Tech[14],_xlfn.AGGREGATE(15,6,(ROW(Data_Tech[14])-ROW(Data_Tech[[#Headers],[14]]))/(Data_Tech[[мес]:[мес]]=$J$5)/(Data_Tech[[год]:[год]]=$L$5)/(Data_Tech[[изд]:[изд]]=$N$1:$T$1)/(Data_Tech[[партия]:[партия]]=$W$1),ROW(Q27))),"") ->  | S33: =IFERROR(INDEX(Data_Tech[15],_xlfn.AGGREGATE(15,6,(ROW(Data_Tech[15])-ROW(Data_Tech[[#Headers],[15]]))/(Data_Tech[[мес]:[мес]]=$J$5)/(Data_Tech[[год]:[год]]=$L$5)/(Data_Tech[[изд]:[изд]]=$N$1:$T$1)/(Data_Tech[[партия]:[партия]]=$W$1),ROW(R27))),"") ->  | T33: =IFERROR(INDEX(Data_Tech[16],_xlfn.AGGREGATE(15,6,(ROW(Data_Tech[16])-ROW(Data_Tech[[#Headers],[16]]))/(Data_Tech[[мес]:[мес]]=$J$5)/(Data_Tech[[год]:[год]]=$L$5)/(Data_Tech[[изд]:[изд]]=$N$1:$T$1)/(Data_Tech[[партия]:[партия]]=$W$1),ROW(S27))),"") ->  | U33: =IFERROR(INDEX(Data_Tech[17],_xlfn.AGGREGATE(15,6,(ROW(Data_Tech[17])-ROW(Data_Tech[[#Headers],[17]]))/(Data_Tech[[мес]:[мес]]=$J$5)/(Data_Tech[[год]:[год]]=$L$5)/(Data_Tech[[изд]:[изд]]=$N$1:$T$1)/(Data_Tech[[партия]:[партия]]=$W$1),ROW(T27))),"") ->  | V33: =IFERROR(INDEX(Data_Tech[18],_xlfn.AGGREGATE(15,6,(ROW(Data_Tech[18])-ROW(Data_Tech[[#Headers],[18]]))/(Data_Tech[[мес]:[мес]]=$J$5)/(Data_Tech[[год]:[год]]=$L$5)/(Data_Tech[[изд]:[изд]]=$N$1:$T$1)/(Data_Tech[[партия]:[партия]]=$W$1),ROW(U27))),"") ->  | W33: =IFERROR(INDEX(Data_Tech[19],_xlfn.AGGREGATE(15,6,(ROW(Data_Tech[19])-ROW(Data_Tech[[#Headers],[19]]))/(Data_Tech[[мес]:[мес]]=$J$5)/(Data_Tech[[год]:[год]]=$L$5)/(Data_Tech[[изд]:[изд]]=$N$1:$T$1)/(Data_Tech[[партия]:[партия]]=$W$1),ROW(V27))),"") ->  | X33: =IFERROR(INDEX(Data_Tech[20],_xlfn.AGGREGATE(15,6,(ROW(Data_Tech[20])-ROW(Data_Tech[[#Headers],[20]]))/(Data_Tech[[мес]:[мес]]=$J$5)/(Data_Tech[[год]:[год]]=$L$5)/(Data_Tech[[изд]:[изд]]=$N$1:$T$1)/(Data_Tech[[партия]:[партия]]=$W$1),ROW(W27))),"") ->  | Y33: =IFERROR(INDEX(Data_Tech[21],_xlfn.AGGREGATE(15,6,(ROW(Data_Tech[21])-ROW(Data_Tech[[#Headers],[21]]))/(Data_Tech[[мес]:[мес]]=$J$5)/(Data_Tech[[год]:[год]]=$L$5)/(Data_Tech[[изд]:[изд]]=$N$1:$T$1)/(Data_Tech[[партия]:[партия]]=$W$1),ROW(X27))),"") ->  | Z33: =IFERROR(INDEX(Data_Tech[22],_xlfn.AGGREGATE(15,6,(ROW(Data_Tech[22])-ROW(Data_Tech[[#Headers],[22]]))/(Data_Tech[[мес]:[мес]]=$J$5)/(Data_Tech[[год]:[год]]=$L$5)/(Data_Tech[[изд]:[изд]]=$N$1:$T$1)/(Data_Tech[[партия]:[партия]]=$W$1),ROW(Y27))),"") ->  | AA33: =IFERROR(INDEX(Data_Tech[23],_xlfn.AGGREGATE(15,6,(ROW(Data_Tech[23])-ROW(Data_Tech[[#Headers],[23]]))/(Data_Tech[[мес]:[мес]]=$J$5)/(Data_Tech[[год]:[год]]=$L$5)/(Data_Tech[[изд]:[изд]]=$N$1:$T$1)/(Data_Tech[[партия]:[партия]]=$W$1),ROW(Z27))),"") ->  | AB33: =IFERROR(INDEX(Data_Tech[24],_xlfn.AGGREGATE(15,6,(ROW(Data_Tech[24])-ROW(Data_Tech[[#Headers],[24]]))/(Data_Tech[[мес]:[мес]]=$J$5)/(Data_Tech[[год]:[год]]=$L$5)/(Data_Tech[[изд]:[изд]]=$N$1:$T$1)/(Data_Tech[[партия]:[партия]]=$W$1),ROW(AA27))),"") ->  | AC33: =IFERROR(INDEX(Data_Tech[25],_xlfn.AGGREGATE(15,6,(ROW(Data_Tech[25])-ROW(Data_Tech[[#Headers],[25]]))/(Data_Tech[[мес]:[мес]]=$J$5)/(Data_Tech[[год]:[год]]=$L$5)/(Data_Tech[[изд]:[изд]]=$N$1:$T$1)/(Data_Tech[[партия]:[партия]]=$W$1),ROW(AB27))),"") ->  | AD33: =IFERROR(INDEX(Data_Tech[26],_xlfn.AGGREGATE(15,6,(ROW(Data_Tech[26])-ROW(Data_Tech[[#Headers],[26]]))/(Data_Tech[[мес]:[мес]]=$J$5)/(Data_Tech[[год]:[год]]=$L$5)/(Data_Tech[[изд]:[изд]]=$N$1:$T$1)/(Data_Tech[[партия]:[партия]]=$W$1),ROW(AC27))),"") ->  | AE33: =IFERROR(INDEX(Data_Tech[27],_xlfn.AGGREGATE(15,6,(ROW(Data_Tech[27])-ROW(Data_Tech[[#Headers],[27]]))/(Data_Tech[[мес]:[мес]]=$J$5)/(Data_Tech[[год]:[год]]=$L$5)/(Data_Tech[[изд]:[изд]]=$N$1:$T$1)/(Data_Tech[[партия]:[партия]]=$W$1),ROW(AD27))),"") ->  | AF33: =IFERROR(INDEX(Data_Tech[28],_xlfn.AGGREGATE(15,6,(ROW(Data_Tech[28])-ROW(Data_Tech[[#Headers],[28]]))/(Data_Tech[[мес]:[мес]]=$J$5)/(Data_Tech[[год]:[год]]=$L$5)/(Data_Tech[[изд]:[изд]]=$N$1:$T$1)/(Data_Tech[[партия]:[партия]]=$W$1),ROW(AE27))),"") ->  | AG33: =IFERROR(INDEX(Data_Tech[29],_xlfn.AGGREGATE(15,6,(ROW(Data_Tech[29])-ROW(Data_Tech[[#Headers],[29]]))/(Data_Tech[[мес]:[мес]]=$J$5)/(Data_Tech[[год]:[год]]=$L$5)/(Data_Tech[[изд]:[изд]]=$N$1:$T$1)/(Data_Tech[[партия]:[партия]]=$W$1),ROW(AF27))),"") ->  | AH33: =IFERROR(INDEX(Data_Tech[30],_xlfn.AGGREGATE(15,6,(ROW(Data_Tech[30])-ROW(Data_Tech[[#Headers],[30]]))/(Data_Tech[[мес]:[мес]]=$J$5)/(Data_Tech[[год]:[год]]=$L$5)/(Data_Tech[[изд]:[изд]]=$N$1:$T$1)/(Data_Tech[[партия]:[партия]]=$W$1),ROW(AG27))),"") ->  | AI33: =IFERROR(INDEX(Data_Tech[31],_xlfn.AGGREGATE(15,6,(ROW(Data_Tech[31])-ROW(Data_Tech[[#Headers],[31]]))/(Data_Tech[[мес]:[мес]]=$J$5)/(Data_Tech[[год]:[год]]=$L$5)/(Data_Tech[[изд]:[изд]]=$N$1:$T$1)/(Data_Tech[[партия]:[партия]]=$W$1),ROW(AH27))),"") ->  | AJ33: 0
